Workbook

Sheet Cover
B2: METROPOLITAN WATER SUPPLIERS IN NSW - ANNUAL INFORMATION RETURN (AIR) - DRAFT
B3: NOTE: This template has been designed for Sydney Water and Hunter Water. It will be adapted for Central Coast Council and Essential Water to reflect their determination periods, pricing structures, services provided and other items as appropriate.
B5: Metropolitan Water Agency | E5: Abusiness | J5: DO NOT DELETE
B6: Information for financial year ending 30 June | E6: 2023 | F6: (enter year only) | J6: Units | K6: $'000
B7: Annual Information Return to be received by: | E7: 2023-10-28
B9: Information for determination period commencing 1 July | E9: 2020
B10: Length of determination period (years) | E10: 5
B11: Forecasts to be provided in (real) dollars of | E11: =E6&"-"&RIGHT(E6+1,2) -> 2023-24
B12: Audited Financial Statement information is required
B16: Checklist
C18: General checklist
B19: A) | C19: Please provide all compulsory information. Any incomplete or missing data should be accompanied by explanatory notes or comments. Projections are requested on the understanding that these are estimates only.
B20: B) | C20: Do not enter text into tables unless specifically requested to do so. If no information is available, leave cells blank.
B21: C) | C21: Please ensure that no "error" messages are displayed in the control edit boxes before returning the spreadsheet. If there are still "error" messages, please provide explanations. Also check that error checks in pink font are not showing errors.
B23: D) | C23: DO NOT OVER-WRITE FORMULAE. If you find errors, please speak to IPART.
C24: When only the AIR is returned (between reviews, no forecasts)
B25: E) | C25: Please ensure that the Regulatory Manager's Responsibility Statement is provided with the final version of this workbook during non-review years, when only the AIR is required (without forecasts).
C26: When the AIR and SIR are returned (for a review, with forecasts)
B27: F) | C27: ="Forecasts are to be provided in real $"&$E$11&" with the exception of forecast tax depreciation, which must be provided in nominal dollars ( see "&'Fin Data '!$B$3&", "&'Fin Data '!$G$3&"). Please see the instructions on each worksheet." -> Forecasts are to be provided in real $2023-24 with the exception of forecast tax depreciation, which must be provided in nominal dollars ( see Section 10, Financial information and tax depreciation). Please see the instructions on each worksheet.
B28: G) | C28: Please refer to your SIP letter attachment 'Dollar values and inflation rates for the Pricing Submission' for information about what inflation rates to use. As far as possible, the correct inflation rates have already been recorded in the relevant tables. No further escalators are to be used.
B29: H) | C29: Note that revenue projections should reflect the proposed prices.
B30: I) | C30: Please attach a copy of the current Annual Report, the latest Statement of Corporate Intent and Asset Management Plan.
B31: J) | C31: Please ensure that the Managing Director's Responsibility Statement is provided with the final version of this workbook.
B35: Colour coding of input sheets:
B36: Light blue = Input cells recording actual historical data. Information is compulsory.
B37: Yellow = Budgets/Estimates/ Projections. Information must be provided, even if rough estimates only
B38: Light grey = Inputs not required, cells should be left unchanged or blank.
B39: Green = Voluntary inputs (actual and/or projections).
B40: Purple = EDIT CHECK boxes. No information required.
B41: Pink font = Error checks
B42: Red font = Error warning
AW311: ``

Sheet Information
B2: =Cover!B5 -> Metropolitan Water Agency | E2: =Cover!E5 -> Abusiness
B3: Information about the 2022 AIR/SIR changes
B4: =MID(CELL("filename",B1),FIND("]",CELL("filename",B1))+1,255) -> Information
C7: The AIR/SIR has been restructured and simplified
D9: We have restructured and simplified the AIR/SIR in line with the transition to our new approach to regulation and our modelling simplifications. The main substantive changes are the ways we ask you to report operating and capital expenditure.
D10: The primary intention of our updated categories for operating and capital expenditure is to allow us to compare the NSW urban businesses that we regulate with both each other and the Victorian urban water businesses, where it sensible to do so.
D11: To this end, we have standardised the categories across the businesses and require that you report in these categories.
D12: We have also introduced a new set of categories for operating expenditure (by function) and capital expenditure (by driver) that are consistent with the categories used by the Victorian Essential Services Commission (ESC).
D14: For reference:
D15: ESC Water Price Review 2018 (go to Resources tab then find a model)
C17: You are required to back-cast historical information for certain items
D19: We require that you back-cast:
D20: (i) capital expenditure, cash capital contributions and asset disposals to the year prior to the start of the current determination period
D21: (ii) operating expenditure to the start of the current determination period.
D22: For all other items, you are free to provide historical data from your current AIR/SIR but are not required to do so.
C24: General information
D25: We have not provided a consolidated list of definitions or instructions. Instead, notes and instructions are provided at the top of each worksheet, as necessary.
D27: Please note that the AIR now contains all the items that require annual data.
C32: More information about operating expenditure.
C34: Categories for operating expenditure
D35: We collect operating expenditure (opex) in 2 sets of categories:
D36: - Opex by item, for example employee, bulk water and energy. We have reduced the number categories relative to the previous AIRs and require that you report in these categories from 2023-24.
D37: - Opex by function, where the categories are consistent with those used by the ESC for water businesses. We require that you back-cast opex by function to the start of the current regulatory period.
D38: When reporting opex by function, we require that you separately report controllable and non-controllable costs. Controllable costs are those that can be directly or indirectly influenced by a water business‘s operational decisions. Non-controllable costs are the exception, for example bulk water costs (where prices are set by IPART) and regulatory licence fees.
C39: Your proposed opex for pricing reviews
D40: As explained in our Final Technical Paper, we will implement a base-step-trend approach to your proposed operating expenditure. We have adopted the method used by the ESC, except that we require separate forecasts for Water, Wastewater and Stormwater services.
C45: More information about capital expenditure.
C46: Separate reporting of capital expenditure for discreet major projects
D47: We have separated actual and proposed capital expenditure into 2 categories, namely capital expenditure that enters the RAB as incurred and capital expenditure on major projects that enter the RAB once commissioned (including holding costs).
D48: Capital expenditure once commissioned is exceptional, and reserved for discreet major projects that take a number of years to construct for example a desalination plant.
C50: Categories for capital expenditure
D51: We collect capital expenditure (capex) in 2 sets of categories:
D52: - Depreciable and non-depreciable assets, consistent with our simplified modelling approach. We require that you report in these categories from 2023-24.
D53: - Capex by driver, where the categories are consistent with those used by the ESC for water businesses. We require that you back-cast capex by driver to the start of the current regulatory period. From the start of the next determination period, you also have the opportunity to nominate amounts that fall outside the capital efficiency savings scheme (CESS).
C55: Your proposed capex for pricing reviews
D56: ="For capital expenditure that enters the RAB as incurred, in the SIR we ask you to propose expenditure seperately for the larger projects and programs and in groups for smaller projects and programs. (See "&'SIR Capex 2a'!$B$4&".)" -> For capital expenditure that enters the RAB as incurred, in the SIR we ask you to propose expenditure seperately for the larger projects and programs and in groups for smaller projects and programs. (See SIR Capex 2a.)
D57: ="For capital expenditure that enters the RAB once commissioned, in the SIR we ask you to propose expenditure seperately for depreciable and non-depreciable assets. (See "&'SIR Capex 2b Major'!$B$3&".)" -> For capital expenditure that enters the RAB once commissioned, in the SIR we ask you to propose expenditure seperately for depreciable and non-depreciable assets. (See SIR Section 4b.)

Sheet AIR index
B2: =Cover!B2 -> METROPOLITAN WATER SUPPLIERS IN NSW - ANNUAL INFORMATION RETURN (AIR) - DRAFT
B4: Index of tables | D4: Tab Name
B6: ='Non-financial'!B3 -> Section 1 | C6: ='Non-financial'!G3 -> Non-financial Data
B8: ='Non-financial'!C17 -> Table 1.1 - Customer Profile - Water | D8: ='Non-financial'!$B$4 -> Non-financial
B9: ='Non-financial'!C91 -> Table 1.2 - Customer Profile - Wastewater | D9: ='Non-financial'!$B$4 -> Non-financial
B10: ='Non-financial'!C180 -> Table 1.3 - Customer Profile - Stormwater | D10: ='Non-financial'!$B$4 -> Non-financial
B11: ='Non-financial'!C253 -> Table 1.4 - Water Consumption (forecasts for normal weather conditions) | D11: ='Non-financial'!$B$4 -> Non-financial
B12: ='Non-financial'!C339 -> Table 1.5 - Wastewater Collection and Treatment | D12: ='Non-financial'!$B$4 -> Non-financial
B13: ='Non-financial'!C357 -> Table 1.6 - Operating Statistics | D13: ='Non-financial'!$B$4 -> Non-financial
B15: =' Bulk Water'!B3 -> Section 2 | C15: =' Bulk Water'!G3 -> Bulk Water Data
B17: =' Bulk Water'!C18 -> Table 2.1 - Bulk water purchase prices and volumes | D17: =' Bulk Water'!$B$4 -> Bulk Water
B18: =' Bulk Water'!C80 -> Table 2.2 - Bulk water sales revenue (where sales are charged at a regulated price) | D18: =' Bulk Water'!$B$4 -> Bulk Water
B20: ='Opex by item'!B3 -> Section 3a | C20: ='Opex by item'!G3 -> Operating expenditure by item
B22: ='Opex by item'!C23 -> Table 3.1 - Corporate operating expenditure by item (total) | D22: ='Opex by item'!$B$4 -> Opex by item
B23: ='Opex by item'!C59 -> Table 3.2 - Water, Wastewater and Stormwater operating expenditure by item (regulated business activities only) | D23: ='Opex by item'!$B$4 -> Opex by item
B24: ='Opex by item'!C128 -> Table 3.3 - Operating expenditure of non-regulatory and unregulated business activities | D24: ='Opex by item'!$B$4 -> Opex by item
B25: ='Opex by item'!C152 -> Table 3.4 - Operating expenditure reconciliation | D25: ='Opex by item'!$B$4 -> Opex by item
B27: ='Opex by function'!B3 -> Section 3b | C27: ='Opex by function'!G3 -> Operating expenditure by function
B29: ='Opex by function'!C25 -> Table 3.4 - Operating Expenditure of Regulated Business Activities by Function | D29: ='Opex by function'!$B$4 -> Opex by function
B31: =Capex!B3 -> Section 4a | C31: =Capex!G3 -> Capital expenditure and cash capital contributions - capex that enters the RAB as incurred
B33: =Capex!C28 -> Table 4.1 - Corporate capital expenditure | D33: =Capex!$B$4 -> Capex
B34: =Capex!C55 -> Table 4.2 - Capital expenditure of regulated water, wastewater and stormwater business activities (excluding avoided cost claims for recycled water, including actual contingent capex incurred) | D34: =Capex!$B$4 -> Capex
B35: =Capex!C128 -> Table 4.3 - Cash capital contributions for regulated water, wastewater and stormwater business activities | D35: =Capex!$B$4 -> Capex
B36: =Capex!C210 -> Table 4.4 - Avoided cost claims for recycled water schemes | D36: =Capex!$B$4 -> Capex
B38: ='Capex Major'!B3 -> Section 4b | C38: ='Capex Major'!G3 -> Capital Expenditure and cash capital contributions for discreet major projects (which enter the RAB once commissioned)
B40: ='Capex Major'!C20 -> Table 4.5 - Corporate capital expenditure, major projects (reported as incurred) | D40: ='Capex Major'!$B$4 -> Capex Major
B41: ='Capex Major'!C40 -> Table 4.6 - Capital expenditure of regulated water, wastewater and stormwater business activities, major projects reported as incurred (excluding avoided cost claims for recycled water, including contingent capex incurred) | D41: ='Capex Major'!$B$4 -> Capex Major
B42: ='Capex Major'!C98 -> Table 4.7 - Cash capital contributions for regulated water, wastewater and stormwater business activities, major projects (reported as received) | D42: ='Capex Major'!$B$4 -> Capex Major
B44: =Disposals!B3 -> Section 5 | C44: =Disposals!G3 -> Asset Disposals
B46: =Disposals!C19 -> Table 5.1 - Regulatory value of ordinary disposals ($'000) | D46: =Disposals!$B$4 -> Disposals
B47: =Disposals!C123 -> Table 5.2 - Regulatory value of exceptional disposals ($'000) | D47: =Disposals!$B$4 -> Disposals
B48: =Disposals!C166 -> Table 5.3 - Alternative regulatory asset disposals values - Cost Allocation Manual (CAM) values, Sydney Water only for 2020 determination period | D48: =Disposals!$B$4 -> Disposals
B50: =Revenue!B3 -> Section 6 | C50: =Revenue!G3 -> Revenue
B52: =Revenue!C18 -> Table 6.1 - Revenue from service availability and usage charges - regulated businesses ($'000) | D52: =Revenue!$B$4 -> Revenue
B53: =Revenue!C111 -> Table 6.2 - Revenue from other fees and charges - regulated businesses ($'000) | D53: =Revenue!$B$4 -> Revenue
B54: =Revenue!C136 -> Table 6.3 - Non-regulatory business revenue ($'000) | D54: =Revenue!$B$4 -> Revenue
B55: =Revenue!C150 -> Table 6.4 - Revenue reconciliation (including capital contributions) | D55: =Revenue!$B$4 -> Revenue
B57: =' Price data'!B3 -> Section 7 | C57: =' Price data'!G3 -> Pricing Data
B59: =' Price data'!C18 -> Table 7.1 - Pricing Information | D59: =' Price data'!$B$4 -> Price data
B60: =' Price data'!C164 -> Table 7.2 - Pensioner rebates | D60: =' Price data'!$B$4 -> Price data
B61: =' Price data'!C190 -> Table 7.3 - Average Residential Bills under normal weather conditions | D61: =' Price data'!$B$4 -> Price data
B63: ='Recycled water & RH'!B3 -> Section 8 | C63: ='Recycled water & RH'!E3 -> Recycled Water Data for Mandated and Voluntary schemes; Rouse Hill (Sydney Water only)
B65: ='Recycled water & RH'!C13 -> Table 8.1 - Recycled Water Expenditure and Revenue (excluding 16A related) | D65: ='Recycled water & RH'!$B$4 -> Recycled water & RH
B66: ='Recycled water & RH'!C33 -> Table 8.2 - Recycled Water Non-Financial Data (excluding 16A related) | D66: ='Recycled water & RH'!$B$4 -> Recycled water & RH
B67: ='Recycled water & RH'!C83 -> Table 8.3 - Rouse Hill (Sydney Water only) | D67: ='Recycled water & RH'!$B$4 -> Recycled water & RH
B69: ='Non-reg activies'!B3 -> Section 9 | C69: ='Non-reg activies'!G3 -> Non-regulatory activities
B71: ='Non-reg activies'!C23 -> Table 9.1 - Non-regulatory revenue and incremental costs | D71: ='Non-reg activies'!$B$4 -> Non-reg activies
B73: ='Fin Data '!B3 -> Section 10 | C73: ='Fin Data '!G3 -> Financial information and tax depreciation
B75: ='Fin Data '!C17 -> Table 10.1 - Information from statutory financial statements | D75: ='Fin Data '!$B$4 -> Fin Data
B76: ='Fin Data '!C44 -> Table 10.2 - Non-cash capital contributions | D76: ='Fin Data '!$B$4 -> Fin Data
B77: ='Fin Data '!C59 -> Table 10.3 - Tax depreciation (nominal) | D77: ='Fin Data '!$B$4 -> Fin Data
B78: ='Fin Data '!C109 -> Table 10.4 - Financeability parameters for our 'actual' financeability test | D78: ='Fin Data '!$B$4 -> Fin Data
B80: ='Assets DRC'!B3 -> Section 11 | C80: ='Assets DRC'!G3 -> Assets depreciated replacement cost
B82: ='Assets DRC'!C15 -> Table 11.1 - Depreciated and Gross Replacement Cost of Property, Plant & Equipment (incl contributed, $'000) | D82: ='Assets DRC'!$B$4 -> Assets DRC
AW316: ``

Sheet Codes
B2: =Cover!B5 -> Metropolitan Water Agency | F2: =Cover!E5 -> Abusiness
B4: Data codes for the Annual Information Return (AIR)
B7: Input / calculation indication
B9: Character & meaning | E9: Notes
B11: I | C11: Input field | E11: Requires input from agency
B12: C | C12: Calculated field | E12: No input by agency required. Please check result and edit input fields if required to obtain correct result.
B17: The remainder of this worksheet is unprotected. It is provided for your convenience, to capture your own codes in a way that best suits your business. IPART does not use these codes.
B19: =Cover!$E$5&"'s codes for inputs to the AIR" -> Abusiness's codes for inputs to the AIR | H19: COMMENTS
B21: Character placing:
B22: 1 = high level category | D22: 2 = low level category | F22: 3, 4 & 5 = Numeral | G22: Example
B47: Further explanation:
AW321: ``

Sheet Definitions
B2: =Cover!B5 -> Metropolitan Water Agency | G2: =Cover!E5 -> Abusiness
B4: =Cover!$E$5&"'s definitions of inputs to the Annual Information Return (AIR)" -> Abusiness's definitions of inputs to the Annual Information Return (AIR)
B7: This is an unprotected worksheet provided for your convenience, to capture your own definitions that match your business systems.
B8: Please note:
B9: (i) For guidance and where we think it is helpful to do, we have explained what we use the data for and/or have provided definitions.
B10: You will find our explanations/definitions in the form of notes at the top of the worksheet and/or comments (comment boxes) in the relevant worksheets.
B11: (ii) The 'Export' worksheet captures the AIR and SIR data we use for financial modelling purposes.
AW309: ``

Sheet Non-financial
B2: =Cover!B5 -> Metropolitan Water Agency | G2: =Cover!E5 -> Abusiness
B3: Section 1 | G3: Non-financial Data
B4: =MID(CELL("filename",A4),FIND("]",CELL("filename",A4))+1,255) -> Non-financial
B7: Colour coding located on Cover sheet
B8: Leave cells blank if no information exists - PLEASE DO NOT ENTER TEXT unless specifically requested to do so.
B9: We require forecasts only for purposes of a price review, when we also require the business to provide SIR information. (In other years we will hide the forecast columns.)
B11: NOTES
B12: (i) | C12: A 'billable entity' is the unit to which you apply a fixed charge. The intention is that we can multiply each billable entity by the applicable charge to calculate total revenue from that charge.
B13: (ii) | C13: 'Deemed residential' customers are non-residential customers that are charged as if they are residential customers.
C17: Table 1.1 - Customer Profile - Water | J17: 2014 | K17: =J17+1 -> 2015 | L17: 2016 | M17: 2017 | N17: 2018 | O17: 2019 | P17: 2020 | Q17: 2021 | R17: 2022 | S17: 2023 | T17: 2024 | U17: 2025 | V17: 2026 | W17: 2027 | X17: 2028 | Y17: 2029 | Z17: 2030 | AA17: 2031 | AB17: 2032 | AC17: =AB17+1 -> 2033 | AD17: =AC17+1 -> 2034 | AE17: 2035 | AG17: COMMENTS TO IPART
C18: Financial year | D18: OPTIONAL FIELDS | J18: =J17-1&"-"&RIGHT(J17,2) -> 2013-14 | K18: 2014-15 | L18: 2015-16 | M18: 2016-17 | N18: 2017-18 | O18: 2018-19 | P18: 2019-20 | Q18: 2020-21 | R18: 2021-22 | S18: 2022-23 | T18: 2023-24 | U18: 2024-25 | V18: 2025-26 | W18: 2026-27 | X18: 2027-28 | Y18: 2028-29 | Z18: 2029-30 | AA18: 2030-31 | AB18: 2031-32 | AC18: =AC17-1&"-"&RIGHT(AC17,2) -> 2032-33 | AD18: 2033-34 | AE18: =AE17-1&"-"&RIGHT(AE17,2) -> 2034-35 | AG18: =Cover!$E$6 -> 2023
D19: Code | F19: I/C | G19: Unit | J19: =IF(J17>Cover!$E$6,"Forecast","Actual") -> Actual | K19: =IF(K17>Cover!$E$6,"Forecast","Actual") -> Actual | L19: =IF(L17>Cover!$E$6,"Forecast","Actual") -> Actual | M19: =IF(M17>Cover!$E$6,"Forecast","Actual") -> Actual | N19: =IF(N17>Cover!$E$6,"Forecast","Actual") -> Actual | O19: =IF(O17>Cover!$E$6,"Forecast","Actual") -> Actual | P19: =IF(P17>Cover!$E$6,"Forecast","Actual") -> Actual | Q19: =IF(Q17>Cover!$E$6,"Forecast","Actual") -> Actual | R19: =IF(R17>Cover!$E$6,"Forecast","Actual") -> Actual | S19: =IF(S17>Cover!$E$6,"Forecast","Actual") -> Actual | T19: =IF(T17>Cover!$E$6,"Forecast","Actual") -> Forecast | U19: =IF(U17>Cover!$E$6,"Forecast","Actual") -> Forecast | V19: =IF(V17>Cover!$E$6,"Forecast","Actual") -> Forecast | W19: =IF(W17>Cover!$E$6,"Forecast","Actual") -> Forecast | X19: =IF(X17>Cover!$E$6,"Forecast","Actual") -> Forecast | Y19: =IF(Y17>Cover!$E$6,"Forecast","Actual") -> Forecast | Z19: =IF(Z17>Cover!$E$6,"Forecast","Actual") -> Forecast | AA19: =IF(AA17>Cover!$E$6,"Forecast","Actual") -> Forecast | AB19: =IF(AB17>Cover!$E$6,"Forecast","Actual") -> Forecast | AC19: =IF(AC17>Cover!$E$6,"Forecast","Actual") -> Forecast | AD19: =IF(AD17>Cover!$E$6,"Forecast","Actual") -> Forecast | AE19: =IF(AE17>Cover!$E$6,"Forecast","Actual") -> Forecast
C21: Estimated population with service
C23: - water supply | F23: I | G23: no.
C24: - wastewater | F24: I | G24: =G23 -> no.
C25: - stormwater | F25: I | G25: =G24 -> no.
C27: Residential and deemed residential customers
C29: Residential customers - Billable entities (including exempt properties, unmetered properties and non-residential with deemed 20mm connections that are charged as residential, as at year end)
C31: Customers billed as not in a Multi-premises
C32: - Exempt properties - Stand alone | F32: I | G32: no.
C33: - Vacant land - connected to network | F33: I | G33: =G32 -> no.
C34: - Unmetered properties | F34: I | G34: =G33 -> no.
C35: - Houses | F35: I | G35: no.
C36: - <additional category - user entered> | F36: I | G36: no.
C37: - <additional category - user entered> | F37: I | G37: no.
C38: - <additional category - user entered> | F38: I | G38: no.
C39: Total customers not in a multi-premises (as billed) | F39: I | G39: no. | J39: =SUM(J32:J38) -> 0 | K39: 0 | L39: 0 | M39: 0 | N39: 0 | O39: 0 | P39: 0 | Q39: 0 | R39: 0 | S39: 0 | T39: 0 | U39: 0 | V39: 0 | W39: 0 | X39: 0 | Y39: 0 | Z39: 0 | AA39: 0 | AB39: 0 | AC39: 0 | AD39: 0 | AE39: 0
C41: Customers billed as in a Multi-premises
C42: - Exempt properties - Multi premise | F42: I | G42: no.
C43: - Strata common meters (excluding individually metered properties) | F43: I | G43: no.
C44: - Flats | F44: I | G44: no.
C45: - Strata individual meters (individually metered properties) | F45: I | G45: =G44 -> no.
C46: - Mixed development | F46: I | G46: no.
C47: - Non-residential in mixed multi premises | F47: I | G47: no.
C48: - <additional category - user entered> | F48: I | G48: no.
C49: Total customers in a multi-premises (as billed) | F49: I | G49: no. | J49: =SUM(J42:J48) -> 0 | K49: 0 | L49: 0 | M49: 0 | N49: 0 | O49: 0 | P49: 0 | Q49: 0 | R49: 0 | S49: 0 | T49: 0 | U49: 0 | V49: 0 | W49: 0 | X49: 0 | Y49: 0 | Z49: 0 | AA49: 0 | AB49: 0 | AC49: =SUM(AC42:AC48) -> 0 | AD49: 0 | AE49: 0
C51: Total residential customers - billable entities | F51: C | G51: no. | J51: =J39+J49 -> 0 | K51: 0 | L51: 0 | M51: 0 | N51: 0 | O51: 0 | P51: 0 | Q51: 0 | R51: 0 | S51: 0 | T51: 0 | U51: 0 | V51: 0 | W51: 0 | X51: 0 | Y51: 0 | Z51: 0 | AA51: 0 | AB51: 0 | AC51: =AC39+AC49 -> 0 | AD51: 0 | AE51: 0
C52: check =0 | J52: =J51-SUM(J32:J38,J42:J48) -> 0 | K52: 0 | L52: 0 | M52: 0 | N52: 0 | O52: 0 | P52: 0 | Q52: 0 | R52: 0 | S52: 0 | T52: 0 | U52: 0 | V52: 0 | W52: 0 | X52: 0 | Y52: 0 | Z52: 0 | AA52: 0 | AB52: 0 | AC52: =AC51-SUM(AC32:AC38,AC42:AC48) -> 0 | AD52: 0 | AE52: 0
C54: Non-residential customers
C56: Non-residential customers (including exempt properties, excluding non-residential with deemed 20mm connections that are charged on the same basis as residential, as at year end)
C57: - Stand alone | F57: I | G57: no.
C58: - Strata common meters (excluding individually metered properties) | F58: I | G58: =G57 -> no.
C59: - Strata individual meters (individually metered properties) | F59: I | G59: no.
C60: - Mixed development | F60: I | G60: no.
C61: Total non-residential customers (billed end-users) | F61: C | G61: =G60 -> no. | J61: =SUM(J58:J60) -> 0 | K61: =SUM(K57:K60) -> 0 | L61: 0 | M61: 0 | N61: 0 | O61: 0 | P61: 0 | Q61: 0 | R61: 0 | S61: 0 | T61: 0 | U61: 0 | V61: 0 | W61: 0 | X61: 0 | Y61: 0 | Z61: 0 | AA61: 0 | AB61: 0 | AC61: 0 | AD61: 0 | AE61: 0
H62: size | I62: convertor to 20mm equivalent
C63: Non-residential billable water connections by water meter size (including exempt properties, excluding non-residential with deemed 20mm connections that are charged on the same basis as residential, as at year end)
C64: =" - "&H64&"mm (stand alone)" -> - 20mm (stand alone) | F64: I | G64: no. | H64: 20 | I64: =H64^2/400 -> 1
C65: =" - "&H65&"mm (common meter or multiple meters)" -> - 20mm (common meter or multiple meters) | F65: I | G65: =G64 -> no. | H65: 20 | I65: =H65^2/400 -> 1
C66: =" - "&H66&"mm" -> - 25mm | F66: I | G66: no. | H66: 25 | I66: 1.5625
C67: - 32mm | F67: I | G67: no. | H67: 32 | I67: 2.56
C68: - 40mm | F68: I | G68: no. | H68: 40 | I68: 4
C69: - 50mm | F69: I | G69: no. | H69: 50 | I69: 6.25
C70: - 65mm | F70: I | G70: no. | H70: 65 | I70: 10.5625
C71: - 80mm | F71: I | G71: no. | H71: 80 | I71: 16
C72: - 100mm | F72: I | G72: no. | H72: 100 | I72: 25
C73: - 150mm | F73: I | G73: no. | H73: 150 | I73: 56.25
C74: - 200mm | F74: I | G74: no. | H74: 200 | I74: 100
C75: - 250mm | F75: I | G75: no. | H75: 250 | I75: 156.25
C76: - 300mm | F76: I | G76: no. | H76: 300 | I76: 225
C77: - 350mm | F77: I | G77: no. | H77: 350 | I77: 306.25
C78: - 400mm | F78: I | G78: no. | H78: 400 | I78: 400
C79: - 500mm | F79: I | G79: no. | H79: 500 | I79: 625
C80: - 600mm | F80: I | G80: no. | H80: 600 | I80: 900
C81: Total | F81: C | G81: no. | J81: =SUM(J64:J80) -> 0 | K81: 0 | L81: 0 | M81: 0 | N81: 0 | O81: 0 | P81: 0 | Q81: 0 | R81: 0 | S81: 0 | T81: 0 | U81: 0 | V81: 0 | W81: 0 | X81: 0 | Y81: 0 | Z81: 0 | AA81: 0 | AB81: 0 | AC81: 0 | AD81: 0 | AE81: 0
C82: Total billable 20mm equivalents | F82: C | G82: =G80 -> no. | J82: =SUMPRODUCT($I$64:$I$80,J64:J80) -> 0 | K82: =SUMPRODUCT($I$64:$I$80,K64:K80) -> 0 | L82: 0 | M82: 0 | N82: 0 | O82: 0 | P82: 0 | Q82: 0 | R82: 0 | S82: 0 | T82: 0 | U82: 0 | V82: 0 | W82: 0 | X82: 0 | Y82: 0 | Z82: 0 | AA82: 0 | AB82: 0 | AC82: 0 | AD82: 0 | AE82: 0
C84: ="Customers NOT included in residential or non-residential totals (ie, rows "&ROW(C39)&" to "&ROW(C48)&" or "&ROW(C64)&" to "&ROW(C80)&" above)" -> Customers NOT included in residential or non-residential totals (ie, rows 39 to 48 or 64 to 80 above)
C85: Vacant land - connected to network | F85: I | G85: no.
C86: Exempt properties | F86: I | G86: no.
C87: Unmetered properties | F87: I | G87: =G86 -> no.
C91: Table 1.2 - Customer Profile - Wastewater | AG91: EXPLANATORY COMMENTS FOR IPART
C92: =C$18 -> Financial year | D92: =D$18 -> OPTIONAL FIELDS | J92: =J$18 -> 2013-14 | K92: 2014-15 | L92: 2015-16 | M92: 2016-17 | N92: 2017-18 | O92: 2018-19 | P92: 2019-20 | Q92: 2020-21 | R92: 2021-22 | S92: 2022-23 | T92: 2023-24 | U92: 2024-25 | V92: 2025-26 | W92: 2026-27 | X92: 2027-28 | Y92: 2028-29 | Z92: 2029-30 | AA92: 2030-31 | AB92: 2031-32 | AC92: 2032-33 | AD92: 2033-34 | AE92: 2034-35 | AG92: =Cover!$E$6 -> 2023
D93: =D$19 -> Code | F93: I/C | G93: =G$19 -> Unit | J93: =J$19 -> Actual | K93: Actual | L93: Actual | M93: Actual | N93: Actual | O93: Actual | P93: Actual | Q93: Actual | R93: Actual | S93: Actual | T93: Forecast | U93: Forecast | V93: Forecast | W93: Forecast | X93: Forecast | Y93: Forecast | Z93: Forecast | AA93: Forecast | AB93: Forecast | AC93: Forecast | AD93: Forecast | AE93: Forecast
C95: Residential and deemed residential customers
C97: =C29 -> Residential customers - Billable entities (including exempt properties, unmetered properties and non-residential with deemed 20mm connections that are charged as residential, as at year end)
C98: =C31 -> Customers billed as not in a Multi-premises
C99: =C32 -> - Exempt properties - Stand alone | F99: I | G99: =G103 -> no.
C100: =C33 -> - Vacant land - connected to network | F100: I | G100: =G99 -> no.
C101: =C34 -> - Unmetered properties | F101: I | G101: =G100 -> no.
C102: - Houses | F102: I | G102: =G106 -> no.
C103: - <additional category - user entered> | F103: I | G103: no.
C104: - <additional category - user entered> | F104: I | G104: =G101 -> no.
C105: - <additional category - user entered> | F105: I | G105: =G104 -> no.
C106: =C39 -> Total customers not in a multi-premises (as billed) | F106: I | G106: =G39 -> no. | J106: =SUM(J99:J105) -> 0 | K106: 0 | L106: 0 | M106: 0 | N106: 0 | O106: 0 | P106: 0 | Q106: 0 | R106: =SUM(R99:R105) -> 0 | S106: 0 | T106: 0 | U106: 0 | V106: 0 | W106: 0 | X106: 0 | Y106: 0 | Z106: 0 | AA106: 0 | AB106: 0 | AC106: 0 | AD106: 0 | AE106: 0
C107: =C41 -> Customers billed as in a Multi-premises
C108: =C42 -> - Exempt properties - Multi premise | F108: I | G108: =G99 -> no.
C109: - Strata common meters (excluding individually metered properties) | F109: I | G109: =G108 -> no.
C110: - Flats | F110: I | G110: =G109 -> no.
C111: - Strata individual meters (individually metered properties) | F111: I | G111: no.
C112: - Mixed development | F112: I | G112: no.
C113: - Non-residential in mixed multi premises | F113: I | G113: =G112 -> no.
C114: - <additional category - user entered> | F114: I | G114: =G113 -> no.
C115: =C49 -> Total customers in a multi-premises (as billed) | F115: I | G115: =G114 -> no. | J115: =SUM(J108:J114) -> 0 | K115: 0 | L115: 0 | M115: 0 | N115: 0 | O115: 0 | P115: 0 | Q115: 0 | R115: 0 | S115: 0 | T115: 0 | U115: 0 | V115: 0 | W115: 0 | X115: 0 | Y115: 0 | Z115: 0 | AA115: 0 | AB115: 0 | AC115: =SUM(AC108:AC114) -> 0 | AD115: 0 | AE115: 0
C117: =C51 -> Total residential customers - billable entities | F117: C | G117: no. | J117: =J115+J106 -> 0 | K117: 0 | L117: 0 | M117: 0 | N117: 0 | O117: 0 | P117: 0 | Q117: 0 | R117: 0 | S117: 0 | T117: 0 | U117: 0 | V117: 0 | W117: 0 | X117: 0 | Y117: 0 | Z117: 0 | AA117: 0 | AB117: 0 | AC117: =AC115+AC106 -> 0 | AD117: 0 | AE117: 0
C118: Discharge factor applied to residential availability charge | F118: I | G118: %
C119: 20mm equivalents (residential customers deemed to have 20mm connections) | M119: =M117*M118 -> 0 | N119: =N117*N118 -> 0 | O119: =O117*O118 -> 0 | P119: 0 | Q119: 0 | R119: 0 | S119: 0 | T119: 0 | U119: 0 | V119: 0 | W119: 0 | X119: 0 | Y119: 0 | Z119: 0 | AA119: 0 | AB119: 0 | AC119: 0 | AD119: 0 | AE119: 0
C121: check =0 | J121: =J117-SUM(J99:J105,J108:J114) -> 0 | K121: 0 | L121: 0 | M121: 0 | N121: 0 | O121: 0 | P121: 0 | Q121: 0 | R121: 0 | S121: 0 | T121: 0 | U121: 0 | V121: 0 | W121: 0 | X121: 0 | Y121: 0 | Z121: 0 | AA121: 0 | AB121: 0 | AC121: =AC117-SUM(AC99:AC105,AC108:AC114) -> 0 | AD121: 0 | AE121: 0
C123: Non-residential customers
C125: =C56 -> Non-residential customers (including exempt properties, excluding non-residential with deemed 20mm connections that are charged on the same basis as residential, as at year end)
C126: - Stand alone | F126: I | G126: =G57 -> no.
C127: - Strata common meters (excluding individually metered properties) | F127: I | G127: =G58 -> no.
C128: - Strata individual meters (individually metered properties) | F128: I | G128: =G59 -> no.
C129: - Mixed development | F129: I | G129: =G60 -> no.
C130: Total non-residential customers (billed end-users) | F130: C | G130: =G61 -> no. | J130: =SUM(J126:J129) -> 0 | K130: 0 | L130: 0 | M130: 0 | N130: 0 | O130: 0 | P130: 0 | Q130: 0 | R130: =SUM(R126:R129) -> 0 | S130: 0 | T130: 0 | U130: 0 | V130: 0 | W130: 0 | X130: 0 | Y130: 0 | Z130: 0 | AA130: 0 | AB130: 0 | AC130: 0 | AD130: 0 | AE130: 0
C132: Non-residential billable wastewater connections by water meter size (including exempt properties, excluding non-residential with deemed 20mm connections that are charged on the same basis as residential, as at year end)
C133: =C64 -> - 20mm (stand alone) | F133: I | G133: no. | H133: =H64 -> 20 | I133: 1
C134: - 20mm (common meter or multiple meters) | F134: I | G134: =G133 -> no. | H134: 20 | I134: 1
C135: - 25mm | F135: I | G135: no. | H135: 25 | I135: 1.5625
C136: - 32mm | F136: I | G136: no. | H136: 32 | I136: 2.56
C137: - 40mm | F137: I | G137: no. | H137: 40 | I137: 4
C138: - 50mm | F138: I | G138: no. | H138: 50 | I138: 6.25
C139: - 65mm | F139: I | G139: no. | H139: 65 | I139: 10.5625
C140: - 80mm | F140: I | G140: no. | H140: 80 | I140: 16
C141: - 100mm | F141: I | G141: no. | H141: 100 | I141: 25
C142: - 150mm | F142: I | G142: no. | H142: 150 | I142: 56.25
C143: - 200mm | F143: I | G143: no. | H143: 200 | I143: 100
C144: - 250mm | F144: I | G144: no. | H144: 250 | I144: 156.25
C145: - 300mm | F145: I | G145: no. | H145: 300 | I145: 225
C146: - 350mm | F146: I | G146: no. | H146: 350 | I146: 306.25
C147: - 400mm | F147: I | G147: no. | H147: 400 | I147: 400
C148: - 500mm | F148: I | G148: no. | H148: 500 | I148: 625
C149: - 600mm | F149: I | G149: no. | H149: 600 | I149: 900
C150: Total | F150: C | G150: no. | J150: =SUM(J133:J149) -> 0 | K150: 0 | L150: 0 | M150: 0 | N150: 0 | O150: 0 | P150: 0 | Q150: 0 | R150: 0 | S150: 0 | T150: 0 | U150: 0 | V150: 0 | W150: 0 | X150: 0 | Y150: 0 | Z150: 0 | AA150: 0 | AB150: 0 | AC150: 0 | AD150: 0 | AE150: 0
C152: ="Customers NOT included in residential or non-residential totals (ie, rows "&ROW(C106)&" to "&ROW(C115)&" or "&ROW(C133)&" to "&ROW(C149)&" above)" -> Customers NOT included in residential or non-residential totals (ie, rows 106 to 115 or 133 to 149 above)
C153: =C85 -> Vacant land - connected to network | F153: I | G153: =G66 -> no.
C154: =C86 -> Exempt properties | F154: I | G154: =G67 -> no.
C155: =C87 -> Unmetered properties | F155: I | G155: =G68 -> no.
C157: Average discharge factors by water meter size
C158: Non-residential average wastewater discharge factor by water meter size:
C159: =C133 -> - 20mm (stand alone) | F159: I | G159: % | H159: =H133 -> 20
C160: - 20mm (common meter or multiple meters) | F160: I | H160: 20
C161: - 25mm | F161: I | G161: % | H161: 25
C162: - 32mm | F162: I | G162: % | H162: 32
C163: - 40mm | F163: I | G163: % | H163: 40
C164: - 50mm | F164: I | G164: % | H164: 50
C165: - 65mm | F165: I | G165: % | H165: 65
C166: - 80mm | F166: I | G166: % | H166: 80
C167: - 100mm | F167: I | G167: % | H167: 100
C168: - 150mm | F168: I | G168: % | H168: 150
C169: - 200mm | F169: I | G169: % | H169: 200
C170: - 250mm | F170: I | G170: % | H170: 250
C171: - 300mm | F171: I | G171: % | H171: 300
C172: - 350mm | F172: I | G172: % | H172: 350
C173: - 400mm | F173: I | G173: % | H173: 400
C174: - 500mm | F174: I | G174: % | H174: 500
C175: - 600mm | F175: I | G175: % | H175: 600
C176: Total billable 20mm equivalents (at 100% DF) | F176: C | G176: =G149 -> no. | J176: =SUMPRODUCT($I$133:$I$149,J133:J149,J159:J175) -> 0 | K176: =SUMPRODUCT($I$133:$I$149,K133:K149,K159:K175) -> 0 | L176: 0 | M176: 0 | N176: 0 | O176: 0 | P176: 0 | Q176: 0 | R176: 0 | S176: 0 | T176: 0 | U176: 0 | V176: 0 | W176: 0 | X176: 0 | Y176: 0 | Z176: 0 | AA176: 0 | AB176: 0 | AC176: 0 | AD176: 0 | AE176: 0
C180: Table 1.3 - Customer Profile - Stormwater | AG180: EXPLANATORY COMMENTS FOR IPART
C181: =C$18 -> Financial year | D181: =D$18 -> OPTIONAL FIELDS | J181: =J$18 -> 2013-14 | K181: 2014-15 | L181: 2015-16 | M181: 2016-17 | N181: 2017-18 | O181: 2018-19 | P181: 2019-20 | Q181: 2020-21 | R181: 2021-22 | S181: 2022-23 | T181: 2023-24 | U181: 2024-25 | V181: 2025-26 | W181: 2026-27 | X181: 2027-28 | Y181: 2028-29 | Z181: 2029-30 | AA181: 2030-31 | AB181: 2031-32 | AG181: =Cover!$E$6 -> 2023
D182: =D$19 -> Code | F182: I/C | G182: =G$19 -> Unit | J182: =J$19 -> Actual | K182: Actual | L182: Actual | M182: Actual | N182: Actual | O182: Actual | P182: Actual | Q182: Actual | R182: Actual | S182: Actual | T182: Forecast | U182: Forecast | V182: Forecast | W182: Forecast | X182: Forecast | Y182: Forecast | Z182: Forecast | AA182: Forecast | AB182: Forecast
C184: Residential customers
C186: Residential customers - Billable entities, including exempt properties and billable vacant land (as at year end) | K186: Note: Counts up to 2014-15 are the number of customers, which differs from billable entities
C187: - Dwellings not in a multi premises (such as houses) | F187: I | G187: no.
C188: - Residential properties within a Multi-Premises | F188: I | G188: =G187 -> no.
C189: - Residential properties within a mixed Multi-Premises | F189: I | G189: no.
C190: - Billable vacant land | F190: I | G190: no.
C191: - Billable low impact assessed vacant land | F191: I | G191: no.
C192: =C51 -> Total residential customers - billable entities | F192: C | G192: =G190 -> no. | J192: =SUM(J187:J191) -> 0 | K192: 0 | L192: 0 | M192: 0 | N192: 0 | O192: 0 | P192: 0 | Q192: 0 | R192: =SUM(R187:R191) -> 0 | S192: 0 | T192: 0 | U192: 0 | V192: 0 | W192: 0 | X192: 0 | Y192: 0 | Z192: 0 | AA192: 0 | AB192: 0 | AC192: 0 | AD192: 0 | AE192: 0
C194: Non-residential customers
C196: Non-residential customers - by area size, including exempt properties and billable vacant land (as at year end)
C197: - Small (up to 200 sq m) | F197: I | G197: no.
C198: - Medium (201-1,000 sq m) | F198: I | G198: no.
C199: - Large (1,001 - 10,000 sq m) | F199: I | G199: =G198 -> no.
C200: - Very Large (10,001 - 45,000 sq m) | F200: I | G200: no.
C201: - Largest (>45,000 sq m) | F201: I | G201: no.
C202: - Non Residential Property within a Multi-Premises | F202: I | G202: no.
C203: - Low Impact assessed Non Residential Property | F203: I | G203: no.
C204: =C130 -> Total non-residential customers (billed end-users) | F204: C | G204: =G201 -> no. | J204: =SUM(J197:J203) -> 0 | K204: 0 | L204: 0 | M204: 0 | N204: 0 | O204: 0 | P204: 0 | Q204: 0 | R204: =SUM(R197:R203) -> 0 | S204: 0 | T204: 0 | U204: 0 | V204: 0 | W204: 0 | X204: 0 | Y204: 0 | Z204: 0 | AA204: 0 | AB204: 0 | AC204: 0 | AD204: 0 | AE204: 0
C206: Customers NOT included above
C207: Vacant land - billable | F207: I | G207: no.
C208: =C154 -> Exempt properties | F208: I | G208: =G154 -> no.
C210: Rouse Hill (Sydney Water only)
C211: Residential customer base, including exempt properties and billable vacant land (as at year end)
C212: - Houses | F212: I | G212: no.
C213: - Units/Flats | F213: =F212 -> I | G213: no.
C214: - Vacant land | F214: =F213 -> I | G214: no.
C215: - Other | F215: I | G215: no.
C216: Total residential properties | F216: C | G216: no. | J216: =SUM(J212:J215) -> 0 | K216: 0 | L216: 0 | M216: 0 | N216: 0 | O216: 0 | P216: 0 | Q216: 0 | R216: 0 | S216: 0 | T216: 0 | U216: 0 | V216: 0 | W216: 0 | X216: 0 | Y216: 0 | Z216: 0 | AA216: 0 | AB216: 0 | AC216: =SUM(AC212:AC215) -> 0 | AD216: 0 | AE216: 0
C218: Non-residential customer base, including exempt properties and billable vacant land (as at year end)
C219: Number of properties with land area <=1000 m2 | F219: I | G219: =G216 -> no.
C220: Total area of non-residential properties with land area >1,000m2 | F220: I | G220: =G219 -> no.
C222: Exempt Properties
C223: Number of properties with land area <=1000 m2 | F223: I | G223: =G220 -> no.
C224: Number of properties with land area <=1000 m2 | F224: I | G224: =G223 -> no.
C228: Table 1.2 - Other Customer Profile Data | N228: For 2019-20 pricing proposal only | AG228: ='Non-financial'!AG357 -> COMMENTS TO IPART
C229: ='Non-financial'!C$358 -> Financial year | D229: =D$18 -> OPTIONAL FIELDS | J229: ='Non-financial'!J$358 -> 2013-14 | K229: ='Non-financial'!K$358 -> 2014-15 | L229: ='Non-financial'!L$358 -> 2015-16 | M229: ='Non-financial'!M$358 -> 2016-17 | N229: ='Non-financial'!N$358 -> 2017-18 | O229: ='Non-financial'!O$358 -> 2018-19 | P229: ='Non-financial'!P$358 -> 2019-20 | Q229: ='Non-financial'!Q$358 -> 2020-21 | R229: ='Non-financial'!R$358 -> 2021-22 | S229: ='Non-financial'!S$358 -> 2022-23 | T229: ='Non-financial'!T$358 -> 2023-24 | U229: ='Non-financial'!U$358 -> 2024-25 | V229: ='Non-financial'!V$358 -> 2025-26 | W229: ='Non-financial'!W$358 -> 2026-27 | X229: ='Non-financial'!X$358 -> 2027-28 | Y229: ='Non-financial'!Y$358 -> 2028-29 | Z229: ='Non-financial'!Z$358 -> 2029-30 | AA229: ='Non-financial'!AA$358 -> 2030-31 | AB229: ='Non-financial'!AB$358 -> 2031-32 | AC229: ='Non-financial'!AC$358 -> 2032-33 | AD229: ='Non-financial'!AD$358 -> 2033-34 | AE229: ='Non-financial'!AE$358 -> 2034-35 | AG229: ='Non-financial'!AG358 -> 2023
D230: ='Non-financial'!D$359 -> Code | F230: ='Non-financial'!F$359 -> I/C | G230: ='Non-financial'!G$359 -> Unit | J230: ='Non-financial'!J$359 -> Actual | K230: ='Non-financial'!K$359 -> Actual | L230: ='Non-financial'!L$359 -> Actual | M230: ='Non-financial'!M$359 -> Actual | N230: ='Non-financial'!N$359 -> Actual | O230: ='Non-financial'!O$359 -> Actual | P230: ='Non-financial'!P$359 -> Actual | Q230: ='Non-financial'!Q$359 -> Actual | R230: ='Non-financial'!R$359 -> Actual | S230: ='Non-financial'!S$359 -> Actual | T230: ='Non-financial'!T$359 -> Forecast | U230: ='Non-financial'!U$359 -> Forecast | V230: ='Non-financial'!V359 -> Forecast | W230: ='Non-financial'!W359 -> Forecast | X230: ='Non-financial'!X359 -> Forecast | Y230: ='Non-financial'!Y359 -> Forecast | Z230: ='Non-financial'!Z359 -> Forecast | AA230: ='Non-financial'!AA359 -> Forecast | AB230: ='Non-financial'!AB359 -> Forecast | AC230: ='Non-financial'!AC359 -> Forecast | AD230: ='Non-financial'!AD359 -> Forecast | AE230: ='Non-financial'!AE359 -> Forecast
C232: Incidents of disconnection and flow restrictions during the year
C233: - flow restrictions due to non-payment | F233: I | G233: no.
C234: - disconnections due to non-payment | F234: =F233 -> I | G234: =G233 -> no.
C235: - disconnections for other reasons | F235: =F234 -> I | G235: =G234 -> no.
C237: No. of residential customers (excluding pensioners) with
C238: - water, wastewater & stormwater | F238: I | G238: no.
C239: - water & wastewater | F239: =F238 -> I | G239: no.
C240: - water only | F240: I | G240: no.
C241: - wastewater & stormwater | F241: I | G241: no.
C242: - stormwater only | F242: I | G242: no.
C244: No. of concessions granted by product
C245: - water, wastewater & stormwater | F245: I | G245: no.
C246: - water & wastewater | F246: =F245 -> I | G246: no.
... 109 more rows

Sheet Bulk Water
B2: =Cover!B5 -> Metropolitan Water Agency | G2: =Cover!E5 -> Abusiness
B3: Section 2 | G3: Bulk Water Data
B4: =MID(CELL("filename",A4),FIND("]",CELL("filename",A4))+1,255) -> Bulk Water
B6: ='Non-financial'!$B$7 -> Colour coding located on Cover sheet
B7: ='Non-financial'!$B$8 -> Leave cells blank if no information exists - PLEASE DO NOT ENTER TEXT unless specifically requested to do so.
B8: ='Non-financial'!$B$9 -> We require forecasts only for purposes of a price review, when we also require the business to provide SIR information. (In other years we will hide the forecast columns.)
B10: NOTES
B11: Bulk water purchase costs
B12: (i) | C12: The bulk water fixed charge should be entered as the service charge or total entitlement charge paid. Charges should include those paid to the Water Administration Ministerial Corporation (WAMC).
B13: (ii) | C13: ="All licensing fees payable to the WAMC should be recorded in the licence fees item on the ‘"&'Opex by item'!$B$4&"' worksheet." -> All licensing fees payable to the WAMC should be recorded in the licence fees item on the ‘Opex by item' worksheet.
B14: Bulk water sales revenue
B15: (i) | C15: ="This table includes revenue from any bulk water customer where IPART sets the maximum price. Where the maximum price is not set by IPART, bulk water revenue should be recorded as non-regulatory business revenue in the "&'Non-reg activies'!$C$4&" worksheet." -> This table includes revenue from any bulk water customer where IPART sets the maximum price. Where the maximum price is not set by IPART, bulk water revenue should be recorded as non-regulatory business revenue in the worksheet.
C18: Table 2.1 - Bulk water purchase prices and volumes | AG18: ='Non-financial'!AG$17 -> COMMENTS TO IPART
C19: ='Non-financial'!C$18 -> Financial year | D19: OPTIONAL FIELDS | J19: ='Non-financial'!J$18 -> 2013-14 | K19: ='Non-financial'!K$18 -> 2014-15 | L19: ='Non-financial'!L$18 -> 2015-16 | M19: ='Non-financial'!M$18 -> 2016-17 | N19: ='Non-financial'!N$18 -> 2017-18 | O19: ='Non-financial'!O$18 -> 2018-19 | P19: ='Non-financial'!P$18 -> 2019-20 | Q19: ='Non-financial'!Q$18 -> 2020-21 | R19: ='Non-financial'!R$18 -> 2021-22 | S19: ='Non-financial'!S$18 -> 2022-23 | T19: ='Non-financial'!T$18 -> 2023-24 | U19: ='Non-financial'!U$18 -> 2024-25 | V19: ='Non-financial'!V$18 -> 2025-26 | W19: ='Non-financial'!W$18 -> 2026-27 | X19: ='Non-financial'!X$18 -> 2027-28 | Y19: ='Non-financial'!Y$18 -> 2028-29 | Z19: ='Non-financial'!Z$18 -> 2029-30 | AA19: ='Non-financial'!AA$18 -> 2030-31 | AB19: ='Non-financial'!AB$18 -> 2031-32 | AC19: ='Non-financial'!AC$18 -> 2032-33 | AD19: ='Non-financial'!AD$18 -> 2033-34 | AE19: ='Non-financial'!AE$18 -> 2034-35 | AG19: ='Non-financial'!AG$18 -> 2023
D20: Code | F20: I/C | G20: Unit | J20: ='Non-financial'!J$19 -> Actual | K20: ='Non-financial'!K$19 -> Actual | L20: ='Non-financial'!L$19 -> Actual | M20: ='Non-financial'!M$19 -> Actual | N20: ='Non-financial'!N$19 -> Actual | O20: ='Non-financial'!O$19 -> Actual | P20: ='Non-financial'!P$19 -> Actual | Q20: ='Non-financial'!Q$19 -> Actual | R20: ='Non-financial'!R$19 -> Actual | S20: ='Non-financial'!S$19 -> Actual | T20: ='Non-financial'!T$19 -> Forecast | U20: ='Non-financial'!U$19 -> Forecast | V20: ='Non-financial'!V$19 -> Forecast | W20: ='Non-financial'!W$19 -> Forecast | X20: ='Non-financial'!X$19 -> Forecast | Y20: ='Non-financial'!Y$19 -> Forecast | Z20: ='Non-financial'!Z$19 -> Forecast | AA20: ='Non-financial'!AA$19 -> Forecast | AB20: ='Non-financial'!AB$19 -> Forecast | AC20: ='Non-financial'!AC$19 -> Forecast | AD20: ='Non-financial'!AD$19 -> Forecast | AE20: ='Non-financial'!AE$19 -> Forecast
C21: =Revenue!C$21 -> Inflation rate for application to prices (lagged CPI to March) | J21: =Revenue!J$21 -> 0.025 | K21: =Revenue!K$21 -> 0.029 | L21: =Revenue!L$21 -> 0.013 | M21: =Revenue!M$21 -> 0.013 | N21: =Revenue!N$21 -> 0.021 | O21: =Revenue!O$21 -> 0.019 | P21: =Revenue!P$21 -> 0.013 | Q21: =Revenue!Q$21 -> 0.022 | R21: =Revenue!R$21 -> 0.011 | S21: =Revenue!S$21 -> 0.051 | T21: =Revenue!T$21 -> 0 | U21: =Revenue!U$21 -> 0 | V21: =Revenue!V$21 -> 0 | W21: =Revenue!W$21 -> 0 | X21: =Revenue!X$21 -> 0 | Y21: =Revenue!Y$21 -> 0 | Z21: =Revenue!Z$21 -> 0 | AA21: =Revenue!AA$21 -> 0 | AB21: =Revenue!AB$21 -> 0 | AC21: =Revenue!AC$21 -> 0 | AD21: =Revenue!AD$21 -> 0 | AE21: =Revenue!AE$21 -> 0
C22: ='Opex by item'!$C$26 -> Inflation rate for application to costs (CPI) | J22: ='Opex by item'!J$26 -> 0.03 | K22: ='Opex by item'!K$26 -> 0.015 | L22: ='Opex by item'!L$26 -> 0.01 | M22: ='Opex by item'!M$26 -> 0.019 | N22: ='Opex by item'!N$26 -> 0.021 | O22: ='Opex by item'!O$26 -> 0.022 | P22: ='Opex by item'!P$26 -> -0.003 | Q22: ='Opex by item'!Q$26 -> 0.038 | R22: ='Opex by item'!R$26 -> 0.061 | S22: ='Opex by item'!S$26 -> 0 | T22: ='Opex by item'!T$26 -> 0 | U22: ='Opex by item'!U$26 -> 0 | V22: ='Opex by item'!V$26 -> 0 | W22: ='Opex by item'!W$26 -> 0 | X22: ='Opex by item'!X$26 -> 0 | Y22: ='Opex by item'!Y$26 -> 0 | Z22: ='Opex by item'!Z$26 -> 0 | AA22: ='Opex by item'!AA$26 -> 0 | AB22: ='Opex by item'!AB$26 -> 0 | AC22: ='Opex by item'!AC$26 -> 0 | AD22: ='Opex by item'!AD$26 -> 0 | AE22: ='Opex by item'!AE$26 -> 0
C23: ="Provide forecasts in real $"&Cover!$E$11 -> Provide forecasts in real $2023-24 | U23: ="Provide forecasts in real $"&Cover!$E$11 -> Provide forecasts in real $2023-24
C25: Untreated bulk water costs | U25: Forecasts are for normal weather conditions
C27: Supplier - WaterNSW
C28: Bulk water fixed payment (net of rebate, per year) | F28: I | G28: =Cover!$K$6 -> $'000
C29: Bulk water usage payment | F29: I | G29: =$G$28 -> $'000
C30: Total supplier cost | F30: C | G30: =$G$28 -> $'000 | J30: =SUM(J28:J29) -> 0 | K30: 0 | L30: 0 | M30: 0 | N30: 0 | O30: 0 | P30: 0 | Q30: 0 | R30: 0 | S30: 0 | T30: 0 | U30: 0 | V30: 0 | W30: 0 | X30: 0 | Y30: 0 | Z30: 0 | AA30: 0 | AB30: 0 | AC30: =SUM(AC28:AC29) -> 0 | AD30: 0 | AE30: =SUM(AE28:AE29) -> 0
C31: Volume purchased from supplier | F31: I | G31: ML pa
C33: Supplier -
C34: =C$28 -> Bulk water fixed payment (net of rebate, per year) | F34: I | G34: =G$28 -> $'000
C35: =C$29 -> Bulk water usage payment | F35: I | G35: =G$29 -> $'000
C36: =C$30 -> Total supplier cost | F36: I | G36: =G$30 -> $'000 | J36: =SUM(J34:J35) -> 0 | K36: 0 | L36: 0 | M36: 0 | N36: 0 | O36: 0 | P36: 0 | Q36: 0 | R36: 0 | S36: 0 | T36: 0 | U36: 0 | V36: 0 | W36: 0 | X36: 0 | Y36: 0 | Z36: 0 | AA36: 0 | AB36: 0 | AC36: =SUM(AC34:AC35) -> 0 | AD36: 0 | AE36: =SUM(AE34:AE35) -> 0
C37: =C$31 -> Volume purchased from supplier | F37: I | G37: =G$31 -> ML pa
C39: Supplier -
C40: =C$28 -> Bulk water fixed payment (net of rebate, per year) | F40: I | G40: =G$28 -> $'000
C41: =C$29 -> Bulk water usage payment | F41: I | G41: =G$29 -> $'000
C42: =C$30 -> Total supplier cost | F42: I | G42: =G$30 -> $'000 | J42: =SUM(J40:J41) -> 0 | K42: 0 | L42: 0 | M42: 0 | N42: 0 | O42: 0 | P42: 0 | Q42: 0 | R42: 0 | S42: 0 | T42: 0 | U42: 0 | V42: 0 | W42: 0 | X42: 0 | Y42: 0 | Z42: 0 | AA42: 0 | AB42: 0 | AC42: =SUM(AC40:AC41) -> 0 | AD42: 0 | AE42: =SUM(AE40:AE41) -> 0
C43: =C$31 -> Volume purchased from supplier | F43: I | G43: =G$31 -> ML pa
C45: Total untreated bulk water volume | F45: C | G45: ML pa | J45: =J31+J37+J43 -> 0 | K45: 0 | L45: 0 | M45: 0 | N45: 0 | O45: 0 | P45: 0 | Q45: 0 | R45: 0 | S45: 0 | T45: 0 | U45: 0 | V45: 0 | W45: 0 | X45: 0 | Y45: 0 | Z45: 0 | AA45: 0 | AB45: 0 | AC45: 0 | AD45: 0 | AE45: 0
C46: Total untreated bulk water cost | F46: C | G46: $'000 | J46: =J30+J36+J42 -> 0 | K46: =K30+K36+K42 -> 0 | L46: 0 | M46: 0 | N46: 0 | O46: 0 | P46: 0 | Q46: 0 | R46: 0 | S46: 0 | T46: 0 | U46: 0 | V46: 0 | W46: 0 | X46: 0 | Y46: 0 | Z46: 0 | AA46: 0 | AB46: 0 | AC46: 0 | AD46: 0 | AE46: 0
C47: Check = 0 | J47: =J45-'Non-financial'!J258 -> 0 | K47: =K45-'Non-financial'!K258 -> 0 | L47: =L45-'Non-financial'!L258 -> 0 | M47: =M45-'Non-financial'!M258 -> 0 | N47: =N45-'Non-financial'!N258 -> 0 | O47: =O45-'Non-financial'!O258 -> 0 | P47: =P45-'Non-financial'!P258 -> 0 | Q47: =Q45-'Non-financial'!Q258 -> 0 | R47: =R45-'Non-financial'!R258 -> 0 | S47: =S45-'Non-financial'!S258 -> 0 | T47: =T45-'Non-financial'!T258 -> 0 | U47: =U45-'Non-financial'!U258 -> 0 | V47: =V45-'Non-financial'!V258 -> 0 | W47: =W45-'Non-financial'!W258 -> 0 | X47: =X45-'Non-financial'!X258 -> 0 | Y47: =Y45-'Non-financial'!Y258 -> 0 | Z47: =Z45-'Non-financial'!Z258 -> 0 | AA47: =AA45-'Non-financial'!AA258 -> 0 | AB47: =AB45-'Non-financial'!AB258 -> 0 | AC47: =AC45-'Non-financial'!AC258 -> 0 | AD47: =AD45-'Non-financial'!AD258 -> 0 | AE47: =AE45-'Non-financial'!AE258 -> 0
C49: Treated bulk water costs
C50: Desalinated water average purchase prices for the year
C52: Supplier - SDP
C53: =C$28 -> Bulk water fixed payment (net of rebate, per year) | F53: I | G53: =G$28 -> $'000
C54: =C$29 -> Bulk water usage payment | F54: I | G54: =G$29 -> $'000
C55: =C$30 -> Total supplier cost | F55: I | G55: =G$30 -> $'000 | J55: =SUM(J53:J54) -> 0 | K55: 0 | L55: 0 | M55: 0 | N55: 0 | O55: 0 | P55: 0 | Q55: 0 | R55: 0 | S55: 0 | T55: 0 | U55: 0 | V55: 0 | W55: 0 | X55: 0 | Y55: 0 | Z55: 0 | AA55: 0 | AB55: 0 | AC55: =SUM(AC53:AC54) -> 0 | AD55: 0 | AE55: =SUM(AE53:AE54) -> 0
C56: =C$31 -> Volume purchased from supplier | F56: I | G56: =G$31 -> ML pa
C58: Supplier -
C59: =C$28 -> Bulk water fixed payment (net of rebate, per year) | F59: I | G59: =G$28 -> $'000
C60: =C$29 -> Bulk water usage payment | F60: I | G60: =G$29 -> $'000
C61: =C$30 -> Total supplier cost | F61: I | G61: =G$30 -> $'000 | J61: =SUM(J59:J60) -> 0 | K61: 0 | L61: 0 | M61: 0 | N61: 0 | O61: 0 | P61: 0 | Q61: 0 | R61: 0 | S61: 0 | T61: 0 | U61: 0 | V61: 0 | W61: 0 | X61: 0 | Y61: 0 | Z61: 0 | AA61: 0 | AB61: 0 | AC61: =SUM(AC59:AC60) -> 0 | AD61: 0 | AE61: =SUM(AE59:AE60) -> 0
C62: =C$31 -> Volume purchased from supplier | F62: I | G62: =G$31 -> ML pa
C64: Supplier -
C65: =C$28 -> Bulk water fixed payment (net of rebate, per year) | F65: I | G65: =G$28 -> $'000
C66: =C$29 -> Bulk water usage payment | F66: I | G66: =G$29 -> $'000
C67: =C$30 -> Total supplier cost | F67: I | G67: =G$30 -> $'000 | J67: =SUM(J65:J66) -> 0 | K67: 0 | L67: 0 | M67: 0 | N67: 0 | O67: 0 | P67: 0 | Q67: 0 | R67: 0 | S67: 0 | T67: 0 | U67: 0 | V67: 0 | W67: 0 | X67: 0 | Y67: 0 | Z67: 0 | AA67: 0 | AB67: 0 | AC67: =SUM(AC65:AC66) -> 0 | AD67: 0 | AE67: =SUM(AE65:AE66) -> 0
C68: =C$31 -> Volume purchased from supplier | F68: I | G68: =G$31 -> ML pa
C70: Total desalinated bulk water volume | F70: C | G70: ML pa | J70: =J56+J62+J68 -> 0 | K70: 0 | L70: 0 | M70: 0 | N70: 0 | O70: 0 | P70: 0 | Q70: 0 | R70: 0 | S70: 0 | T70: 0 | U70: 0 | V70: 0 | W70: 0 | X70: 0 | Y70: 0 | Z70: 0 | AA70: 0 | AB70: 0 | AC70: 0 | AD70: 0 | AE70: 0
C71: Total desalinated bulk water cost | F71: C | G71: $'000 | J71: =J55+J61+J67 -> 0 | K71: 0 | L71: 0 | M71: 0 | N71: 0 | O71: 0 | P71: 0 | Q71: 0 | R71: 0 | S71: 0 | T71: 0 | U71: 0 | V71: 0 | W71: 0 | X71: 0 | Y71: 0 | Z71: 0 | AA71: 0 | AB71: 0 | AC71: 0 | AD71: 0 | AE71: 0
C72: Check = 0 | F72: C | G72: =G71 -> $'000 | J72: =J70-('Non-financial'!J267+'Non-financial'!J264) -> 0 | K72: =K70-('Non-financial'!K267+'Non-financial'!K264) -> 0 | L72: =L70-('Non-financial'!L267+'Non-financial'!L264) -> 0 | M72: =M70-('Non-financial'!M267+'Non-financial'!M264) -> 0 | N72: =N70-('Non-financial'!N267+'Non-financial'!N264) -> 0 | O72: =O70-('Non-financial'!O267+'Non-financial'!O264) -> 0 | P72: =P70-('Non-financial'!P267+'Non-financial'!P264) -> 0 | Q72: =Q70-('Non-financial'!Q267+'Non-financial'!Q264) -> 0 | R72: =R70-('Non-financial'!R267+'Non-financial'!R264) -> 0 | S72: =S70-('Non-financial'!S267+'Non-financial'!S264) -> 0 | T72: =T70-('Non-financial'!T267+'Non-financial'!T264) -> 0 | U72: =U70-('Non-financial'!U267+'Non-financial'!U264) -> 0 | V72: =V70-('Non-financial'!V267+'Non-financial'!V264) -> 0 | W72: =W70-('Non-financial'!W267+'Non-financial'!W264) -> 0 | X72: =X70-('Non-financial'!X267+'Non-financial'!X264) -> 0 | Y72: =Y70-('Non-financial'!Y267+'Non-financial'!Y264) -> 0 | Z72: =Z70-('Non-financial'!Z267+'Non-financial'!Z264) -> 0 | AA72: =AA70-('Non-financial'!AA267+'Non-financial'!AA264) -> 0 | AB72: =AB70-('Non-financial'!AB267+'Non-financial'!AB264) -> 0 | AC72: =AC70-('Non-financial'!AC267+'Non-financial'!AC264) -> 0 | AD72: =AD70-('Non-financial'!AD267+'Non-financial'!AD264) -> 0 | AE72: =AE70-('Non-financial'!AE267+'Non-financial'!AE264) -> 0
C74: Total volume of bulk water purchased | F74: C | G74: ML pa | J74: =J45+J70 -> 0 | K74: 0 | L74: 0 | M74: 0 | N74: 0 | O74: 0 | P74: 0 | Q74: 0 | R74: 0 | S74: 0 | T74: 0 | U74: 0 | V74: 0 | W74: 0 | X74: 0 | Y74: 0 | Z74: 0 | AA74: 0 | AB74: 0 | AC74: 0 | AD74: 0 | AE74: 0
C75: Total cost bulk water purchased | F75: C | G75: $'000 | J75: =J46+J71 -> 0 | K75: 0 | L75: 0 | M75: 0 | N75: 0 | O75: 0 | P75: 0 | Q75: 0 | R75: 0 | S75: 0 | T75: 0 | U75: 0 | V75: 0 | W75: 0 | X75: 0 | Y75: 0 | Z75: 0 | AA75: 0 | AB75: 0 | AC75: 0 | AD75: 0 | AE75: 0
C76: Check = 0 | F76: C | G76: =G75 -> $'000 | J76: =IF(J75=0,"no data",J75-'Opex by item'!J76-'Opex by item'!J77) -> no data | K76: =IF(K75=0,"no data",K75-'Opex by item'!K76-'Opex by item'!K77) -> no data | L76: =IF(L75=0,"no data",L75-'Opex by item'!L76-'Opex by item'!L77) -> no data | M76: =IF(M75=0,"no data",M75-'Opex by item'!M76-'Opex by item'!M77) -> no data | N76: =IF(N75=0,"no data",N75-'Opex by item'!N76-'Opex by item'!N77) -> no data | O76: =IF(O75=0,"no data",O75-'Opex by item'!O76-'Opex by item'!O77) -> no data | P76: =IF(P75=0,"no data",P75-'Opex by item'!P76-'Opex by item'!P77) -> no data | Q76: =IF(Q75=0,"no data",Q75-'Opex by item'!Q76-'Opex by item'!Q77) -> no data | R76: =IF(R75=0,"no data",R75-'Opex by item'!R76-'Opex by item'!R77) -> no data | S76: =IF(S75=0,"no data",S75-'Opex by item'!S76-'Opex by item'!S77) -> no data | T76: =IF(T75=0,"no data",T75-'Opex by item'!T76-'Opex by item'!T77) -> no data | U76: =IF(U75=0,"no data",U75-'Opex by item'!U76-'Opex by item'!U77) -> no data | V76: =IF(V75=0,"no data",V75-'Opex by item'!V76-'Opex by item'!V77) -> no data | W76: =IF(W75=0,"no data",W75-'Opex by item'!W76-'Opex by item'!W77) -> no data | X76: =IF(X75=0,"no data",X75-'Opex by item'!X76-'Opex by item'!X77) -> no data | Y76: =IF(Y75=0,"no data",Y75-'Opex by item'!Y76-'Opex by item'!Y77) -> no data | Z76: =IF(Z75=0,"no data",Z75-'Opex by item'!Z76-'Opex by item'!Z77) -> no data | AA76: =IF(AA75=0,"no data",AA75-'Opex by item'!AA76-'Opex by item'!AA77) -> no data | AB76: =IF(AB75=0,"no data",AB75-'Opex by item'!AB76-'Opex by item'!AB77) -> no data | AC76: =IF(AC75=0,"no data",AC75-'Opex by item'!AC76-'Opex by item'!AC77) -> no data | AD76: =IF(AD75=0,"no data",AD75-'Opex by item'!AD76-'Opex by item'!AD77) -> no data | AE76: =IF(AE75=0,"no data",AE75-'Opex by item'!AE76-'Opex by item'!AE77) -> no data
C80: Table 2.2 - Bulk water sales revenue (where sales are charged at a regulated price) | AG80: =AG18 -> COMMENTS TO IPART
D81: =D$19 -> OPTIONAL FIELDS | J81: =J19 -> 2013-14 | K81: 2014-15 | L81: 2015-16 | M81: 2016-17 | N81: 2017-18 | O81: 2018-19 | P81: 2019-20 | Q81: 2020-21 | R81: 2021-22 | S81: 2022-23 | T81: 2023-24 | U81: 2024-25 | V81: 2025-26 | W81: 2026-27 | X81: 2027-28 | Y81: 2028-29 | Z81: 2029-30 | AA81: 2030-31 | AB81: 2031-32 | AC81: 2032-33 | AD81: 2033-34 | AE81: 2034-35 | AG81: =Cover!$E$6 -> 2023
D82: =' Bulk Water'!D20 -> Code | F82: =' Bulk Water'!F20 -> I/C | G82: =' Bulk Water'!G20 -> Unit | J82: =' Bulk Water'!J20 -> Actual | K82: =' Bulk Water'!K20 -> Actual | L82: =' Bulk Water'!L20 -> Actual | M82: =' Bulk Water'!M20 -> Actual | N82: =' Bulk Water'!N20 -> Actual | O82: =' Bulk Water'!O20 -> Actual | P82: =' Bulk Water'!P20 -> Actual | Q82: =' Bulk Water'!Q20 -> Actual | R82: =' Bulk Water'!R20 -> Actual | S82: =' Bulk Water'!S20 -> Actual | T82: =' Bulk Water'!T20 -> Forecast | U82: =' Bulk Water'!U20 -> Forecast | V82: =' Bulk Water'!V20 -> Forecast | W82: =' Bulk Water'!W20 -> Forecast | X82: =' Bulk Water'!X20 -> Forecast | Y82: =' Bulk Water'!Y20 -> Forecast | Z82: =' Bulk Water'!Z20 -> Forecast | AA82: =' Bulk Water'!AA20 -> Forecast | AB82: =' Bulk Water'!AB20 -> Forecast | AC82: =' Bulk Water'!AC20 -> Forecast | AD82: =' Bulk Water'!AD20 -> Forecast | AE82: =' Bulk Water'!AE20 -> Forecast
U83: =U23 -> Provide forecasts in real $2023-24
C84: Untreated bulk water sales revenue for the year (regulated prices) | U84: =U25 -> Forecasts are for normal weather conditions
C86: Customer -
C87: Bulk water fixed charge (per year) | F87: I | G87: $'000
C88: Bulk water usage charge | F88: I | G88: $/kL
C89: Bulk water rebate (per year) | F89: I | G89: $'000
C90: Volume sold to customer | F90: I | G90: ML pa
C91: Total customer revenue | F91: C | G91: $'000 | J91: =J87-J89+J88*J90 -> 0 | K91: 0 | L91: 0 | M91: 0 | N91: 0 | O91: 0 | P91: 0 | Q91: =Q87-Q89+Q88*Q90 -> 0 | R91: 0 | S91: 0 | T91: 0 | U91: =U87-U89+U88*U90 -> 0 | V91: 0 | W91: 0 | X91: 0 | Y91: 0 | Z91: 0 | AA91: 0 | AB91: =AB87-AB89+AB88*AB90 -> 0 | AC91: 0 | AD91: 0 | AE91: =AE87-AE89+AE88*AE90 -> 0
C92: Customer -
C93: Bulk water fixed charge (per year) | F93: I | G93: $'000
C94: Bulk water usage charge | F94: I | G94: c/kL
C95: Bulk water rebate (per year) | F95: I | G95: $'000
C96: Volume sold to customer | F96: I | G96: ML pa
C97: Total customer revenue | F97: C | G97: $'000 | J97: =J93-J95+J94*J96 -> 0 | K97: 0 | L97: 0 | M97: 0 | N97: 0 | O97: 0 | P97: 0 | Q97: =Q93-Q95+Q94*Q96 -> 0 | R97: 0 | S97: 0 | T97: 0 | U97: =U93-U95+U94*U96 -> 0 | V97: 0 | W97: 0 | X97: 0 | Y97: 0 | Z97: 0 | AA97: 0 | AB97: =AB93-AB95+AB94*AB96 -> 0 | AC97: 0 | AD97: 0 | AE97: =AE93-AE95+AE94*AE96 -> 0
C98: Customer -
C99: Bulk water fixed charge (per year) | F99: I | G99: $'000
C100: Bulk water usage charge | F100: I | G100: c/kL
C101: Bulk water rebate (per year) | F101: I | G101: $'000
C102: Volume sold to customer | F102: I | G102: ML pa
C103: Total customer revenue | F103: C | G103: $'000 | J103: =J99-J101+J100*J102 -> 0 | K103: 0 | L103: 0 | M103: 0 | N103: 0 | O103: 0 | P103: 0 | Q103: 0 | R103: 0 | S103: 0 | T103: 0 | U103: =U99-U101+U100*U102 -> 0 | V103: 0 | W103: 0 | X103: 0 | Y103: 0 | Z103: 0 | AA103: 0 | AB103: =AB99-AB101+AB100*AB102 -> 0 | AC103: 0 | AD103: 0 | AE103: =AE99-AE101+AE100*AE102 -> 0
C105: Total untreated bulk water volume sold | F105: C | G105: ML pa | J105: =J90+J96+J102 -> 0 | K105: 0 | L105: 0 | M105: 0 | N105: 0 | O105: 0 | P105: 0 | Q105: 0 | R105: 0 | S105: 0 | T105: 0 | U105: =U90+U96+U102 -> 0 | V105: 0 | W105: 0 | X105: 0 | Y105: 0 | Z105: 0 | AA105: =AA90+AA96+AA102 -> 0 | AB105: =AB90+AB96+AB102 -> 0 | AC105: 0 | AD105: 0 | AE105: =AE90+AE96+AE102 -> 0
C106: Total untreated bulk water revenue | F106: C | G106: $'000 | J106: 0 | K106: 0 | L106: 0 | M106: 0 | N106: 0 | O106: 0 | P106: 0 | Q106: 0 | R106: 0 | S106: 0 | T106: 0 | U106: =U91+U97+U103 -> 0 | V106: 0 | W106: 0 | X106: 0 | Y106: 0 | Z106: 0 | AA106: =AA91+AA97+AA103 -> 0 | AB106: =AB91+AB97+AB103 -> 0 | AC106: 0 | AD106: 0 | AE106: =AE91+AE97+AE103 -> 0
C108: Conventionally treated bulk water sales revenue for the year (regulated prices)
C110: Customer -
C111: Bulk water fixed charge (per year) | F111: I | G111: $'000
C112: Bulk water usage charge | F112: I | G112: c/kL
C113: Bulk water rebate (per year) | F113: I | G113: $'000
C114: Volume sold to customer | F114: I | G114: ML pa
C115: Total customer revenue | F115: C | G115: $'000 | J115: =J111-J113+J112*J114 -> 0 | K115: 0 | L115: 0 | M115: 0 | N115: 0 | O115: 0 | P115: 0 | Q115: 0 | R115: 0 | S115: 0 | T115: 0 | U115: =U111-U113+U112*U114 -> 0 | V115: 0 | W115: 0 | X115: 0 | Y115: 0 | Z115: 0 | AA115: 0 | AB115: =AB111-AB113+AB112*AB114 -> 0 | AC115: 0 | AD115: 0 | AE115: =AE111-AE113+AE112*AE114 -> 0
C116: Customer -
C117: Bulk water fixed charge (per year) | F117: I | G117: $'000
C118: Bulk water usage charge | F118: I | G118: c/kL
C119: Bulk water rebate (per year) | F119: I | G119: $'000
C120: Volume sold to customer | F120: I | G120: ML pa
C121: Total customer revenue | F121: C | G121: $'000 | J121: =J117-J119+J118*J120 -> 0 | K121: 0 | L121: 0 | M121: 0 | N121: 0 | O121: 0 | P121: 0 | Q121: 0 | R121: 0 | S121: 0 | T121: 0 | U121: =U117-U119+U118*U120 -> 0 | V121: 0 | W121: 0 | X121: 0 | Y121: 0 | Z121: 0 | AA121: 0 | AB121: =AB117-AB119+AB118*AB120 -> 0 | AC121: 0 | AD121: 0 | AE121: =AE117-AE119+AE118*AE120 -> 0
C122: Customer -
C123: Bulk water fixed charge (per year) | F123: I | G123: $'000
C124: Bulk water usage charge | F124: I | G124: c/kL
C125: Bulk water rebate (per year) | F125: I | G125: $'000
C126: Volume sold to customer | F126: I | G126: ML pa
C127: Total customer revenue | F127: C | G127: $'000 | J127: =J123-J125+J124*J126 -> 0 | K127: 0 | L127: 0 | M127: 0 | N127: 0 | O127: 0 | P127: 0 | Q127: 0 | R127: 0 | S127: 0 | T127: 0 | U127: =U123-U125+U124*U126 -> 0 | V127: 0 | W127: 0 | X127: 0 | Y127: 0 | Z127: 0 | AA127: 0 | AB127: =AB123-AB125+AB124*AB126 -> 0 | AC127: 0 | AD127: 0 | AE127: =AE123-AE125+AE124*AE126 -> 0
C129: Total conventionally treated bulk water volume sold | F129: C | G129: ML pa | J129: =J114+J120+J126 -> 0 | K129: 0 | L129: 0 | M129: 0 | N129: 0 | O129: 0 | P129: 0 | Q129: 0 | R129: 0 | S129: 0 | T129: 0 | U129: =U114+U120+U126 -> 0 | V129: 0 | W129: 0 | X129: 0 | Y129: 0 | Z129: 0 | AA129: =AA114+AA120+AA126 -> 0 | AB129: =AB114+AB120+AB126 -> 0 | AC129: 0 | AD129: 0 | AE129: =AE114+AE120+AE126 -> 0
C130: Total conventionally treated bulk water revenue | F130: C | G130: $'000 | J130: 0 | K130: 0 | L130: 0 | M130: 0 | N130: 0 | O130: 0 | P130: 0 | Q130: 0 | R130: 0 | S130: 0 | T130: 0 | U130: =U115+U121+U127 -> 0 | V130: 0 | W130: 0 | X130: 0 | Y130: 0 | Z130: 0 | AA130: =AA115+AA121+AA127 -> 0 | AB130: =AB115+AB121+AB127 -> 0 | AC130: 0 | AD130: 0 | AE130: =AE115+AE121+AE127 -> 0
C132: Desalinated water sales revenue for the year (regulated prices)
C134: Customer -
C135: Bulk water fixed charge (per year) | F135: I | G135: $'000
C136: Bulk water usage charge | F136: I | G136: c/kL
C137: Bulk water rebate (per year) | F137: I | G137: $'000
C138: Volume sold to customer | F138: I | G138: ML pa
C139: Total customer revenue | F139: C | G139: $'000 | J139: =J135-J137+J136*J138 -> 0 | K139: 0 | L139: 0 | M139: 0 | N139: 0 | O139: 0 | P139: 0 | Q139: 0 | R139: 0 | S139: 0 | T139: 0 | U139: =U135-U137+U136*U138 -> 0 | V139: 0 | W139: 0 | X139: 0 | Y139: 0 | Z139: 0 | AA139: 0 | AB139: =AB135-AB137+AB136*AB138 -> 0 | AC139: 0 | AD139: 0 | AE139: =AE135-AE137+AE136*AE138 -> 0
C140: Customer -
C141: Bulk water fixed charge (per year) | F141: I | G141: $'000
C142: Bulk water usage charge | F142: I | G142: c/kL
C143: Bulk water rebate (per year) | F143: I | G143: $'000
C144: Volume sold to customer | F144: I | G144: ML pa
C145: Total customer revenue | F145: C | G145: $'000 | J145: =J141-J143+J142*J144 -> 0 | K145: 0 | L145: 0 | M145: 0 | N145: 0 | O145: 0 | P145: 0 | Q145: 0 | R145: 0 | S145: 0 | T145: 0 | U145: 0 | V145: 0 | W145: 0 | X145: 0 | Y145: 0 | Z145: 0 | AA145: 0 | AB145: =AB141-AB143+AB142*AB144 -> 0 | AC145: 0 | AD145: 0 | AE145: =AE141-AE143+AE142*AE144 -> 0
C146: Customer -
C147: Bulk water fixed charge (per year) | F147: I | G147: $'000
C148: Bulk water usage charge | F148: I | G148: c/kL
C149: Bulk water rebate (per year) | F149: I | G149: $'000
C150: Volume sold to customer | F150: I | G150: ML pa
C151: Total customer revenue | F151: C | G151: $'000 | J151: =J147-J149+J148*J150 -> 0 | K151: 0 | L151: 0 | M151: 0 | N151: 0 | O151: 0 | P151: 0 | Q151: 0 | R151: 0 | S151: 0 | T151: 0 | U151: 0 | V151: 0 | W151: 0 | X151: 0 | Y151: 0 | Z151: 0 | AA151: 0 | AB151: =AB147-AB149+AB148*AB150 -> 0 | AC151: 0 | AD151: 0 | AE151: =AE147-AE149+AE148*AE150 -> 0
C153: Total desalinated bulk water volume sold | F153: C | G153: ML pa | J153: =J138+J144+J150 -> 0 | K153: 0 | L153: 0 | M153: 0 | N153: 0 | O153: 0 | P153: 0 | Q153: 0 | R153: 0 | S153: 0 | T153: 0 | U153: 0 | V153: 0 | W153: 0 | X153: 0 | Y153: 0 | Z153: 0 | AA153: =AA138+AA144+AA150 -> 0 | AB153: =AB138+AB144+AB150 -> 0 | AC153: 0 | AD153: 0 | AE153: =AE138+AE144+AE150 -> 0
C154: Total desalinated bulk water revenue | F154: C | G154: $'000 | J154: 0 | K154: 0 | L154: 0 | M154: 0 | N154: 0 | O154: 0 | P154: 0 | Q154: 0 | R154: 0 | S154: 0 | T154: 0 | U154: 0 | V154: 0 | W154: 0 | X154: 0 | Y154: 0 | Z154: 0 | AA154: =AA139+AA145+AA151 -> 0 | AB154: =AB139+AB145+AB151 -> 0 | AC154: 0 | AD154: 0 | AE154: =AE139+AE145+AE151 -> 0
C156: Total treated bulk water volume sold | F156: C | G156: ML pa | J156: =J129+J153 -> 0 | K156: 0 | L156: 0 | M156: 0 | N156: 0 | O156: 0 | P156: 0 | Q156: 0 | R156: 0 | S156: 0 | T156: 0 | U156: 0 | V156: 0 | W156: 0 | X156: 0 | Y156: 0 | Z156: 0 | AA156: =AA129+AA153 -> 0 | AB156: =AB129+AB153 -> 0 | AC156: 0 | AD156: 0 | AE156: =AE129+AE153 -> 0
C157: Total treated bulk water revenue | F157: C | G157: $'000 | J157: 0 | K157: 0 | L157: 0 | M157: 0 | N157: 0 | O157: 0 | P157: 0 | Q157: 0 | R157: 0 | S157: 0 | T157: 0 | U157: 0 | V157: 0 | W157: 0 | X157: 0 | Y157: 0 | Z157: 0 | AA157: =AA130+AA154 -> 0 | AB157: =AB130+AB154 -> 0 | AC157: 0 | AD157: 0 | AE157: =AE130+AE154 -> 0
C158: Check = 0 | J158: =J156-'Non-financial'!J268 -> 0 | K158: =K156-'Non-financial'!K268 -> 0 | L158: =L156-'Non-financial'!L268 -> 0 | M158: =M156-'Non-financial'!M268 -> 0 | N158: =N156-'Non-financial'!N268 -> 0 | O158: =O156-'Non-financial'!O268 -> 0 | P158: =P156-'Non-financial'!P268 -> 0 | Q158: =Q156-'Non-financial'!Q268 -> 0 | R158: =R156-'Non-financial'!R268 -> 0 | S158: =S156-'Non-financial'!S268 -> 0 | T158: =T156-'Non-financial'!T268 -> 0 | U158: =U156-'Non-financial'!U268 -> 0 | V158: =V156-'Non-financial'!V268 -> 0 | W158: =W156-'Non-financial'!W268 -> 0 | X158: =X156-'Non-financial'!X268 -> 0 | Y158: =Y156-'Non-financial'!Y268 -> 0 | Z158: =Z156-'Non-financial'!Z268 -> 0 | AA158: =AA156-'Non-financial'!AA268 -> 0 | AB158: =AB156-'Non-financial'!AB268 -> 0 | AC158: =AC156-'Non-financial'!AC268 -> 0 | AD158: =AD156-'Non-financial'!AD268 -> 0 | AE158: =AE156-'Non-financial'!AE268 -> 0
C159: Total volume of bulk water sold | F159: C | G159: ML pa | J159: =J105+J156 -> 0 | K159: 0 | L159: 0 | M159: 0 | N159: 0 | O159: 0 | P159: 0 | Q159: 0 | R159: 0 | S159: 0 | T159: 0 | U159: 0 | V159: 0 | W159: 0 | X159: 0 | Y159: 0 | Z159: 0 | AA159: 0 | AB159: =AB105+AB156 -> 0 | AC159: 0 | AD159: 0 | AE159: =AE105+AE156 -> 0
C160: Total revenue from bulk water sold | F160: C | G160: $'000 | J160: =J106+J157 -> 0 | K160: 0 | L160: 0 | M160: 0 | N160: 0 | O160: 0 | P160: 0 | Q160: 0 | R160: 0 | S160: 0 | T160: 0 | U160: 0 | V160: 0 | W160: 0 | X160: 0 | Y160: 0 | Z160: 0 | AA160: 0 | AB160: =AB106+AB157 -> 0 | AC160: 0 | AD160: 0 | AE160: =AE106+AE157 -> 0
AD311: `` | AE311: ``

Sheet Opex by item
B2: =Cover!B5 -> Metropolitan Water Agency | G2: =Cover!E5 -> Abusiness
B3: Section 3a | G3: Operating expenditure by item
B4: =MID(CELL("filename",A4),FIND("]",CELL("filename",A4))+1,255) -> Opex by item
B6: ='Non-financial'!B$7 -> Colour coding located on Cover sheet
B7: ='Non-financial'!B$8 -> Leave cells blank if no information exists - PLEASE DO NOT ENTER TEXT unless specifically requested to do so.
B8: ='Non-financial'!$B$9 -> We require forecasts only for purposes of a price review, when we also require the business to provide SIR information. (In other years we will hide the forecast columns.)
B10: NOTES:
B11: For regulatory purposes, operating expenditure (opex) must be reported:
B12: (i) | C12: net of capitalised opex
B13: (ii) | C13: including all operating lease expenses
B14: (iii) | C14: excluding asset impairments.
B15: (iv) | C15: including ''discretionary' opex under the 2020 determination
B16: (v) | C16: from 2023-24, net of all (100%) non-regulatory revenue from 'efficiency projects', where the costs are included in regulated costs. | R16: Note to businesses: report from 2023-24 or later?
C17: See IPART, Our water regulatory framework, Technical Paper, November 2022, Appendix A
B19: ="Note that regulatory opex must be reconciled with opex reported in the statutory accounts in "&LEFT(C152,9)&" below." -> Note that regulatory opex must be reconciled with opex reported in the statutory accounts in Table 3.4 below.
C23: Table 3.1 - Corporate operating expenditure by item (total) | AG23: ='Non-financial'!$AG$17 -> COMMENTS TO IPART
C24: ='Non-financial'!C$18 -> Financial year | D24: OPTIONAL FIELDS | J24: ='Non-financial'!J$18 -> 2013-14 | K24: ='Non-financial'!K$18 -> 2014-15 | L24: ='Non-financial'!L$18 -> 2015-16 | M24: ='Non-financial'!M$18 -> 2016-17 | N24: ='Non-financial'!N$18 -> 2017-18 | O24: ='Non-financial'!O$18 -> 2018-19 | P24: ='Non-financial'!P$18 -> 2019-20 | Q24: ='Non-financial'!Q$18 -> 2020-21 | R24: ='Non-financial'!R$18 -> 2021-22 | S24: ='Non-financial'!S$18 -> 2022-23 | T24: ='Non-financial'!T$18 -> 2023-24 | U24: ='Non-financial'!U$18 -> 2024-25 | V24: ='Non-financial'!V$18 -> 2025-26 | W24: ='Non-financial'!W$18 -> 2026-27 | X24: ='Non-financial'!X$18 -> 2027-28 | Y24: ='Non-financial'!Y$18 -> 2028-29 | Z24: ='Non-financial'!Z$18 -> 2029-30 | AA24: ='Non-financial'!AA$18 -> 2030-31 | AB24: ='Non-financial'!AB$18 -> 2031-32 | AC24: ='Non-financial'!AC$18 -> 2032-33 | AD24: ='Non-financial'!AD$18 -> 2033-34 | AE24: ='Non-financial'!AE$18 -> 2034-35 | AG24: ='Non-financial'!$AG$18 -> 2023
D25: ='Non-financial'!D$19 -> Code | F25: I/C | G25: ='Non-financial'!G$19 -> Unit | J25: ='Non-financial'!J$19 -> Actual | K25: ='Non-financial'!K$19 -> Actual | L25: ='Non-financial'!L$19 -> Actual | M25: ='Non-financial'!M$19 -> Actual | N25: ='Non-financial'!N$19 -> Actual | O25: ='Non-financial'!O$19 -> Actual | P25: ='Non-financial'!P$19 -> Actual | Q25: ='Non-financial'!Q$19 -> Actual | R25: ='Non-financial'!R$19 -> Actual | S25: ='Non-financial'!S$19 -> Actual | T25: ='Non-financial'!T$19 -> Forecast | U25: ='Non-financial'!U$19 -> Forecast | V25: ='Non-financial'!V$19 -> Forecast | W25: ='Non-financial'!W$19 -> Forecast | X25: ='Non-financial'!X$19 -> Forecast | Y25: ='Non-financial'!Y$19 -> Forecast | Z25: ='Non-financial'!Z$19 -> Forecast | AA25: ='Non-financial'!AA$19 -> Forecast | AB25: ='Non-financial'!AB$19 -> Forecast | AC25: ='Non-financial'!AC$19 -> Forecast | AD25: ='Non-financial'!AD$19 -> Forecast | AE25: ='Non-financial'!AE$19 -> Forecast
C26: Inflation rate for application to costs (CPI) | J26: 0.03 | K26: 0.015 | L26: 0.01 | M26: 0.019 | N26: 0.021 | O26: 0.022 | P26: -0.003 | Q26: 0.038 | R26: 0.061
C27: Note: for regulatory purposes opex (i) includes all operating lease expenses and (ii) from 2023-24 must be net of revenue from 'efficiency' projects that generate non-regulatory revenue.
C28: ="Provide forecasts in real $"&Cover!$E$11 -> Provide forecasts in real $2023-24 | U28: ="Provide forecasts in real $"&Cover!$E$11 -> Provide forecasts in real $2023-24
T29: From 2023-24, opex must be reported net of non-regulatory revenue from 'efficiency' projects where the costs are include in regulated costs
C30: Sydney Water, Hunter Water and Central Coast Council
C31: Labour (excluding employee provisions) | F31: I | G31: =Cover!$K$6 -> $'000
C32: Employee provisions | F32: I | G32: =G$31 -> $'000
C33: External consultants and/or contract(or)s | F33: I | G33: $'000
C34: Plant and Fleet (including BOO, hire services and finance lease) | F34: I | G34: $'000
C35: Licence fees | F35: I | G35: $'000
C36: Materials | F36: I | G36: $'000
C37: Energy | F37: I | G37: $'000
C38: Operating leases recognised on balance sheet | F38: I | G38: $'000
C39: Bulk water purchases - untreated | F39: I | G39: $'000
C40: Bulk water purchases - treated/desalinated | F40: I | G40: $'000
C41: Other expenditure | F41: I | G41: $'000
C42: Total expenditure | F42: C | G42: $'000 | K42: =SUM(K31:K41) -> 0 | L42: 0 | M42: 0 | N42: 0 | O42: 0 | P42: 0 | Q42: 0 | R42: 0 | S42: 0 | T42: 0 | U42: 0 | V42: 0 | W42: 0 | X42: 0 | Y42: 0 | Z42: 0 | AA42: 0 | AB42: 0 | AC42: 0 | AD42: 0 | AE42: 0
C44: Allocation of corporate opex to:
C45: - water (excluding recycled water) | F45: I | G45: %
C46: - recycled water - Section 16A related | F46: I | G46: =G45 -> %
C47: - wastewater | F47: I | G47: =G46 -> %
C48: - stormwater | F48: I | G48: =G47 -> %
C49: - non-regulatory and unregulated businesses (including all other recycled water) | F49: C | G49: =G48 -> % | J49: =IF(SUM(J45:J48)=0,0,1-SUM(J45:J48)) -> 0 | K49: 0 | L49: 0 | M49: 0 | N49: 0 | O49: 0 | P49: 0 | Q49: 0 | R49: 0 | S49: 0 | T49: 0 | U49: 0 | V49: 0 | W49: 0 | X49: 0 | Y49: 0 | Z49: 0 | AA49: 0 | AB49: 0 | AC49: 0 | AD49: 0 | AE49: 0
C51: Essential Water
C52: Corporate overheads allocated to (i.e. mark-up on direct costs)
C53: Water | F53: I | G53: =G$31 -> $'000
C54: Sewerage | F54: I | G54: =G$31 -> $'000
C55: Total corporate overheads | F55: C | G55: =G$31 -> $'000 | K55: =SUM(K53:K54) -> 0 | L55: =SUM(L53:L54) -> 0 | M55: 0 | N55: 0 | O55: 0 | P55: 0 | Q55: 0 | R55: 0 | S55: 0 | T55: 0 | U55: 0 | V55: 0 | W55: 0 | X55: 0 | Y55: 0 | Z55: 0 | AA55: 0 | AB55: 0 | AC55: =SUM(AC53:AC54) -> 0 | AD55: 0 | AE55: 0
C59: Table 3.2 - Water, Wastewater and Stormwater operating expenditure by item (regulated business activities only)
C60: =C$24 -> Financial year | D60: =D$24 -> OPTIONAL FIELDS | J60: =J$24 -> 2013-14 | K60: 2014-15 | L60: 2015-16 | M60: 2016-17 | N60: 2017-18 | O60: 2018-19 | P60: 2019-20 | Q60: 2020-21 | R60: 2021-22 | S60: 2022-23 | T60: 2023-24 | U60: 2024-25 | V60: 2025-26 | W60: 2026-27 | X60: 2027-28 | Y60: 2028-29 | Z60: 2029-30 | AA60: 2030-31 | AB60: 2031-32 | AC60: 2032-33 | AD60: 2033-34 | AE60: 2034-35
C61: =C$25 -> 0 | D61: =D$25 -> Code | E61: =E$25 -> 0 | F61: =F$25 -> I/C | G61: =G$25 -> Unit | J61: =J$25 -> Actual | K61: Actual | L61: Actual | M61: Actual | N61: Actual | O61: Actual | P61: Actual | Q61: Actual | R61: Actual | S61: Actual | T61: Forecast | U61: Forecast | V61: Forecast | W61: Forecast | X61: Forecast | Y61: Forecast | Z61: Forecast | AA61: Forecast | AB61: Forecast | AC61: Forecast | AD61: Forecast | AE61: Forecast
C63: =$C$27 -> Note: for regulatory purposes opex (i) includes all operating lease expenses and (ii) from 2023-24 must be net of revenue from 'efficiency' projects that generate non-regulatory revenue. | Q63: Including ''discretionary' opex under the 2020 determination
R64: Sydney Water and Hunter Water only
C66: Water (excluding Recycled Water) | T66: =$T$29 -> From 2023-24, opex must be reported net of non-regulatory revenue from 'efficiency' projects where the costs are include in regulated costs
C68: =C$31 -> Labour (excluding employee provisions) | F68: I | G68: =G$31 -> $'000
C69: =C$32 -> Employee provisions | F69: I | G69: $'000
C70: =C$33 -> External consultants and/or contract(or)s | F70: I | G70: $'000
C71: =C$34 -> Plant and Fleet (including BOO, hire services and finance lease) | F71: I | G71: $'000
C72: =C$35 -> Licence fees | F72: I | G72: $'000
C73: =C$36 -> Materials | F73: I | G73: $'000
C74: =C$37 -> Energy | F74: I | G74: $'000
C75: =C$38 -> Operating leases recognised on balance sheet | F75: I | G75: $'000
C76: =C$39 -> Bulk water purchases - untreated | F76: I | G76: $'000 | P76: =' Bulk Water'!P46 -> 0 | Q76: =' Bulk Water'!Q46 -> 0 | R76: =' Bulk Water'!R46 -> 0 | S76: =' Bulk Water'!S46 -> 0 | T76: =' Bulk Water'!T46 -> 0 | U76: =' Bulk Water'!U46 -> 0 | V76: =' Bulk Water'!V46 -> 0 | W76: =' Bulk Water'!W46 -> 0 | X76: =' Bulk Water'!X46 -> 0 | Y76: =' Bulk Water'!Y46 -> 0 | Z76: =' Bulk Water'!Z46 -> 0 | AA76: =' Bulk Water'!AA46 -> 0 | AB76: =' Bulk Water'!AB46 -> 0 | AC76: =' Bulk Water'!AC46 -> 0 | AD76: =' Bulk Water'!AD46 -> 0 | AE76: =' Bulk Water'!AE46 -> 0
C77: =C$40 -> Bulk water purchases - treated/desalinated | F77: I | G77: $'000 | P77: =' Bulk Water'!P71 -> 0 | Q77: =' Bulk Water'!Q71 -> 0 | R77: =' Bulk Water'!R71 -> 0 | S77: =' Bulk Water'!S71 -> 0 | T77: =' Bulk Water'!T71 -> 0 | U77: =' Bulk Water'!U71 -> 0 | V77: =' Bulk Water'!V71 -> 0 | W77: =' Bulk Water'!W71 -> 0 | X77: =' Bulk Water'!X71 -> 0 | Y77: =' Bulk Water'!Y71 -> 0 | Z77: =' Bulk Water'!Z71 -> 0 | AA77: =' Bulk Water'!AA71 -> 0 | AB77: =' Bulk Water'!AB71 -> 0 | AC77: =' Bulk Water'!AC71 -> 0 | AD77: =' Bulk Water'!AD71 -> 0 | AE77: =' Bulk Water'!AE71 -> 0
C78: =C$41 -> Other expenditure | F78: I | G78: $'000
C79: Total excluding Corporate | F79: C | G79: $'000 | J79: =SUM(J68:J78) -> 0 | K79: =SUM(K68:K78) -> 0 | L79: 0 | M79: 0 | N79: 0 | O79: 0 | P79: 0 | Q79: 0 | R79: 0 | S79: 0 | T79: 0 | U79: 0 | V79: 0 | W79: 0 | X79: 0 | Y79: 0 | Z79: 0 | AA79: 0 | AB79: 0 | AC79: =SUM(AC68:AC78) -> 0 | AD79: =SUM(AD68:AD78) -> 0 | AE79: =SUM(AE68:AE78) -> 0
C80: Allocated portion of Corporate opex | F80: C | G80: $'000 | J80: =J$42*J$45 -> 0 | K80: 0 | L80: 0 | M80: 0 | N80: 0 | O80: 0 | P80: 0 | Q80: 0 | R80: 0 | S80: 0 | T80: 0 | U80: 0 | V80: 0 | W80: 0 | X80: 0 | Y80: 0 | Z80: 0 | AA80: 0 | AB80: 0 | AC80: 0 | AD80: 0 | AE80: 0
C81: Total including Corporate | F81: C | G81: $'000 | J81: =SUM(J79:J80) -> 0 | K81: =SUM(K79:K80) -> 0 | L81: =SUM(L79:L80) -> 0 | M81: 0 | N81: 0 | O81: 0 | P81: 0 | Q81: 0 | R81: 0 | S81: 0 | T81: 0 | U81: 0 | V81: 0 | W81: 0 | X81: 0 | Y81: 0 | Z81: 0 | AA81: 0 | AB81: 0 | AC81: 0 | AD81: =SUM(AD79:AD80) -> 0 | AE81: 0
C83: Recycled water - Section 16A related
C84: =C75 -> Operating leases recognised on balance sheet | F84: I | G84: =G$31 -> $'000
C85: All other excluding Corporate | F85: I | G85: =G$31 -> $'000
C86: Allocated portion of Corporate opex | F86: C | G86: =G$31 -> $'000 | K86: =K$42*K$46 -> 0 | L86: 0 | M86: 0 | N86: 0 | O86: 0 | P86: 0 | Q86: 0 | R86: 0 | S86: 0 | T86: 0 | U86: 0 | V86: 0 | W86: 0 | X86: 0 | Y86: 0 | Z86: 0 | AA86: 0 | AB86: 0 | AC86: 0 | AD86: 0 | AE86: 0
C87: Total including Corporate | F87: C | G87: =G$31 -> $'000 | J87: =SUM(J84:J86) -> 0 | K87: =SUM(K84:K86) -> 0 | L87: =SUM(L84:L86) -> 0 | M87: 0 | N87: 0 | O87: 0 | P87: 0 | Q87: 0 | R87: 0 | S87: 0 | T87: 0 | U87: 0 | V87: 0 | W87: 0 | X87: 0 | Y87: 0 | Z87: 0 | AA87: 0 | AB87: 0 | AC87: 0 | AD87: 0 | AE87: 0
C89: Wastewater
C90: =C$31 -> Labour (excluding employee provisions) | F90: I | G90: =G$31 -> $'000
C91: =C$32 -> Employee provisions | F91: I | G91: $'000
C92: =C$33 -> External consultants and/or contract(or)s | F92: I | G92: $'000
C93: =C$34 -> Plant and Fleet (including BOO, hire services and finance lease) | F93: I | G93: $'000
C94: =C$35 -> Licence fees | F94: I | G94: $'000
C95: =C$36 -> Materials | F95: I | G95: $'000
C96: =C$37 -> Energy | F96: I | G96: $'000
C97: =C$38 -> Operating leases recognised on balance sheet | F97: I | G97: $'000 | J97: 0 | K97: 0 | L97: 0 | M97: 0 | N97: 0
C98: =C$39 -> Bulk water purchases - untreated | F98: I | G98: $'000
C99: =C$40 -> Bulk water purchases - treated/desalinated | F99: I | G99: $'000
C100: =C$41 -> Other expenditure | F100: I | G100: $'000
C101: Total excluding Corporate | F101: C | G101: $'000 | J101: =SUM(J90:J100) -> 0 | K101: =SUM(K90:K100) -> 0 | L101: 0 | M101: 0 | N101: 0 | O101: 0 | P101: 0 | Q101: 0 | R101: 0 | S101: 0 | T101: 0 | U101: 0 | V101: 0 | W101: 0 | X101: 0 | Y101: 0 | Z101: 0 | AA101: 0 | AB101: 0 | AC101: =SUM(AC90:AC100) -> 0 | AD101: =SUM(AD90:AD100) -> 0 | AE101: =SUM(AE90:AE100) -> 0
C102: Allocated portion of Corporate opex | F102: C | G102: $'000 | J102: =J$42*J$47 -> 0 | K102: 0 | L102: 0 | M102: 0 | N102: 0 | O102: 0 | P102: 0 | Q102: 0 | R102: 0 | S102: 0 | T102: 0 | U102: 0 | V102: 0 | W102: 0 | X102: 0 | Y102: 0 | Z102: 0 | AA102: 0 | AB102: 0 | AC102: 0 | AD102: 0 | AE102: 0
C103: Total including Corporate | F103: C | G103: $'000 | J103: =SUM(J101:J102) -> 0 | K103: =SUM(K101:K102) -> 0 | L103: =SUM(L101:L102) -> 0 | M103: =SUM(M101:M102) -> 0 | N103: =SUM(N101:N102) -> 0 | O103: =SUM(O101:O102) -> 0 | P103: =SUM(P101:P102) -> 0 | Q103: =SUM(Q101:Q102) -> 0 | R103: =SUM(R101:R102) -> 0 | S103: =SUM(S101:S102) -> 0 | T103: =SUM(T101:T102) -> 0 | U103: =SUM(U101:U102) -> 0 | V103: =SUM(V101:V102) -> 0 | W103: =SUM(W101:W102) -> 0 | X103: =SUM(X101:X102) -> 0 | Y103: =SUM(Y101:Y102) -> 0 | Z103: =SUM(Z101:Z102) -> 0 | AA103: =SUM(AA101:AA102) -> 0 | AB103: =SUM(AB101:AB102) -> 0 | AC103: =SUM(AC101:AC102) -> 0 | AD103: 0 | AE103: 0
C105: Stormwater
C106: =C$31 -> Labour (excluding employee provisions) | F106: I | G106: =G$31 -> $'000
C107: =C$32 -> Employee provisions | F107: I | G107: $'000
C108: =C$33 -> External consultants and/or contract(or)s | F108: I | G108: $'000
C109: =C$34 -> Plant and Fleet (including BOO, hire services and finance lease) | F109: I | G109: $'000
C110: =C$35 -> Licence fees | F110: I | G110: $'000
C111: =C$36 -> Materials | F111: I | G111: $'000
C112: =C$37 -> Energy | F112: I | G112: $'000
C113: =C$38 -> Operating leases recognised on balance sheet | F113: I | G113: $'000
C114: =C$39 -> Bulk water purchases - untreated | F114: I | G114: $'000
C115: =C$40 -> Bulk water purchases - treated/desalinated | F115: I | G115: $'000
C116: =C$41 -> Other expenditure | F116: I | G116: $'000
C117: Total excluding Corporate | F117: C | G117: $'000 | J117: =SUM(J106:J116) -> 0 | K117: =SUM(K106:K116) -> 0 | L117: 0 | M117: 0 | N117: 0 | O117: 0 | P117: 0 | Q117: 0 | R117: 0 | S117: 0 | T117: 0 | U117: 0 | V117: 0 | W117: 0 | X117: 0 | Y117: 0 | Z117: 0 | AA117: 0 | AB117: 0 | AC117: =SUM(AC106:AC116) -> 0 | AD117: =SUM(AD106:AD116) -> 0 | AE117: =SUM(AE106:AE116) -> 0
C118: Allocated portion of Corporate opex | F118: C | G118: $'000 | J118: =J$42*J$48 -> 0 | K118: 0 | L118: 0 | M118: 0 | N118: 0 | O118: 0 | P118: 0 | Q118: 0 | R118: 0 | S118: 0 | T118: 0 | U118: 0 | V118: 0 | W118: 0 | X118: 0 | Y118: 0 | Z118: 0 | AA118: 0 | AB118: 0 | AC118: 0 | AD118: 0 | AE118: 0
C119: Total including Corporate | F119: C | G119: $'000 | J119: =SUM(J117:J118) -> 0 | K119: =SUM(K117:K118) -> 0 | L119: =SUM(L117:L118) -> 0 | M119: =SUM(M117:M118) -> 0 | N119: =SUM(N117:N118) -> 0 | O119: =SUM(O117:O118) -> 0 | P119: =SUM(P117:P118) -> 0 | Q119: =SUM(Q117:Q118) -> 0 | R119: =SUM(R117:R118) -> 0 | S119: =SUM(S117:S118) -> 0 | T119: =SUM(T117:T118) -> 0 | U119: =SUM(U117:U118) -> 0 | V119: =SUM(V117:V118) -> 0 | W119: =SUM(W117:W118) -> 0 | X119: =SUM(X117:X118) -> 0 | Y119: =SUM(Y117:Y118) -> 0 | Z119: =SUM(Z117:Z118) -> 0 | AA119: =SUM(AA117:AA118) -> 0 | AB119: =SUM(AB117:AB118) -> 0 | AC119: =SUM(AC117:AC118) -> 0 | AD119: 0 | AE119: 0
C121: Total excluding Corporate | J121: =J79+J85+J101+J117 -> 0 | K121: =K79+K85+K101+K117 -> 0 | L121: 0 | M121: 0 | N121: 0 | O121: 0 | P121: 0 | Q121: 0 | R121: 0 | S121: 0 | T121: 0 | U121: 0 | V121: 0 | W121: 0 | X121: 0 | Y121: 0 | Z121: 0 | AA121: 0 | AB121: 0 | AC121: 0 | AD121: 0 | AE121: 0
C122: Allocated portion of Corporate opex | J122: =J80+J86+J102+J118 -> 0 | K122: =K80+K86+K102+K118 -> 0 | L122: 0 | M122: 0 | N122: 0 | O122: 0 | P122: 0 | Q122: 0 | R122: 0 | S122: 0 | T122: 0 | U122: 0 | V122: 0 | W122: 0 | X122: 0 | Y122: 0 | Z122: 0 | AA122: 0 | AB122: 0 | AC122: 0 | AD122: 0 | AE122: 0
C123: Total opex of regulated business activities | F123: C | G123: =G$31 -> $'000 | J123: =J81+J87+J103+J119 -> 0 | K123: =K81+K87+K103+K119 -> 0 | L123: 0 | M123: 0 | N123: 0 | O123: 0 | P123: 0 | Q123: 0 | R123: 0 | S123: 0 | T123: 0 | U123: 0 | V123: 0 | W123: 0 | X123: 0 | Y123: 0 | Z123: 0 | AA123: 0 | AB123: 0 | AC123: 0 | AD123: 0 | AE123: 0
C124: Total opex of regulated business activities excluding bulk water | F124: C | G124: =G$31 -> $'000 | J124: =J123-SUM(J76:J77) -> 0 | K124: =K123-SUM(K76:K77) -> 0 | L124: =L123-SUM(L76:L77) -> 0 | M124: 0 | N124: 0 | O124: 0 | P124: 0 | Q124: 0 | R124: 0 | S124: 0 | T124: 0 | U124: 0 | V124: 0 | W124: 0 | X124: 0 | Y124: 0 | Z124: 0 | AA124: 0 | AB124: 0 | AC124: 0 | AD124: 0 | AE124: 0
C128: Table 3.3 - Operating expenditure of non-regulatory and unregulated business activities
C129: =C$24 -> Financial year | D129: =D$24 -> OPTIONAL FIELDS | J129: =J$24 -> 2013-14 | K129: 2014-15 | L129: 2015-16 | M129: 2016-17 | N129: 2017-18 | O129: 2018-19 | P129: 2019-20 | Q129: 2020-21 | R129: 2021-22 | S129: 2022-23 | T129: 2023-24 | U129: 2024-25 | V129: 2025-26 | W129: 2026-27 | X129: 2027-28 | Y129: 2028-29 | Z129: 2029-30 | AA129: 2030-31 | AB129: 2031-32 | AC129: 2032-33 | AD129: 2033-34 | AE129: 2034-35
C130: =C$25 -> 0 | D130: =D$25 -> Code | E130: Sharing ratio | F130: =F$25 -> I/C | G130: =G$25 -> Unit | J130: =J$25 -> Actual | K130: Actual | L130: Actual | M130: Actual | N130: Actual | O130: Actual | P130: Actual | Q130: Actual | R130: Actual | S130: Actual | T130: Forecast | U130: Forecast | V130: Forecast | W130: Forecast | X130: Forecast | Y130: Forecast | Z130: Forecast | AA130: Forecast | AB130: Forecast | AC130: Forecast | AD130: Forecast | AE130: Forecast
C133: Note: The costs of efficiency projects that also generate non-regulatory revenue should be included in regulated costs.
C135: Incremental operating expenditure on non-regulatory activities where profits are shared with customers, excluding Corporate
C136: Total incremental opex | F136: C | G136: =G$31 -> $'000 | V136: ='Non-reg activies'!V128 -> 0 | W136: ='Non-reg activies'!W128 -> 0 | X136: ='Non-reg activies'!X128 -> 0 | Y136: ='Non-reg activies'!Y128 -> 0 | Z136: ='Non-reg activies'!Z128 -> 0 | AA136: ='Non-reg activies'!AA128 -> 0 | AB136: ='Non-reg activies'!AB128 -> 0 | AC136: ='Non-reg activies'!AC128 -> 0 | AD136: ='Non-reg activies'!AD128 -> 0 | AE136: ='Non-reg activies'!AE128 -> 0
C138: Incremental operating expenditure on unregulated activities driven by customer choice (where services are over and above the regulated services provided to all customers), excluding Corporate.
C139: Total incremental opex | F139: I | G139: =G$31 -> $'000 | J139: 0 | K139: 0 | L139: 0 | M139: 0 | N139: 0 | O139: 0 | P139: 0 | Q139: 0 | R139: 0 | S139: 0 | T139: 0 | U139: 0
C141: Operating expenditure on other unregulated activities, excluding Corporate
C142: - recycled water (excluding Section 16A) | F142: I | G142: =G$31 -> $'000 | J142: ='Recycled water & RH'!J21 -> 0 | K142: ='Recycled water & RH'!K21 -> 0 | L142: ='Recycled water & RH'!L21 -> 0 | M142: ='Recycled water & RH'!M21 -> 0 | N142: ='Recycled water & RH'!N21 -> 0 | O142: ='Recycled water & RH'!O21 -> 0 | P142: ='Recycled water & RH'!P21 -> 0 | Q142: ='Recycled water & RH'!Q21 -> 0 | R142: ='Recycled water & RH'!R21 -> 0 | S142: ='Recycled water & RH'!S21 -> 0 | T142: ='Recycled water & RH'!T21 -> 0 | U142: ='Recycled water & RH'!U21 -> 0 | V142: ='Recycled water & RH'!V21 -> 0 | W142: ='Recycled water & RH'!W21 -> 0 | X142: ='Recycled water & RH'!X21 -> 0 | Y142: ='Recycled water & RH'!Y21 -> 0 | Z142: ='Recycled water & RH'!Z21 -> 0 | AA142: ='Recycled water & RH'!AA21 -> 0 | AB142: ='Recycled water & RH'!AB21 -> 0 | AC142: ='Recycled water & RH'!AC21 -> 0 | AD142: ='Recycled water & RH'!AD21 -> 0 | AE142: ='Recycled water & RH'!AE21 -> 0
C143: - other | F143: I | G143: =G$31 -> $'000
C144: Total opex on other unregulated activities, excluding Corporate | F144: C | G144: =G$31 -> $'000 | J144: =SUM(J142:J143) -> 0 | K144: 0 | L144: 0 | M144: 0 | N144: 0 | O144: 0 | P144: 0 | Q144: 0 | R144: 0 | S144: 0 | T144: 0 | U144: 0 | V144: 0 | W144: 0 | X144: 0 | Y144: 0 | Z144: 0 | AA144: 0 | AB144: 0 | AC144: 0 | AD144: 0 | AE144: 0
C146: Corporate expenditure on unregulated and non-regulatory activities | F146: C | G146: =G$31 -> $'000 | J146: =J42*J49 -> 0 | K146: 0 | L146: 0 | M146: 0 | N146: 0 | O146: 0 | P146: 0 | Q146: 0 | R146: 0 | S146: 0 | T146: 0 | U146: 0 | V146: 0 | W146: 0 | X146: 0 | Y146: 0 | Z146: 0 | AA146: 0 | AB146: 0 | AC146: 0 | AD146: 0 | AE146: 0
C148: Total opex of non-regulatory and unregulated business activities | F148: C | G148: =G$31 -> $'000 | J148: =J136+J139+J144+J146 -> 0 | K148: 0 | L148: 0 | M148: 0 | N148: 0 | O148: 0 | P148: 0 | Q148: 0 | R148: 0 | S148: 0 | T148: 0 | U148: 0 | V148: 0 | W148: 0 | X148: 0 | Y148: 0 | Z148: 0 | AA148: 0 | AB148: 0 | AC148: 0 | AD148: 0 | AE148: 0
C152: Table 3.4 - Operating expenditure reconciliation
C153: =C$24 -> Financial year | D153: =D$24 -> OPTIONAL FIELDS | J153: =J$24 -> 2013-14 | K153: 2014-15 | L153: 2015-16 | M153: 2016-17 | N153: 2017-18 | O153: 2018-19 | P153: 2019-20 | Q153: 2020-21 | R153: 2021-22 | S153: 2022-23 | T153: 2023-24 | U153: 2024-25 | V153: 2025-26 | W153: 2026-27 | X153: 2027-28 | Y153: 2028-29 | Z153: 2029-30 | AA153: 2030-31 | AB153: 2031-32 | AC153: 2032-33 | AD153: 2033-34 | AE153: 2034-35
C154: =C$25 -> 0 | D154: =D$25 -> Code | E154: Sharing ratio | F154: =F$25 -> I/C | G154: =G$25 -> Unit | J154: =J$25 -> Actual | K154: Actual | L154: Actual | M154: Actual | N154: Actual | O154: Actual | P154: Actual | Q154: Actual | R154: Actual | S154: Actual | T154: Forecast | U154: Forecast | V154: Forecast | W154: Forecast | X154: Forecast | Y154: Forecast | Z154: Forecast | AA154: Forecast | AB154: Forecast | AC154: Forecast | AD154: Forecast | AE154: Forecast
C157: Operating expenditure including operating leases recognised on balance sheet classified as opex
C158: =C123 -> Total opex of regulated business activities | F158: C | G158: =G$31 -> $'000 | J158: =J123 -> 0 | K158: 0 | L158: 0 | M158: 0 | N158: 0 | O158: 0 | P158: 0 | Q158: 0 | R158: 0 | S158: 0 | T158: 0 | U158: 0 | V158: 0 | W158: 0 | X158: 0 | Y158: 0 | Z158: 0 | AA158: 0 | AB158: 0 | AC158: 0 | AD158: 0 | AE158: 0
C159: =C148 -> Total opex of non-regulatory and unregulated business activities | F159: C | G159: =G$31 -> $'000 | J159: =J148 -> 0 | K159: 0 | L159: 0 | M159: 0 | N159: 0 | O159: 0 | P159: 0 | Q159: 0 | R159: 0 | S159: 0 | T159: =T148 -> 0 | U159: =U148 -> 0 | V159: 0 | W159: 0 | X159: 0 | Y159: 0 | Z159: 0 | AA159: 0 | AB159: 0 | AC159: 0 | AD159: 0 | AE159: 0
C160: Total | F160: C | G160: =G$31 -> $'000 | J160: =SUM(J158:J159) -> 0 | K160: =SUM(K158:K159) -> 0 | L160: 0 | M160: 0 | N160: 0 | O160: 0 | P160: 0 | Q160: 0 | R160: 0 | S160: 0 | T160: 0 | U160: 0 | V160: 0 | W160: 0 | X160: 0 | Y160: 0 | Z160: 0 | AA160: 0 | AB160: 0 | AC160: =SUM(AC158:AC159) -> 0 | AD160: =SUM(AD158:AD159) -> 0 | AE160: =SUM(AE158:AE159) -> 0
C162: Operating leases recognised on balance sheet | F162: C | G162: =G$31 -> $'000
C163: Corporate | F163: C | G163: $'000 | P163: =P38 -> 0 | Q163: 0 | R163: 0 | S163: 0 | T163: 0 | U163: 0 | V163: 0 | W163: 0 | X163: 0 | Y163: 0 | Z163: 0 | AA163: 0 | AB163: 0 | AC163: 0 | AD163: 0 | AE163: 0
C164: Regulated business activities (excl Corporate and all recycled water) | F164: C | G164: $'000 | P164: =P75+P97+P113 -> 0 | Q164: =Q75+Q97+Q113 -> 0 | R164: 0 | S164: 0 | T164: 0 | U164: 0 | V164: 0 | W164: 0 | X164: 0 | Y164: 0 | Z164: 0 | AA164: 0 | AB164: 0 | AC164: 0 | AD164: 0 | AE164: 0
C165: Recycled water | F165: C | G165: $'000
C166: Other activities | F166: I | G166: $'000
C167: Total | F167: C | G167: $'000 | P167: =SUM(P163:P166) -> 0 | Q167: =SUM(Q163:Q166) -> 0 | R167: 0 | S167: =SUM(S163:S166) -> 0 | T167: =SUM(T163:T166) -> 0 | U167: =SUM(U163:U166) -> 0 | V167: 0 | W167: 0 | X167: 0 | Y167: 0 | Z167: 0 | AA167: 0 | AB167: 0 | AC167: 0 | AD167: 0 | AE167: 0
C169: Non-regulatory revenue from efficiency projects | F169: I | G169: $'000
C171: Other operating expenditure reported in statutory financial statements
C172: Asset impairments | F172: I | G172: =G$31 -> $'000
C173: <user specified> | F173: I | G173: $'000
C174: <user specified> | F174: I | G174: $'000
C175: <user specified> | F175: I | G175: $'000
C176: <user specified> | F176: I | G176: $'000
C177: <user specified> | F177: I | G177: $'000
C178: Total other | F178: C | G178: $'000 | S178: =SUM(S172:S177) -> 0 | T178: 0 | U178: 0 | V178: 0 | W178: 0 | X178: 0 | Y178: 0 | Z178: 0 | AA178: 0 | AB178: 0 | AC178: 0 | AD178: 0 | AE178: 0
C180: Reconciliation
C181: Reported opex excluding operating leases recognised on balance sheet | F181: C | G181: =G$31 -> $'000 | S181: =ROUND(S160-S167+S169+S178,0) -> 0 | T181: =ROUND(T160-T167+T169+T178,0) -> 0 | U181: 0 | V181: 0 | W181: 0 | X181: 0 | Y181: 0 | Z181: 0 | AA181: 0 | AB181: 0 | AC181: 0 | AD181: 0 | AE181: 0
C182: Total opex from statutory financial statements (net of amounts capitalised) | F182: I | G182: =Cover!$K$6 -> $'000 | J182: ='Fin Data '!J25 -> 0 | K182: ='Fin Data '!K25 -> 0 | L182: ='Fin Data '!L25 -> 0 | M182: ='Fin Data '!M25 -> 0 | N182: ='Fin Data '!N25 -> 0 | O182: ='Fin Data '!O25 -> 0 | P182: ='Fin Data '!P25 -> 0 | Q182: ='Fin Data '!Q25 -> 0 | R182: ='Fin Data '!R25 -> 0 | S182: ='Fin Data '!S25 -> 0 | T182: ='Fin Data '!T25 -> 0 | U182: ='Fin Data '!U25 -> 0 | V182: ='Fin Data '!V25 -> 0 | W182: ='Fin Data '!W25 -> 0 | X182: ='Fin Data '!X25 -> 0 | Y182: ='Fin Data '!Y25 -> 0 | Z182: ='Fin Data '!Z25 -> 0 | AA182: ='Fin Data '!AA25 -> 0 | AB182: ='Fin Data '!AB25 -> 0 | AC182: ='Fin Data '!AC25 -> 0 | AD182: ='Fin Data '!AD25 -> 0 | AE182: ='Fin Data '!AE25 -> 0
C183: Difference (explain if not zero) | F183: C | G183: =G$31 -> $'000 | S183: =IF(LEFT(S153,4)+1>Cover!$E$6,"na",S181-S182) -> 0 | T183: =IF(LEFT(T153,4)+1>Cover!$E$6,"na",T181-T182) -> na | U183: =IF(LEFT(U153,4)+1>Cover!$E$6,"na",U181-U182) -> na | V183: =IF(LEFT(V153,4)+1>Cover!$E$6,"na",V181-V182) -> na | W183: =IF(LEFT(W153,4)+1>Cover!$E$6,"na",W181-W182) -> na | X183: =IF(LEFT(X153,4)+1>Cover!$E$6,"na",X181-X182) -> na | Y183: =IF(LEFT(Y153,4)+1>Cover!$E$6,"na",Y181-Y182) -> na | Z183: =IF(LEFT(Z153,4)+1>Cover!$E$6,"na",Z181-Z182) -> na | AA183: =IF(LEFT(AA153,4)+1>Cover!$E$6,"na",AA181-AA182) -> na | AB183: =IF(LEFT(AB153,4)+1>Cover!$E$6,"na",AB181-AB182) -> na | AC183: =IF(LEFT(AC153,4)+1>Cover!$E$6,"na",AC181-AC182) -> na | AD183: =IF(LEFT(AD153,4)+1>Cover!$E$6,"na",AD181-AD182) -> na | AE183: =IF(LEFT(AE153,4)+1>Cover!$E$6,"na",AE181-AE182) -> na
AD315: ``

Sheet Opex by function
B2: =Cover!B5 -> Metropolitan Water Agency | G2: =Cover!E5 -> Abusiness
B3: Section 3b | G3: Operating expenditure by function
B4: =MID(CELL("filename",A4),FIND("]",CELL("filename",A4))+1,255) -> Opex by function
B6: ='Non-financial'!B7 -> Colour coding located on Cover sheet
B7: ='Non-financial'!B8 -> Leave cells blank if no information exists - PLEASE DO NOT ENTER TEXT unless specifically requested to do so.
B8: ='Non-financial'!$B$9 -> We require forecasts only for purposes of a price review, when we also require the business to provide SIR information. (In other years we will hide the forecast columns.)
B10: ='Opex by item'!B10 -> NOTES:
B11: ='Opex by item'!B11 -> For regulatory purposes, operating expenditure (opex) must be reported:
B12: (i) | C12: ='Opex by item'!C12 -> net of capitalised opex
B13: (ii) | C13: ='Opex by item'!C16 -> from 2023-24, net of all (100%) non-regulatory revenue from 'efficiency projects', where the costs are included in regulated costs.
B14: (iii) | C14: ='Opex by item'!C13 -> including all operating lease expenses
B15: (iv) | C15: ='Opex by item'!C14 -> excluding asset impairments.
B17: ="Opex by function is separated into controllable and non-controllable costs. This separation in important for the application of the base-step-trend approach to your opex forecasts (see "&'SIR Opex 2 bst'!$B$4&")" -> Opex by function is separated into controllable and non-controllable costs. This separation in important for the application of the base-step-trend approach to your opex forecasts (see SIR Opex 2 bst)
B18: (i) | C18: Controllable costs are those that can be directly or indirectly influenced by a water business‘s operational decisions. Most costs fall into this category.
B19: (ii) | C19: Examples of non-controllable costs include bulk water costs (where prices are set by IPART) and regulatory licence fees.
B21: ="Please report customer rebates and redress payments made under the customer service contract in"&$C$34 -> Please report customer rebates and redress payments made under the customer service contract in Customer Service and billing | T21: Note to businesses: does it make sense to report in this way? Or should they be reported under 'Other'?
C25: Table 3.4 - Operating Expenditure of Regulated Business Activities by Function | AG25: ='Non-financial'!$AG$17 -> COMMENTS TO IPART
C26: ='Non-financial'!C$18 -> Financial year | D26: ='Non-financial'!$D$18 -> OPTIONAL FIELDS | Q26: ='Non-financial'!Q$18 -> 2020-21 | R26: ='Non-financial'!R$18 -> 2021-22 | S26: ='Non-financial'!S$18 -> 2022-23 | T26: ='Non-financial'!T$18 -> 2023-24 | U26: ='Non-financial'!U$18 -> 2024-25 | V26: ='Non-financial'!V$18 -> 2025-26 | W26: ='Non-financial'!W$18 -> 2026-27 | X26: ='Non-financial'!X$18 -> 2027-28 | Y26: ='Non-financial'!Y$18 -> 2028-29 | Z26: ='Non-financial'!Z$18 -> 2029-30 | AA26: ='Non-financial'!AA$18 -> 2030-31 | AB26: ='Non-financial'!AB$18 -> 2031-32 | AC26: ='Non-financial'!AC$18 -> 2032-33 | AD26: ='Non-financial'!AD$18 -> 2033-34 | AE26: ='Non-financial'!AE$18 -> 2034-35 | AG26: ='Non-financial'!$AG$18 -> 2023
D27: ='Non-financial'!D$19 -> Code | E27: Controllable? | F27: ='Non-financial'!F$19 -> I/C | Q27: ='Non-financial'!Q$19 -> Actual | R27: ='Non-financial'!R$19 -> Actual | S27: ='Non-financial'!S$19 -> Actual | T27: ='Non-financial'!T$19 -> Forecast | U27: ='Non-financial'!U$19 -> Forecast | V27: ='Non-financial'!V$19 -> Forecast | W27: ='Non-financial'!W$19 -> Forecast | X27: ='Non-financial'!X$19 -> Forecast | Y27: ='Non-financial'!Y$19 -> Forecast | Z27: ='Non-financial'!Z$19 -> Forecast | AA27: ='Non-financial'!AA$19 -> Forecast | AB27: ='Non-financial'!AB$19 -> Forecast | AC27: ='Non-financial'!AC$19 -> Forecast | AD27: ='Non-financial'!AD$19 -> Forecast | AE27: ='Non-financial'!AE$19 -> Forecast
C28: ='Opex by item'!C$26 -> Inflation rate for application to costs (CPI) | J28: ='Opex by item'!J$26 -> 0.03 | K28: ='Opex by item'!K$26 -> 0.015 | L28: ='Opex by item'!L$26 -> 0.01 | M28: ='Opex by item'!M$26 -> 0.019 | N28: ='Opex by item'!N$26 -> 0.021 | O28: ='Opex by item'!O$26 -> 0.022 | P28: ='Opex by item'!P$26 -> -0.003 | Q28: ='Opex by item'!Q$26 -> 0.038 | R28: ='Opex by item'!R$26 -> 0.061 | S28: ='Opex by item'!S$26 -> 0 | T28: ='Opex by item'!T$26 -> 0 | U28: ='Opex by item'!U$26 -> 0 | V28: ='Opex by item'!V$26 -> 0 | W28: ='Opex by item'!W$26 -> 0 | X28: ='Opex by item'!X$26 -> 0 | Y28: ='Opex by item'!Y$26 -> 0 | Z28: ='Opex by item'!Z$26 -> 0 | AA28: ='Opex by item'!AA$26 -> 0 | AB28: ='Opex by item'!AB$26 -> 0 | AC28: ='Opex by item'!AC$26 -> 0 | AD28: ='Opex by item'!AD$26 -> 0 | AE28: ='Opex by item'!AE$26 -> 0
C30: Water (excluding Recycled Water)
C31: Controllable costs
C32: Operations & Maintenance | E32: Controllable | F32: I | G32: =Cover!$K$6 -> $'000
C33: Treatment | E33: Controllable | F33: I | G33: =G$32 -> $'000
C34: Customer Service and billing | E34: Controllable | F34: I | G34: =G$32 -> $'000
C35: Corporate | E35: Controllable | F35: C | G35: =G$32 -> $'000 | Q35: ='Opex by item'!Q$42*'Opex by item'!Q$45 -> 0 | R35: ='Opex by item'!R$42*'Opex by item'!R$45 -> 0 | S35: ='Opex by item'!S$42*'Opex by item'!S$45 -> 0 | T35: ='Opex by item'!T$42*'Opex by item'!T$45 -> 0 | U35: ='Opex by item'!U$42*'Opex by item'!U$45 -> 0 | V35: ='Opex by item'!V$42*'Opex by item'!V$45 -> 0 | W35: ='Opex by item'!W$42*'Opex by item'!W$45 -> 0 | X35: ='Opex by item'!X$42*'Opex by item'!X$45 -> 0 | Y35: ='Opex by item'!Y$42*'Opex by item'!Y$45 -> 0 | Z35: ='Opex by item'!Z$42*'Opex by item'!Z$45 -> 0
C36: Other controllable operating expenditure | E36: Controllable | F36: I | G36: =G$32 -> $'000
C37: Non-controllable costs
C38: External bulk charges | E38: Non-controllable | F38: C | G38: =G$32 -> $'000 | Q38: =' Bulk Water'!Q46+' Bulk Water'!Q71 -> 0 | R38: =' Bulk Water'!R46+' Bulk Water'!R71 -> 0 | S38: =' Bulk Water'!S46+' Bulk Water'!S71 -> 0 | T38: =' Bulk Water'!T46+' Bulk Water'!T71 -> 0 | U38: =' Bulk Water'!U46+' Bulk Water'!U71 -> 0 | V38: =' Bulk Water'!V46+' Bulk Water'!V71 -> 0 | W38: =' Bulk Water'!W46+' Bulk Water'!W71 -> 0 | X38: =' Bulk Water'!X46+' Bulk Water'!X71 -> 0 | Y38: =' Bulk Water'!Y46+' Bulk Water'!Y71 -> 0 | Z38: =' Bulk Water'!Z46+' Bulk Water'!Z71 -> 0 | AA38: =' Bulk Water'!AA46+' Bulk Water'!AA71 -> 0 | AB38: =' Bulk Water'!AB46+' Bulk Water'!AB71 -> 0 | AC38: =' Bulk Water'!AC46+' Bulk Water'!AC71 -> 0 | AD38: =' Bulk Water'!AD46+' Bulk Water'!AD71 -> 0 | AE38: =' Bulk Water'!AE46+' Bulk Water'!AE71 -> 0
C39: =" "&'Opex by item'!C72 -> Licence fees | E39: Non-controllable | F39: C | G39: $'000 | Q39: ='Opex by item'!Q72 -> 0 | R39: ='Opex by item'!R72 -> 0 | S39: ='Opex by item'!S72 -> 0 | T39: ='Opex by item'!T72 -> 0 | U39: ='Opex by item'!U72 -> 0 | V39: ='Opex by item'!V72 -> 0 | W39: ='Opex by item'!W72 -> 0 | X39: ='Opex by item'!X72 -> 0 | Y39: ='Opex by item'!Y72 -> 0 | Z39: ='Opex by item'!Z72 -> 0 | AA39: ='Opex by item'!AA72 -> 0 | AB39: ='Opex by item'!AB72 -> 0 | AC39: ='Opex by item'!AC72 -> 0 | AD39: ='Opex by item'!AD72 -> 0 | AE39: ='Opex by item'!AE72 -> 0
C40: <describe > | E40: Non-controllable | F40: I | G40: $'000
C41: <describe > | E41: Non-controllable | F41: I | G41: $'000
C42: <describe > | E42: Non-controllable | F42: I | G42: $'000
C43: <describe > | E43: Non-controllable | F43: I | G43: $'000
C44: ="Total "&C30 -> Total Water (excluding Recycled Water) | F44: C | G44: $'000 | Q44: =SUM(Q32:Q36,Q38:Q43) -> 0 | R44: 0 | S44: 0 | T44: 0 | U44: 0 | V44: 0 | W44: 0 | X44: 0 | Y44: 0 | Z44: 0 | AA44: 0 | AB44: 0 | AC44: 0 | AD44: 0 | AE44: 0
C45: check = 0 | Q45: =Q44-'Opex by item'!Q81 -> 0 | R45: =R44-'Opex by item'!R81 -> 0 | S45: =S44-'Opex by item'!S81 -> 0 | T45: =T44-'Opex by item'!T81 -> 0 | U45: =U44-'Opex by item'!U81 -> 0 | V45: =V44-'Opex by item'!V81 -> 0 | W45: =W44-'Opex by item'!W81 -> 0 | X45: =X44-'Opex by item'!X81 -> 0 | Y45: =Y44-'Opex by item'!Y81 -> 0 | Z45: =Z44-'Opex by item'!Z81 -> 0 | AA45: =AA44-'Opex by item'!AA81 -> 0 | AB45: =AB44-'Opex by item'!AB81 -> 0 | AC45: =AC44-'Opex by item'!AC81 -> 0 | AD45: =AD44-'Opex by item'!AD81 -> 0 | AE45: =AE44-'Opex by item'!AE81 -> 0
C46: Recycled Water (Regulated - 'Section 16A')
C47: =C$31 -> Controllable costs
C48: =C$32 -> Operations & Maintenance | E48: =E$32 -> Controllable | F48: I | G48: =G$32 -> $'000
C49: =C$33 -> Treatment | E49: =E$33 -> Controllable | F49: I | G49: $'000
C50: =C$34 -> Customer Service and billing | E50: =E$34 -> Controllable | F50: I | G50: $'000
C51: =C$35 -> Corporate | E51: =E$35 -> Controllable | F51: C | G51: $'000 | Q51: ='Opex by item'!Q$42*'Opex by item'!Q$46 -> 0 | R51: ='Opex by item'!R$42*'Opex by item'!R$46 -> 0 | S51: ='Opex by item'!S$42*'Opex by item'!S$46 -> 0 | T51: ='Opex by item'!T$42*'Opex by item'!T$46 -> 0 | U51: ='Opex by item'!U$42*'Opex by item'!U$46 -> 0 | V51: ='Opex by item'!V$42*'Opex by item'!V$46 -> 0 | W51: ='Opex by item'!W$42*'Opex by item'!W$46 -> 0 | X51: ='Opex by item'!X$42*'Opex by item'!X$46 -> 0 | Y51: ='Opex by item'!Y$42*'Opex by item'!Y$46 -> 0 | Z51: ='Opex by item'!Z$42*'Opex by item'!Z$46 -> 0
C52: =C$36 -> Other controllable operating expenditure | E52: =E$36 -> Controllable | F52: I | G52: $'000
C53: =C$37 -> Non-controllable costs | G53: $'000
C54: =C$38 -> External bulk charges | E54: =E$38 -> Non-controllable | F54: C | G54: $'000 | Q54: 0 | R54: 0 | S54: 0 | T54: 0 | U54: 0 | V54: 0 | W54: 0 | X54: 0 | Y54: 0 | Z54: 0 | AA54: 0 | AB54: 0 | AC54: 0 | AD54: 0 | AE54: 0
C55: =C$39 -> Licence fees | E55: =E$39 -> Non-controllable | F55: I | G55: $'000
C56: <describe > | E56: =E$40 -> Non-controllable | F56: I | G56: $'000
C57: <describe > | E57: =E$41 -> Non-controllable | F57: I | G57: $'000
C58: <describe > | E58: =E$42 -> Non-controllable | F58: I | G58: $'000
C59: <describe > | E59: =E$43 -> Non-controllable | F59: I | G59: $'000
C60: ="Total "&C46 -> Total Recycled Water (Regulated - 'Section 16A') | F60: C | G60: $'000 | Q60: =SUM(Q48:Q52,Q55:Q59) -> 0 | R60: =SUM(R48:R52,R55:R59) -> 0 | S60: 0 | T60: 0 | U60: 0 | V60: 0 | W60: 0 | X60: 0 | Y60: 0 | Z60: 0 | AA60: 0 | AB60: 0 | AC60: 0 | AD60: 0 | AE60: 0
C61: check = 0 | Q61: =Q60-'Opex by item'!Q87 -> 0 | R61: =R60-'Opex by item'!R87 -> 0 | S61: =S60-'Opex by item'!S87 -> 0 | T61: =T60-'Opex by item'!T87 -> 0 | U61: =U60-'Opex by item'!U87 -> 0 | V61: =V60-'Opex by item'!V87 -> 0 | W61: =W60-'Opex by item'!W87 -> 0 | X61: =X60-'Opex by item'!X87 -> 0 | Y61: =Y60-'Opex by item'!Y87 -> 0 | Z61: =Z60-'Opex by item'!Z87 -> 0 | AA61: =AA60-'Opex by item'!AA87 -> 0 | AB61: =AB60-'Opex by item'!AB87 -> 0 | AC61: =AC60-'Opex by item'!AC87 -> 0 | AD61: =AD60-'Opex by item'!AD87 -> 0 | AE61: =AE60-'Opex by item'!AE87 -> 0
C62: Wastewater
C63: =C$31 -> Controllable costs
C64: =C$32 -> Operations & Maintenance | E64: =E$32 -> Controllable | F64: I | G64: =G$32 -> $'000
C65: =C$33 -> Treatment | E65: =E$33 -> Controllable | F65: I | G65: $'000
C66: =C$34 -> Customer Service and billing | E66: =E$34 -> Controllable | F66: I | G66: $'000
C67: =C$35 -> Corporate | E67: =E$35 -> Controllable | F67: C | G67: $'000 | Q67: ='Opex by item'!Q$42*'Opex by item'!Q$47 -> 0 | R67: ='Opex by item'!R$42*'Opex by item'!R$47 -> 0 | S67: ='Opex by item'!S$42*'Opex by item'!S$47 -> 0 | T67: ='Opex by item'!T$42*'Opex by item'!T$47 -> 0 | U67: ='Opex by item'!U$42*'Opex by item'!U$47 -> 0 | V67: ='Opex by item'!V$42*'Opex by item'!V$47 -> 0 | W67: ='Opex by item'!W$42*'Opex by item'!W$47 -> 0 | X67: ='Opex by item'!X$42*'Opex by item'!X$47 -> 0 | Y67: ='Opex by item'!Y$42*'Opex by item'!Y$47 -> 0 | Z67: ='Opex by item'!Z$42*'Opex by item'!Z$47 -> 0
C68: =C$36 -> Other controllable operating expenditure | E68: =E$36 -> Controllable | F68: I | G68: $'000
C69: =C$37 -> Non-controllable costs | G69: $'000
C70: =C$38 -> External bulk charges | E70: =E$38 -> Non-controllable | F70: C | G70: $'000 | Q70: 0 | R70: 0 | S70: 0 | T70: 0 | U70: 0 | V70: 0 | W70: 0 | X70: 0 | Y70: 0 | Z70: 0 | AA70: 0 | AB70: 0 | AC70: 0 | AD70: 0 | AE70: 0
C71: =C$39 -> Licence fees | E71: =E$39 -> Non-controllable | F71: C | G71: $'000 | Q71: ='Opex by item'!Q94 -> 0 | R71: ='Opex by item'!R94 -> 0 | S71: ='Opex by item'!S94 -> 0 | T71: ='Opex by item'!T94 -> 0 | U71: ='Opex by item'!U94 -> 0 | V71: ='Opex by item'!V94 -> 0 | W71: ='Opex by item'!W94 -> 0 | X71: ='Opex by item'!X94 -> 0 | Y71: ='Opex by item'!Y94 -> 0 | Z71: ='Opex by item'!Z94 -> 0 | AA71: ='Opex by item'!AA94 -> 0 | AB71: ='Opex by item'!AB94 -> 0 | AC71: ='Opex by item'!AC94 -> 0 | AD71: ='Opex by item'!AD94 -> 0 | AE71: ='Opex by item'!AE94 -> 0
C72: <describe > | E72: =E$40 -> Non-controllable | F72: I | G72: $'000
C73: <describe > | E73: =E$41 -> Non-controllable | F73: I | G73: $'000
C74: <describe > | E74: =E$42 -> Non-controllable | F74: I | G74: $'000
C75: <describe > | E75: =E$43 -> Non-controllable | F75: I | G75: $'000
C76: ="Total "&C62 -> Total Wastewater | F76: C | G76: $'000 | Q76: =SUM(Q64:Q68,Q71:Q75) -> 0 | R76: =SUM(R64:R68,R71:R75) -> 0 | S76: =SUM(S64:S68,S71:S75) -> 0 | T76: =SUM(T64:T68,T71:T75) -> 0 | U76: =SUM(U64:U68,U71:U75) -> 0 | V76: =SUM(V64:V68,V71:V75) -> 0 | W76: =SUM(W64:W68,W71:W75) -> 0 | X76: =SUM(X64:X68,X71:X75) -> 0 | Y76: =SUM(Y64:Y68,Y71:Y75) -> 0 | Z76: =SUM(Z64:Z68,Z71:Z75) -> 0 | AA76: =SUM(AA64:AA68,AA71:AA75) -> 0 | AB76: =SUM(AB64:AB68,AB71:AB75) -> 0 | AC76: =SUM(AC64:AC68,AC71:AC75) -> 0 | AD76: =SUM(AD64:AD68,AD71:AD75) -> 0 | AE76: =SUM(AE64:AE68,AE71:AE75) -> 0
C77: check = 0 | Q77: =Q76-'Opex by item'!Q103 -> 0 | R77: =R76-'Opex by item'!R103 -> 0 | S77: =S76-'Opex by item'!S103 -> 0 | T77: =T76-'Opex by item'!T103 -> 0 | U77: =U76-'Opex by item'!U103 -> 0 | V77: =V76-'Opex by item'!V103 -> 0 | W77: =W76-'Opex by item'!W103 -> 0 | X77: =X76-'Opex by item'!X103 -> 0 | Y77: =Y76-'Opex by item'!Y103 -> 0 | Z77: =Z76-'Opex by item'!Z103 -> 0 | AA77: =AA76-'Opex by item'!AA103 -> 0 | AB77: =AB76-'Opex by item'!AB103 -> 0 | AC77: =AC76-'Opex by item'!AC103 -> 0 | AD77: =AD76-'Opex by item'!AD103 -> 0 | AE77: =AE76-'Opex by item'!AE103 -> 0
C78: Stormwater
C79: =C$31 -> Controllable costs
C80: =C$32 -> Operations & Maintenance | E80: =E$32 -> Controllable | F80: I | G80: =G$32 -> $'000
C81: =C$33 -> Treatment | E81: =E$33 -> Controllable | F81: I | G81: $'000
C82: =C$34 -> Customer Service and billing | E82: =E$34 -> Controllable | F82: I | G82: $'000
C83: =C$35 -> Corporate | E83: =E$35 -> Controllable | F83: C | G83: $'000 | Q83: ='Opex by item'!Q$42*'Opex by item'!Q$48 -> 0 | R83: ='Opex by item'!R$42*'Opex by item'!R$48 -> 0 | S83: ='Opex by item'!S$42*'Opex by item'!S$48 -> 0 | T83: ='Opex by item'!T$42*'Opex by item'!T$48 -> 0 | U83: ='Opex by item'!U$42*'Opex by item'!U$48 -> 0 | V83: ='Opex by item'!V$42*'Opex by item'!V$48 -> 0 | W83: ='Opex by item'!W$42*'Opex by item'!W$48 -> 0 | X83: ='Opex by item'!X$42*'Opex by item'!X$48 -> 0 | Y83: ='Opex by item'!Y$42*'Opex by item'!Y$48 -> 0 | Z83: ='Opex by item'!Z$42*'Opex by item'!Z$48 -> 0
C84: =C$36 -> Other controllable operating expenditure | E84: =E$36 -> Controllable | F84: I | G84: $'000
C85: =C$37 -> Non-controllable costs | G85: $'000
C86: =C$38 -> External bulk charges | E86: =E$38 -> Non-controllable | F86: C | G86: $'000 | P86: 0 | Q86: 0 | R86: 0 | S86: 0 | T86: 0 | U86: 0 | V86: 0 | W86: 0 | X86: 0 | Y86: 0 | Z86: 0 | AA86: 0 | AB86: 0 | AC86: 0 | AD86: 0 | AE86: 0
C87: =C$39 -> Licence fees | E87: =E$39 -> Non-controllable | F87: C | G87: $'000 | Q87: ='Opex by item'!Q110 -> 0 | R87: ='Opex by item'!R110 -> 0 | S87: ='Opex by item'!S110 -> 0 | T87: ='Opex by item'!T110 -> 0 | U87: ='Opex by item'!U110 -> 0 | V87: ='Opex by item'!V110 -> 0 | W87: ='Opex by item'!W110 -> 0 | X87: ='Opex by item'!X110 -> 0 | Y87: ='Opex by item'!Y110 -> 0 | Z87: ='Opex by item'!Z110 -> 0 | AA87: ='Opex by item'!AA110 -> 0 | AB87: ='Opex by item'!AB110 -> 0 | AC87: ='Opex by item'!AC110 -> 0 | AD87: ='Opex by item'!AD110 -> 0 | AE87: ='Opex by item'!AE110 -> 0
C88: <describe > | E88: =E$40 -> Non-controllable | F88: I | G88: $'000
C89: <describe > | E89: =E$41 -> Non-controllable | F89: I | G89: $'000
C90: <describe > | E90: =E$42 -> Non-controllable | F90: I | G90: $'000
C91: <describe > | E91: =E$43 -> Non-controllable | F91: I | G91: $'000
C92: ="Total "&C78 -> Total Stormwater | F92: C | G92: $'000 | Q92: =SUM(Q80:Q84,Q87:Q91) -> 0 | R92: =SUM(R80:R84,R87:R91) -> 0 | S92: =SUM(S80:S84,S87:S91) -> 0 | T92: =SUM(T80:T84,T87:T91) -> 0 | U92: =SUM(U80:U84,U87:U91) -> 0 | V92: =SUM(V80:V84,V87:V91) -> 0 | W92: =SUM(W80:W84,W87:W91) -> 0 | X92: =SUM(X80:X84,X87:X91) -> 0 | Y92: =SUM(Y80:Y84,Y87:Y91) -> 0 | Z92: =SUM(Z80:Z84,Z87:Z91) -> 0 | AA92: =SUM(AA80:AA84,AA87:AA91) -> 0 | AB92: =SUM(AB80:AB84,AB87:AB91) -> 0 | AC92: =SUM(AC80:AC84,AC87:AC91) -> 0 | AD92: =SUM(AD80:AD84,AD87:AD91) -> 0 | AE92: =SUM(AE80:AE84,AE87:AE91) -> 0
C93: check = 0 | Q93: =Q92-'Opex by item'!Q119 -> 0 | R93: =R92-'Opex by item'!R119 -> 0 | S93: =S92-'Opex by item'!S119 -> 0 | T93: =T92-'Opex by item'!T119 -> 0 | U93: =U92-'Opex by item'!U119 -> 0 | V93: =V92-'Opex by item'!V119 -> 0 | W93: =W92-'Opex by item'!W119 -> 0 | X93: =X92-'Opex by item'!X119 -> 0 | Y93: =Y92-'Opex by item'!Y119 -> 0 | Z93: =Z92-'Opex by item'!Z119 -> 0 | AA93: =AA92-'Opex by item'!AA119 -> 0 | AB93: =AB92-'Opex by item'!AB119 -> 0 | AC93: =AC92-'Opex by item'!AC119 -> 0 | AD93: =AD92-'Opex by item'!AD119 -> 0 | AE93: =AE92-'Opex by item'!AE119 -> 0
C94: Total Regulated Business
C95: =C$32 -> Operations & Maintenance | E95: =E$32 -> Controllable | F95: C | G95: =G$32 -> $'000 | Q95: =Q32+Q48+Q64+Q80 -> 0 | R95: 0 | S95: 0 | T95: 0 | U95: 0 | V95: 0 | W95: 0 | X95: 0 | Y95: 0 | Z95: 0 | AA95: 0 | AB95: 0 | AC95: 0 | AD95: 0 | AE95: 0
C96: =C$33 -> Treatment | E96: =E$33 -> Controllable | F96: C | G96: $'000 | Q96: =Q33+Q49+Q65+Q81 -> 0 | R96: 0 | S96: 0 | T96: 0 | U96: 0 | V96: 0 | W96: 0 | X96: 0 | Y96: 0 | Z96: 0 | AA96: 0 | AB96: 0 | AC96: 0 | AD96: 0 | AE96: 0
C97: =C$34 -> Customer Service and billing | E97: =E$34 -> Controllable | F97: C | G97: $'000 | Q97: =Q34+Q50+Q66+Q82 -> 0 | R97: 0 | S97: 0 | T97: 0 | U97: 0 | V97: 0 | W97: 0 | X97: 0 | Y97: 0 | Z97: 0 | AA97: 0 | AB97: 0 | AC97: 0 | AD97: 0 | AE97: 0
C98: =C$35 -> Corporate | E98: =E$35 -> Controllable | F98: C | G98: $'000 | Q98: =Q35+Q51+Q67+Q83 -> 0 | R98: 0 | S98: 0 | T98: 0 | U98: 0 | V98: 0 | W98: 0 | X98: 0 | Y98: 0 | Z98: 0 | AA98: 0 | AB98: 0 | AC98: 0 | AD98: 0 | AE98: 0
C99: =C$36 -> Other controllable operating expenditure | E99: =E$36 -> Controllable | F99: C | G99: $'000 | Q99: =Q36+Q52+Q68+Q84 -> 0 | R99: 0 | S99: 0 | T99: 0 | U99: 0 | V99: 0 | W99: 0 | X99: 0 | Y99: 0 | Z99: 0 | AA99: 0 | AB99: 0 | AC99: 0 | AD99: 0 | AE99: 0
C100: =C$38 -> External bulk charges | E100: =E$38 -> Non-controllable | F100: C | G100: $'000 | Q100: =Q38+Q54+Q70+Q86 -> 0 | R100: 0 | S100: 0 | T100: 0 | U100: 0 | V100: 0 | W100: 0 | X100: 0 | Y100: 0 | Z100: 0 | AA100: 0 | AB100: 0 | AC100: 0 | AD100: 0 | AE100: 0
C101: =C$39 -> Licence fees | E101: =E$39 -> Non-controllable | F101: C | G101: $'000 | Q101: =Q39+Q55+Q71+Q87 -> 0 | R101: 0 | S101: 0 | T101: 0 | U101: 0 | V101: 0 | W101: 0 | X101: 0 | Y101: 0 | Z101: 0 | AA101: 0 | AB101: 0 | AC101: 0 | AD101: 0 | AE101: 0
C102: - Other non-controllable operating expenditure | E102: =E$40 -> Non-controllable | F102: C | G102: $'000 | Q102: =SUM(Q40:Q43,Q56:Q59,Q72:Q75,Q88:Q91) -> 0 | R102: 0 | S102: 0 | T102: 0 | U102: 0 | V102: 0 | W102: 0 | X102: 0 | Y102: 0 | Z102: 0 | AA102: 0 | AB102: 0 | AC102: 0 | AD102: 0 | AE102: 0
C103: Total | Q103: =SUM(Q95:Q102) -> 0 | R103: 0 | S103: 0 | T103: 0 | U103: 0 | V103: 0 | W103: 0 | X103: 0 | Y103: 0 | Z103: 0 | AA103: 0 | AB103: 0 | AC103: 0 | AD103: 0 | AE103: 0
C104: check corporate = 0 | Q104: ='Opex by item'!Q42*SUM('Opex by item'!Q45:Q46,'Opex by item'!Q47:Q48)-Q98 -> 0 | R104: ='Opex by item'!R42*SUM('Opex by item'!R45:R46,'Opex by item'!R47:R48)-R98 -> 0 | S104: ='Opex by item'!S42*SUM('Opex by item'!S45:S46,'Opex by item'!S47:S48)-S98 -> 0 | T104: ='Opex by item'!T42*SUM('Opex by item'!T45:T46,'Opex by item'!T47:T48)-T98 -> 0 | U104: ='Opex by item'!U42*SUM('Opex by item'!U45:U46,'Opex by item'!U47:U48)-U98 -> 0 | V104: ='Opex by item'!V42*SUM('Opex by item'!V45:V46,'Opex by item'!V47:V48)-V98 -> 0 | W104: ='Opex by item'!W42*SUM('Opex by item'!W45:W46,'Opex by item'!W47:W48)-W98 -> 0 | X104: ='Opex by item'!X42*SUM('Opex by item'!X45:X46,'Opex by item'!X47:X48)-X98 -> 0 | Y104: ='Opex by item'!Y42*SUM('Opex by item'!Y45:Y46,'Opex by item'!Y47:Y48)-Y98 -> 0 | Z104: ='Opex by item'!Z42*SUM('Opex by item'!Z45:Z46,'Opex by item'!Z47:Z48)-Z98 -> 0 | AA104: ='Opex by item'!AA42*SUM('Opex by item'!AA45:AA46,'Opex by item'!AA47:AA48)-AA98 -> 0 | AB104: ='Opex by item'!AB42*SUM('Opex by item'!AB45:AB46,'Opex by item'!AB47:AB48)-AB98 -> 0 | AC104: ='Opex by item'!AC42*SUM('Opex by item'!AC45:AC46,'Opex by item'!AC47:AC48)-AC98 -> 0 | AD104: ='Opex by item'!AD42*SUM('Opex by item'!AD45:AD46,'Opex by item'!AD47:AD48)-AD98 -> 0 | AE104: ='Opex by item'!AE42*SUM('Opex by item'!AE45:AE46,'Opex by item'!AE47:AE48)-AE98 -> 0
C105: check total = 0 | Q105: =IF(SUM(Q95:Q102)=0,"na",'Opex by item'!Q123-Q103) -> na | R105: =IF(SUM(R95:R102)=0,"na",'Opex by item'!R123-R103) -> na | S105: =IF(SUM(S95:S102)=0,"na",'Opex by item'!S123-S103) -> na | T105: =IF(SUM(T95:T102)=0,"na",'Opex by item'!T123-T103) -> na | U105: =IF(SUM(U95:U102)=0,"na",'Opex by item'!U123-U103) -> na | V105: =IF(SUM(V95:V102)=0,"na",'Opex by item'!V123-V103) -> na | W105: =IF(SUM(W95:W102)=0,"na",'Opex by item'!W123-W103) -> na | X105: =IF(SUM(X95:X102)=0,"na",'Opex by item'!X123-X103) -> na | Y105: =IF(SUM(Y95:Y102)=0,"na",'Opex by item'!Y123-Y103) -> na | Z105: =IF(SUM(Z95:Z102)=0,"na",'Opex by item'!Z123-Z103) -> na | AA105: =IF(SUM(AA95:AA102)=0,"na",'Opex by item'!AA123-AA103) -> na | AB105: =IF(SUM(AB95:AB102)=0,"na",'Opex by item'!AB123-AB103) -> na | AC105: =IF(SUM(AC95:AC102)=0,"na",'Opex by item'!AC123-AC103) -> na | AD105: =IF(SUM(AD95:AD102)=0,"na",'Opex by item'!AD123-AD103) -> na | AE105: =IF(SUM(AE95:AE102)=0,"na",'Opex by item'!AE123-AE103) -> na
C110: EDIT CHECK - OPERATING EXPENDITURE | AG110: =AG25 -> COMMENTS TO IPART
Q111: =Q26 -> 2020-21 | R111: 2021-22 | S111: 2022-23 | T111: 2023-24 | U111: 2024-25 | V111: 2025-26 | W111: 2026-27 | X111: 2027-28 | Y111: 2028-29 | Z111: 2029-30 | AA111: 2030-31 | AB111: 2031-32 | AC111: 2032-33 | AD111: 2033-34 | AE111: 2034-35 | AG111: =AG26 -> 2023
Q112: =Q27 -> Actual | R112: Actual | S112: Actual | T112: Forecast | U112: Forecast | V112: Forecast | W112: Forecast | X112: Forecast | Y112: Forecast | Z112: Forecast | AA112: Forecast | AB112: Forecast | AC112: Forecast | AD112: Forecast | AE112: Forecast | AG112: =AG27 -> 0
C114: Total opex of regulated business activities by function | F114: C | G114: =G$32 -> $'000 | Q114: =Q103 -> 0 | R114: 0 | S114: 0 | T114: 0 | U114: 0 | V114: 0 | W114: 0 | X114: 0 | Y114: 0 | Z114: 0
C115: Total opex of regulated business activities by item | F115: C | G115: $'000 | Q115: ='Opex by item'!Q123 -> 0 | R115: ='Opex by item'!R123 -> 0 | S115: ='Opex by item'!S123 -> 0 | T115: ='Opex by item'!T123 -> 0 | U115: ='Opex by item'!U123 -> 0 | V115: ='Opex by item'!V123 -> 0 | W115: ='Opex by item'!W123 -> 0 | X115: ='Opex by item'!X123 -> 0 | Y115: ='Opex by item'!Y123 -> 0 | Z115: ='Opex by item'!Z123 -> 0
C116: DIFFERENCE MUST BE <1.1 | F116: C | G116: $'000 | Q116: =ROUND(Q114,0)-ROUND(Q115,0) -> 0 | R116: 0 | S116: 0 | T116: 0 | U116: 0 | V116: 0 | W116: 0 | X116: 0 | Y116: 0 | Z116: 0
C117: ERROR WARNING | Q117: =IF(ABS(Q116)>1.1,"ERR",0) -> 0 | R117: 0 | S117: 0 | T117: 0 | U117: 0 | V117: 0 | W117: 0 | X117: 0 | Y117: 0 | Z117: 0
AD310: ``

Sheet Capex
B2: =Cover!B5 -> Metropolitan Water Agency | G2: =Cover!E5 -> Abusiness
B3: Section 4a | G3: Capital expenditure and cash capital contributions - capex that enters the RAB as incurred
B4: =MID(CELL("filename",A4),FIND("]",CELL("filename",A4))+1,255) -> Capex | G4: Exclude discreet major projects that enter the RAB once commissioned (e.g. a desalination plant). Enter capex for these major projects on the next worksheet
B6: ='Non-financial'!$B$7 -> Colour coding located on Cover sheet
B7: ='Non-financial'!$B$8 -> Leave cells blank if no information exists - PLEASE DO NOT ENTER TEXT unless specifically requested to do so.
B8: ='Non-financial'!$B$9 -> We require forecasts only for purposes of a price review, when we also require the business to provide SIR information. (In other years we will hide the forecast columns.)
B10: NOTES:
B11: (i) | C11: Report capex as incurred, but exclude capex for discreet major projects which enter the RAB only once commissioned. (Capex for discreet major projects is entered in next worksheet).
B12: (ii) | C12: Include capitalised opex.
B13: (iii) | C13: ="Don’t adjust capex values for cash capital contributions. Cash capital contributions should be identified in "&LEFT(C128,9)&" to allow us to make any adjustments." -> Don’t adjust capex values for cash capital contributions. Cash capital contributions should be identified in Table 4.3 to allow us to make any adjustments.
B14: (iv) | C14: Include capex and cash capital contributions for discretionary projects as defined under the 2020 determination in Tables 4.1 to 4.3.
B15: (v) | C15: ="Include capex and cash capital contributions for efficiency projects that generate non-regulatory revenue. (See '"&'Opex by item'!$B$4&"', row"&ROW('Opex by item'!C16)&".)" -> Include capex and cash capital contributions for efficiency projects that generate non-regulatory revenue. (See 'Opex by item', row16.)
B16: (vi) | C16: The drivers are consistent with those used by the Victorian Essential Services Commission (ESC). Guidance on what to include in each of the categories is provided below.
C17: - Growth: capital expenditure associated with increasing the capacity of assets or construction of new assets, to meet growth in demand or to provide additional security of supply should be included in growth.
C18: - Renewal of existing infrastructure: capital expenditure associated with replacing assets and generally maintaining service levels should be included in Renewal of existing infrastructure.
C19: - Improvements: capital expenditure associated with improving service levels and reliability to meet customer preferences should be included in improvements.
C20: - Compliance: capital expenditure associated with meeting regulatory or legislative obligations should be included in compliance. This includes capital expenditure associated with a change in regulatory
C21: or legislative obligations (as identified in a Water Price Determination) implemented during the current Determination period.
B22: For reference:
C23: ESC Water Price Review 2018 (go to Resources tab then find a model)
C24: ESC Regulatory Accounting Code for Victorian Water Businesses, October 2009
C28: Table 4.1 - Corporate capital expenditure | AG28: ='Non-financial'!$AG$17 -> COMMENTS TO IPART
C29: ='Non-financial'!C$18 -> Financial year | D29: OPTIONAL FIELDS | J29: ='Non-financial'!J$18 -> 2013-14 | K29: ='Non-financial'!K$18 -> 2014-15 | L29: ='Non-financial'!L$18 -> 2015-16 | M29: ='Non-financial'!M$18 -> 2016-17 | N29: ='Non-financial'!N$18 -> 2017-18 | O29: ='Non-financial'!O$18 -> 2018-19 | P29: ='Non-financial'!P$18 -> 2019-20 | Q29: ='Non-financial'!Q$18 -> 2020-21 | R29: ='Non-financial'!R$18 -> 2021-22 | S29: ='Non-financial'!S$18 -> 2022-23 | T29: ='Non-financial'!T$18 -> 2023-24 | U29: ='Non-financial'!U$18 -> 2024-25 | V29: ='Non-financial'!V$18 -> 2025-26 | W29: ='Non-financial'!W$18 -> 2026-27 | X29: ='Non-financial'!X$18 -> 2027-28 | Y29: ='Non-financial'!Y$18 -> 2028-29 | Z29: ='Non-financial'!Z$18 -> 2029-30 | AA29: ='Non-financial'!AA$18 -> 2030-31 | AB29: ='Non-financial'!AB$18 -> 2031-32 | AC29: ='Non-financial'!AC$18 -> 2032-33 | AD29: ='Non-financial'!AD$18 -> 2033-34 | AE29: ='Non-financial'!AE$18 -> 2034-35 | AG29: ='Non-financial'!$AG$18 -> 2023
D30: ='Non-financial'!D$19 -> Code | E30: ='Non-financial'!E$19 -> 0 | F30: ='Non-financial'!F$19 -> I/C | G30: ='Non-financial'!G$19 -> Unit | J30: ='Non-financial'!J$19 -> Actual | K30: ='Non-financial'!K$19 -> Actual | L30: ='Non-financial'!L$19 -> Actual | M30: ='Non-financial'!M$19 -> Actual | N30: ='Non-financial'!N$19 -> Actual | O30: ='Non-financial'!O$19 -> Actual | P30: ='Non-financial'!P$19 -> Actual | Q30: ='Non-financial'!Q$19 -> Actual | R30: ='Non-financial'!R$19 -> Actual | S30: ='Non-financial'!S$19 -> Actual | T30: ='Non-financial'!T$19 -> Forecast | U30: ='Non-financial'!U$19 -> Forecast | V30: ='Non-financial'!V$19 -> Forecast | W30: ='Non-financial'!W$19 -> Forecast | X30: ='Non-financial'!X$19 -> Forecast | Y30: ='Non-financial'!Y$19 -> Forecast | Z30: ='Non-financial'!Z$19 -> Forecast | AA30: ='Non-financial'!AA$19 -> Forecast | AB30: ='Non-financial'!AB$19 -> Forecast | AC30: ='Non-financial'!AC$19 -> Forecast | AD30: ='Non-financial'!AD$19 -> Forecast | AE30: ='Non-financial'!AE$19 -> Forecast
C31: ='Opex by item'!C$26 -> Inflation rate for application to costs (CPI) | J31: ='Opex by item'!J$26 -> 0.03 | K31: ='Opex by item'!K$26 -> 0.015 | L31: ='Opex by item'!L$26 -> 0.01 | M31: ='Opex by item'!M$26 -> 0.019 | N31: ='Opex by item'!N$26 -> 0.021 | O31: ='Opex by item'!O$26 -> 0.022 | P31: ='Opex by item'!P$26 -> -0.003 | Q31: ='Opex by item'!Q$26 -> 0.038 | R31: ='Opex by item'!R$26 -> 0.061 | S31: ='Opex by item'!S$26 -> 0 | T31: ='Opex by item'!T$26 -> 0 | U31: ='Opex by item'!U$26 -> 0 | V31: ='Opex by item'!V$26 -> 0 | W31: ='Opex by item'!W$26 -> 0 | X31: ='Opex by item'!X$26 -> 0 | Y31: ='Opex by item'!Y$26 -> 0 | Z31: ='Opex by item'!Z$26 -> 0 | AA31: ='Opex by item'!AA$26 -> 0 | AB31: ='Opex by item'!AB$26 -> 0 | AC31: ='Opex by item'!AC$26 -> 0 | AD31: ='Opex by item'!AD$26 -> 0 | AE31: ='Opex by item'!AE$26 -> 0
C34: Corporate capex by RAB category
C35: Depreciable assets | F35: I | G35: =Cover!$K$6 -> $'000
C36: Non-depreciable assets | F36: I | G36: =$G$35 -> $'000
C37: Total Corporate | F37: C | G37: $'000 | J37: =SUM(J35:J36) -> 0 | K37: 0 | L37: 0 | M37: 0 | N37: 0 | O37: 0 | P37: 0 | Q37: =SUM(Q35:Q36) -> 0 | R37: =SUM(R35:R36) -> 0 | S37: 0 | T37: 0 | U37: 0 | V37: 0 | W37: 0 | X37: 0 | Y37: 0 | Z37: =SUM(Z35:Z36) -> 0 | AA37: =SUM(AA35:AA36) -> 0 | AB37: =SUM(AB35:AB36) -> 0 | AC37: =SUM(AC35:AC36) -> 0 | AD37: =SUM(AD35:AD36) -> 0 | AE37: =SUM(AE35:AE36) -> 0
C39: Corporate capex by driver
C40: Renewals | F40: I | G40: =$G$35 -> $'000
C41: Growth | F41: I | G41: =$G$35 -> $'000
C42: Improvements/compliance | F42: I | G42: =$G$35 -> $'000
C43: Total | F43: C | G43: =$G$35 -> $'000 | Q43: =SUM(Q40:Q42) -> 0 | R43: =SUM(R40:R42) -> 0 | S43: 0 | T43: 0 | U43: 0 | V43: 0 | W43: 0 | X43: 0 | Y43: 0 | Z43: 0 | AA43: 0 | AB43: 0 | AC43: 0 | AD43: 0 | AE43: 0
C44: check = 0 | Q44: =SUM(Q40:Q42)-Q37 -> 0 | R44: =SUM(R40:R42)-R37 -> 0 | S44: 0 | T44: 0 | U44: 0 | V44: 0 | W44: 0 | X44: 0 | Y44: 0 | Z44: 0 | AA44: 0 | AB44: 0 | AC44: 0 | AD44: 0 | AE44: 0
C46: Allocation of corporate RAB to:
C47: - water (excluding recycled water) | F47: I | G47: %
C48: - recycled water - Section 16A related | F48: I | G48: %
C49: - wastewater | F49: I | G49: %
C50: - stormwater | F50: I | G50: %
C51: - non-regulated and unregulated businesses (including all other recycled water) | F51: C | G51: % | J51: =IF(SUM(J47:J50)<>0,1-SUM(J47:J50),0) -> 0 | K51: 0 | L51: 0 | M51: 0 | N51: 0 | O51: 0 | P51: 0 | Q51: 0 | R51: 0 | S51: 0 | T51: 0 | U51: 0 | V51: 0 | W51: 0 | X51: 0 | Y51: 0 | Z51: 0 | AA51: 0 | AB51: 0 | AC51: =IF(SUM(AC47:AC50)<>0,1-SUM(AC47:AC50),0) -> 0 | AD51: 0 | AE51: 0
C55: Table 4.2 - Capital expenditure of regulated water, wastewater and stormwater business activities (excluding avoided cost claims for recycled water, including actual contingent capex incurred) | AG55: =AG$28 -> COMMENTS TO IPART
C56: =C$29 -> Financial year | D56: OPTIONAL FIELDS | J56: =J$29 -> 2013-14 | K56: 2014-15 | L56: 2015-16 | M56: 2016-17 | N56: 2017-18 | O56: 2018-19 | P56: 2019-20 | Q56: 2020-21 | R56: 2021-22 | S56: 2022-23 | T56: 2023-24 | U56: 2024-25 | V56: 2025-26 | W56: 2026-27 | X56: 2027-28 | Y56: 2028-29 | Z56: 2029-30 | AA56: 2030-31 | AB56: 2031-32 | AC56: 2032-33 | AD56: 2033-34 | AE56: 2034-35 | AG56: 2023
D57: =D$30 -> Code | E57: 0 | F57: I/C | G57: Unit | J57: =J$30 -> Actual | K57: Actual | L57: Actual | M57: Actual | N57: Actual | O57: Actual | P57: Actual | Q57: Actual | R57: Actual | S57: Actual | T57: Forecast | U57: Forecast | V57: Forecast | W57: Forecast | X57: Forecast | Y57: Forecast | Z57: Forecast | AA57: Forecast | AB57: Forecast | AC57: Forecast | AD57: Forecast | AE57: Forecast
Q59: Including ''discretionary' expenditure under 2020 determination
C60: Water (excluding recycled water) | S60: Sydney Water and Hunter Water only
C61: Capex by RAB category
C62: =C$35 -> Depreciable assets | F62: I | G62: =$G$35 -> $'000
C63: =C$36 -> Non-depreciable assets | F63: I | G63: =$G$35 -> $'000
C64: ="Total "&C60 -> Total Water (excluding recycled water) | F64: C | G64: =$G$35 -> $'000 | J64: =SUM(J62:J63) -> 0 | K64: =SUM(K62:K63) -> 0 | L64: =SUM(L62:L63) -> 0 | M64: =SUM(M62:M63) -> 0 | N64: =SUM(N62:N63) -> 0 | O64: =SUM(O62:O63) -> 0 | P64: =SUM(P62:P63) -> 0 | Q64: =SUM(Q62:Q63) -> 0 | R64: =SUM(R62:R63) -> 0 | S64: =SUM(S62:S63) -> 0 | T64: =SUM(T62:T63) -> 0 | U64: =SUM(U62:U63) -> 0 | V64: =SUM(V62:V63) -> 0 | W64: =SUM(W62:W63) -> 0 | X64: 0 | Y64: 0 | Z64: 0 | AA64: 0 | AB64: 0 | AC64: 0 | AD64: 0 | AE64: 0
C66: Capex by driver
C67: =C$40 -> Renewals | F67: I | G67: =$G$35 -> $'000
C68: =C$41 -> Growth | F68: I | G68: =$G$35 -> $'000
C69: =C$42 -> Improvements/compliance | F69: I | G69: =$G$35 -> $'000
C70: =C64 -> Total Water (excluding recycled water) | F70: C | G70: =$G$35 -> $'000 | Q70: =SUM(Q67:Q69) -> 0 | R70: =SUM(R67:R69) -> 0 | S70: 0 | T70: 0 | U70: 0 | V70: 0 | W70: 0 | X70: 0 | Y70: 0 | Z70: 0 | AA70: 0 | AB70: 0 | AC70: 0 | AD70: 0 | AE70: 0
C71: check = 0 | Q71: =SUM(Q67:Q69)-Q64 -> 0 | R71: =SUM(R67:R69)-R64 -> 0 | S71: 0 | T71: 0 | U71: 0 | V71: 0 | W71: 0 | X71: 0 | Y71: 0 | Z71: 0 | AA71: 0 | AB71: 0 | AC71: 0 | AD71: 0 | AE71: 0
C73: Recycled water - Section 16A related
C74: =C$61 -> Capex by RAB category
C75: =C$35 -> Depreciable assets | F75: I | G75: =$G$35 -> $'000
C76: =C$36 -> Non-depreciable assets | F76: I | G76: =$G$35 -> $'000
C77: ="Total "&C73 -> Total Recycled water - Section 16A related | F77: C | G77: =$G$35 -> $'000 | J77: =SUM(J75:J76) -> 0 | K77: =SUM(K75:K76) -> 0 | L77: =SUM(L75:L76) -> 0 | M77: =SUM(M75:M76) -> 0 | N77: =SUM(N75:N76) -> 0 | O77: =SUM(O75:O76) -> 0 | P77: =SUM(P75:P76) -> 0 | Q77: =SUM(Q75:Q76) -> 0 | R77: =SUM(R75:R76) -> 0 | S77: =SUM(S75:S76) -> 0 | T77: =SUM(T75:T76) -> 0 | U77: =SUM(U75:U76) -> 0 | V77: =SUM(V75:V76) -> 0 | W77: =SUM(W75:W76) -> 0 | X77: 0 | Y77: 0 | Z77: 0 | AA77: 0 | AB77: 0 | AC77: 0 | AD77: 0 | AE77: 0
C79: =C$66 -> Capex by driver
C80: =C$40 -> Renewals | F80: I | G80: =$G$35 -> $'000
C81: =C$41 -> Growth | F81: I | G81: =$G$35 -> $'000
C82: =C$42 -> Improvements/compliance | F82: I | G82: =$G$35 -> $'000
C83: =C77 -> Total Recycled water - Section 16A related | F83: C | G83: =$G$35 -> $'000 | Q83: =SUM(Q80:Q82) -> 0 | R83: =SUM(R80:R82) -> 0 | S83: 0 | T83: 0 | U83: 0 | V83: 0 | W83: 0 | X83: 0 | Y83: 0 | Z83: 0 | AA83: 0 | AB83: 0 | AC83: 0 | AD83: 0 | AE83: 0
C84: check = 0 | Q84: =SUM(Q80:Q82)-Q77 -> 0 | R84: =SUM(R80:R82)-R77 -> 0 | S84: 0 | T84: 0 | U84: 0 | V84: 0 | W84: 0 | X84: 0 | Y84: 0 | Z84: 0 | AA84: 0 | AB84: 0 | AC84: 0 | AD84: 0 | AE84: 0
C86: Wastewater
C87: =C$61 -> Capex by RAB category
C88: =C$35 -> Depreciable assets | F88: I | G88: =$G$35 -> $'000
C89: =C$36 -> Non-depreciable assets | F89: I | G89: =$G$35 -> $'000
C90: ="Total "&C86 -> Total Wastewater | F90: C | G90: =$G$35 -> $'000 | J90: =SUM(J88:J89) -> 0 | K90: =SUM(K88:K89) -> 0 | L90: =SUM(L88:L89) -> 0 | M90: =SUM(M88:M89) -> 0 | N90: =SUM(N88:N89) -> 0 | O90: =SUM(O88:O89) -> 0 | P90: =SUM(P88:P89) -> 0 | Q90: =SUM(Q88:Q89) -> 0 | R90: =SUM(R88:R89) -> 0 | S90: =SUM(S88:S89) -> 0 | T90: =SUM(T88:T89) -> 0 | U90: =SUM(U88:U89) -> 0 | V90: =SUM(V88:V89) -> 0 | W90: =SUM(W88:W89) -> 0 | X90: 0 | Y90: 0 | Z90: 0 | AA90: 0 | AB90: 0 | AC90: 0 | AD90: 0 | AE90: 0
C92: =C$66 -> Capex by driver
C93: =C$40 -> Renewals | F93: I | G93: =$G$35 -> $'000
C94: =C$41 -> Growth | F94: I | G94: =$G$35 -> $'000
C95: =C$42 -> Improvements/compliance | F95: I | G95: =$G$35 -> $'000
C96: =C90 -> Total Wastewater | F96: C | G96: =$G$35 -> $'000 | Q96: =SUM(Q93:Q95) -> 0 | R96: =SUM(R93:R95) -> 0 | S96: 0 | T96: 0 | U96: 0 | V96: 0 | W96: 0 | X96: 0 | Y96: 0 | Z96: 0 | AA96: 0 | AB96: 0 | AC96: 0 | AD96: 0 | AE96: 0
C97: check = 0 | Q97: =SUM(Q93:Q95)-Q90 -> 0 | R97: =SUM(R93:R95)-R90 -> 0 | S97: 0 | T97: 0 | U97: 0 | V97: 0 | W97: 0 | X97: 0 | Y97: 0 | Z97: 0 | AA97: 0 | AB97: 0 | AC97: 0 | AD97: 0 | AE97: 0
C99: Stormwater
C100: =C$61 -> Capex by RAB category
C101: =C$35 -> Depreciable assets | F101: I | G101: =$G$35 -> $'000
C102: =C$36 -> Non-depreciable assets | F102: I | G102: =$G$35 -> $'000
C103: ="Total "&C99 -> Total Stormwater | F103: C | G103: =$G$35 -> $'000 | J103: =SUM(J101:J102) -> 0 | K103: =SUM(K101:K102) -> 0 | L103: =SUM(L101:L102) -> 0 | M103: =SUM(M101:M102) -> 0 | N103: =SUM(N101:N102) -> 0 | O103: =SUM(O101:O102) -> 0 | P103: =SUM(P101:P102) -> 0 | Q103: =SUM(Q101:Q102) -> 0 | R103: =SUM(R101:R102) -> 0 | S103: =SUM(S101:S102) -> 0 | T103: =SUM(T101:T102) -> 0 | U103: =SUM(U101:U102) -> 0 | V103: =SUM(V101:V102) -> 0 | W103: =SUM(W101:W102) -> 0 | X103: 0 | Y103: 0 | Z103: 0 | AA103: 0 | AB103: 0 | AC103: 0 | AD103: 0 | AE103: 0
C105: =C$66 -> Capex by driver
C106: =C$40 -> Renewals | F106: I | G106: =$G$35 -> $'000
C107: =C$41 -> Growth | F107: I | G107: =$G$35 -> $'000
C108: =C$42 -> Improvements/compliance | F108: I | G108: =$G$35 -> $'000
C109: =C103 -> Total Stormwater | F109: C | G109: =$G$35 -> $'000 | Q109: =SUM(Q106:Q108) -> 0 | R109: =SUM(R106:R108) -> 0 | S109: 0 | T109: 0 | U109: 0 | V109: 0 | W109: 0 | X109: 0 | Y109: 0 | Z109: 0 | AA109: 0 | AB109: 0 | AC109: 0 | AD109: 0 | AE109: 0
C110: check = 0 | Q110: =SUM(Q106:Q108)-Q103 -> 0 | R110: =SUM(R106:R108)-R103 -> 0 | S110: 0 | T110: 0 | U110: 0 | V110: 0 | W110: 0 | X110: 0 | Y110: 0 | Z110: 0 | AA110: 0 | AB110: 0 | AC110: 0 | AD110: 0 | AE110: 0
C112: Total capital expenditure (excluding Corporate) | F112: C | G112: =$G$35 -> $'000 | L112: =L64+L77+L90+L103 -> 0 | M112: 0 | N112: 0 | O112: 0 | P112: 0 | Q112: 0 | R112: 0 | S112: 0 | T112: 0 | U112: 0 | V112: 0 | W112: 0 | X112: 0 | Y112: 0 | Z112: 0 | AA112: 0 | AB112: 0 | AC112: 0 | AD112: 0 | AE112: 0
C113: Total capital expenditure (including Corporate) | F113: C | G113: $'000 | L113: =L37+L112 -> 0 | M113: 0 | N113: 0 | O113: 0 | P113: 0 | Q113: 0 | R113: 0 | S113: 0 | T113: 0 | U113: 0 | V113: 0 | W113: 0 | X113: 0 | Y113: 0 | Z113: 0 | AA113: 0 | AB113: 0 | AC113: 0 | AD113: 0 | AE113: 0
C115: Total capital expenditure by driver (including Corporate)
C116: =C$40 -> Renewals | F116: C | G116: =$G$35 -> $'000 | Q116: =Q40+Q67+Q80+Q93+Q106 -> 0 | R116: 0 | S116: 0 | T116: 0 | U116: 0 | V116: 0 | W116: 0 | X116: 0 | Y116: 0 | Z116: 0 | AA116: 0 | AB116: 0 | AC116: 0 | AD116: 0 | AE116: 0
C117: =C$41 -> Growth | F117: C | G117: =$G$35 -> $'000 | Q117: =Q41+Q68+Q81+Q94+Q107 -> 0 | R117: 0 | S117: 0 | T117: 0 | U117: 0 | V117: 0 | W117: 0 | X117: 0 | Y117: 0 | Z117: 0 | AA117: 0 | AB117: 0 | AC117: 0 | AD117: 0 | AE117: 0
C118: =C$42 -> Improvements/compliance | F118: C | G118: =$G$35 -> $'000 | Q118: =Q42+Q69+Q82+Q95+Q108 -> 0 | R118: 0 | S118: 0 | T118: 0 | U118: 0 | V118: 0 | W118: 0 | X118: 0 | Y118: 0 | Z118: 0 | AA118: 0 | AB118: 0 | AC118: 0 | AD118: 0 | AE118: 0
C119: Total | F119: C | G119: $'000 | Q119: =Q43+Q70+Q83+Q96+Q109 -> 0 | R119: 0 | S119: 0 | T119: 0 | U119: 0 | V119: 0 | W119: 0 | X119: 0 | Y119: 0 | Z119: 0 | AA119: 0 | AB119: 0 | AC119: 0 | AD119: 0 | AE119: 0
C120: check = 0 | Q120: =Q119-SUM(Q116:Q118) -> 0 | R120: 0 | S120: 0 | T120: 0 | U120: =U119-SUM(U116:U118) -> 0 | V120: 0 | W120: 0 | X120: 0 | Y120: 0 | Z120: 0 | AA120: 0 | AB120: 0 | AC120: 0 | AD120: 0 | AE120: 0
C122: Rouse Hill stormwater capex for land drainage charge (i.e. capex not included in stormwater RAB, Sydney Water only)
C123: =C$35 -> Depreciable assets | F123: I | G123: =$G$35 -> $'000
C124: =C$36 -> Non-depreciable assets | F124: I | G124: =$G$35 -> $'000
C128: Table 4.3 - Cash capital contributions for regulated water, wastewater and stormwater business activities | AG128: =AG$28 -> COMMENTS TO IPART
C129: =C$29 -> Financial year | D129: OPTIONAL FIELDS | J129: =J$29 -> 2013-14 | K129: 2014-15 | L129: 2015-16 | M129: 2016-17 | N129: 2017-18 | O129: 2018-19 | P129: 2019-20 | Q129: 2020-21 | R129: 2021-22 | S129: 2022-23 | T129: 2023-24 | U129: 2024-25 | V129: 2025-26 | W129: 2026-27 | X129: 2027-28 | Y129: 2028-29 | Z129: 2029-30 | AA129: 2030-31 | AB129: 2031-32 | AC129: 2032-33 | AD129: 2033-34 | AE129: 2034-35 | AG129: 2023
D130: =D$30 -> Code | F130: I/C | G130: Unit | J130: =J$30 -> Actual | K130: Actual | L130: Actual | M130: Actual | N130: Actual | O130: Actual | P130: Actual | Q130: Actual | R130: Actual | S130: Actual | T130: Forecast | U130: Forecast | V130: Forecast | W130: Forecast | X130: Forecast | Y130: Forecast | Z130: Forecast | AA130: Forecast | AB130: Forecast | AC130: Forecast | AD130: Forecast | AE130: Forecast
Q132: Including contributions for ''discretionary' projects under the 2020 determination
C133: Corporate | S133: Sydney Water and Hunter Water only
C134: Capital contributions by RAB category
C135: =C$35 -> Depreciable assets | F135: I | G135: =$G$35 -> $'000
C136: =C$36 -> Non-depreciable assets | F136: I | G136: $'000
C137: ="Total "&C133 -> Total Corporate | F137: C | G137: =$G$35 -> $'000 | J137: =SUM(J135:J136) -> 0 | K137: =SUM(K135:K136) -> 0 | L137: 0 | M137: 0 | N137: 0 | O137: 0 | P137: 0 | Q137: =SUM(Q135:Q136) -> 0 | R137: =SUM(R135:R136) -> 0 | S137: 0 | T137: 0 | U137: 0 | V137: 0 | W137: 0 | X137: 0 | Y137: 0 | Z137: 0 | AA137: 0 | AB137: 0 | AC137: 0 | AD137: 0 | AE137: 0
C139: Capital contributions by driver
C140: =C$40 -> Renewals | F140: I | G140: =$G$35 -> $'000
C141: =C$41 -> Growth | F141: I | G141: =$G$35 -> $'000
C142: =C$42 -> Improvements/compliance | F142: I | G142: =$G$35 -> $'000
C143: =C137 -> Total Corporate | F143: C | G143: =$G$35 -> $'000 | Q143: =SUM(Q140:Q142) -> 0 | R143: =SUM(R140:R142) -> 0 | S143: 0 | T143: 0 | U143: 0 | V143: 0 | W143: 0 | X143: 0 | Y143: 0 | Z143: =SUM(Z140:Z142) -> 0 | AA143: 0 | AB143: 0 | AC143: 0 | AD143: 0 | AE143: 0
C144: check = 0 | Q144: =SUM(Q140:Q142)-Q137 -> 0 | R144: =SUM(R140:R142)-R137 -> 0 | S144: 0 | T144: 0 | U144: 0 | V144: 0 | W144: 0 | X144: 0 | Y144: 0 | Z144: =SUM(Z140:Z142)-Z137 -> 0 | AA144: 0 | AB144: 0 | AC144: 0 | AD144: 0 | AE144: 0
C146: Water (excluding recycled water)
C147: =C134 -> Capital contributions by RAB category
C148: =C$135 -> Depreciable assets | F148: I | G148: =$G$35 -> $'000
C149: =C$136 -> Non-depreciable assets | F149: I | G149: $'000
C150: ="Total "&C146 -> Total Water (excluding recycled water) | F150: C | G150: =$G$35 -> $'000 | J150: =SUM(J148:J149) -> 0 | K150: =SUM(K148:K149) -> 0 | L150: =SUM(L148:L149) -> 0 | M150: =SUM(M148:M149) -> 0 | N150: =SUM(N148:N149) -> 0 | O150: =SUM(O148:O149) -> 0 | P150: =SUM(P148:P149) -> 0 | Q150: =SUM(Q148:Q149) -> 0 | R150: =SUM(R148:R149) -> 0 | S150: =SUM(S148:S149) -> 0 | T150: =SUM(T148:T149) -> 0 | U150: =SUM(U148:U149) -> 0 | V150: =SUM(V148:V149) -> 0 | W150: =SUM(W148:W149) -> 0 | X150: =SUM(X148:X149) -> 0 | Y150: =SUM(Y148:Y149) -> 0 | Z150: =SUM(Z148:Z149) -> 0 | AA150: =SUM(AA148:AA149) -> 0 | AB150: =SUM(AB148:AB149) -> 0 | AC150: =SUM(AC148:AC149) -> 0 | AD150: =SUM(AD148:AD149) -> 0 | AE150: =SUM(AE148:AE149) -> 0
C151: =C126 -> 0
C152: =C$139 -> Capital contributions by driver
C153: =C$140 -> Renewals | F153: I | G153: =$G$35 -> $'000
C154: =C$141 -> Growth | F154: I | G154: =$G$35 -> $'000
C155: =C142 -> Improvements/compliance | F155: I | G155: =$G$35 -> $'000
C156: =C150 -> Total Water (excluding recycled water) | F156: C | G156: =$G$35 -> $'000 | Q156: =SUM(Q153:Q155) -> 0 | R156: =SUM(R153:R155) -> 0 | S156: =SUM(S153:S155) -> 0 | T156: =SUM(T153:T155) -> 0 | U156: =SUM(U153:U155) -> 0 | V156: =SUM(V153:V155) -> 0 | W156: =SUM(W153:W155) -> 0 | X156: =SUM(X153:X155) -> 0 | Y156: =SUM(Y153:Y155) -> 0 | Z156: 0 | AA156: 0 | AB156: 0 | AC156: 0 | AD156: 0 | AE156: 0
C157: check = 0 | Q157: =SUM(Q153:Q155)-Q150 -> 0 | R157: =SUM(R153:R155)-R150 -> 0 | S157: 0 | T157: 0 | U157: 0 | V157: 0 | W157: 0 | X157: 0 | Y157: 0 | Z157: =SUM(Z153:Z155)-Z150 -> 0 | AA157: 0 | AB157: 0 | AC157: 0 | AD157: 0 | AE157: 0
C159: Recycled water - Section 16A related
C160: =C147 -> Capital contributions by RAB category
C161: =C$135 -> Depreciable assets | F161: I | G161: =$G$35 -> $'000
C162: =C$136 -> Non-depreciable assets | F162: I | G162: $'000
C163: ="Total "&C159 -> Total Recycled water - Section 16A related | F163: C | G163: =$G$35 -> $'000 | J163: =SUM(J161:J162) -> 0 | K163: =SUM(K161:K162) -> 0 | L163: =SUM(L161:L162) -> 0 | M163: =SUM(M161:M162) -> 0 | N163: =SUM(N161:N162) -> 0 | O163: =SUM(O161:O162) -> 0 | P163: =SUM(P161:P162) -> 0 | Q163: =SUM(Q161:Q162) -> 0 | R163: =SUM(R161:R162) -> 0 | S163: =SUM(S161:S162) -> 0 | T163: =SUM(T161:T162) -> 0 | U163: =SUM(U161:U162) -> 0 | V163: =SUM(V161:V162) -> 0 | W163: =SUM(W161:W162) -> 0 | X163: =SUM(X161:X162) -> 0 | Y163: =SUM(Y161:Y162) -> 0 | Z163: =SUM(Z161:Z162) -> 0 | AA163: =SUM(AA161:AA162) -> 0 | AB163: =SUM(AB161:AB162) -> 0 | AC163: =SUM(AC161:AC162) -> 0 | AD163: =SUM(AD161:AD162) -> 0 | AE163: =SUM(AE161:AE162) -> 0
C165: =C$139 -> Capital contributions by driver
C166: =C$140 -> Renewals | F166: I | G166: =$G$35 -> $'000
C167: =C$141 -> Growth | F167: I | G167: =$G$35 -> $'000
C168: =C$42 -> Improvements/compliance | F168: I | G168: =$G$35 -> $'000
C169: =C156 -> Total Water (excluding recycled water) | F169: C | G169: =$G$35 -> $'000 | Q169: =SUM(Q166:Q168) -> 0 | R169: 0 | S169: 0 | T169: 0 | U169: =SUM(U166:U168) -> 0 | V169: 0 | W169: =SUM(W166:W168) -> 0 | X169: =SUM(X166:X168) -> 0 | Y169: =SUM(Y166:Y168) -> 0 | AA169: =SUM(AA166:AA168) -> 0 | AB169: =SUM(AB166:AB168) -> 0 | AC169: =SUM(AC166:AC168) -> 0 | AD169: =SUM(AD166:AD168) -> 0 | AE169: =SUM(AE166:AE168) -> 0
C170: check = 0 | Q170: =SUM(Q166:Q168)-Q163 -> 0 | R170: 0 | S170: 0 | T170: 0 | U170: =SUM(U166:U168)-U163 -> 0 | V170: =SUM(V166:V168)-V163 -> 0 | W170: 0 | X170: 0 | Y170: 0 | Z170: 0 | AA170: 0 | AB170: 0 | AC170: 0 | AD170: 0 | AE170: 0
C172: Wastewater
C173: =C160 -> Capital contributions by RAB category
C174: =C$135 -> Depreciable assets | F174: I | G174: =$G$36 -> $'000
C175: =C$136 -> Non-depreciable assets | F175: I | G175: =$G$36 -> $'000
C176: ="Total "&C172 -> Total Wastewater | F176: C | G176: =$G$35 -> $'000 | J176: =SUM(J174:J175) -> 0 | K176: =SUM(K174:K175) -> 0 | L176: =SUM(L174:L175) -> 0 | M176: =SUM(M174:M175) -> 0 | N176: =SUM(N174:N175) -> 0 | O176: =SUM(O174:O175) -> 0 | P176: =SUM(P174:P175) -> 0 | Q176: =SUM(Q174:Q175) -> 0 | R176: =SUM(R174:R175) -> 0 | S176: =SUM(S174:S175) -> 0 | T176: =SUM(T174:T175) -> 0 | U176: =SUM(U174:U175) -> 0 | V176: =SUM(V174:V175) -> 0 | W176: =SUM(W174:W175) -> 0 | X176: =SUM(X174:X175) -> 0 | Y176: =SUM(Y174:Y175) -> 0 | Z176: =SUM(Z174:Z175) -> 0 | AA176: =SUM(AA174:AA175) -> 0 | AB176: =SUM(AB174:AB175) -> 0 | AC176: =SUM(AC174:AC175) -> 0 | AD176: =SUM(AD174:AD175) -> 0 | AE176: =SUM(AE174:AE175) -> 0
C178: =C$139 -> Capital contributions by driver
C179: =C$140 -> Renewals | F179: I | G179: =$G$35 -> $'000
C180: =C$141 -> Growth | F180: I | G180: =$G$35 -> $'000
C181: =C$42 -> Improvements/compliance | F181: I | G181: =$G$35 -> $'000
C182: =C176 -> Total Wastewater | F182: C | G182: =$G$35 -> $'000 | Q182: =SUM(Q179:Q181) -> 0 | R182: =SUM(R179:R181) -> 0 | S182: 0 | T182: 0 | U182: 0 | V182: 0 | W182: 0 | X182: 0 | Y182: 0 | Z182: 0 | AA182: 0 | AB182: 0 | AC182: 0 | AD182: 0 | AE182: 0
C183: check = 0 | Q183: =SUM(Q179:Q181)-Q176 -> 0 | R183: 0 | S183: 0 | T183: 0 | U183: 0 | V183: 0 | W183: 0 | X183: 0 | Y183: 0 | Z183: 0 | AA183: 0 | AB183: 0 | AC183: 0 | AD183: 0 | AE183: 0
C185: Stormwater
C186: =C173 -> Capital contributions by RAB category
C187: =C$135 -> Depreciable assets | F187: I | G187: =$G$36 -> $'000
C188: =C$136 -> Non-depreciable assets | F188: I | G188: =$G$36 -> $'000
C189: ="Total "&C185 -> Total Stormwater | F189: C | G189: =$G$35 -> $'000 | J189: =SUM(J187:J188) -> 0 | K189: =SUM(K187:K188) -> 0 | L189: =SUM(L187:L188) -> 0 | M189: =SUM(M187:M188) -> 0 | N189: =SUM(N187:N188) -> 0 | O189: =SUM(O187:O188) -> 0 | P189: =SUM(P187:P188) -> 0 | Q189: =SUM(Q187:Q188) -> 0 | R189: =SUM(R187:R188) -> 0 | S189: =SUM(S187:S188) -> 0 | T189: =SUM(T187:T188) -> 0 | U189: =SUM(U187:U188) -> 0 | V189: =SUM(V187:V188) -> 0 | W189: =SUM(W187:W188) -> 0 | X189: =SUM(X187:X188) -> 0 | Y189: =SUM(Y187:Y188) -> 0 | Z189: =SUM(Z187:Z188) -> 0 | AA189: =SUM(AA187:AA188) -> 0 | AB189: =SUM(AB187:AB188) -> 0 | AC189: =SUM(AC187:AC188) -> 0 | AD189: =SUM(AD187:AD188) -> 0 | AE189: =SUM(AE187:AE188) -> 0
C191: =C$139 -> Capital contributions by driver
C192: =C$140 -> Renewals | F192: I | G192: =$G$35 -> $'000
C193: =C$141 -> Growth | F193: I | G193: =$G$35 -> $'000
C194: =C$42 -> Improvements/compliance | F194: I | G194: =$G$35 -> $'000
C195: =C189 -> Total Stormwater | F195: C | G195: =$G$35 -> $'000 | Q195: =SUM(Q192:Q194) -> 0 | R195: =SUM(R192:R194) -> 0 | S195: =SUM(S192:S194) -> 0 | T195: =SUM(T192:T194) -> 0 | U195: =SUM(U192:U194) -> 0 | V195: =SUM(V192:V194) -> 0 | W195: =SUM(W192:W194) -> 0 | X195: =SUM(X192:X194) -> 0 | Y195: =SUM(Y192:Y194) -> 0 | Z195: 0 | AA195: 0 | AB195: =SUM(AB192:AB194) -> 0 | AC195: =SUM(AC192:AC194) -> 0 | AD195: =SUM(AD192:AD194) -> 0 | AE195: =SUM(AE192:AE194) -> 0
C196: check = 0 | Q196: =SUM(Q192:Q194)-Q189 -> 0 | R196: =SUM(R192:R194)-R189 -> 0 | S196: 0 | T196: 0 | U196: 0 | V196: 0 | W196: 0 | X196: 0 | Y196: 0 | Z196: 0 | AA196: 0 | AB196: 0 | AC196: 0 | AD196: 0 | AE196: 0
C198: Total cash capital contributions (excluding Corporate) | F198: C | G198: =$G$35 -> $'000 | I198: =I150+I163+I176+I189 -> 0 | J198: 0 | K198: 0 | L198: =L150+L163+L176+L189 -> 0 | M198: 0 | N198: =N150+N163+N176+N189 -> 0 | O198: 0 | P198: 0 | Q198: 0 | R198: 0 | S198: 0 | T198: 0 | U198: 0 | V198: 0 | W198: 0 | X198: 0 | Y198: 0 | Z198: 0 | AA198: 0 | AB198: 0 | AC198: 0 | AD198: 0 | AE198: 0
C199: Total cash capital contributions (including Corporate) | F199: C | G199: $'000 | I199: =I137+I198 -> 0 | J199: 0 | K199: 0 | L199: =L137+L198 -> 0 | M199: =M137+M198 -> 0 | N199: =N137+N198 -> 0 | O199: 0 | P199: 0 | Q199: 0 | R199: 0 | S199: 0 | T199: 0 | U199: 0 | V199: 0 | W199: 0 | X199: 0 | Y199: 0 | Z199: 0 | AA199: 0 | AB199: 0 | AC199: 0 | AD199: 0 | AE199: 0
C201: Total cash capital contributions by driver (including Corporate)
C202: =C$40 -> Renewals | F202: C | G202: =$G$35 -> $'000 | Q202: =Q140+Q153+Q166+Q179+Q192 -> 0 | R202: 0 | S202: 0 | T202: 0 | U202: 0 | V202: 0 | W202: 0 | X202: 0 | Y202: 0 | Z202: 0 | AA202: 0 | AB202: 0 | AC202: 0 | AD202: 0 | AE202: 0
C203: =C$41 -> Growth | F203: C | G203: =$G$35 -> $'000 | Q203: =Q141+Q154+Q167+Q180+Q193 -> 0 | R203: 0 | S203: 0 | T203: 0 | U203: 0 | V203: 0 | W203: 0 | X203: 0 | Y203: 0 | Z203: 0 | AA203: 0 | AB203: 0 | AC203: 0 | AD203: 0 | AE203: 0
C204: =C$42 -> Improvements/compliance | F204: C | G204: =$G$35 -> $'000 | Q204: =Q142+Q155+Q168+Q181+Q194 -> 0 | R204: 0 | S204: 0 | T204: 0 | U204: 0 | V204: 0 | W204: 0 | X204: 0 | Y204: 0 | Z204: 0 | AA204: 0 | AB204: 0 | AC204: 0 | AD204: 0 | AE204: 0
C205: Total | F205: C | G205: $'000 | Q205: =Q143+Q156+Q169+Q182+Q195 -> 0 | R205: 0 | S205: 0 | T205: 0 | U205: 0 | V205: 0 | W205: 0 | X205: 0 | Y205: 0 | Z205: 0 | AA205: 0 | AB205: 0 | AC205: 0 | AD205: 0 | AE205: 0
C206: check = 0 | Q206: =Q205-SUM(Q202:Q204) -> 0 | R206: =R205-SUM(R202:R204) -> 0 | S206: =S205-SUM(S202:S204) -> 0 | T206: =T205-SUM(T202:T204) -> 0 | U206: =U205-SUM(U202:U204) -> 0 | V206: =V205-SUM(V202:V204) -> 0 | W206: =W205-SUM(W202:W204) -> 0 | X206: =X205-SUM(X202:X204) -> 0 | Y206: =Y205-SUM(Y202:Y204) -> 0 | Z206: =Z205-SUM(Z202:Z204) -> 0 | AA206: =AA205-SUM(AA202:AA204) -> 0 | AB206: =AB205-SUM(AB202:AB204) -> 0 | AC206: =AC205-SUM(AC202:AC204) -> 0 | AD206: =AD205-SUM(AD202:AD204) -> 0 | AE206: =AE205-SUM(AE202:AE204) -> 0
C210: Table 4.4 - Avoided cost claims for recycled water schemes | AG210: =AG$28 -> COMMENTS TO IPART
C211: =C$29 -> Financial year | D211: OPTIONAL FIELDS | J211: =J$29 -> 2013-14 | K211: 2014-15 | L211: 2015-16 | M211: 2016-17 | N211: 2017-18 | O211: 2018-19 | P211: 2019-20 | Q211: 2020-21 | R211: 2021-22 | S211: 2022-23 | T211: 2023-24 | U211: 2024-25 | V211: 2025-26 | W211: 2026-27 | X211: 2027-28 | Y211: 2028-29 | Z211: 2029-30 | AA211: 2030-31 | AB211: 2031-32 | AC211: 2032-33 | AD211: 2033-34 | AE211: 2034-35 | AG211: 2023
D212: =D$30 -> Code | F212: I/C | G212: Unit | J212: =J$30 -> Actual | K212: Actual | L212: Actual | M212: Actual | N212: Actual | O212: Actual | P212: Actual | Q212: Actual | R212: Actual | S212: Actual | T212: Forecast | U212: Forecast | V212: Forecast | W212: Forecast | X212: Forecast | Y212: Forecast | Z212: Forecast | AA212: Forecast | AB212: Forecast | AC212: Forecast | AD212: Forecast | AE212: Forecast
C215: Water (including 16A recycled water)
C216: Avoided costs by RAB category
C217: =C$35 -> Depreciable assets | F217: I | G217: =$G$35 -> $'000
C218: =C$36 -> Non-depreciable assets | F218: I | G218: =$G$35 -> $'000
C219: ="Total "&C215 -> Total Water (including 16A recycled water) | F219: C | G219: =$G$35 -> $'000 | J219: =SUM(J217:J218) -> 0 | K219: =SUM(K217:K218) -> 0 | L219: 0 | M219: 0 | N219: 0 | O219: 0 | P219: =SUM(P217:P218) -> 0 | Q219: =SUM(Q217:Q218) -> 0 | R219: =SUM(R217:R218) -> 0 | S219: 0 | T219: 0 | U219: 0 | V219: 0 | W219: 0 | X219: 0 | Y219: 0 | Z219: 0 | AA219: 0 | AB219: 0 | AC219: 0 | AD219: 0 | AE219: 0
C220: =C208 -> 0
C221: Avoided costs by driver
C222: =C$40 -> Renewals | F222: I | G222: =$G$35 -> $'000
C223: =C$41 -> Growth | F223: I | G223: =$G$35 -> $'000
C224: =C$42 -> Improvements/compliance | F224: I | G224: =$G$35 -> $'000
C225: =C$43 -> Total | F225: C | G225: =$G$35 -> $'000 | Q225: =SUM(Q222:Q224) -> 0 | R225: =SUM(R222:R224) -> 0 | S225: 0 | T225: 0 | U225: 0 | V225: 0 | W225: 0 | X225: 0 | Y225: 0 | Z225: 0 | AA225: 0 | AB225: =SUM(AB222:AB224) -> 0 | AC225: 0 | AD225: 0 | AE225: 0
C226: check = 0 | Q226: =SUM(Q222:Q224)-Q219 -> 0 | R226: =SUM(R222:R224)-R219 -> 0 | S226: 0 | T226: 0 | U226: 0 | V226: 0 | W226: 0 | X226: 0 | Y226: 0 | Z226: 0 | AA226: 0 | AB226: 0 | AC226: 0 | AD226: 0 | AE226: 0
C228: Wastewater
C229: =C$216 -> Avoided costs by RAB category
C230: =C$35 -> Depreciable assets | F230: I | G230: =$G$35 -> $'000
C231: =C$36 -> Non-depreciable assets | F231: I | G231: =$G$35 -> $'000
C232: ="Total "&C228 -> Total Wastewater | F232: C | G232: =$G$35 -> $'000 | J232: =SUM(J230:J231) -> 0 | K232: =SUM(K230:K231) -> 0 | L232: 0 | M232: 0 | N232: 0 | O232: 0 | P232: 0 | Q232: =SUM(Q230:Q231) -> 0 | R232: =SUM(R230:R231) -> 0 | S232: 0 | T232: 0 | U232: 0 | V232: 0 | W232: 0 | X232: =SUM(X230:X231) -> 0 | Y232: 0 | Z232: 0 | AA232: 0 | AB232: 0 | AC232: 0 | AD232: 0 | AE232: 0
C234: =C$221 -> Avoided costs by driver
C235: =C$40 -> Renewals | F235: I | G235: =$G$35 -> $'000
C236: =C$41 -> Growth | F236: I | G236: =$G$35 -> $'000
C237: =C$42 -> Improvements/compliance | F237: I | G237: =$G$35 -> $'000
C238: =C$43 -> Total | F238: C | G238: =$G$35 -> $'000 | Q238: =SUM(Q235:Q237) -> 0 | R238: =SUM(R235:R237) -> 0 | S238: 0 | T238: 0 | U238: 0 | V238: 0 | W238: 0 | X238: =SUM(X235:X237) -> 0 | Y238: 0 | Z238: 0 | AA238: 0 | AB238: 0 | AC238: 0 | AD238: 0 | AE238: 0
C239: check = 0 | Q239: =SUM(Q235:Q237)-Q232 -> 0 | R239: =SUM(R235:R237)-R232 -> 0 | S239: 0 | T239: 0 | U239: 0 | V239: 0 | W239: 0 | X239: =SUM(X235:X237)-X232 -> 0 | Y239: 0 | Z239: 0 | AA239: 0 | AB239: 0 | AC239: 0 | AD239: 0 | AE239: 0
C241: Stormwater
C242: =C$216 -> Avoided costs by RAB category
C243: =C$35 -> Depreciable assets | F243: I | G243: =$G$35 -> $'000
C244: =C$36 -> Non-depreciable assets | F244: I | G244: =$G$35 -> $'000
C245: ="Total "&C241 -> Total Stormwater | F245: C | G245: =$G$35 -> $'000 | J245: =SUM(J243:J244) -> 0 | K245: =SUM(K243:K244) -> 0 | L245: 0 | M245: 0 | N245: 0 | O245: 0 | P245: 0 | Q245: =SUM(Q243:Q244) -> 0 | R245: =SUM(R243:R244) -> 0 | S245: 0 | T245: 0 | U245: 0 | V245: =SUM(V243:V244) -> 0 | W245: 0 | X245: 0 | Y245: 0 | Z245: 0 | AA245: 0 | AB245: 0 | AC245: 0 | AD245: 0 | AE245: 0
C247: =C$221 -> Avoided costs by driver
... 11 more rows

Sheet Capex Major
B2: =Cover!B5 -> Metropolitan Water Agency | G2: =Cover!E5 -> Abusiness
B3: Section 4b | G3: Capital Expenditure and cash capital contributions for discreet major projects (which enter the RAB once commissioned)
B4: =MID(CELL("filename",A4),FIND("]",CELL("filename",A4))+1,255) -> Capex Major | G4: The projects enter the RAB once commissioned, but on this worksheet please enter capex as incurred.
G5: ="Each project's commissioning date is enter in "&'SIR Capex 2b Major'!B3 -> Each project's commissioning date is enter in SIR Section 4b
B7: ='Non-financial'!$B$7 -> Colour coding located on Cover sheet
B8: ='Non-financial'!$B$8 -> Leave cells blank if no information exists - PLEASE DO NOT ENTER TEXT unless specifically requested to do so.
B9: ='Non-financial'!$B$9 -> We require forecasts only for purposes of a price review, when we also require the business to provide SIR information. (In other years we will hide the forecast columns.)
B11: NOTES:
B12: =Capex!B11 -> (i) | C12: ="Report capex for discreet major projects in the year the capex is incurred, not the year the projects are commissioned. "&G5 -> Report capex for discreet major projects in the year the capex is incurred, not the year the projects are commissioned. Each project's commissioning date is enter in SIR Section 4b
C13: Please discuss what you propose to classify as a major project with IPART before completing the AIR/SIR.
B14: =Capex!B12 -> (ii) | C14: Include capitalised opex.
B15: =Capex!B13 -> (iii) | C15: ="Don’t adjust capex values for cash capital contributions. Cash capital contributions should be identified in "&LEFT(C98,9)&" to allow us to make any adjustments." -> Don’t adjust capex values for cash capital contributions. Cash capital contributions should be identified in Table 4.7 to allow us to make any adjustments.
B16: (iv) | C16: The drivers are consistent with those used by the Victorian Essential Services Commission (ESC). Guidance on what to include in each of the categories is provided on the previous worksheet.
C20: Table 4.5 - Corporate capital expenditure, major projects (reported as incurred) | AG20: ='Non-financial'!$AG$17 -> COMMENTS TO IPART
C21: ='Non-financial'!C$18 -> Financial year | D21: OPTIONAL FIELDS | J21: ='Non-financial'!J$18 -> 2013-14 | K21: ='Non-financial'!K$18 -> 2014-15 | L21: ='Non-financial'!L$18 -> 2015-16 | M21: ='Non-financial'!M$18 -> 2016-17 | N21: ='Non-financial'!N$18 -> 2017-18 | O21: ='Non-financial'!O$18 -> 2018-19 | P21: ='Non-financial'!P$18 -> 2019-20 | Q21: ='Non-financial'!Q$18 -> 2020-21 | R21: ='Non-financial'!R$18 -> 2021-22 | S21: ='Non-financial'!S$18 -> 2022-23 | T21: ='Non-financial'!T$18 -> 2023-24 | U21: ='Non-financial'!U$18 -> 2024-25 | V21: ='Non-financial'!V$18 -> 2025-26 | W21: ='Non-financial'!W$18 -> 2026-27 | X21: ='Non-financial'!X$18 -> 2027-28 | Y21: ='Non-financial'!Y$18 -> 2028-29 | Z21: ='Non-financial'!Z$18 -> 2029-30 | AA21: ='Non-financial'!AA$18 -> 2030-31 | AB21: ='Non-financial'!AB$18 -> 2031-32 | AC21: ='Non-financial'!AC$18 -> 2032-33 | AD21: ='Non-financial'!AD$18 -> 2033-34 | AE21: ='Non-financial'!AE$18 -> 2034-35 | AG21: ='Non-financial'!$AG$18 -> 2023
D22: ='Non-financial'!D$19 -> Code | E22: ='Non-financial'!E$19 -> 0 | F22: ='Non-financial'!F$19 -> I/C | G22: ='Non-financial'!G$19 -> Unit | J22: ='Non-financial'!J$19 -> Actual | K22: ='Non-financial'!K$19 -> Actual | L22: ='Non-financial'!L$19 -> Actual | M22: ='Non-financial'!M$19 -> Actual | N22: ='Non-financial'!N$19 -> Actual | O22: ='Non-financial'!O$19 -> Actual | P22: ='Non-financial'!P$19 -> Actual | Q22: ='Non-financial'!Q$19 -> Actual | R22: ='Non-financial'!R$19 -> Actual | S22: ='Non-financial'!S$19 -> Actual | T22: ='Non-financial'!T$19 -> Forecast | U22: ='Non-financial'!U$19 -> Forecast | V22: ='Non-financial'!V$19 -> Forecast | W22: ='Non-financial'!W$19 -> Forecast | X22: ='Non-financial'!X$19 -> Forecast | Y22: ='Non-financial'!Y$19 -> Forecast | Z22: ='Non-financial'!Z$19 -> Forecast | AA22: ='Non-financial'!AA$19 -> Forecast | AB22: ='Non-financial'!AB$19 -> Forecast | AC22: ='Non-financial'!AC$19 -> Forecast | AD22: ='Non-financial'!AD$19 -> Forecast | AE22: ='Non-financial'!AE$19 -> Forecast
C23: ='Opex by item'!C$26 -> Inflation rate for application to costs (CPI) | I23: ='Opex by item'!I$26 -> 0 | J23: ='Opex by item'!J$26 -> 0.03 | K23: ='Opex by item'!K$26 -> 0.015 | L23: ='Opex by item'!L$26 -> 0.01 | M23: ='Opex by item'!M$26 -> 0.019 | N23: ='Opex by item'!N$26 -> 0.021 | O23: ='Opex by item'!O$26 -> 0.022 | P23: ='Opex by item'!P$26 -> -0.003 | Q23: ='Opex by item'!Q$26 -> 0.038 | R23: ='Opex by item'!R$26 -> 0.061 | S23: ='Opex by item'!S$26 -> 0 | T23: ='Opex by item'!T$26 -> 0 | U23: ='Opex by item'!U$26 -> 0 | V23: ='Opex by item'!V$26 -> 0 | W23: ='Opex by item'!W$26 -> 0 | X23: ='Opex by item'!X$26 -> 0 | Y23: ='Opex by item'!Y$26 -> 0 | Z23: ='Opex by item'!Z$26 -> 0 | AA23: ='Opex by item'!AA$26 -> 0 | AB23: ='Opex by item'!AB$26 -> 0 | AC23: ='Opex by item'!AC$26 -> 0 | AD23: ='Opex by item'!AD$26 -> 0 | AE23: ='Opex by item'!AE$26 -> 0
C26: Corporate capex by RAB category
C27: =Capex!C35 -> Depreciable assets | F27: I | G27: =Cover!$K$6 -> $'000
C28: =Capex!C36 -> Non-depreciable assets | F28: I | G28: =$G$27 -> $'000
C29: Total Corporate | F29: C | G29: $'000 | J29: =SUM(J27:J28) -> 0 | K29: 0 | L29: =SUM(L27:L28) -> 0 | M29: 0 | N29: 0 | O29: 0 | P29: 0 | Q29: =SUM(Q27:Q28) -> 0 | R29: =SUM(R27:R28) -> 0 | S29: 0 | T29: 0 | U29: 0 | V29: 0 | W29: 0 | X29: 0 | Y29: 0 | Z29: 0 | AA29: 0 | AB29: 0 | AC29: 0 | AD29: 0 | AE29: 0
C31: Corporate capex by driver
C32: =Capex!C40 -> Renewals | F32: I | G32: =$G$27 -> $'000
C33: =Capex!C41 -> Growth | F33: I | G33: =$G$27 -> $'000
C34: =Capex!C42 -> Improvements/compliance | F34: I | G34: =$G$27 -> $'000
C35: =Capex!C43 -> Total | F35: C | G35: =$G$27 -> $'000 | Q35: =SUM(Q32:Q34) -> 0 | R35: =SUM(R32:R34) -> 0 | S35: 0 | T35: 0 | U35: 0 | V35: 0 | W35: 0 | X35: 0 | Y35: 0 | Z35: 0 | AA35: 0 | AB35: 0 | AC35: 0 | AD35: 0 | AE35: 0
C36: check = 0 | Q36: =SUM(Q32:Q34)-Q29 -> 0 | R36: 0 | S36: 0 | T36: 0 | U36: =SUM(U32:U34)-U29 -> 0 | V36: 0 | W36: 0 | X36: 0 | Y36: 0 | Z36: 0 | AA36: 0 | AB36: 0 | AC36: 0 | AD36: 0 | AE36: 0
C40: Table 4.6 - Capital expenditure of regulated water, wastewater and stormwater business activities, major projects reported as incurred (excluding avoided cost claims for recycled water, including contingent capex incurred) | AG40: =AG$20 -> COMMENTS TO IPART
C41: =C$21 -> Financial year | D41: OPTIONAL FIELDS | J41: =J$21 -> 2013-14 | K41: 2014-15 | L41: 2015-16 | M41: 2016-17 | N41: 2017-18 | O41: 2018-19 | P41: 2019-20 | Q41: 2020-21 | R41: 2021-22 | S41: 2022-23 | T41: 2023-24 | U41: 2024-25 | V41: 2025-26 | W41: 2026-27 | X41: 2027-28 | Y41: 2028-29 | Z41: 2029-30 | AA41: 2030-31 | AB41: 2031-32 | AC41: 2032-33 | AD41: 2033-34 | AE41: 2034-35 | AG41: 2023
D42: =D$22 -> Code | E42: 0 | F42: I/C | G42: Unit | J42: =J$22 -> Actual | K42: Actual | L42: Actual | M42: Actual | N42: Actual | O42: Actual | P42: Actual | Q42: Actual | R42: Actual | S42: Actual | T42: Forecast | U42: Forecast | V42: Forecast | W42: Forecast | X42: Forecast | Y42: Forecast | Z42: Forecast | AA42: Forecast | AB42: Forecast | AC42: Forecast | AD42: Forecast | AE42: Forecast
Q44: Including ''discretionary' expenditure under 2020 determination
C45: Water (including 16A recycled water, excluding other recycled water)
C46: Capex by RAB category
C47: =C$27 -> Depreciable assets | F47: I | G47: =$G$27 -> $'000
C48: =C$28 -> Non-depreciable assets | F48: I | G48: =$G$27 -> $'000
C49: ="Total "&C45 -> Total Water (including 16A recycled water, excluding other recycled water) | F49: C | G49: =$G$27 -> $'000 | J49: =SUM(J47:J48) -> 0 | K49: 0 | L49: =SUM(L47:L48) -> 0 | M49: 0 | N49: 0 | O49: 0 | P49: 0 | Q49: =SUM(Q47:Q48) -> 0 | R49: =SUM(R47:R48) -> 0 | S49: 0 | T49: 0 | U49: 0 | V49: 0 | W49: 0 | X49: 0 | Y49: 0 | Z49: 0 | AA49: 0 | AB49: 0 | AC49: 0 | AD49: 0 | AE49: 0
C50: =C38 -> 0
C51: Capex by driver
C52: =C$32 -> Renewals | F52: I | G52: =$G$27 -> $'000
C53: =C$33 -> Growth | F53: I | G53: =$G$27 -> $'000
C54: =C$34 -> Improvements/compliance | F54: I | G54: =$G$27 -> $'000
C55: =C$35 -> Total | F55: C | G55: =$G$27 -> $'000 | Q55: =SUM(Q52:Q54) -> 0 | R55: =SUM(R52:R54) -> 0 | S55: 0 | T55: 0 | U55: 0 | V55: 0 | W55: 0 | X55: 0 | Y55: 0 | Z55: 0 | AA55: 0 | AB55: 0 | AC55: 0 | AD55: 0 | AE55: 0
C56: check = 0 | Q56: =SUM(Q52:Q54)-Q49 -> 0 | R56: =SUM(R52:R54)-R49 -> 0 | S56: 0 | T56: 0 | U56: 0 | V56: 0 | W56: 0 | X56: 0 | Y56: 0 | Z56: 0 | AA56: 0 | AB56: 0 | AC56: 0 | AD56: 0 | AE56: 0
C59: Wastewater
C60: Capex by RAB category
C61: =C$27 -> Depreciable assets | F61: I | G61: =$G$27 -> $'000
C62: =C$28 -> Non-depreciable assets | F62: I | G62: =$G$27 -> $'000
C63: ="Total "&C59 -> Total Wastewater | F63: C | G63: =$G$27 -> $'000 | J63: =SUM(J61:J62) -> 0 | K63: 0 | L63: =SUM(L61:L62) -> 0 | M63: 0 | N63: 0 | O63: 0 | P63: 0 | Q63: =SUM(Q61:Q62) -> 0 | R63: =SUM(R61:R62) -> 0 | S63: 0 | T63: 0 | U63: 0 | V63: 0 | W63: 0 | X63: 0 | Y63: 0 | Z63: 0 | AA63: 0 | AB63: 0 | AC63: 0 | AD63: 0 | AE63: 0
C65: =C$51 -> Capex by driver
C66: =C$32 -> Renewals | F66: I | G66: =$G$27 -> $'000
C67: =C$33 -> Growth | F67: I | G67: =$G$27 -> $'000
C68: =C$34 -> Improvements/compliance | F68: I | G68: =$G$27 -> $'000
C69: =C$35 -> Total | F69: C | G69: =$G$27 -> $'000 | Q69: =SUM(Q66:Q68) -> 0 | R69: =SUM(R66:R68) -> 0 | S69: 0 | T69: 0 | U69: 0 | V69: 0 | W69: 0 | X69: 0 | Y69: 0 | Z69: 0 | AA69: 0 | AB69: 0 | AC69: 0 | AD69: 0 | AE69: 0
C70: check = 0 | Q70: =SUM(Q66:Q68)-Q63 -> 0 | R70: =SUM(R66:R68)-R63 -> 0 | S70: 0 | T70: 0 | U70: 0 | V70: 0 | W70: 0 | X70: 0 | Y70: 0 | Z70: 0 | AA70: 0 | AB70: 0 | AC70: 0 | AD70: 0 | AE70: 0
C72: Stormwater
C73: Capex by RAB category
C74: =C$27 -> Depreciable assets | F74: I | G74: =$G$27 -> $'000
C75: =C$28 -> Non-depreciable assets | F75: I | G75: =$G$27 -> $'000
C76: ="Total "&C72 -> Total Stormwater | F76: C | G76: =$G$27 -> $'000 | J76: =SUM(J74:J75) -> 0 | K76: 0 | L76: =SUM(L74:L75) -> 0 | M76: 0 | N76: 0 | O76: 0 | P76: 0 | Q76: =SUM(Q74:Q75) -> 0 | R76: =SUM(R74:R75) -> 0 | S76: 0 | T76: 0 | U76: 0 | V76: 0 | W76: 0 | X76: 0 | Y76: 0 | Z76: 0 | AA76: 0 | AB76: 0 | AC76: 0 | AD76: 0 | AE76: 0
C78: =C$51 -> Capex by driver
C79: =C$32 -> Renewals | F79: I | G79: =$G$27 -> $'000
C80: =C$33 -> Growth | F80: I | G80: =$G$27 -> $'000
C81: =C$34 -> Improvements/compliance | F81: I | G81: =$G$27 -> $'000
C82: =C$35 -> Total | F82: C | G82: =$G$27 -> $'000 | Q82: =SUM(Q79:Q81) -> 0 | R82: =SUM(R79:R81) -> 0 | S82: 0 | T82: 0 | U82: 0 | V82: 0 | W82: 0 | X82: 0 | Y82: 0 | Z82: 0 | AA82: 0 | AB82: 0 | AC82: 0 | AD82: 0 | AE82: 0
C83: check = 0 | Q83: =SUM(Q79:Q81)-Q76 -> 0 | R83: =SUM(R79:R81)-R76 -> 0 | S83: 0 | T83: 0 | U83: 0 | V83: 0 | W83: 0 | X83: 0 | Y83: 0 | Z83: 0 | AA83: 0 | AB83: 0 | AC83: 0 | AD83: 0 | AE83: 0
C85: Total capital expenditure (excluding Corporate) | J85: =J49+J63+J76 -> 0 | K85: 0 | L85: 0 | M85: 0 | N85: 0 | O85: 0 | P85: =P49+P63+P76 -> 0 | Q85: 0 | R85: 0 | S85: 0 | T85: 0 | U85: 0 | V85: 0 | W85: 0 | X85: 0 | Y85: 0 | Z85: 0 | AA85: 0 | AB85: 0 | AC85: 0 | AD85: 0 | AE85: 0
C86: Total capital expenditure (including Corporate) | K86: =K29+K49+K63+K76 -> 0 | L86: 0 | M86: 0 | N86: 0 | O86: 0 | P86: 0 | Q86: 0 | R86: 0 | S86: 0 | T86: 0 | U86: =U29+U49+U63+U76 -> 0 | V86: =V29+V49+V63+V76 -> 0 | W86: 0 | X86: 0 | Y86: 0 | Z86: 0 | AA86: 0 | AB86: 0 | AC86: 0 | AD86: 0 | AE86: 0
C88: Total capital expenditure by driver (including Corporate)
C89: =C$32 -> Renewals | F89: C | G89: =$G$27 -> $'000 | U89: =U32+U52+U66+U79 -> 0 | V89: =V32+V52+V66+V79 -> 0 | W89: 0 | X89: 0 | Y89: 0 | Z89: 0 | AA89: 0 | AB89: 0 | AC89: 0 | AD89: 0 | AE89: 0
C90: =C$33 -> Growth | U90: =U33+U53+U67+U80 -> 0 | V90: 0 | W90: 0 | X90: 0 | Y90: 0 | Z90: 0 | AA90: 0 | AB90: 0 | AC90: 0 | AD90: 0 | AE90: 0
C91: =C$34 -> Improvements/compliance | F91: C | G91: =$G$27 -> $'000 | U91: 0 | V91: 0 | W91: 0 | X91: 0 | Y91: 0 | Z91: 0 | AA91: 0 | AB91: 0 | AC91: 0 | AD91: 0 | AE91: 0
C92: Total capex | F92: C | G92: $'000 | U92: =U35+U55+U69+U82 -> 0 | V92: =V35+V55+V69+V82 -> 0 | W92: 0 | X92: 0 | Y92: 0 | Z92: 0 | AA92: 0 | AB92: 0 | AC92: 0 | AD92: 0 | AE92: 0
C93: check = 0 | F93: C | G93: $'000 | U93: =U92-SUM(U89:U91) -> 0 | V93: =V92-SUM(V89:V91) -> 0 | W93: =W92-SUM(W89:W91) -> 0 | X93: =X92-SUM(X89:X91) -> 0 | Y93: =Y92-SUM(Y89:Y91) -> 0 | Z93: =Z92-SUM(Z89:Z91) -> 0 | AA93: =AA92-SUM(AA89:AA91) -> 0 | AB93: =AB92-SUM(AB89:AB91) -> 0 | AC93: =AC92-SUM(AC89:AC91) -> 0 | AD93: =AD92-SUM(AD89:AD91) -> 0 | AE93: =AE92-SUM(AE89:AE91) -> 0
C98: Table 4.7 - Cash capital contributions for regulated water, wastewater and stormwater business activities, major projects (reported as received) | AG98: =AG$20 -> COMMENTS TO IPART
C99: =C$21 -> Financial year | D99: OPTIONAL FIELDS | J99: =J$21 -> 2013-14 | K99: 2014-15 | L99: 2015-16 | M99: 2016-17 | N99: 2017-18 | O99: 2018-19 | P99: 2019-20 | Q99: 2020-21 | R99: 2021-22 | S99: 2022-23 | T99: 2023-24 | U99: 2024-25 | V99: 2025-26 | W99: 2026-27 | X99: 2027-28 | Y99: 2028-29 | Z99: 2029-30 | AA99: 2030-31 | AB99: 2031-32 | AC99: 2032-33 | AD99: 2033-34 | AE99: 2034-35 | AG99: 2023
D100: =D$22 -> Code | E100: 0 | F100: I/C | G100: Unit | J100: =J$22 -> Actual | K100: Actual | L100: Actual | M100: Actual | N100: Actual | O100: Actual | P100: Actual | Q100: Actual | R100: Actual | S100: Actual | T100: Forecast | U100: Forecast | V100: Forecast | W100: Forecast | X100: Forecast | Y100: Forecast | Z100: Forecast | AA100: Forecast | AB100: Forecast | AC100: Forecast | AD100: Forecast | AE100: Forecast
C102: Corporate
C103: Capital contributions by RAB category
C104: =C$27 -> Depreciable assets | F104: I | G104: =$G$27 -> $'000
C105: =C$28 -> Non-depreciable assets | F105: I | G105: $'000
C106: ="Total "&C102 -> Total Corporate | F106: C | G106: =$G$27 -> $'000 | Q106: =SUM(Q104:Q105) -> 0 | R106: =SUM(R104:R105) -> 0 | S106: =SUM(S104:S105) -> 0 | T106: =SUM(T104:T105) -> 0 | U106: =SUM(U104:U105) -> 0 | V106: =SUM(V104:V105) -> 0 | W106: =SUM(W104:W105) -> 0 | X106: =SUM(X104:X105) -> 0 | Y106: =SUM(Y104:Y105) -> 0 | Z106: =SUM(Z104:Z105) -> 0 | AA106: =SUM(AA104:AA105) -> 0 | AB106: =SUM(AB104:AB105) -> 0 | AC106: =SUM(AC104:AC105) -> 0 | AD106: =SUM(AD104:AD105) -> 0 | AE106: =SUM(AE104:AE105) -> 0
C108: Capital contributions by driver
C109: =C$32 -> Renewals | F109: I | G109: =$G$27 -> $'000
C110: =C$33 -> Growth | F110: I | G110: =$G$27 -> $'000
C111: =C$34 -> Improvements/compliance | F111: I | G111: =$G$27 -> $'000
C112: =C106 -> Total Corporate | F112: C | G112: =$G$27 -> $'000 | Q112: =SUM(Q109:Q111) -> 0 | R112: =SUM(R109:R111) -> 0 | S112: =SUM(S109:S111) -> 0 | T112: =SUM(T109:T111) -> 0 | U112: =SUM(U109:U111) -> 0 | V112: =SUM(V109:V111) -> 0 | W112: =SUM(W109:W111) -> 0 | X112: =SUM(X109:X111) -> 0 | Y112: =SUM(Y109:Y111) -> 0 | Z112: =SUM(Z109:Z111) -> 0 | AA112: =SUM(AA109:AA111) -> 0 | AB112: =SUM(AB109:AB111) -> 0 | AC112: =SUM(AC109:AC111) -> 0 | AD112: =SUM(AD109:AD111) -> 0 | AE112: =SUM(AE109:AE111) -> 0
C113: check = 0 | Q113: =SUM(Q109:Q111)-Q106 -> 0 | R113: =SUM(R109:R111)-R106 -> 0 | S113: 0 | T113: 0 | U113: 0 | V113: 0 | W113: 0 | X113: 0 | Y113: 0 | Z113: 0 | AA113: 0 | AB113: 0 | AC113: 0 | AD113: 0 | AE113: 0
C115: Water (including 16A recycled water, excluding other recycled water)
C116: =C$103 -> Capital contributions by RAB category
C117: =C$27 -> Depreciable assets | F117: I | G117: =$G$27 -> $'000
C118: =C$28 -> Non-depreciable assets | F118: I | G118: $'000
C119: ="Total "&C115 -> Total Water (including 16A recycled water, excluding other recycled water) | F119: C | G119: =$G$27 -> $'000 | Q119: =SUM(Q117:Q118) -> 0 | R119: =SUM(R117:R118) -> 0 | S119: 0 | T119: 0 | U119: 0 | V119: 0 | W119: 0 | X119: 0 | Y119: 0 | Z119: 0 | AA119: 0 | AB119: 0 | AC119: 0 | AD119: 0 | AE119: 0
C120: =C95 -> 0
C121: Capital contributions by driver
C122: =C$32 -> Renewals | F122: I | G122: =$G$27 -> $'000
C123: =C$33 -> Growth | F123: I | G123: =$G$27 -> $'000
C124: =C$34 -> Improvements/compliance | F124: I | G124: =$G$27 -> $'000
C125: =C119 -> Total Water (including 16A recycled water, excluding other recycled water) | F125: C | G125: =$G$27 -> $'000 | Q125: =SUM(Q122:Q124) -> 0 | R125: =SUM(R122:R124) -> 0 | S125: 0 | T125: 0 | U125: 0 | V125: 0 | W125: 0 | X125: 0 | Y125: 0 | Z125: 0 | AA125: 0 | AB125: 0 | AC125: 0 | AD125: 0 | AE125: 0
C126: check = 0 | Q126: =SUM(Q122:Q124)-Q119 -> 0 | R126: =SUM(R122:R124)-R119 -> 0 | S126: 0 | T126: 0 | U126: 0 | V126: 0 | W126: 0 | X126: 0 | Y126: 0 | Z126: 0 | AA126: 0 | AB126: 0 | AC126: 0 | AD126: 0 | AE126: 0
C128: Wastewater
C129: =C$103 -> Capital contributions by RAB category
C130: =C$27 -> Depreciable assets | F130: I | G130: =$G$27 -> $'000
C131: =C$28 -> Non-depreciable assets | F131: I | G131: =$G$27 -> $'000
C132: ="Total "&C128 -> Total Wastewater | F132: C | G132: =$G$27 -> $'000 | Q132: =SUM(Q130:Q131) -> 0 | R132: =SUM(R130:R131) -> 0 | S132: 0 | T132: 0 | U132: 0 | V132: 0 | W132: 0 | X132: 0 | Y132: 0 | Z132: 0 | AA132: 0 | AB132: 0 | AC132: 0 | AD132: 0 | AE132: 0
C133: =#REF! -> 
C134: =C$121 -> Capital contributions by driver
C135: =C$32 -> Renewals | F135: I | G135: =$G$27 -> $'000
C136: =C$33 -> Growth | F136: I | G136: =$G$27 -> $'000
C137: =C$34 -> Improvements/compliance | F137: I | G137: =$G$27 -> $'000
C138: =C$35 -> Total | F138: C | G138: =$G$27 -> $'000 | Q138: =SUM(Q135:Q137) -> 0 | R138: =SUM(R135:R137) -> 0 | S138: 0 | T138: 0 | U138: 0 | V138: 0 | W138: 0 | X138: 0 | Y138: 0 | Z138: 0 | AA138: 0 | AB138: 0 | AC138: 0 | AD138: 0 | AE138: 0
C139: check = 0 | Q139: =SUM(Q135:Q137)-Q132 -> 0 | R139: =SUM(R135:R137)-R132 -> 0 | S139: 0 | T139: 0 | U139: 0 | V139: 0 | W139: 0 | X139: 0 | Y139: 0 | Z139: 0 | AA139: 0 | AB139: 0 | AC139: 0 | AD139: 0 | AE139: 0
C141: Stormwater
C142: =C$103 -> Capital contributions by RAB category
C143: =C$27 -> Depreciable assets | F143: I | G143: =$G$27 -> $'000
C144: =C$28 -> Non-depreciable assets | F144: I | G144: =$G$27 -> $'000
C145: ="Total "&C141 -> Total Stormwater | F145: C | G145: =$G$27 -> $'000 | Q145: =SUM(Q143:Q144) -> 0 | R145: =SUM(R143:R144) -> 0 | S145: 0 | T145: 0 | U145: 0 | V145: 0 | W145: 0 | X145: 0 | Y145: 0 | Z145: 0 | AA145: 0 | AB145: 0 | AC145: 0 | AD145: 0 | AE145: 0
C147: =C$121 -> Capital contributions by driver
C148: =C$32 -> Renewals | F148: I | G148: =$G$27 -> $'000
C149: =C$33 -> Growth | F149: I | G149: =$G$27 -> $'000
C150: =C$34 -> Improvements/compliance | F150: I | G150: =$G$27 -> $'000
C151: =C$35 -> Total | F151: C | G151: =$G$27 -> $'000 | Q151: =SUM(Q148:Q150) -> 0 | R151: =SUM(R148:R150) -> 0 | S151: 0 | T151: 0 | U151: 0 | V151: 0 | W151: 0 | X151: 0 | Y151: 0 | Z151: 0 | AA151: =SUM(AA148:AA150) -> 0 | AB151: 0 | AC151: 0 | AD151: 0 | AE151: 0
C152: check = 0 | Q152: =SUM(Q148:Q150)-Q145 -> 0 | R152: =SUM(R148:R150)-R145 -> 0 | S152: 0 | T152: 0 | U152: 0 | V152: 0 | W152: 0 | X152: 0 | Y152: 0 | Z152: 0 | AA152: 0 | AB152: 0 | AC152: 0 | AD152: 0 | AE152: 0
C154: Total | F154: C | G154: =$G$27 -> $'000 | J154: 0 | K154: 0 | L154: 0 | M154: 0 | N154: 0 | O154: 0 | Q154: =Q106+Q119+Q132+Q145 -> 0 | R154: =R106+R119+R132+R145 -> 0 | S154: 0 | T154: 0 | U154: 0 | V154: 0 | W154: 0 | X154: 0 | Y154: 0 | Z154: 0 | AA154: 0 | AB154: 0 | AC154: 0 | AD154: 0 | AE154: 0

Sheet Disposals
B2: =Cover!B5 -> Metropolitan Water Agency | G2: =Cover!E5 -> Abusiness
B3: Section 5 | G3: Asset Disposals
B4: =MID(CELL("filename",A4),FIND("]",CELL("filename",A4))+1,255) -> Disposals
B6: ='Non-financial'!$B$7 -> Colour coding located on Cover sheet
B7: ='Non-financial'!$B$8 -> Leave cells blank if no information exists - PLEASE DO NOT ENTER TEXT unless specifically requested to do so.
B8: ='Non-financial'!$B$9 -> We require forecasts only for purposes of a price review, when we also require the business to provide SIR information. (In other years we will hide the forecast columns.)
B10: NOTES:
B11: (i) | C11: The 2018 asset disposals policy continues to apply until the first determination period under the 3Cs framework. To this end please record: | Q11: 2018 Asset Disposals policy
C12: - revenue from 'non-significant' disposals and 'pre-LIS' land sales in Table 5.1 (under Depreciating and Non-depreciation assets respectively)
C13: - the regulatory value of post-LIS significant disposals in Table 5.2.
B14: (ii) | C14: ="Our 2022 asset disposals policy, which applies from the first determinatio period under our 3Cs framework, is outlined in rows "&ROW(C24)&" to "&ROW(C26)&" below." -> Our 2022 asset disposals policy, which applies from the first determinatio period under our 3Cs framework, is outlined in rows 24 to 26 below. | Q14: See IPART, Our water regulatory framework, Technical Paper, November 2022, Appendix A
B15: (iii) | C15: ="Include disposals for efficiency projects that generate non-regulatory revenue. (See '"&'Opex by item'!$B$4&"', row"&ROW('Opex by item'!C16)&".)" -> Include disposals for efficiency projects that generate non-regulatory revenue. (See 'Opex by item', row16.)
C19: Table 5.1 - Regulatory value of ordinary disposals ($'000) | AG19: ='Non-financial'!$AG$17 -> COMMENTS TO IPART
C20: ='Non-financial'!C$18 -> Financial year | D20: OPTIONAL FIELDS | J20: ='Non-financial'!J$18 -> 2013-14 | K20: ='Non-financial'!K$18 -> 2014-15 | L20: ='Non-financial'!L$18 -> 2015-16 | M20: ='Non-financial'!M$18 -> 2016-17 | N20: ='Non-financial'!N$18 -> 2017-18 | O20: ='Non-financial'!O$18 -> 2018-19 | P20: ='Non-financial'!P$18 -> 2019-20 | Q20: ='Non-financial'!Q$18 -> 2020-21 | R20: ='Non-financial'!R$18 -> 2021-22 | S20: ='Non-financial'!S$18 -> 2022-23 | T20: ='Non-financial'!T$18 -> 2023-24 | U20: ='Non-financial'!U$18 -> 2024-25 | V20: ='Non-financial'!V$18 -> 2025-26 | W20: ='Non-financial'!W$18 -> 2026-27 | X20: ='Non-financial'!X$18 -> 2027-28 | Y20: ='Non-financial'!Y$18 -> 2028-29 | Z20: ='Non-financial'!Z$18 -> 2029-30 | AA20: ='Non-financial'!AA$18 -> 2030-31 | AB20: ='Non-financial'!AB$18 -> 2031-32 | AC20: ='Non-financial'!AC$18 -> 2032-33 | AD20: ='Non-financial'!AD$18 -> 2033-34 | AE20: ='Non-financial'!AE$18 -> 2034-35 | AG20: ='Non-financial'!$AG$18 -> 2023
D21: ='Non-financial'!D$19 -> Code | F21: ='Non-financial'!F$19 -> I/C | G21: ='Non-financial'!G$19 -> Unit | H21: ='Non-financial'!H24 -> 0 | J21: ='Non-financial'!J$19 -> Actual | K21: ='Non-financial'!K$19 -> Actual | L21: ='Non-financial'!L$19 -> Actual | M21: ='Non-financial'!M$19 -> Actual | N21: ='Non-financial'!N$19 -> Actual | O21: ='Non-financial'!O$19 -> Actual | P21: ='Non-financial'!P$19 -> Actual | Q21: ='Non-financial'!Q$19 -> Actual | R21: ='Non-financial'!R$19 -> Actual | S21: ='Non-financial'!S$19 -> Actual | T21: ='Non-financial'!T$19 -> Forecast | U21: ='Non-financial'!U$19 -> Forecast | V21: ='Non-financial'!V$19 -> Forecast | W21: ='Non-financial'!W$19 -> Forecast | X21: ='Non-financial'!X$19 -> Forecast | Y21: ='Non-financial'!Y$19 -> Forecast | Z21: ='Non-financial'!Z$19 -> Forecast | AA21: ='Non-financial'!AA$19 -> Forecast | AB21: ='Non-financial'!AB$19 -> Forecast | AC21: ='Non-financial'!AC$19 -> Forecast | AD21: ='Non-financial'!AD$19 -> Forecast | AE21: ='Non-financial'!AE$19 -> Forecast
C22: ='Opex by item'!C$26 -> Inflation rate for application to costs (CPI) | I22: ='Opex by item'!I$26 -> 0 | J22: ='Opex by item'!J$26 -> 0.03 | K22: ='Opex by item'!K$26 -> 0.015 | L22: ='Opex by item'!L$26 -> 0.01 | M22: ='Opex by item'!M$26 -> 0.019 | N22: ='Opex by item'!N$26 -> 0.021 | O22: ='Opex by item'!O$26 -> 0.022 | P22: ='Opex by item'!P$26 -> -0.003 | Q22: ='Opex by item'!Q$26 -> 0.038 | R22: ='Opex by item'!R$26 -> 0.061 | S22: ='Opex by item'!S$26 -> 0 | T22: ='Opex by item'!T$26 -> 0 | U22: ='Opex by item'!U$26 -> 0 | V22: ='Opex by item'!V$26 -> 0 | W22: ='Opex by item'!W$26 -> 0 | X22: ='Opex by item'!X$26 -> 0 | Y22: ='Opex by item'!Y$26 -> 0 | Z22: ='Opex by item'!Z$26 -> 0 | AA22: ='Opex by item'!AA$26 -> 0 | AB22: ='Opex by item'!AB$26 -> 0 | AC22: ='Opex by item'!AC$26 -> 0 | AD22: ='Opex by item'!AD$26 -> 0 | AE22: ='Opex by item'!AE$26 -> 0
C24: Under our 2022 asset disposals policy, the default position is that all disposals are considered 'ordinary'. Exceptions are considered on a case-by-case basis, subject to materiality of the impact on prices.
C25: The regulatory value of 'ordinary' disposals is the revenue from sales net of sales costs (e.g. advertising), land remediation costs and capital gains tax (CGT). Sales costs do not include the book value of the disposal.
C26: Half (50%) of net revenue from sales is retained by the business and the other 50% is returned to customers by reducing the RAB.
C27: Note: We will adapt this table to reflect the correct regulatory period and sharing ratio for each business. The table is currently set up for Sydney Water and Hunter Water
C29: Revenue from asset sales net of sales and remediation costs | R29: 2018 Asset Disposals Policy applies in this regulatory period
C30: Corporate | R30: Please enter pre-LIS land sales in this table
C31: - Depreciating assets | F31: I | G31: =Cover!$K$6 -> $'000
C32: - Non-depreciating assets | F32: I | G32: =$G$31 -> $'000
C33: - Total | F33: C | G33: =$G$31 -> $'000 | O33: =SUM(O31:O32) -> 0 | P33: =SUM(P31:P32) -> 0 | Q33: =SUM(Q31:Q32) -> 0 | R33: 0 | S33: 0 | T33: 0 | U33: 0 | V33: 0 | W33: 0 | X33: 0 | Y33: 0 | Z33: 0 | AA33: 0 | AB33: 0 | AC33: =SUM(AC31:AC32) -> 0 | AD33: 0 | AE33: =SUM(AE31:AE32) -> 0
C34: Water (excluding Section 16A Recycled Water)
C35: =$C$31 -> - Depreciating assets | F35: I | G35: =$G$31 -> $'000
C36: =$C$32 -> - Non-depreciating assets | F36: I | G36: $'000
C37: =$C$33 -> - Total | F37: C | G37: $'000 | O37: =SUM(O35:O36) -> 0 | P37: =SUM(P35:P36) -> 0 | Q37: =SUM(Q35:Q36) -> 0 | R37: 0 | S37: 0 | T37: 0 | U37: 0 | V37: 0 | W37: 0 | X37: 0 | Y37: 0 | Z37: 0 | AA37: 0 | AB37: 0 | AC37: =SUM(AC35:AC36) -> 0 | AD37: 0 | AE37: =SUM(AE35:AE36) -> 0
C38: Recycled Water (Regulated - 'Section 16A')
C39: =$C$31 -> - Depreciating assets | F39: I | G39: =$G$31 -> $'000
C40: =$C$32 -> - Non-depreciating assets | F40: I | G40: =$G$31 -> $'000
C41: =$C$33 -> - Total | F41: C | G41: =$G$31 -> $'000 | O41: =SUM(O39:O40) -> 0 | P41: =SUM(P39:P40) -> 0 | Q41: =SUM(Q39:Q40) -> 0 | R41: 0 | S41: 0 | T41: 0 | U41: 0 | V41: 0 | W41: 0 | X41: 0 | Y41: 0 | Z41: 0 | AA41: 0 | AB41: 0 | AC41: =SUM(AC39:AC40) -> 0 | AD41: 0 | AE41: =SUM(AE39:AE40) -> 0
C42: Wastewater
C43: =$C$31 -> - Depreciating assets | F43: I | G43: =$G$31 -> $'000
C44: =$C$32 -> - Non-depreciating assets | F44: I | G44: =$G$31 -> $'000
C45: =$C$33 -> - Total | F45: C | G45: =$G$31 -> $'000 | O45: =SUM(O43:O44) -> 0 | P45: =SUM(P43:P44) -> 0 | Q45: =SUM(Q43:Q44) -> 0 | R45: 0 | S45: 0 | T45: 0 | U45: 0 | V45: 0 | W45: 0 | X45: 0 | Y45: 0 | Z45: 0 | AA45: 0 | AB45: 0 | AC45: =SUM(AC43:AC44) -> 0 | AD45: 0 | AE45: =SUM(AE43:AE44) -> 0
C46: Stormwater
C47: =$C$31 -> - Depreciating assets | F47: I | G47: =$G$31 -> $'000
C48: =$C$32 -> - Non-depreciating assets | F48: I | G48: =$G$31 -> $'000
C49: =$C$33 -> - Total | F49: C | G49: =$G$31 -> $'000 | O49: =SUM(O47:O48) -> 0 | P49: =SUM(P47:P48) -> 0 | Q49: =SUM(Q47:Q48) -> 0 | R49: 0 | S49: 0 | T49: 0 | U49: 0 | V49: 0 | W49: 0 | X49: 0 | Y49: 0 | Z49: 0 | AA49: 0 | AB49: 0 | AC49: =SUM(AC47:AC48) -> 0 | AD49: 0 | AE49: =SUM(AE47:AE48) -> 0
C50: Total Regulated Business
C51: =$C$31 -> - Depreciating assets | F51: C | G51: =$G$31 -> $'000 | O51: =O31+O35+O39+O43+O47 -> 0 | P51: 0 | Q51: 0 | R51: 0 | S51: 0 | T51: 0 | U51: 0 | V51: 0 | W51: 0 | X51: 0 | Y51: 0 | Z51: 0 | AA51: 0 | AB51: 0 | AC51: =AC31+AC35+AC39+AC43+AC47 -> 0 | AD51: 0 | AE51: =AE31+AE35+AE39+AE43+AE47 -> 0
C52: =$C$32 -> - Non-depreciating assets | F52: C | G52: =$G$31 -> $'000 | O52: =O32+O36+O40+O44+O48 -> 0 | P52: 0 | Q52: 0 | R52: 0 | S52: 0 | T52: 0 | U52: 0 | V52: 0 | W52: 0 | X52: 0 | Y52: 0 | Z52: 0 | AA52: 0 | AB52: 0 | AC52: =AC32+AC36+AC40+AC44+AC48 -> 0 | AD52: 0 | AE52: =AE32+AE36+AE40+AE44+AE48 -> 0
C53: =$C$33 -> - Total | F53: C | G53: =$G$31 -> $'000 | O53: =O33+O37+O41+O45+O49 -> 0 | P53: =P33+P37+P41+P45+P49 -> 0 | Q53: =Q33+Q37+Q41+Q45+Q49 -> 0 | R53: 0 | S53: 0 | T53: 0 | U53: 0 | V53: 0 | W53: 0 | X53: 0 | Y53: 0 | Z53: 0 | AA53: 0 | AB53: 0 | AC53: =AC33+AC37+AC41+AC45+AC49 -> 0 | AD53: 0 | AE53: =AE33+AE37+AE41+AE45+AE49 -> 0
C54: check = 0 | O54: =SUM(O51:O52)-SUM(O31:O32,O35:O36,O39:O40,O43:O44,O47:O48) -> 0 | P54: =SUM(P51:P52)-SUM(P31:P32,P35:P36,P39:P40,P43:P44,P47:P48) -> 0 | Q54: =SUM(Q51:Q52)-SUM(Q31:Q32,Q35:Q36,Q39:Q40,Q43:Q44,Q47:Q48) -> 0 | R54: 0 | S54: 0 | T54: 0 | U54: 0 | V54: 0 | W54: 0 | X54: 0 | Y54: 0 | Z54: 0 | AA54: 0 | AB54: 0 | AC54: =SUM(AC51:AC52)-SUM(AC31:AC32,AC35:AC36,AC39:AC40,AC43:AC44,AC47:AC48) -> 0 | AD54: 0 | AE54: =SUM(AE51:AE52)-SUM(AE31:AE32,AE35:AE36,AE39:AE40,AE43:AE44,AE47:AE48) -> 0
C56: Capital gains tax
C57: =C$30 -> Corporate
C58: =C$31 -> - Depreciating assets | F58: I | G58: =$G$31 -> $'000
C59: =C$32 -> - Non-depreciating assets | F59: I | G59: =$G$31 -> $'000
C60: =C$33 -> - Total | F60: C | G60: =$G$31 -> $'000 | V60: =SUM(V58:V59) -> 0 | W60: 0 | X60: 0 | Y60: 0 | Z60: 0 | AA60: 0 | AB60: 0 | AC60: =SUM(AC58:AC59) -> 0 | AD60: 0 | AE60: =SUM(AE58:AE59) -> 0
C61: =C$34 -> Water (excluding Section 16A Recycled Water)
C62: =C$35 -> - Depreciating assets | F62: I | G62: =$G$31 -> $'000
C63: =C$36 -> - Non-depreciating assets | F63: I | G63: =$G$31 -> $'000
C64: =C$37 -> - Total | F64: C | G64: =$G$31 -> $'000 | V64: =SUM(V62:V63) -> 0 | W64: 0 | X64: 0 | Y64: 0 | Z64: 0 | AA64: 0 | AB64: 0 | AC64: =SUM(AC62:AC63) -> 0 | AD64: 0 | AE64: =SUM(AE62:AE63) -> 0
C65: =C$38 -> Recycled Water (Regulated - 'Section 16A')
C66: =C$39 -> - Depreciating assets | F66: I | G66: =$G$31 -> $'000
C67: =C$40 -> - Non-depreciating assets | F67: I | G67: =$G$31 -> $'000
C68: =C$41 -> - Total | F68: C | G68: =$G$31 -> $'000 | V68: =SUM(V66:V67) -> 0 | W68: 0 | X68: 0 | Y68: 0 | Z68: 0 | AA68: 0 | AB68: 0 | AC68: =SUM(AC66:AC67) -> 0 | AD68: 0 | AE68: =SUM(AE66:AE67) -> 0
C69: =C$42 -> Wastewater
C70: =C$43 -> - Depreciating assets | F70: I | G70: =$G$31 -> $'000
C71: =C$44 -> - Non-depreciating assets | F71: I | G71: =$G$31 -> $'000
C72: =C$45 -> - Total | F72: C | G72: =$G$31 -> $'000 | V72: =SUM(V70:V71) -> 0 | W72: 0 | X72: 0 | Y72: 0 | Z72: 0 | AA72: 0 | AB72: 0 | AC72: =SUM(AC70:AC71) -> 0 | AD72: 0 | AE72: =SUM(AE70:AE71) -> 0
C73: =C$46 -> Stormwater
C74: =C$47 -> - Depreciating assets | F74: I | G74: =$G$31 -> $'000
C75: =C$48 -> - Non-depreciating assets | F75: I | G75: =$G$31 -> $'000
C76: =C$49 -> - Total | F76: C | G76: =$G$31 -> $'000 | V76: =SUM(V74:V75) -> 0 | W76: 0 | X76: 0 | Y76: 0 | Z76: 0 | AA76: 0 | AB76: 0 | AC76: =SUM(AC74:AC75) -> 0 | AD76: 0 | AE76: =SUM(AE74:AE75) -> 0
C77: =C$50 -> Total Regulated Business
C78: =C$51 -> - Depreciating assets | F78: C | G78: =$G$31 -> $'000 | V78: =V58+V62+V66+V70+V74 -> 0 | W78: 0 | X78: 0 | Y78: 0 | Z78: 0 | AA78: 0 | AB78: 0 | AC78: =AC58+AC62+AC66+AC70+AC74 -> 0 | AD78: 0 | AE78: =AE58+AE62+AE66+AE70+AE74 -> 0
C79: =C$52 -> - Non-depreciating assets | F79: C | G79: =$G$31 -> $'000 | V79: =V59+V63+V67+V71+V75 -> 0 | W79: 0 | X79: 0 | Y79: 0 | Z79: 0 | AA79: 0 | AB79: 0 | AC79: =AC59+AC63+AC67+AC71+AC75 -> 0 | AD79: 0 | AE79: =AE59+AE63+AE67+AE71+AE75 -> 0
C80: =C$53 -> - Total | F80: C | G80: =$G$31 -> $'000 | V80: 0 | W80: 0 | X80: 0 | Y80: 0 | Z80: 0 | AA80: 0 | AB80: 0 | AC80: =AC60+AC64+AC68+AC72+AC76 -> 0 | AD80: 0 | AE80: =AE60+AE64+AE68+AE72+AE76 -> 0
C81: check = 0 | V81: =SUM(V78:V79)-SUM(V58:V59,V62:V63,V66:V67,V70:V71,V74:V75) -> 0 | W81: 0 | X81: 0 | Y81: 0 | Z81: 0 | AA81: 0 | AB81: 0 | AC81: =SUM(AC78:AC79)-SUM(AC58:AC59,AC62:AC63,AC66:AC67,AC70:AC71,AC74:AC75) -> 0 | AD81: 0 | AE81: =SUM(AE78:AE79)-SUM(AE58:AE59,AE62:AE63,AE66:AE67,AE70:AE71,AE74:AE75) -> 0
R82: 2018 Asset Disposals Policy applies in this regulatory period
C83: Regulatory value of 'ordinary' disposals | R83: Depreciating assets are treated as 'non-significant'
A84: see note | C84: Sharing ratio (proportion returned to customers in the RAB) | R84: Non-depreciating assets are treated as pre-LIS significant
C85: =C31 -> - Depreciating assets | P85: 1 | Q85: =P85 -> 1 | R85: 1 | S85: 1 | T85: 1 | U85: 1 | V85: 0.5 | W85: =$V85 -> 0.5 | X85: =$V85 -> 0.5 | Y85: 0.5 | Z85: 0.5 | AA85: 0.5 | AB85: 0.5 | AC85: 0.5 | AD85: 0.5 | AE85: 0.5
C86: =C32 -> - Non-depreciating assets | P86: 0.42 | Q86: 0.42 | R86: 0.42 | S86: 0.42 | T86: 0.42 | U86: 0.42 | V86: =V85 -> 0.5 | W86: =W85 -> 0.5 | X86: =X85 -> 0.5 | Y86: 0.5 | Z86: 0.5 | AA86: 0.5 | AB86: 0.5 | AC86: 0.5 | AD86: 0.5 | AE86: 0.5
R87: 2018 Asset Disposals policy
C88: =C57 -> Corporate
C89: - Depreciating assets | F89: C | G89: =$G$31 -> $'000 | P89: =(P31-P58)*P$85 -> 0 | Q89: 0 | R89: 0 | S89: 0 | T89: 0 | U89: =(U31-U58)*U$85 -> 0 | V89: =(V31-V58)*V$85 -> 0 | W89: 0 | X89: 0 | Y89: 0 | Z89: 0 | AA89: 0 | AB89: 0 | AC89: 0 | AD89: 0 | AE89: 0
C90: - Non-depreciating assets | F90: C | G90: =$G$31 -> $'000 | P90: =(P32-P59)*P$86 -> 0 | Q90: 0 | R90: 0 | S90: 0 | T90: 0 | U90: =(U32-U59)*U$86 -> 0 | V90: =(V32-V59)*V$86 -> 0 | W90: 0 | X90: 0 | Y90: 0 | Z90: 0 | AA90: 0 | AB90: 0 | AC90: 0 | AD90: 0 | AE90: 0
C91: - Total | F91: C | G91: =$G$31 -> $'000 | P91: =SUM(P89:P90) -> 0 | Q91: 0 | R91: 0 | S91: 0 | T91: 0 | U91: =SUM(U89:U90) -> 0 | V91: 0 | W91: 0 | X91: 0 | Y91: 0 | Z91: 0 | AA91: 0 | AB91: 0 | AC91: =SUM(AC89:AC90) -> 0 | AD91: 0 | AE91: =SUM(AE89:AE90) -> 0
C92: Water (excluding Section 16A Recycled Water)
C93: - Depreciating assets | F93: C | G93: =$G$31 -> $'000 | P93: =(P35-P62)*P$85 -> 0 | Q93: 0 | R93: 0 | S93: 0 | T93: 0 | U93: =(U35-U62)*U$85 -> 0 | V93: 0 | W93: 0 | X93: 0 | Y93: 0 | Z93: 0 | AA93: 0 | AB93: 0 | AC93: 0 | AD93: 0 | AE93: 0
C94: - Non-depreciating assets | F94: C | G94: =$G$31 -> $'000 | P94: =(P36-P63)*P$86 -> 0 | Q94: 0 | R94: 0 | S94: 0 | T94: 0 | U94: =(U36-U63)*U$86 -> 0 | V94: 0 | W94: 0 | X94: 0 | Y94: 0 | Z94: 0 | AA94: 0 | AB94: 0 | AC94: 0 | AD94: 0 | AE94: 0
C95: - Total | F95: C | G95: =$G$31 -> $'000 | P95: =SUM(P93:P94) -> 0 | Q95: 0 | R95: 0 | S95: 0 | T95: 0 | U95: =SUM(U93:U94) -> 0 | V95: 0 | W95: 0 | X95: 0 | Y95: 0 | Z95: 0 | AA95: 0 | AB95: 0 | AC95: =SUM(AC93:AC94) -> 0 | AD95: 0 | AE95: =SUM(AE93:AE94) -> 0
C96: Recycled Water (Regulated - 'Section 16A')
C97: - Depreciating assets | F97: C | G97: =$G$31 -> $'000 | P97: =(P39-P66)*P$85 -> 0 | Q97: 0 | R97: 0 | S97: 0 | T97: 0 | U97: =(U39-U66)*U$85 -> 0 | V97: 0 | W97: 0 | X97: 0 | Y97: 0 | Z97: 0 | AA97: 0 | AB97: 0 | AC97: 0 | AD97: 0 | AE97: 0
C98: - Non-depreciating assets | F98: C | G98: =$G$31 -> $'000 | P98: =(P40-P67)*P$85 -> 0 | Q98: 0 | R98: 0 | S98: 0 | T98: 0 | U98: =(U40-U67)*U$85 -> 0 | V98: 0 | W98: 0 | X98: 0 | Y98: 0 | Z98: 0 | AA98: 0 | AB98: 0 | AC98: 0 | AD98: 0 | AE98: 0
C99: - Total | F99: C | G99: =$G$31 -> $'000 | P99: =SUM(P97:P98) -> 0 | Q99: 0 | R99: 0 | S99: 0 | T99: 0 | U99: =SUM(U97:U98) -> 0 | V99: 0 | W99: 0 | X99: 0 | Y99: 0 | Z99: 0 | AA99: 0 | AB99: 0 | AC99: =SUM(AC97:AC98) -> 0 | AD99: 0 | AE99: =SUM(AE97:AE98) -> 0
C100: Wastewater
C101: - Depreciating assets | F101: C | G101: =$G$31 -> $'000 | P101: =(P43-P70)*P$85 -> 0 | Q101: 0 | R101: 0 | S101: 0 | T101: 0 | U101: =(U43-U70)*U$85 -> 0 | V101: 0 | W101: 0 | X101: 0 | Y101: 0 | Z101: 0 | AA101: 0 | AB101: 0 | AC101: 0 | AD101: 0 | AE101: 0
C102: - Non-depreciating assets | F102: C | G102: =$G$31 -> $'000 | P102: =(P44-P71)*P$86 -> 0 | Q102: 0 | R102: 0 | S102: 0 | T102: 0 | U102: =(U44-U71)*U$86 -> 0 | V102: 0 | W102: 0 | X102: 0 | Y102: 0 | Z102: 0 | AA102: 0 | AB102: 0 | AC102: 0 | AD102: 0 | AE102: 0
C103: - Total | F103: C | G103: =$G$31 -> $'000 | P103: =SUM(P101:P102) -> 0 | Q103: 0 | R103: 0 | S103: 0 | T103: 0 | U103: =SUM(U101:U102) -> 0 | V103: 0 | W103: 0 | X103: 0 | Y103: 0 | Z103: 0 | AA103: 0 | AB103: 0 | AC103: =SUM(AC101:AC102) -> 0 | AD103: 0 | AE103: =SUM(AE101:AE102) -> 0
C104: Stormwater
C105: - Depreciating assets | F105: C | G105: =$G$31 -> $'000 | P105: =(P47-P74)*P$85 -> 0 | Q105: 0 | R105: 0 | S105: 0 | T105: 0 | U105: =(U47-U74)*U$85 -> 0 | V105: 0 | W105: 0 | X105: 0 | Y105: 0 | Z105: 0 | AA105: 0 | AB105: 0 | AC105: 0 | AD105: 0 | AE105: 0
C106: - Non-depreciating assets | F106: C | G106: =$G$31 -> $'000 | P106: =(P48-P75)*P$86 -> 0 | Q106: 0 | R106: 0 | S106: 0 | T106: 0 | U106: =(U48-U75)*U$86 -> 0 | V106: 0 | W106: 0 | X106: 0 | Y106: 0 | Z106: 0 | AA106: 0 | AB106: 0 | AC106: 0 | AD106: 0 | AE106: 0
C107: - Total | F107: C | G107: =$G$31 -> $'000 | P107: =SUM(P105:P106) -> 0 | Q107: 0 | R107: 0 | S107: 0 | T107: 0 | U107: =SUM(U105:U106) -> 0 | V107: 0 | W107: 0 | X107: 0 | Y107: 0 | Z107: 0 | AA107: 0 | AB107: 0 | AC107: =SUM(AC105:AC106) -> 0 | AD107: 0 | AE107: =SUM(AE105:AE106) -> 0
C108: Total Regulated Business
C109: - Depreciating assets | F109: C | G109: =$G$31 -> $'000 | P109: =P89+P93+P97+P101+P105 -> 0 | Q109: =Q89+Q93+Q97+Q101+Q105 -> 0 | R109: 0 | S109: 0 | T109: 0 | U109: 0 | V109: 0 | W109: 0 | X109: 0 | Y109: 0 | Z109: 0 | AA109: 0 | AB109: 0 | AC109: 0 | AD109: 0 | AE109: 0
C110: - Non-depreciating assets | F110: C | G110: =$G$31 -> $'000 | P110: =P90+P94+P98+P102+P106 -> 0 | Q110: =Q90+Q94+Q98+Q102+Q106 -> 0 | R110: 0 | S110: 0 | T110: 0 | U110: 0 | V110: 0 | W110: 0 | X110: 0 | Y110: 0 | Z110: 0 | AA110: 0 | AB110: 0 | AC110: 0 | AD110: 0 | AE110: 0
C111: - Total | F111: C | G111: =$G$31 -> $'000 | P111: =SUM(P109:P110) -> 0 | Q111: =SUM(Q109:Q110) -> 0 | R111: 0 | S111: 0 | T111: 0 | U111: 0 | V111: 0 | W111: 0 | X111: 0 | Y111: 0 | Z111: 0 | AA111: 0 | AB111: 0 | AC111: 0 | AD111: 0 | AE111: 0
C112: check = 0 | P112: =SUM(P109:P110)-SUM(P89:P90,P93:P94,P97:P98,P101:P102,P105:P106) -> 0 | Q112: =SUM(Q109:Q110)-SUM(Q89:Q90,Q93:Q94,Q97:Q98,Q101:Q102,Q105:Q106) -> 0 | R112: 0 | S112: 0 | T112: 0 | U112: 0 | V112: 0 | W112: 0 | X112: 0 | Y112: 0 | Z112: 0 | AA112: 0 | AB112: 0 | AC112: 0 | AD112: 0 | AE112: 0
C113: Sales and remediation costs (for information)
C114: =C30 -> Corporate | F114: C | G114: =$G$31 -> $'000
C115: =C61 -> Water (excluding Section 16A Recycled Water)
C116: =C65 -> Recycled Water (Regulated - 'Section 16A') | F116: C | G116: =$G$31 -> $'000
C117: =C69 -> Wastewater | F117: C | G117: =$G$31 -> $'000
C118: =C73 -> Stormwater | F118: C | G118: =$G$31 -> $'000
C119: Total Regulated Business | F119: C | G119: =$G$31 -> $'000 | P119: =SUM(P114:P118) -> 0 | Q119: 0 | R119: 0 | S119: 0 | T119: 0 | U119: =SUM(U114:U118) -> 0 | V119: 0 | W119: 0 | X119: 0 | Y119: 0 | Z119: 0 | AA119: 0 | AB119: 0 | AC119: =SUM(AC114:AC118) -> 0 | AD119: 0 | AE119: =SUM(AE114:AE118) -> 0
C123: Table 5.2 - Regulatory value of exceptional disposals ($'000) | AG123: ='Non-financial'!$AG$17 -> COMMENTS TO IPART
C124: ='Non-financial'!C$18 -> Financial year | D124: ='Non-financial'!$D$18 -> OPTIONAL FIELDS | J124: ='Non-financial'!J$18 -> 2013-14 | K124: ='Non-financial'!K$18 -> 2014-15 | L124: ='Non-financial'!L$18 -> 2015-16 | M124: ='Non-financial'!M$18 -> 2016-17 | N124: ='Non-financial'!N$18 -> 2017-18 | O124: ='Non-financial'!O$18 -> 2018-19 | P124: ='Non-financial'!P$18 -> 2019-20 | Q124: ='Non-financial'!Q$18 -> 2020-21 | R124: ='Non-financial'!R$18 -> 2021-22 | S124: ='Non-financial'!S$18 -> 2022-23 | T124: ='Non-financial'!T$18 -> 2023-24 | U124: ='Non-financial'!U$18 -> 2024-25 | V124: ='Non-financial'!V$18 -> 2025-26 | W124: ='Non-financial'!W$18 -> 2026-27 | X124: ='Non-financial'!X$18 -> 2027-28 | Y124: ='Non-financial'!Y$18 -> 2028-29 | Z124: ='Non-financial'!Z$18 -> 2029-30 | AA124: ='Non-financial'!AA$18 -> 2030-31 | AB124: ='Non-financial'!AB$18 -> 2031-32 | AC124: ='Non-financial'!AC$18 -> 2032-33 | AD124: ='Non-financial'!AD$18 -> 2033-34 | AE124: ='Non-financial'!AE$18 -> 2034-35 | AG124: ='Non-financial'!$AG$18 -> 2023
D125: ='Non-financial'!D$19 -> Code | E125: ='Non-financial'!E$19 -> 0 | F125: ='Non-financial'!F$19 -> I/C | G125: ='Non-financial'!G$19 -> Unit | H125: ='Non-financial'!H102 -> 0 | J125: ='Non-financial'!J$19 -> Actual | K125: ='Non-financial'!K$19 -> Actual | L125: ='Non-financial'!L$19 -> Actual | M125: ='Non-financial'!M$19 -> Actual | N125: ='Non-financial'!N$19 -> Actual | O125: ='Non-financial'!O$19 -> Actual | P125: ='Non-financial'!P$19 -> Actual | Q125: ='Non-financial'!Q$19 -> Actual | R125: ='Non-financial'!R$19 -> Actual | S125: ='Non-financial'!S$19 -> Actual | T125: ='Non-financial'!T$19 -> Forecast | U125: ='Non-financial'!U$19 -> Forecast | V125: ='Non-financial'!V$19 -> Forecast | W125: ='Non-financial'!W$19 -> Forecast | X125: ='Non-financial'!X$19 -> Forecast | Y125: ='Non-financial'!Y$19 -> Forecast | Z125: ='Non-financial'!Z$19 -> Forecast | AA125: ='Non-financial'!AA$19 -> Forecast | AB125: ='Non-financial'!AB$19 -> Forecast | AC125: ='Non-financial'!AC$19 -> Forecast | AD125: ='Non-financial'!AD$19 -> Forecast | AE125: ='Non-financial'!AE$19 -> Forecast
C127: Under our 2022 asset disposals policy, the default position is that all disposals are considered 'ordinary'. Exceptions are considered on a case-by-case basis, subject to materiality.
C128: You will need to explain and justify your proposal in your pricing submission.
R130: 2018 Asset Disposals Policy applies in this regulatory period
C131: =C88 -> Corporate | R131: Enter the regulatory value of post-LIS significant disposals
C132: <describe disposal here> | F132: I | G132: =$G$31 -> $'000
C133: <describe disposal here> | F133: I | G133: $'000
C134: <describe disposal here> | F134: I | G134: $'000
C135: <describe disposal here> | F135: I | G135: $'000
C136: ="Total "&C131 -> Total Corporate | F136: C | G136: $'000 | P136: =SUM(P132:P135) -> 0 | Q136: =SUM(Q132:Q135) -> 0 | R136: 0 | S136: =SUM(S132:S135) -> 0 | T136: 0 | U136: 0 | V136: 0 | W136: 0 | X136: 0 | Y136: 0 | Z136: 0 | AA136: 0 | AB136: 0 | AC136: =SUM(AC132:AC135) -> 0 | AD136: 0 | AE136: =SUM(AE132:AE135) -> 0
C137: =C92 -> Water (excluding Section 16A Recycled Water)
C138: <describe disposal here> | F138: I | G138: $'000
C139: <describe disposal here> | F139: I | G139: $'000
C140: <describe disposal here> | F140: I | G140: $'000
C141: <describe disposal here> | F141: I | G141: $'000
C142: ="Total "&C137 -> Total Water (excluding Section 16A Recycled Water) | F142: C | G142: $'000 | P142: =SUM(P138:P141) -> 0 | Q142: =SUM(Q138:Q141) -> 0 | R142: 0 | S142: =SUM(S138:S141) -> 0 | T142: =SUM(T138:T141) -> 0 | U142: 0 | V142: 0 | W142: 0 | X142: 0 | Y142: 0 | Z142: 0 | AA142: 0 | AB142: 0 | AC142: =SUM(AC138:AC141) -> 0 | AD142: 0 | AE142: =SUM(AE138:AE141) -> 0
C143: =C96 -> Recycled Water (Regulated - 'Section 16A')
C144: <describe disposal here> | F144: I | G144: $'000
C145: <describe disposal here> | F145: I | G145: $'000
C146: <describe disposal here> | F146: I | G146: $'000
C147: <describe disposal here> | F147: I | G147: $'000
C148: ="Total "&C143 -> Total Recycled Water (Regulated - 'Section 16A') | F148: C | G148: $'000 | P148: =SUM(P144:P147) -> 0 | Q148: =SUM(Q144:Q147) -> 0 | R148: 0 | S148: =SUM(S144:S147) -> 0 | T148: =SUM(T144:T147) -> 0 | U148: 0 | V148: 0 | W148: 0 | X148: 0 | Y148: 0 | Z148: 0 | AA148: 0 | AB148: 0 | AC148: =SUM(AC144:AC147) -> 0 | AD148: 0 | AE148: =SUM(AE144:AE147) -> 0
C149: =C100 -> Wastewater
C150: <describe disposal here> | F150: I | G150: $'000
C151: <describe disposal here> | F151: I | G151: $'000
C152: <describe disposal here> | F152: I | G152: $'000
C153: <describe disposal here> | F153: I | G153: $'000
C154: ="Total "&C149 -> Total Wastewater | F154: C | G154: $'000 | P154: =SUM(P150:P153) -> 0 | Q154: =SUM(Q150:Q153) -> 0 | R154: 0 | S154: =SUM(S150:S153) -> 0 | T154: =SUM(T150:T153) -> 0 | U154: 0 | V154: 0 | W154: 0 | X154: 0 | Y154: 0 | Z154: 0 | AA154: 0 | AB154: 0 | AC154: =SUM(AC150:AC153) -> 0 | AD154: 0 | AE154: =SUM(AE150:AE153) -> 0
C155: =C104 -> Stormwater
C156: <describe disposal here> | F156: I | G156: $'000
C157: <describe disposal here> | F157: I | G157: $'000 | S157: 2
C158: <describe disposal here> | F158: I | G158: $'000
C159: <describe disposal here> | F159: I | G159: $'000
C160: ="Total "&C155 -> Total Stormwater | F160: C | G160: $'000 | P160: =SUM(P156:P159) -> 0 | Q160: =SUM(Q156:Q159) -> 0 | R160: 0 | S160: 2 | T160: 0 | U160: 0 | V160: 0 | W160: 0 | X160: 0 | Y160: 0 | Z160: 0 | AA160: 0 | AB160: 0 | AC160: =SUM(AC156:AC159) -> 0 | AD160: 0 | AE160: =SUM(AE156:AE159) -> 0
C162: Total Regulated Business | F162: C | G162: $'000 | P162: =SUM(P132:P135,P138:P141,P144:P147,P150:P153,P156:P159) -> 0 | Q162: =SUM(Q132:Q135,Q138:Q141,Q144:Q147,Q150:Q153,Q156:Q159) -> 0 | R162: 0 | S162: 2 | T162: 0 | U162: 0 | V162: 0 | W162: 0 | X162: 0 | Y162: 0 | Z162: 0 | AA162: 0 | AB162: 0 | AC162: =SUM(AC132:AC135,AC138:AC141,AC144:AC147,AC150:AC153,AC156:AC159) -> 0 | AD162: 0 | AE162: =SUM(AE132:AE135,AE138:AE141,AE144:AE147,AE150:AE153,AE156:AE159) -> 0
C166: Table 5.3 - Alternative regulatory asset disposals values - Cost Allocation Manual (CAM) values, Sydney Water only for 2020 determination period | AG166: ='Non-financial'!$AG$17 -> COMMENTS TO IPART
C167: ='Non-financial'!C$18 -> Financial year | D167: ='Non-financial'!$D$18 -> OPTIONAL FIELDS | J167: ='Non-financial'!J$18 -> 2013-14 | K167: ='Non-financial'!K$18 -> 2014-15 | L167: ='Non-financial'!L$18 -> 2015-16 | M167: ='Non-financial'!M$18 -> 2016-17 | N167: ='Non-financial'!N$18 -> 2017-18 | O167: ='Non-financial'!O$18 -> 2018-19 | P167: ='Non-financial'!P$18 -> 2019-20 | Q167: ='Non-financial'!Q$18 -> 2020-21 | R167: ='Non-financial'!R$18 -> 2021-22 | S167: ='Non-financial'!S$18 -> 2022-23 | T167: ='Non-financial'!T$18 -> 2023-24 | U167: ='Non-financial'!U$18 -> 2024-25 | V167: ='Non-financial'!V$18 -> 2025-26 | W167: ='Non-financial'!W$18 -> 2026-27 | X167: ='Non-financial'!X$18 -> 2027-28 | Y167: ='Non-financial'!Y$18 -> 2028-29 | Z167: ='Non-financial'!Z$18 -> 2029-30 | AA167: ='Non-financial'!AA$18 -> 2030-31 | AB167: ='Non-financial'!AB$18 -> 2031-32 | AC167: ='Non-financial'!AC$18 -> 2032-33 | AD167: ='Non-financial'!AD$18 -> 2033-34 | AE167: ='Non-financial'!AE$18 -> 2034-35 | AG167: ='Non-financial'!$AG$18 -> 2023
D168: ='Non-financial'!D$19 -> Code | E168: ='Non-financial'!E$19 -> 0 | F168: ='Non-financial'!F$19 -> I/C | G168: ='Non-financial'!G$19 -> Unit | H168: ='Non-financial'!H124 -> 0 | J168: ='Non-financial'!J$19 -> Actual | K168: ='Non-financial'!K$19 -> Actual | L168: ='Non-financial'!L$19 -> Actual | M168: ='Non-financial'!M$19 -> Actual | N168: ='Non-financial'!N$19 -> Actual | O168: ='Non-financial'!O$19 -> Actual | P168: ='Non-financial'!P$19 -> Actual | Q168: ='Non-financial'!Q$19 -> Actual | R168: ='Non-financial'!R$19 -> Actual | S168: ='Non-financial'!S$19 -> Actual | T168: ='Non-financial'!T$19 -> Forecast | U168: ='Non-financial'!U$19 -> Forecast | V168: ='Non-financial'!V$19 -> Forecast | W168: ='Non-financial'!W$19 -> Forecast | X168: ='Non-financial'!X$19 -> Forecast | Y168: ='Non-financial'!Y$19 -> Forecast | Z168: ='Non-financial'!Z$19 -> Forecast | AA168: ='Non-financial'!AA$19 -> Forecast | AB168: ='Non-financial'!AB$19 -> Forecast | AC168: ='Non-financial'!AC$19 -> Forecast | AD168: ='Non-financial'!AD$19 -> Forecast | AE168: ='Non-financial'!AE$19 -> Forecast
C171: =C$30 -> Corporate
C172: =C$31 -> - Depreciating assets | F172: I | G172: =$G$31 -> $'000
C173: =C$32 -> - Non-depreciating assets | F173: I | G173: =$G$31 -> $'000
C174: =C$33 -> - Total | F174: C | G174: =$G$31 -> $'000 | O174: =SUM(O172:O173) -> 0 | P174: =SUM(P172:P173) -> 0 | Q174: =SUM(Q172:Q173) -> 0 | R174: 0 | S174: =SUM(S172:S173) -> 0 | T174: 0 | U174: =SUM(U172:U173) -> 0
C175: =C$34 -> Water (excluding Section 16A Recycled Water)
C176: =C$35 -> - Depreciating assets | F176: I | G176: =$G$31 -> $'000
C177: =C$36 -> - Non-depreciating assets | F177: I | G177: =$G$31 -> $'000
C178: =C$37 -> - Total | F178: C | G178: =$G$31 -> $'000 | O178: =SUM(O176:O177) -> 0 | P178: =SUM(P176:P177) -> 0 | Q178: =SUM(Q176:Q177) -> 0 | R178: 0 | S178: =SUM(S176:S177) -> 0 | T178: 0 | U178: =SUM(U176:U177) -> 0
C179: =C$38 -> Recycled Water (Regulated - 'Section 16A')
C180: =C$39 -> - Depreciating assets | F180: I | G180: =$G$31 -> $'000
C181: =C$40 -> - Non-depreciating assets | F181: I | G181: =$G$31 -> $'000
C182: =C$41 -> - Total | F182: C | G182: =$G$31 -> $'000 | O182: =SUM(O180:O181) -> 0 | P182: =SUM(P180:P181) -> 0 | Q182: =SUM(Q180:Q181) -> 0 | R182: 0 | S182: =SUM(S180:S181) -> 0 | T182: 0 | U182: =SUM(U180:U181) -> 0
C183: =C$42 -> Wastewater
C184: =C$43 -> - Depreciating assets | F184: I | G184: =$G$31 -> $'000
C185: =C$44 -> - Non-depreciating assets | F185: I | G185: =$G$31 -> $'000
C186: =C$45 -> - Total | F186: C | G186: =$G$31 -> $'000 | O186: =SUM(O184:O185) -> 0 | P186: 0 | Q186: 0 | R186: 0 | S186: =SUM(S184:S185) -> 0 | T186: 0 | U186: =SUM(U184:U185) -> 0
C187: =C$46 -> Stormwater
C188: =C$47 -> - Depreciating assets | F188: I | G188: =$G$31 -> $'000
C189: =C$48 -> - Non-depreciating assets | F189: I | G189: =$G$31 -> $'000 | O189: 0.006853656 | Q189: 0
C190: =C$49 -> - Total | F190: C | G190: =$G$31 -> $'000 | O190: 0.006853656 | P190: 0 | Q190: 0 | R190: 0 | S190: =SUM(S188:S189) -> 0 | T190: 0 | U190: =SUM(U188:U189) -> 0
C191: =C$50 -> Total Regulated Business
C192: =C$51 -> - Depreciating assets | F192: C | G192: =$G$31 -> $'000 | O192: =O172+O176+O180+O184+O188 -> 0 | P192: 0 | Q192: 0 | R192: 0 | S192: =S172+S176+S180+S184+S188 -> 0 | T192: 0 | U192: =U172+U176+U180+U184+U188 -> 0
C193: =C$52 -> - Non-depreciating assets | F193: C | G193: =$G$31 -> $'000 | O193: =O173+O177+O181+O185+O189 -> 0.006853656 | P193: 0 | Q193: 0 | R193: 0 | S193: =S173+S177+S181+S185+S189 -> 0 | T193: 0 | U193: =U173+U177+U181+U185+U189 -> 0
C194: =C$53 -> - Total | F194: C | G194: =$G$31 -> $'000 | O194: =O174+O178+O182+O186+O190 -> 0.006853656 | P194: 0 | Q194: 0 | R194: 0 | S194: =S174+S178+S182+S186+S190 -> 0 | T194: 0 | U194: =U174+U178+U182+U186+U190 -> 0
O195: =SUM(O192:O193)-SUM(O172:O173,O176:O177,O180:O181,O184:O185,O188:O189) -> 0 | P195: =SUM(P192:P193)-SUM(P172:P173,P176:P177,P180:P181,P184:P185,P188:P189) -> 0 | Q195: 0 | R195: 0 | S195: 0 | T195: 0 | U195: 0 | V195: 0 | W195: 0 | X195: 0 | Y195: 0 | Z195: 0 | AA195: 0 | AB195: 0 | AC195: =SUM(AC192:AC193)-SUM(AC172:AC173,AC176:AC177,AC180:AC181,AC184:AC185,AC188:AC189) -> 0 | AD195: 0 | AE195: =SUM(AE192:AE193)-SUM(AE172:AE173,AE176:AE177,AE180:AE181,AE184:AE185,AE188:AE189) -> 0
AD313: ``

Sheet Revenue
B2: =Cover!B5 -> Metropolitan Water Agency | G2: =Cover!E5 -> Abusiness
B3: Section 6 | G3: Revenue
B4: =MID(CELL("filename",A4),FIND("]",CELL("filename",A4))+1,255) -> Revenue
B6: ='Non-financial'!B7 -> Colour coding located on Cover sheet
B7: ='Non-financial'!B8 -> Leave cells blank if no information exists - PLEASE DO NOT ENTER TEXT unless specifically requested to do so.
B8: ='Non-financial'!$B$9 -> We require forecasts only for purposes of a price review, when we also require the business to provide SIR information. (In other years we will hide the forecast columns.)
B10: NOTES
B11: (i) | C11: For the 2020 determination period, include revenue from 'discretionary' projects (Sydney Water and Hunter Water only).
B12: (ii) | C12: ="Forecasts are for normal weather conditions. The SIR makes provision for drought condition forecasts (see "&'SIR Contingent costs'!$B$4&", "&LEFT('SIR Contingent costs'!$C$113,9)&")" -> Forecasts are for normal weather conditions. The SIR makes provision for drought condition forecasts (see SIR Contingent costs, Table 7.2)
B13: (iii) | C13: =LEFT(C150,9)&" reconciles the historical revenue entered in this worksheet with revenue from your statutory financial statements. The latter is entered in the "&'Fin Data '!$B$4&" worksheet (historical only, projections not required.)" -> Table 6.4 reconciles the historical revenue entered in this worksheet with revenue from your statutory financial statements. The latter is entered in the Fin Data worksheet (historical only, projections not required.)
B16: Note: This worksheet will be adapted where necessary to better suit the individual business' pricing structure and regulatory period.
C18: Table 6.1 - Revenue from service availability and usage charges - regulated businesses ($'000) | AG18: ='Non-financial'!$AG$17 -> COMMENTS TO IPART
C19: ='Non-financial'!C$18 -> Financial year | D19: OPTIONAL FIELDS | J19: ='Non-financial'!J$18 -> 2013-14 | K19: ='Non-financial'!K$18 -> 2014-15 | L19: ='Non-financial'!L$18 -> 2015-16 | M19: ='Non-financial'!M$18 -> 2016-17 | N19: ='Non-financial'!N$18 -> 2017-18 | O19: ='Non-financial'!O$18 -> 2018-19 | P19: ='Non-financial'!P$18 -> 2019-20 | Q19: ='Non-financial'!Q$18 -> 2020-21 | R19: ='Non-financial'!R$18 -> 2021-22 | S19: ='Non-financial'!S$18 -> 2022-23 | T19: ='Non-financial'!T$18 -> 2023-24 | U19: ='Non-financial'!U$18 -> 2024-25 | V19: ='Non-financial'!V$18 -> 2025-26 | W19: ='Non-financial'!W$18 -> 2026-27 | X19: ='Non-financial'!X$18 -> 2027-28 | Y19: ='Non-financial'!Y$18 -> 2028-29 | Z19: ='Non-financial'!Z$18 -> 2029-30 | AA19: ='Non-financial'!AA$18 -> 2030-31 | AB19: ='Non-financial'!AB$18 -> 2031-32 | AC19: ='Non-financial'!AC$18 -> 2032-33 | AD19: ='Non-financial'!AD$18 -> 2033-34 | AE19: ='Non-financial'!AE$18 -> 2034-35 | AG19: ='Non-financial'!$AG$18 -> 2023
D20: ='Non-financial'!D$19 -> Code | F20: ='Non-financial'!F$19 -> I/C | G20: ='Non-financial'!G$19 -> Unit | H20: ='Non-financial'!H19 -> 0 | J20: ='Non-financial'!J$19 -> Actual | K20: ='Non-financial'!K$19 -> Actual | L20: ='Non-financial'!L$19 -> Actual | M20: ='Non-financial'!M$19 -> Actual | N20: ='Non-financial'!N$19 -> Actual | O20: ='Non-financial'!O$19 -> Actual | P20: ='Non-financial'!P$19 -> Actual | Q20: ='Non-financial'!Q$19 -> Actual | R20: ='Non-financial'!R$19 -> Actual | S20: ='Non-financial'!S$19 -> Actual | T20: ='Non-financial'!T$19 -> Forecast | U20: ='Non-financial'!U$19 -> Forecast | V20: ='Non-financial'!V$19 -> Forecast | W20: ='Non-financial'!W$19 -> Forecast | X20: ='Non-financial'!X$19 -> Forecast | Y20: ='Non-financial'!Y$19 -> Forecast | Z20: ='Non-financial'!Z$19 -> Forecast | AA20: ='Non-financial'!AA$19 -> Forecast | AB20: ='Non-financial'!AB$19 -> Forecast | AC20: ='Non-financial'!AC$19 -> Forecast | AD20: ='Non-financial'!AD$19 -> Forecast | AE20: ='Non-financial'!AE$19 -> Forecast
C21: Inflation rate for application to prices (lagged CPI to March) | G21: % pa | J21: 0.025 | K21: 0.029 | L21: 0.013 | M21: 0.013 | N21: 0.021 | O21: 0.019 | P21: 0.013 | Q21: 0.022 | R21: 0.011 | S21: 0.051 | T21: 0 | U21: 0 | V21: 0 | W21: 0 | X21: 0 | Y21: 0 | Z21: 0 | AA21: 0 | AB21: 0 | AC21: 0 | AD21: 0 | AE21: 0
V22: ="Provide forecasts in real $"&Cover!$E$11&". Forecasts are for normal weather conditions." -> Provide forecasts in real $2023-24. Forecasts are for normal weather conditions.
C23: Residential sales revenue | U23: Including revenue from ''discretionary' projects under the 2020 determination
S24: Sydney Water and Hunter Water only
C26: Water - filtered
C27: - service availability charges | F27: I | G27: =Cover!$K$6 -> $'000
C28: - usage charges | F28: I | G28: =G$27 -> $'000
C29: Total charges | F29: C | G29: =G$27 -> $'000 | J29: =SUM(J27:J28) -> 0 | K29: 0 | L29: 0 | M29: 0 | N29: 0 | O29: 0 | P29: 0 | Q29: 0 | R29: 0 | S29: 0 | T29: 0 | U29: 0 | V29: 0 | W29: 0 | X29: 0 | Y29: 0 | Z29: 0 | AA29: 0 | AB29: 0 | AC29: 0 | AD29: 0 | AE29: 0
C31: Recycled water - Section 16A related
C32: - service availability charges | F32: I | G32: =Cover!$K$6 -> $'000
C33: - usage charges | F33: I | G33: =G$27 -> $'000
C34: Total charges | F34: C | G34: =G$27 -> $'000 | J34: =SUM(J32:J33) -> 0 | K34: 0 | L34: 0 | M34: 0 | N34: 0 | O34: 0 | P34: 0 | Q34: 0 | R34: 0 | S34: 0 | T34: 0 | U34: 0 | V34: 0 | W34: 0 | X34: 0 | Y34: 0 | Z34: 0 | AA34: 0 | AB34: 0 | AC34: 0 | AD34: 0 | AE34: 0
C36: Wastewater
C37: - service availability charges | F37: I | G37: =G$27 -> $'000
C38: - usage charges | F38: I | G38: $'000
C39: Total charges | F39: C | G39: $'000 | J39: =SUM(J37:J38) -> 0 | K39: 0 | L39: 0 | M39: 0 | N39: 0 | O39: 0 | P39: 0 | Q39: 0 | R39: 0 | S39: 0 | T39: 0 | U39: 0 | V39: 0 | W39: 0 | X39: 0 | Y39: 0 | Z39: 0 | AA39: 0 | AB39: 0 | AC39: =SUM(AC37:AC38) -> 0 | AD39: 0 | AE39: 0
C41: Stormwater (including Rouse Hill - Sydney Water only)
C42: - service availability charges | F42: I | G42: =G$27 -> $'000
C43: Total charges | F43: C | G43: $'000 | J43: =SUM(J42:J42) -> 0 | K43: 0 | L43: 0 | M43: 0 | N43: 0 | O43: 0 | P43: 0 | Q43: 0 | R43: 0 | S43: 0 | T43: 0 | U43: 0 | V43: 0 | W43: 0 | X43: 0 | Y43: 0 | Z43: 0 | AA43: 0 | AB43: 0 | AC43: =SUM(AC42:AC42) -> 0 | AD43: 0 | AE43: 0
C45: Total residential | F45: C | G45: $'000 | J45: =J29+J34+J39+J43 -> 0 | K45: 0 | L45: 0 | M45: 0 | N45: 0 | O45: 0 | P45: 0 | Q45: 0 | R45: 0 | S45: 0 | T45: 0 | U45: 0 | V45: 0 | W45: 0 | X45: 0 | Y45: 0 | Z45: 0 | AA45: 0 | AB45: 0 | AC45: =AC29+AC34+AC39+AC43 -> 0 | AD45: 0 | AE45: 0
C47: Non-residential sales revenue
C49: Water - filtered
C50: - service availability charges | F50: I | G50: =G$27 -> $'000
C51: - usage charges | F51: I | G51: $'000
C52: Total charges | F52: C | G52: $'000 | J52: =SUM(J50:J51) -> 0 | K52: 0 | L52: 0 | M52: 0 | N52: 0 | O52: 0 | P52: 0 | Q52: 0 | R52: 0 | S52: 0 | T52: 0 | U52: 0 | V52: 0 | W52: 0 | X52: 0 | Y52: 0 | Z52: 0 | AA52: 0 | AB52: 0 | AC52: =SUM(AC50:AC51) -> 0 | AD52: 0 | AE52: 0
C54: Recycled water - Section 16A related
C55: - service availability charges | F55: I | G55: =Cover!$K$6 -> $'000
C56: - usage charges | F56: I | G56: =G$27 -> $'000
C57: Total charges | F57: C | G57: =G$27 -> $'000 | J57: =SUM(J55:J56) -> 0 | K57: 0 | L57: 0 | M57: 0 | N57: 0 | O57: 0 | P57: 0 | Q57: 0 | R57: 0 | S57: 0 | T57: 0 | U57: 0 | V57: 0 | W57: 0 | X57: 0 | Y57: 0 | Z57: 0 | AA57: 0 | AB57: 0 | AC57: =SUM(AC55:AC56) -> 0 | AD57: 0 | AE57: 0
C59: Water - unfiltered
C60: - usage charges | F60: I | G60: =G$27 -> $'000
C62: Revenue from bulk water sales (regulated price only) | F62: C | G62: =G$27 -> $'000 | J62: =' Bulk Water'!J160 -> 0 | K62: =' Bulk Water'!K160 -> 0 | L62: =' Bulk Water'!L160 -> 0 | M62: =' Bulk Water'!M160 -> 0 | N62: =' Bulk Water'!N160 -> 0 | O62: =' Bulk Water'!O160 -> 0 | P62: =' Bulk Water'!P160 -> 0 | Q62: =' Bulk Water'!Q160 -> 0 | R62: =' Bulk Water'!R160 -> 0 | S62: =' Bulk Water'!S160 -> 0 | T62: =' Bulk Water'!T160 -> 0 | U62: =' Bulk Water'!U160 -> 0 | V62: =' Bulk Water'!V160 -> 0 | W62: =' Bulk Water'!W160 -> 0 | X62: =' Bulk Water'!X160 -> 0 | Y62: =' Bulk Water'!Y160 -> 0 | Z62: =' Bulk Water'!Z160 -> 0 | AA62: =' Bulk Water'!AA160 -> 0 | AB62: =' Bulk Water'!AB160 -> 0 | AC62: =' Bulk Water'!AC160 -> 0 | AD62: =' Bulk Water'!AD160 -> 0 | AE62: =' Bulk Water'!AE160 -> 0
C64: Wastewater
C65: - service availability charges | F65: I | G65: =G$27 -> $'000
C66: - usage charges | F66: I | G66: $'000
C67: - trade waste charges | F67: I | G67: $'000
C68: Total charges | F68: C | G68: $'000 | J68: =SUM(J65:J67) -> 0 | K68: 0 | L68: 0 | M68: 0 | N68: 0 | O68: 0 | P68: 0 | Q68: 0 | R68: 0 | S68: 0 | T68: 0 | U68: 0 | V68: 0 | W68: 0 | X68: 0 | Y68: 0 | Z68: 0 | AA68: 0 | AB68: 0 | AC68: =SUM(AC65:AC67) -> 0 | AD68: 0 | AE68: 0
C70: =C41 -> Stormwater (including Rouse Hill - Sydney Water only)
C71: - service availability charges | F71: I | G71: =G$27 -> $'000
C72: Total charges | F72: C | G72: $'000 | J72: =SUM(J71:J71) -> 0 | K72: 0 | L72: 0 | M72: 0 | N72: 0 | O72: 0 | P72: 0 | Q72: 0 | R72: 0 | S72: 0 | T72: 0 | U72: 0 | V72: 0 | W72: 0 | X72: 0 | Y72: 0 | Z72: 0 | AA72: 0 | AB72: 0 | AC72: =SUM(AC71:AC71) -> 0 | AD72: 0 | AE72: 0
C74: Total non-residential | F74: C | G74: $'000 | J74: =J52+J57+J60+J68+J72+J62 -> 0 | K74: =K52+K57+K60+K68+K72+K62 -> 0 | L74: 0 | M74: 0 | N74: 0 | O74: 0 | P74: 0 | Q74: 0 | R74: 0 | S74: 0 | T74: 0 | U74: 0 | V74: 0 | W74: 0 | X74: 0 | Y74: 0 | Z74: 0 | AA74: 0 | AB74: 0 | AC74: =AC52+AC57+AC60+AC68+AC72+AC62 -> 0 | AD74: 0 | AE74: 0
C75: Gross residential and non-residential sales revenue | F75: C | G75: $'000 | J75: =J74+J45 -> 0 | K75: 0 | L75: 0 | M75: 0 | N75: 0 | O75: 0 | P75: 0 | Q75: 0 | R75: 0 | S75: 0 | T75: 0 | U75: 0 | V75: 0 | W75: 0 | X75: 0 | Y75: 0 | Z75: 0 | AA75: 0 | AB75: 0 | AC75: =AC74+AC45 -> 0 | AD75: 0 | AE75: 0
C77: Foregone revenue (CSOs)
C79: By sources
C80: - pensioner rebates | F80: I | G80: =G$27 -> $'000
C81: - exempt properties | F81: I | G81: $'000
C82: - other | F82: I | G82: $'000
C83: Total forgone revenue | F83: C | G83: $'000 | J83: =SUM(J80:J82) -> 0 | K83: 0 | L83: 0 | M83: 0 | N83: =SUM(N80:N82) -> 0 | O83: =SUM(O80:O82) -> 0 | P83: 0 | Q83: 0 | R83: 0 | S83: 0 | T83: 0 | U83: 0 | V83: 0 | W83: 0 | X83: 0 | Y83: 0 | Z83: 0 | AA83: =SUM(AA80:AA82) -> 0 | AB83: 0 | AC83: =SUM(AC80:AC82) -> 0 | AD83: 0 | AE83: 0
C85: By businesses
C86: Water | F86: I | G86: =G$27 -> $'000
C87: Wastewater | F87: I | G87: $'000
C88: Stormwater | F88: C | G88: $'000 | J88: =J89-SUM(J86:J87) -> 0 | K88: 0 | L88: 0 | M88: 0 | N88: =N89-SUM(N86:N87) -> 0 | O88: =O89-SUM(O86:O87) -> 0 | P88: 0 | Q88: 0 | R88: 0 | S88: 0 | T88: 0 | U88: 0 | V88: 0 | W88: 0 | X88: 0 | Y88: 0 | Z88: 0 | AA88: =AA89-SUM(AA86:AA87) -> 0 | AB88: 0 | AC88: =AC89-SUM(AC86:AC87) -> 0 | AD88: 0 | AE88: 0
C89: Total forgone revenue | F89: C | G89: $'000 | J89: =J83 -> 0 | K89: 0 | L89: 0 | M89: 0 | N89: =N83 -> 0 | O89: 0 | P89: 0 | Q89: 0 | R89: 0 | S89: 0 | T89: 0 | U89: 0 | V89: 0 | W89: 0 | X89: 0 | Y89: 0 | Z89: 0 | AA89: =AA83 -> 0 | AB89: 0 | AC89: =AC83 -> 0 | AD89: 0 | AE89: 0
C91: Net sales revenue before CSO receipts (excluding income from other fees and charges and recycled water)
C92: Water | F92: C | G92: =G$27 -> $'000 | J92: =J29+J52+J60-J86 -> 0 | K92: 0 | L92: 0 | M92: 0 | N92: 0 | O92: 0 | P92: 0 | Q92: 0 | R92: 0 | S92: 0 | T92: 0 | U92: 0 | V92: 0 | W92: 0 | X92: 0 | Y92: 0 | Z92: 0 | AA92: 0 | AB92: 0 | AC92: =AC29+AC52+AC60-AC86 -> 0 | AD92: 0 | AE92: 0
C93: Wastewater | F93: C | G93: $'000 | J93: =J39+J68-J87 -> 0 | K93: 0 | L93: 0 | M93: 0 | N93: 0 | O93: 0 | P93: 0 | Q93: 0 | R93: 0 | S93: 0 | T93: 0 | U93: 0 | V93: 0 | W93: 0 | X93: 0 | Y93: 0 | Z93: 0 | AA93: 0 | AB93: 0 | AC93: =AC39+AC68-AC87 -> 0 | AD93: 0 | AE93: 0
C94: Stormwater | F94: C | G94: $'000 | J94: =J43+J72-J88 -> 0 | K94: 0 | L94: 0 | M94: 0 | N94: 0 | O94: 0 | P94: 0 | Q94: 0 | R94: 0 | S94: 0 | T94: 0 | U94: 0 | V94: 0 | W94: 0 | X94: 0 | Y94: 0 | Z94: 0 | AA94: 0 | AB94: 0 | AC94: =AC43+AC72-AC88 -> 0 | AD94: 0 | AE94: 0
C95: Total | F95: C | G95: $'000 | J95: =SUM(J92:J94) -> 0 | K95: 0 | L95: 0 | M95: 0 | N95: =SUM(N92:N94) -> 0 | O95: =SUM(O92:O94) -> 0 | P95: 0 | Q95: 0 | R95: 0 | S95: 0 | T95: 0 | U95: 0 | V95: 0 | W95: 0 | X95: 0 | Y95: 0 | Z95: 0 | AA95: =SUM(AA92:AA94) -> 0 | AB95: 0 | AC95: =SUM(AC92:AC94) -> 0 | AD95: 0 | AE95: 0
C97: CSO receipts/reimbursements
C98: Water | F98: I | G98: =G$27 -> $'000
C99: Wastewater | F99: I | G99: $'000
C100: Stormwater | F100: C | G100: $'000 | J100: =J101-(J98+J99) -> 0 | K100: 0 | L100: 0 | M100: 0 | N100: =N101-(N98+N99) -> 0 | O100: 0 | P100: 0 | Q100: 0 | R100: 0 | S100: 0 | T100: 0 | U100: 0 | V100: 0 | W100: 0 | X100: 0 | Y100: 0 | Z100: 0 | AA100: =AA101-(AA98+AA99) -> 0 | AB100: 0 | AC100: =AC101-(AC98+AC99) -> 0 | AD100: 0 | AE100: 0
C101: Total CSO reimbursements | F101: I | G101: $'000
C103: Net sales revenue (excluding income from other fees and charges and recycled water)
C104: - water | F104: C | G104: =G$27 -> $'000 | J104: =J92+J98 -> 0 | K104: 0 | L104: 0 | M104: 0 | N104: =N92+N98 -> 0 | O104: 0 | P104: 0 | Q104: 0 | R104: 0 | S104: 0 | T104: 0 | U104: 0 | V104: 0 | W104: 0 | X104: 0 | Y104: 0 | Z104: 0 | AA104: =AA92+AA98 -> 0 | AB104: 0 | AC104: =AC92+AC98 -> 0 | AD104: 0 | AE104: 0
C105: - wastewater | F105: C | G105: $'000 | J105: 0 | K105: 0 | L105: 0 | M105: 0 | N105: =N93+N99 -> 0 | O105: 0 | P105: 0 | Q105: 0 | R105: 0 | S105: 0 | T105: 0 | U105: 0 | V105: 0 | W105: 0 | X105: 0 | Y105: 0 | Z105: 0 | AA105: =AA93+AA99 -> 0 | AB105: 0 | AC105: =AC93+AC99 -> 0 | AD105: 0 | AE105: 0
C106: - stormwater | F106: C | G106: $'000 | J106: 0 | K106: 0 | L106: 0 | M106: 0 | N106: =N94+N100 -> 0 | O106: 0 | P106: 0 | Q106: 0 | R106: 0 | S106: 0 | T106: 0 | U106: 0 | V106: 0 | W106: 0 | X106: 0 | Y106: 0 | Z106: 0 | AA106: =AA94+AA100 -> 0 | AB106: 0 | AC106: =AC94+AC100 -> 0 | AD106: 0 | AE106: 0
C107: Total | F107: C | G107: $'000 | J107: =SUM(J104:J106) -> 0 | K107: 0 | L107: 0 | M107: 0 | N107: =SUM(N104:N106) -> 0 | O107: 0 | P107: 0 | Q107: 0 | R107: 0 | S107: 0 | T107: 0 | U107: 0 | V107: 0 | W107: 0 | X107: 0 | Y107: 0 | Z107: 0 | AA107: =SUM(AA104:AA106) -> 0 | AB107: 0 | AC107: =SUM(AC104:AC106) -> 0 | AD107: 0 | AE107: 0
C111: Table 6.2 - Revenue from other fees and charges - regulated businesses ($'000) | AG111: =AG$18 -> COMMENTS TO IPART
C112: =C$19 -> Financial year | J112: =J$19 -> 2013-14 | K112: 2014-15 | L112: 2015-16 | M112: 2016-17 | N112: 2017-18 | O112: 2018-19 | P112: 2019-20 | Q112: 2020-21 | R112: 2021-22 | S112: 2022-23 | T112: 2023-24 | U112: 2024-25 | V112: 2025-26 | W112: 2026-27 | X112: 2027-28 | Y112: 2028-29 | Z112: 2029-30 | AA112: 2030-31 | AB112: 2031-32 | AC112: 2032-33 | AD112: 2033-34 | AE112: 2034-35 | AG112: =AG$19 -> 2023
D113: =D$20 -> Code | F113: I/C | G113: Unit | J113: =J$20 -> Actual | K113: Actual | L113: Actual | M113: Actual | N113: Actual | O113: Actual | P113: Actual | Q113: Actual | R113: Actual | S113: Actual | T113: Forecast | U113: Forecast | V113: Forecast | W113: Forecast | X113: Forecast | Y113: Forecast | Z113: Forecast | AA113: Forecast | AB113: Forecast | AC113: Forecast | AD113: Forecast | AE113: Forecast
C115: Other revenue from regulated charges
C116: Water
C117: - Ancillary and miscellaneous service charges | F117: I | G117: =G$27 -> $'000
C118: - Bulk water sales (negotiated prices) | F118: I | G118: $'000
C119: - <agency defined> | F119: I | G119: $'000
C120: - <agency defined> | F120: I | G120: $'000 | J120: 0
C121: Wastewater
C122: - Ancillary and miscellaneous service charges | F122: I | G122: =G$27 -> $'000
C123: - <agency defined> | F123: I | G123: $'000
C124: - <agency defined> | F124: I | G124: $'000
C125: - <agency defined> | F125: I | G125: $'000
C126: Stormwater
C127: - Ancillary and miscellaneous service charges | F127: I | G127: =G$27 -> $'000
C128: - <agency defined> | F128: I | G128: $'000
C129: - <agency defined> | F129: I | G129: $'000
C130: - <agency defined> | F130: I | G130: $'000
C132: Total other fees & charges | F132: C | G132: =G$27 -> $'000 | J132: =SUM(J117:J131) -> 0 | K132: 0 | L132: 0 | M132: 0 | N132: 0 | O132: 0 | P132: 0 | Q132: 0 | R132: 0 | S132: 0 | T132: 0 | U132: 0 | V132: 0 | W132: 0 | X132: 0 | Y132: 0 | Z132: 0 | AA132: 0 | AB132: 0 | AC132: =SUM(AC117:AC131) -> 0 | AD132: 0 | AE132: 0
C136: Table 6.3 - Non-regulatory business revenue ($'000) | AG136: =AG$18 -> COMMENTS TO IPART
C137: =C$19 -> Financial year | J137: =J$19 -> 2013-14 | K137: 2014-15 | L137: 2015-16 | M137: 2016-17 | N137: 2017-18 | O137: 2018-19 | P137: 2019-20 | Q137: 2020-21 | R137: 2021-22 | S137: 2022-23 | T137: 2023-24 | U137: 2024-25 | V137: 2025-26 | W137: 2026-27 | X137: 2027-28 | Y137: 2028-29 | Z137: 2029-30 | AA137: 2030-31 | AB137: 2031-32 | AC137: 2032-33 | AD137: 2033-34 | AE137: 2034-35 | AG137: =AG$19 -> 2023
D138: =D$20 -> Code | F138: I/C | G138: Unit | H138: =H20 -> 0 | J138: =J$20 -> Actual | K138: Actual | L138: Actual | M138: Actual | N138: Actual | O138: Actual | P138: Actual | Q138: Actual | R138: Actual | S138: Actual | T138: Forecast | U138: Forecast | V138: Forecast | W138: Forecast | X138: Forecast | Y138: Forecast | Z138: Forecast | AA138: Forecast | AB138: Forecast | AC138: Forecast | AD138: Forecast | AE138: Forecast
C141: ="All non-regulatory revenue up to and including "&$S$137 -> All non-regulatory revenue up to and including 2022-23 | F141: I | G141: =G$27 -> $'000 | T141: 0 | U141: 0 | V141: 0 | W141: 0 | X141: 0 | Y141: 0 | Z141: 0 | AA141: 0 | AB141: 0 | AC141: 0 | AD141: 0 | AE141: 0
C142: ="Non-regulatory revenue from efficiency projects from "&$V$137 -> Non-regulatory revenue from efficiency projects from 2025-26 | F142: I | G142: $'000 | J142: 0 | K142: 0 | L142: 0 | M142: 0 | N142: 0 | O142: 0 | P142: 0 | Q142: 0 | R142: 0 | S142: 0 | T142: ='Opex by item'!T169 -> 0 | U142: ='Opex by item'!U169 -> 0 | V142: ='Opex by item'!V169 -> 0 | W142: ='Opex by item'!W169 -> 0 | X142: ='Opex by item'!X169 -> 0 | Y142: ='Opex by item'!Y169 -> 0 | Z142: ='Opex by item'!Z169 -> 0 | AA142: ='Opex by item'!AA169 -> 0 | AB142: ='Opex by item'!AB169 -> 0 | AC142: ='Opex by item'!AC169 -> 0 | AD142: ='Opex by item'!AD169 -> 0 | AE142: ='Opex by item'!AE169 -> 0
C143: ="Revenue from non-regulatory activities, from "&$T$137 -> Revenue from non-regulatory activities, from 2023-24 | F143: I | G143: $'000 | J143: 0 | K143: 0 | L143: 0 | M143: 0 | N143: 0 | O143: 0 | P143: 0 | Q143: 0 | R143: 0 | S143: 0 | T143: ='Non-reg activies'!T127 -> 0 | U143: ='Non-reg activies'!U127 -> 0 | V143: ='Non-reg activies'!V127 -> 0 | W143: ='Non-reg activies'!W127 -> 0 | X143: ='Non-reg activies'!X127 -> 0 | Y143: ='Non-reg activies'!Y127 -> 0 | Z143: ='Non-reg activies'!Z127 -> 0 | AA143: ='Non-reg activies'!AA127 -> 0 | AB143: ='Non-reg activies'!AB127 -> 0 | AC143: ='Non-reg activies'!AC127 -> 0 | AD143: ='Non-reg activies'!AD127 -> 0 | AE143: ='Non-reg activies'!AE127 -> 0
C144: Total non-regulatory business revenue | F144: C | G144: $'000 | J144: =SUM(J141:J143) -> 0 | K144: 0 | L144: 0 | M144: 0 | N144: 0 | O144: 0 | P144: 0 | Q144: 0 | R144: 0 | S144: 0 | T144: =SUM(T141:T143) -> 0 | U144: =SUM(U141:U143) -> 0 | V144: 0 | W144: 0 | X144: 0 | Y144: 0 | Z144: 0 | AA144: 0 | AB144: 0 | AC144: =SUM(AC141:AC143) -> 0 | AD144: =SUM(AD141:AD143) -> 0 | AE144: =SUM(AE141:AE143) -> 0
C150: Table 6.4 - Revenue reconciliation (including capital contributions) | AG150: =AG$18 -> COMMENTS TO IPART
C151: =C$19 -> Financial year | J151: =J$19 -> 2013-14 | K151: 2014-15 | L151: 2015-16 | M151: 2016-17 | N151: 2017-18 | O151: 2018-19 | P151: 2019-20 | Q151: 2020-21 | R151: 2021-22 | S151: 2022-23 | T151: 2023-24 | U151: 2024-25 | V151: 2025-26 | W151: 2026-27 | X151: 2027-28 | Y151: 2028-29 | Z151: 2029-30 | AA151: 2030-31 | AB151: 2031-32 | AC151: 2032-33 | AD151: 2033-34 | AE151: 2034-35 | AG151: =AG$19 -> 2023
D152: =D$20 -> Code | F152: I/C | G152: Unit | J152: =J$20 -> Actual | K152: Actual | L152: Actual | M152: Actual | N152: Actual | O152: Actual | P152: Actual | Q152: Actual | R152: Actual | S152: Actual | T152: Forecast | U152: Forecast | V152: Forecast | W152: Forecast | X152: Forecast | Y152: Forecast | Z152: Forecast | AA152: Forecast | AB152: Forecast | AC152: Forecast | AD152: Forecast | AE152: Forecast
C153: Note: We will format this table to reflect the correct regulatory period for each business. The table is currently formatted for Sydney Water and Hunter Water
C155: Revenue from regulated business activities
C156: Revenue from tariffs and charges (net of CSOs) | F156: C | G156: =G$27 -> $'000 | J156: =J107+J132 -> 0 | K156: 0 | L156: 0 | M156: 0 | N156: 0 | O156: 0 | P156: 0 | Q156: 0 | R156: 0 | S156: 0 | T156: 0 | U156: 0 | V156: 0 | W156: 0 | X156: 0 | Y156: 0 | Z156: 0 | AA156: 0 | AB156: 0 | AC156: 0 | AD156: 0 | AE156: 0
C157: Cash capital contributions | F157: C | G157: $'000 | J157: =Capex!J199 -> 0 | K157: =Capex!K199 -> 0 | L157: =Capex!L199 -> 0 | M157: =Capex!M199 -> 0 | N157: =Capex!N199 -> 0 | O157: =Capex!O199 -> 0 | P157: =Capex!P199 -> 0 | Q157: =Capex!Q199 -> 0 | R157: =Capex!R199 -> 0 | S157: =Capex!S199 -> 0 | T157: =Capex!T199 -> 0 | U157: =Capex!U199 -> 0 | V157: =Capex!V199 -> 0 | W157: =Capex!W199 -> 0 | X157: =Capex!X199 -> 0 | Y157: =Capex!Y199 -> 0 | Z157: =Capex!Z199 -> 0 | AA157: =Capex!AA199 -> 0 | AB157: =Capex!AB199 -> 0 | AC157: =Capex!AC199 -> 0 | AD157: =Capex!AD199 -> 0 | AE157: =Capex!AE199 -> 0
C158: Non-cash capital contributions (AFOC) | F158: I | G158: $'000 | J158: ='Fin Data '!J55 -> 0 | K158: ='Fin Data '!K55 -> 0 | L158: ='Fin Data '!L55 -> 0 | M158: ='Fin Data '!M55 -> 0 | N158: ='Fin Data '!N55 -> 0 | O158: ='Fin Data '!O55 -> 0 | P158: ='Fin Data '!P55 -> 0 | Q158: ='Fin Data '!Q55 -> 0 | R158: ='Fin Data '!R55 -> 0 | S158: ='Fin Data '!S55 -> 0 | T158: ='Fin Data '!T55 -> 0 | U158: ='Fin Data '!U55 -> 0 | V158: ='Fin Data '!V55 -> 0 | W158: ='Fin Data '!W55 -> 0 | X158: ='Fin Data '!X55 -> 0 | Y158: ='Fin Data '!Y55 -> 0 | Z158: ='Fin Data '!Z55 -> 0 | AA158: ='Fin Data '!AA55 -> 0 | AB158: ='Fin Data '!AB55 -> 0 | AC158: ='Fin Data '!AC55 -> 0 | AD158: ='Fin Data '!AD55 -> 0 | AE158: ='Fin Data '!AE55 -> 0
C160: Revenue from non-regulatory business activities
C161: Revenue from tariffs and charges | F161: C | G161: $'000 | J161: =J144 -> 0 | K161: 0 | L161: 0 | M161: 0 | N161: 0 | O161: 0 | P161: 0 | Q161: 0 | R161: 0 | S161: 0 | T161: 0 | U161: 0 | V161: 0 | W161: 0 | X161: 0 | Y161: 0 | Z161: 0 | AA161: 0 | AB161: 0 | AC161: 0 | AD161: 0 | AE161: 0
C162: =C157 -> Cash capital contributions | F162: I | G162: $'000
C163: =C158 -> Non-cash capital contributions (AFOC) | F163: I | G163: $'000
C165: Revenue from unregulated business activities
C166: Recycled water revenue from charges (excl 16A schemes) | F166: C | G166: =G$27 -> $'000 | J166: ='Recycled water & RH'!J27 -> 0 | K166: ='Recycled water & RH'!K27 -> 0 | L166: ='Recycled water & RH'!L27 -> 0 | M166: ='Recycled water & RH'!M27 -> 0 | N166: ='Recycled water & RH'!N27 -> 0 | O166: ='Recycled water & RH'!O27 -> 0 | P166: ='Recycled water & RH'!P27 -> 0 | Q166: ='Recycled water & RH'!Q27 -> 0 | R166: ='Recycled water & RH'!R27 -> 0 | S166: ='Recycled water & RH'!S27 -> 0 | T166: ='Recycled water & RH'!T27 -> 0 | U166: ='Recycled water & RH'!U27 -> 0 | V166: ='Recycled water & RH'!V27 -> 0 | W166: ='Recycled water & RH'!W27 -> 0 | X166: ='Recycled water & RH'!X27 -> 0 | Y166: ='Recycled water & RH'!Y27 -> 0 | Z166: ='Recycled water & RH'!Z27 -> 0 | AA166: ='Recycled water & RH'!AA27 -> 0 | AB166: ='Recycled water & RH'!AB27 -> 0 | AC166: ='Recycled water & RH'!AC27 -> 0 | AD166: ='Recycled water & RH'!AD27 -> 0 | AE166: ='Recycled water & RH'!AE27 -> 0
C167: Recycled water cash capital contributions (excl 16A schemes) | J167: ='Recycled water & RH'!J29 -> 0 | K167: ='Recycled water & RH'!K29 -> 0 | L167: ='Recycled water & RH'!L29 -> 0 | M167: ='Recycled water & RH'!M29 -> 0 | N167: ='Recycled water & RH'!N29 -> 0 | O167: ='Recycled water & RH'!O29 -> 0 | P167: ='Recycled water & RH'!P29 -> 0 | Q167: ='Recycled water & RH'!Q29 -> 0 | R167: ='Recycled water & RH'!R29 -> 0 | S167: ='Recycled water & RH'!S29 -> 0 | T167: ='Recycled water & RH'!T29 -> 0 | U167: ='Recycled water & RH'!U29 -> 0 | V167: ='Recycled water & RH'!V29 -> 0 | W167: ='Recycled water & RH'!W29 -> 0 | X167: ='Recycled water & RH'!X29 -> 0 | Y167: ='Recycled water & RH'!Y29 -> 0 | Z167: ='Recycled water & RH'!Z29 -> 0 | AA167: ='Recycled water & RH'!AA29 -> 0 | AB167: ='Recycled water & RH'!AB29 -> 0 | AC167: ='Recycled water & RH'!AC29 -> 0 | AD167: ='Recycled water & RH'!AD29 -> 0 | AE167: ='Recycled water & RH'!AE29 -> 0
C168: Other unregulated activities, total revenue (historical only, projections not required) | F168: I | G168: $'000
C170: Reconciliation
C171: Total reported revenue (incl capital contributions) | F171: C | G171: =G$27 -> $'000 | J171: =SUM(J156:J158)+SUM(J161:J163)+SUM(J166:J168) -> 0 | K171: 0 | L171: 0 | M171: 0 | N171: 0 | O171: 0 | P171: 0 | Q171: 0 | R171: 0 | S171: 0 | T171: =SUM(T156:T158)+SUM(T161:T163)+SUM(T166:T168) -> 0 | U171: 0 | V171: 0 | W171: 0 | X171: 0 | Y171: 0 | Z171: 0 | AA171: 0 | AB171: 0 | AC171: =SUM(AC156:AC158)+SUM(AC161:AC163)+SUM(AC166:AC168) -> 0 | AD171: 0 | AE171: 0
C173: Reconciliation with revenue from statutory financial statements (historical only, projections not required)
C174: Total revenue from statutory financial statements | F174: I | G174: =$G$22 -> 0 | J174: ='Fin Data '!J23 -> 0 | K174: ='Fin Data '!K23 -> 0 | L174: ='Fin Data '!L23 -> 0 | M174: ='Fin Data '!M23 -> 0 | N174: ='Fin Data '!N23 -> 0 | O174: ='Fin Data '!O23 -> 0 | P174: ='Fin Data '!P23 -> 0 | Q174: ='Fin Data '!Q23 -> 0 | R174: ='Fin Data '!R23 -> 0 | S174: ='Fin Data '!S23 -> 0 | T174: ='Fin Data '!T23 -> 0 | U174: ='Fin Data '!U23 -> 0 | V174: ='Fin Data '!V23 -> 0 | W174: ='Fin Data '!W23 -> 0 | X174: ='Fin Data '!X23 -> 0 | Y174: ='Fin Data '!Y23 -> 0 | Z174: ='Fin Data '!Z23 -> 0 | AA174: ='Fin Data '!AA23 -> 0 | AB174: ='Fin Data '!AB23 -> 0 | AC174: ='Fin Data '!AC23 -> 0 | AD174: ='Fin Data '!AD23 -> 0 | AE174: ='Fin Data '!AE23 -> 0
C175: Items not captured above
F176: I | G176: $'000
F177: I | G177: $'000
F178: I | G178: $'000
F179: I | G179: $'000
F180: I | G180: $'000
F181: I | G181: $'000
F182: I | G182: $'000
C183: Net revenue for reconciliation with reported revenue | R183: =R174+SUM(R176:R182) -> 0 | S183: 0 | T183: 0 | U183: 0 | V183: 0 | W183: 0 | X183: 0 | Y183: 0 | Z183: 0 | AA183: 0 | AB183: 0 | AC183: 0 | AD183: 0 | AE183: 0
C185: Difference (explain if not zero) | F185: C | G185: =G$34 -> $'000 | R185: =IF(LEFT(R151,4)+1>Cover!$E$6,"na",ROUND(R183,0)-ROUND(R171,0)) -> 0 | S185: =IF(LEFT(S151,4)+1>Cover!$E$6,"na",ROUND(S183,0)-ROUND(S171,0)) -> 0 | T185: =IF(LEFT(T151,4)+1>Cover!$E$6,"na",ROUND(T183,0)-ROUND(T171,0)) -> na | U185: =IF(LEFT(U151,4)+1>Cover!$E$6,"na",ROUND(U183,0)-ROUND(U171,0)) -> na | V185: =IF(LEFT(V151,4)+1>Cover!$E$6,"na",ROUND(V183,0)-ROUND(V171,0)) -> na | W185: =IF(LEFT(W151,4)+1>Cover!$E$6,"na",ROUND(W183,0)-ROUND(W171,0)) -> na | X185: =IF(LEFT(X151,4)+1>Cover!$E$6,"na",ROUND(X183,0)-ROUND(X171,0)) -> na | Y185: =IF(LEFT(Y151,4)+1>Cover!$E$6,"na",ROUND(Y183,0)-ROUND(Y171,0)) -> na | Z185: =IF(LEFT(Z151,4)+1>Cover!$E$6,"na",ROUND(Z183,0)-ROUND(Z171,0)) -> na | AA185: =IF(LEFT(AA151,4)+1>Cover!$E$6,"na",ROUND(AA183,0)-ROUND(AA171,0)) -> na | AB185: =IF(LEFT(AB151,4)+1>Cover!$E$6,"na",ROUND(AB183,0)-ROUND(AB171,0)) -> na | AC185: =IF(LEFT(AC151,4)+1>Cover!$E$6,"na",ROUND(AC183,0)-ROUND(AC171,0)) -> na | AD185: =IF(LEFT(AD151,4)+1>Cover!$E$6,"na",ROUND(AD183,0)-ROUND(AD171,0)) -> na | AE185: =IF(LEFT(AE151,4)+1>Cover!$E$6,"na",ROUND(AE183,0)-ROUND(AE171,0)) -> na

Sheet Price data
B2: =Cover!B5 -> Metropolitan Water Agency | G2: =Cover!E5 -> Abusiness
B3: Section 7 | G3: Pricing Data
B4: =MID(CELL("filename",A4),FIND("]",CELL("filename",A4))+1,255) -> Price data
B6: ='Non-financial'!B7 -> Colour coding located on Cover sheet
B7: ='Non-financial'!B8 -> Leave cells blank if no information exists - PLEASE DO NOT ENTER TEXT unless specifically requested to do so.
B8: ='Non-financial'!B9 -> We require forecasts only for purposes of a price review, when we also require the business to provide SIR information. (In other years we will hide the forecast columns.)
B10: NOTES:
B11: (i) | C11: This worksheet captures the main prices for water, wastewater and stormwater services.
B12: (ii) | C12: If you are proposing a revenue cap (or a weighted average price cap) without a change in pricing structure, or price caps, please enter forecasts consistent with your proposed revenue requirements and demand forecasts.
B13: (iii) | C13: If you are proposing a revenue cap (or a weighted average price cap) and a different pricing structure, please provide your pricing proposals in a separate workbook. Alternatively, you may add another worksheet in this workbook.
B16: Note: This worksheet will be adapted where necessary to suit the individual business' pricing structure.
C18: Table 7.1 - Pricing Information | AG18: ='Non-financial'!AG17 -> COMMENTS TO IPART
C19: ='Non-financial'!C$18 -> Financial year | D19: OPTIONAL FIELDS | J19: ='Non-financial'!J18 -> 2013-14 | K19: ='Non-financial'!K18 -> 2014-15 | L19: ='Non-financial'!L18 -> 2015-16 | M19: ='Non-financial'!M18 -> 2016-17 | N19: ='Non-financial'!N18 -> 2017-18 | O19: ='Non-financial'!O18 -> 2018-19 | P19: ='Non-financial'!P18 -> 2019-20 | Q19: ='Non-financial'!Q18 -> 2020-21 | R19: ='Non-financial'!R18 -> 2021-22 | S19: ='Non-financial'!S18 -> 2022-23 | T19: ='Non-financial'!T18 -> 2023-24 | U19: ='Non-financial'!U18 -> 2024-25 | V19: ='Non-financial'!V18 -> 2025-26 | W19: ='Non-financial'!W18 -> 2026-27 | X19: ='Non-financial'!X18 -> 2027-28 | Y19: ='Non-financial'!Y18 -> 2028-29 | Z19: ='Non-financial'!Z18 -> 2029-30 | AA19: ='Non-financial'!AA18 -> 2030-31 | AB19: ='Non-financial'!AB18 -> 2031-32 | AC19: ='Non-financial'!AC18 -> 2032-33 | AD19: ='Non-financial'!AD18 -> 2033-34 | AE19: ='Non-financial'!AE18 -> 2034-35 | AG19: ='Non-financial'!AG18 -> 2023
D20: ='Non-financial'!D19 -> Code | E20: ='Non-financial'!E19 -> 0 | F20: ='Non-financial'!F19 -> I/C | G20: ='Non-financial'!G19 -> Unit | J20: ='Non-financial'!J19 -> Actual | K20: ='Non-financial'!K19 -> Actual | L20: ='Non-financial'!L19 -> Actual | M20: ='Non-financial'!M19 -> Actual | N20: ='Non-financial'!N19 -> Actual | O20: ='Non-financial'!O19 -> Actual | P20: ='Non-financial'!P19 -> Actual | Q20: ='Non-financial'!Q19 -> Actual | R20: ='Non-financial'!R19 -> Actual | S20: ='Non-financial'!S19 -> Actual | T20: ='Non-financial'!T19 -> Forecast | U20: ='Non-financial'!U19 -> Forecast | V20: ='Non-financial'!V19 -> Forecast | W20: ='Non-financial'!W19 -> Forecast | X20: ='Non-financial'!X19 -> Forecast | Y20: ='Non-financial'!Y19 -> Forecast | Z20: ='Non-financial'!Z19 -> Forecast | AA20: ='Non-financial'!AA19 -> Forecast | AB20: ='Non-financial'!AB19 -> Forecast | AC20: ='Non-financial'!AC19 -> Forecast | AD20: ='Non-financial'!AD19 -> Forecast | AE20: ='Non-financial'!AE19 -> Forecast
Q21: =Revenue!$Q$22 -> 0
C22: ="Provide forecasts in real $"&Cover!$E$11 -> Provide forecasts in real $2023-24 | V22: =C22 -> Provide forecasts in real $2023-24
C24: Pricing structure - water
C26: Water supply service charges - as at year end (excluding discretionary charges)
C27: - residential | F27: I | G27: $/year
C28: - non-residential (20mm stand alone) | F28: =F27 -> I | G28: =G27 -> $/year
C29: Water supply service charges - as at year end
C30: =H30&"mm" -> 20mm | F30: =F28 -> I | G30: =G28 -> $/year | H30: 20
C31: =H31&"mm" -> 25mm | F31: =F30 -> I | G31: =G30 -> $/year | H31: 25
C32: 32mm | F32: I | G32: $/year | H32: 32
C33: 40mm | F33: I | G33: $/year | H33: 40
C34: 50mm | F34: I | G34: $/year | H34: 50
C35: 65mm | F35: I | G35: $/year | H35: 65
C36: 80mm | F36: I | G36: $/year | H36: 80
C37: 100mm | F37: I | G37: $/year | H37: 100
C38: 150mm | F38: I | G38: $/year | H38: 150
C39: 200mm | F39: I | G39: $/year | H39: 200
C40: 300mm | F40: I | G40: $/year | H40: 300
C41: 400mm | F41: I | G41: $/year | H41: 400
C42: 500mm | F42: =F40 -> I | G42: =G40 -> $/year | H42: 500
C43: 600mm | F43: I | G43: $/year | H43: 600
C45: Water discretionary charges
C46: Residential | F46: I | G46: $/year
C47: Non-residential
C48: =C30 -> 20mm | F48: I | G48: $/year | H48: 20
C49: 25mm | F49: I | G49: $/year | H49: 25
C50: 32mm | F50: I | G50: $/year | H50: 32
C51: 40mm | F51: I | G51: $/year | H51: 40
C52: 50mm | F52: I | G52: $/year | H52: 50
C53: =C36 -> 80mm | F53: I | G53: $/year | H53: 80
C54: 100mm | F54: I | G54: $/year | H54: 100
C55: 150mm | F55: I | G55: $/year | H55: 150
C57: Water usage charges - as at year end
C58: Water usage charge for filtered water
C59: - tier 1 (lowest) | F59: I | G59: $/kL
C60: - tier 2 | F60: I | G60: $/kL
C61: - tier 3 (or highest) | F61: I | G61: $/kL
C62: - tier 1 = consumption up to | F62: I | G62: kL/year
C63: - tier 2 = consumption up to | F63: I | G63: kL/year
C65: High volume water usage discount (Hunter Water only)
C66: Dungog | F66: I | G66: $/kL
C67: Kurri Kurri | F67: I | G67: $/kL
C68: Lookout | F68: I | G68: $/kL
C69: Newcastle | F69: I | G69: $/kL
C70: Seaham-Hexham | F70: I | G70: $/kL
C71: South Wallsend | F71: I | G71: $/kL
C72: Tomago-Kooragang | F72: I | G72: $/kL
C73: All other locations | F73: I | G73: $/kL
C75: Water usage charge for unfiltered water | F75: I | G75: $/kL
C77: Uplift on Drought Response Days | F77: I | G77: $/kL
C78: Days per year uplift charge applied | F78: I | G78: days
C80: Pricing structure - wastewater
C82: Wastewater supply service charges - as at year end (excluding discretionary charges)
C83: Residential - Not within a multi premise | F83: I | G83: $/year
C84: Residential - multi premise | F84: I | G84: $/year
C85: Non-residential (20mm stand alone) | F85: I | G85: $/year
C86: Wastewater supply service charges - as at year end
C87: =H87&"mm" -> 20mm | F87: I | G87: $/year | H87: 20
C88: 25mm | F88: I | G88: $/year | H88: 25
C89: 32mm | F89: I | G89: $/year | H89: 32
C90: 40mm | F90: I | G90: $/year | H90: 40
C91: 50mm | F91: I | G91: $/year | H91: 50
C92: 65mm | F92: I | G92: $/year | H92: 65
C93: 80mm | F93: I | G93: $/year | H93: 80
C94: 100mm | F94: I | G94: $/year | H94: 100
C95: 150mm | F95: I | G95: $/year | H95: 150
C96: 200mm | F96: I | G96: $/year | H96: 200
C97: 300mm | F97: I | G97: $/year | H97: 300
C98: 400mm | F98: I | G98: $/year | H98: 400
C99: 500mm | F99: I | G99: $/year | H99: 500
C100: 600mm | F100: I | G100: $/year | H100: 600
C102: Wastewater discretionary charges
C103: Residential | F103: I | G103: $/year
C104: Non-residential
C105: =C87 -> 20mm | F105: I | G105: $/year | H105: 20
C106: 25mm | F106: I | G106: $/year | H106: 25
C107: 32mm | F107: I | G107: $/year | H107: 32
C108: 40mm | F108: I | G108: $/year | H108: 40
C109: 50mm | F109: I | G109: $/year | H109: 50
C110: =C93 -> 80mm | F110: I | G110: $/year | H110: 80
C111: 100mm | F111: I | G111: $/year | H111: 100
C112: 150mm | F112: I | G112: $/year | H112: 150
C114: Residential Wastewater usage charge
C115: Residential wastewater deemed usage charge - not within a multi premise | F115: I | G115: $/year
C116: Residential wastewater deemed usage charge - multi premise | F116: I | G116: $/year
C117: - Discharge factor assumed | F117: I | G117: %
C119: Non residential wastewater usage charge
C120: Non residential wastewater usage charge | F120: I | G120: $/kL
C121: Non-residential wastewater deemed usage charge | F121: I | G121: $/year
C122: - average discharge factor | F122: I | G122: %
C124: Total charge
C125: - residential | F125: I | G125: $/year
C127: Environmental Improvement Charge | F127: I | G127: $/year
C129: Vacant Land
C130: Wastewater supply service charge
C131: - residential | F131: I | G131: $/year
C132: - non-residential | F132: I | G132: $/year
C134: Pricing structure - stormwater
C135: Stormwater charges - as at year end (excluding discretionary charges)
C136: Residential
C137: - Apartments (Multi-Premises) and Low Impact | F137: I | G137: $/year
C138: - Houses (not Multi-Premises) | F138: I | G138: $/year
C139: Non-residential
C140: ='Non-financial'!C197 -> - Small (up to 200 sq m) | F140: I | G140: $/year
C141: ='Non-financial'!C198 -> - Medium (201-1,000 sq m) | F141: I | G141: $/year
C142: ='Non-financial'!C199 -> - Large (1,001 - 10,000 sq m) | F142: I | G142: $/year
C143: ='Non-financial'!C200 -> - Very Large (10,001 - 45,000 sq m) | F143: I | G143: $/year
C144: ='Non-financial'!C201 -> - Largest (>45,000 sq m) | F144: I | G144: $/year
C145: ='Non-financial'!C202 -> - Non Residential Property within a Multi-Premises | F145: I | G145: $/year
C146: ='Non-financial'!C203 -> - Low Impact assessed Non Residential Property | F146: I | G146: $/year
C148: Stormwater discretionary charges
C149: Per stormwater property | F149: I | G149: $/year
C150: Per residential property except in mixed multi & vacant land | F150: I | G150: $/year
C151: <Proposed other, utility to specify> | F151: I | G151: $/year
C152: <Proposed other, utility to specify> | F152: I | G152: $/year
C154: Rouse Hill - stormwater (Sydney Water)
C155: Residential Property | F155: I | G155: $/year
C156: Vacant Land | F156: I | G156: $/year
C157: Non Residential Properties with Land Size ≤ 1000 m² (per property) | F157: I | G157: $/year
C158: Non Residential Properties with Land Size > 1000 m² (per 1000 m²) | F158: I | G158: $/year
C160: Land drainage charges (per property) | F160: I | G160: $/year
C164: Table 7.2 - Pensioner rebates | AG164: =AG18 -> COMMENTS TO IPART
C165: =C19 -> Financial year | J165: =J19 -> 2013-14 | K165: 2014-15 | L165: 2015-16 | M165: 2016-17 | N165: 2017-18 | O165: 2018-19 | P165: 2019-20 | Q165: 2020-21 | R165: 2021-22 | S165: 2022-23 | T165: 2023-24 | U165: 2024-25 | V165: 2025-26 | W165: 2026-27 | X165: 2027-28 | Y165: 2028-29 | Z165: 2029-30 | AA165: 2030-31 | AB165: 2031-32 | AC165: 2032-33 | AD165: 2033-34 | AE165: 2034-35 | AG165: =AG19 -> 2023
D166: =D20 -> Code | E166: =E20 -> 0 | F166: =F20 -> I/C | G166: =G20 -> Unit | J166: =J20 -> Actual | K166: Actual | L166: Actual | M166: Actual | N166: Actual | O166: Actual | P166: Actual | Q166: Actual | R166: Actual | S166: Actual | T166: Forecast | U166: Forecast | V166: Forecast | W166: Forecast | X166: Forecast | Y166: Forecast | Z166: Forecast | AA166: Forecast | AB166: Forecast | AC166: Forecast | AD166: Forecast | AE166: Forecast | AG166: If the rebates are provided up to a maximum amount, please explain how they are calculated
C168: Sydney Water: Percentage of the supply service charge provided as a pensioner rebate
C169: Water | F169: I | G169: %
C170: Wastewater - supply service charge | F170: I | G170: %
C171: Wastewater - deemed usage charge | F171: I | G171: %
C172: Stormwater | F172: I | G172: %
C174: Hunter Water: Percentage of the water and wastewater bill provided as a pensioner rebate
C175: Percentage of water and wastewater bill | F175: I | G175: %
C176: For consumption of | F176: I | G176: kL pa
C177: Dollar value of rebate (house):
C178: =C169 -> Water | F178: I | G178: $/year
C179: =C170 -> Wastewater - supply service charge | F179: I | G179: $/year
C180: =C171 -> Wastewater - deemed usage charge | F180: I | G180: $/year
C182: Central Coast Council and Essential Water: Dollar value of maximum pensioner rebate (provide forecasts in nominal dollars)
C183: Total rebate | F183: I | G183: nominal $/year
C184: amount allocated to:
C185: =C169 -> Water | F185: I | G185: =G183 -> nominal $/year
C186: =C170 -> Wastewater - supply service charge | F186: I | G186: =G185 -> nominal $/year
C190: Table 7.3 - Average Residential Bills under normal weather conditions | AG190: =AG18 -> COMMENTS TO IPART
C191: =C19 -> Financial year | J191: =J19 -> 2013-14 | K191: 2014-15 | L191: 2015-16 | M191: 2016-17 | N191: 2017-18 | O191: 2018-19 | P191: 2019-20 | Q191: 2020-21 | R191: 2021-22 | S191: 2022-23 | T191: 2023-24 | U191: 2024-25 | V191: 2025-26 | W191: 2026-27 | X191: 2027-28 | Y191: 2028-29 | Z191: 2029-30 | AA191: 2030-31 | AB191: 2031-32 | AC191: 2032-33 | AD191: 2033-34 | AE191: 2034-35 | AG191: =AG19 -> 2023
D192: =D20 -> Code | E192: =E20 -> 0 | F192: =F20 -> I/C | G192: =G20 -> Unit | J192: =J20 -> Actual | K192: Actual | L192: Actual | M192: Actual | N192: Actual | O192: Actual | P192: Actual | Q192: Actual | R192: Actual | S192: Actual | T192: Forecast | U192: Forecast | V192: Forecast | W192: Forecast | X192: Forecast | Y192: Forecast | Z192: Forecast | AA192: Forecast | AB192: Forecast | AC192: Forecast | AD192: Forecast | AE192: Forecast
C194: ="Households consuming "&Q194&" kL a year (normal weather conditions)" -> Households consuming 220 kL a year (normal weather conditions) | J194: 220 | K194: 220 | L194: 220 | M194: 220 | N194: 220 | O194: 220 | P194: 220 | Q194: 220 | R194: 220 | S194: 220 | T194: 220 | U194: 220 | V194: 220 | W194: 220 | X194: 220 | Y194: 220 | Z194: 220 | AA194: 220 | AB194: 220 | AC194: 220 | AD194: 220 | AE194: 220
C196: Water
C197: - access based | F197: C | G197: $/year
C198: - usage based | F198: C | G198: $/year
C199: - special levies | F199: C | G199: $/year
C200: Total water bill | F200: C | G200: $/year | J200: =SUM(J197:J199) -> 0 | K200: =SUM(K197:K199) -> 0 | L200: =SUM(L197:L199) -> 0 | M200: 0 | N200: 0 | O200: 0 | P200: 0 | Q200: 0 | R200: 0 | S200: 0 | T200: 0 | U200: 0 | V200: 0 | W200: 0 | X200: 0 | Y200: 0 | Z200: 0 | AA200: =SUM(AA197:AA199) -> 0 | AB200: 0 | AC200: 0 | AD200: 0 | AE200: =SUM(AE197:AE199) -> 0
C202: Wastewater
C203: Residential - Not within a multi premise
C204: - access based | F204: C | G204: $
C205: - usage based | F205: C | G205: $
C206: - special levies | F206: C | G206: $
C207: Total wastewater bill | F207: C | G207: $/year | J207: =SUM(J204:J206) -> 0 | K207: =SUM(K204:K206) -> 0 | L207: =SUM(L204:L206) -> 0 | M207: 0 | N207: 0 | O207: 0 | P207: 0 | Q207: 0 | R207: 0 | S207: 0 | T207: 0 | U207: 0 | V207: 0 | W207: 0 | X207: 0 | Y207: 0 | Z207: 0 | AA207: =SUM(AA204:AA206) -> 0 | AB207: 0 | AC207: 0 | AD207: 0 | AE207: =SUM(AE204:AE206) -> 0
C209: Residential - multi premise
C210: - access based | F210: C | G210: $
C211: - usage based | F211: C | G211: $
C212: - special levies | F212: C | G212: $
C213: Total wastewater bill | F213: C | G213: $ | J213: =SUM(J210:J212) -> 0 | K213: 0 | L213: 0 | M213: 0 | N213: 0 | O213: 0 | P213: 0 | Q213: 0 | R213: 0 | S213: 0 | T213: 0 | U213: 0 | V213: 0 | W213: =SUM(W210:W212) -> 0 | X213: =SUM(X210:X212) -> 0 | Y213: =SUM(Y210:Y212) -> 0 | Z213: =SUM(Z210:Z212) -> 0 | AA213: =SUM(AA210:AA212) -> 0 | AB213: =SUM(AB210:AB212) -> 0 | AC213: 0 | AD213: 0 | AE213: 0
F214: C | G214: $/year
C215: Stormwater
C216: - access based | F216: C | G216: $
C217: - usage based | F217: C | G217: $
C218: - special levies | F218: C | G218: $
C219: Total stormwater bill | F219: C | G219: $ | J219: =SUM(J216:J218) -> 0 | K219: =SUM(K216:K218) -> 0 | L219: =SUM(L216:L218) -> 0 | M219: 0 | N219: 0 | O219: 0 | P219: 0 | Q219: 0 | R219: 0 | S219: 0 | T219: 0 | U219: 0 | V219: 0 | W219: 0 | X219: 0 | Y219: 0 | Z219: 0 | AA219: =SUM(AA216:AA218) -> 0 | AB219: 0 | AC219: 0 | AD219: 0 | AE219: =SUM(AE216:AE218) -> 0
C221: Total combined bill (excl GST) | F221: C | G221: $ | J221: =J200+J207+J219 -> 0 | K221: 0 | L221: 0 | M221: 0 | N221: 0 | O221: 0 | P221: 0 | Q221: 0 | R221: 0 | S221: 0 | T221: 0 | U221: 0 | V221: 0 | W221: 0 | X221: 0 | Y221: 0 | Z221: 0 | AA221: 0 | AB221: 0 | AC221: =AC200+AC207+AC219 -> 0 | AD221: 0 | AE221: 0
C223: ="Households consuming "&S223&" kL a year (normal weather conditions)" -> Households consuming 200 kL a year (normal weather conditions) | J223: 200 | K223: 200 | L223: 200 | M223: 200 | N223: 200 | O223: 200 | P223: 200 | Q223: 200 | R223: 200 | S223: 200 | T223: 200 | U223: 200 | V223: 200 | W223: 200 | X223: 200 | Y223: 200 | Z223: 200 | AA223: 200 | AB223: 200 | AC223: 200 | AD223: 200 | AE223: 200
C225: Water
C226: - access based | F226: C | G226: $
C227: - usage based | F227: C | G227: $
C228: - special levies | F228: C | G228: $
C229: Total water bill | F229: C | G229: $ | J229: =SUM(J226:J228) -> 0 | K229: 0 | L229: 0 | M229: 0 | N229: 0 | O229: 0 | P229: 0 | Q229: 0 | R229: 0 | S229: 0 | T229: 0 | U229: 0 | V229: 0 | W229: 0 | X229: 0 | Y229: 0 | Z229: 0 | AA229: =SUM(AA226:AA228) -> 0 | AB229: 0 | AC229: =SUM(AC226:AC228) -> 0 | AD229: 0 | AE229: =SUM(AE226:AE228) -> 0
C231: Wastewater
C232: Residential - Not within a multi premise | F232: C | G232: $
C233: - access based | F233: C | G233: $
C234: - usage based | F234: C | G234: $
C235: - special levies | F235: C | G235: $
C236: Total wastewater bill | F236: C | G236: $ | J236: =SUM(J233:J235) -> 0 | K236: 0 | L236: 0 | M236: 0 | N236: 0 | O236: 0 | P236: 0 | Q236: 0 | R236: 0 | S236: 0 | T236: 0 | U236: 0 | V236: 0 | W236: 0 | X236: 0 | Y236: 0 | Z236: 0 | AA236: =SUM(AA233:AA235) -> 0 | AB236: 0 | AC236: =SUM(AC233:AC235) -> 0 | AD236: 0 | AE236: =SUM(AE233:AE235) -> 0
C238: Residential - multi premise | F238: C | G238: $
C239: - access based | F239: C | G239: $
C240: - usage based | F240: C | G240: $
C241: - special levies | F241: C | G241: $
C242: Total wastewater bill | F242: C | G242: $ | J242: =SUM(J239:J241) -> 0 | K242: 0 | L242: 0 | M242: 0 | N242: 0 | O242: 0 | P242: 0 | Q242: 0 | R242: 0 | S242: 0 | T242: 0 | U242: 0 | V242: 0 | W242: 0 | X242: 0 | Y242: 0 | Z242: 0 | AA242: 0 | AB242: 0 | AC242: =SUM(AC239:AC241) -> 0 | AD242: 0 | AE242: 0
C244: Stormwater
... 9 more rows

Sheet Recycled water & RH
B2: =Cover!B5 -> Metropolitan Water Agency | E2: =Cover!E5 -> Abusiness
B3: Section 8 | E3: Recycled Water Data for Mandated and Voluntary schemes; Rouse Hill (Sydney Water only)
B4: =MID(CELL("filename",A4),FIND("]",CELL("filename",A4))+1,255) -> Recycled water & RH | E4: The costs of these recycled water schemes are not recovered through postage stamp prices.
B7: ='Non-financial'!B7 -> Colour coding located on Cover sheet
B8: ='Non-financial'!B8 -> Leave cells blank if no information exists - PLEASE DO NOT ENTER TEXT unless specifically requested to do so.
B9: ='Non-financial'!B9 -> We require forecasts only for purposes of a price review, when we also require the business to provide SIR information. (In other years we will hide the forecast columns.)
C13: Table 8.1 - Recycled Water Expenditure and Revenue (excluding 16A related) | AG13: ='Non-financial'!AG$17 -> COMMENTS TO IPART
C14: ='Non-financial'!C$18 -> Financial year | D14: OPTIONAL FIELDS | J14: ='Non-financial'!J$18 -> 2013-14 | K14: ='Non-financial'!K$18 -> 2014-15 | L14: ='Non-financial'!L$18 -> 2015-16 | M14: ='Non-financial'!M$18 -> 2016-17 | N14: ='Non-financial'!N$18 -> 2017-18 | O14: ='Non-financial'!O$18 -> 2018-19 | P14: ='Non-financial'!P$18 -> 2019-20 | Q14: ='Non-financial'!Q$18 -> 2020-21 | R14: ='Non-financial'!R$18 -> 2021-22 | S14: ='Non-financial'!S$18 -> 2022-23 | T14: ='Non-financial'!T$18 -> 2023-24 | U14: ='Non-financial'!U$18 -> 2024-25 | V14: ='Non-financial'!V$18 -> 2025-26 | W14: ='Non-financial'!W$18 -> 2026-27 | X14: ='Non-financial'!X$18 -> 2027-28 | Y14: ='Non-financial'!Y$18 -> 2028-29 | Z14: ='Non-financial'!Z$18 -> 2029-30 | AA14: ='Non-financial'!AA$18 -> 2030-31 | AB14: ='Non-financial'!AB$18 -> 2031-32 | AC14: ='Non-financial'!AC$18 -> 2032-33 | AD14: ='Non-financial'!AD$18 -> 2033-34 | AE14: ='Non-financial'!AE$18 -> 2034-35 | AG14: ='Non-financial'!$AG$18 -> 2023
D15: ='Non-financial'!D$19 -> Code | F15: I/C | G15: ='Non-financial'!G$19 -> Unit | J15: ='Non-financial'!J$19 -> Actual | K15: ='Non-financial'!K$19 -> Actual | L15: ='Non-financial'!L$19 -> Actual | M15: ='Non-financial'!M$19 -> Actual | N15: ='Non-financial'!N$19 -> Actual | O15: ='Non-financial'!O$19 -> Actual | P15: ='Non-financial'!P$19 -> Actual | Q15: ='Non-financial'!Q$19 -> Actual | R15: ='Non-financial'!R$19 -> Actual | S15: ='Non-financial'!S$19 -> Actual | T15: ='Non-financial'!T$19 -> Forecast | U15: ='Non-financial'!U$19 -> Forecast | V15: ='Non-financial'!V$19 -> Forecast | W15: ='Non-financial'!W$19 -> Forecast | X15: ='Non-financial'!X$19 -> Forecast | Y15: ='Non-financial'!Y$19 -> Forecast | Z15: ='Non-financial'!Z$19 -> Forecast | AA15: ='Non-financial'!AA$19 -> Forecast | AB15: ='Non-financial'!AB$19 -> Forecast | AC15: ='Non-financial'!AC$19 -> Forecast | AD15: ='Non-financial'!AD$19 -> Forecast | AE15: ='Non-financial'!AE$19 -> Forecast
C16: =Revenue!C$21 -> Inflation rate for application to prices (lagged CPI to March) | J16: =Revenue!J$21 -> 0.025 | K16: =Revenue!K$21 -> 0.029 | L16: =Revenue!L$21 -> 0.013 | M16: =Revenue!M$21 -> 0.013 | N16: =Revenue!N$21 -> 0.021 | O16: =Revenue!O$21 -> 0.019 | P16: =Revenue!P$21 -> 0.013 | Q16: =Revenue!Q$21 -> 0.022 | R16: =Revenue!R$21 -> 0.011 | S16: =Revenue!S$21 -> 0.051 | T16: =Revenue!T$21 -> 0 | U16: =Revenue!U$21 -> 0 | V16: =Revenue!V$21 -> 0 | W16: =Revenue!W$21 -> 0 | X16: =Revenue!X$21 -> 0 | Y16: =Revenue!Y$21 -> 0 | Z16: =Revenue!Z$21 -> 0 | AA16: =Revenue!AA$21 -> 0 | AB16: =Revenue!AB$21 -> 0 | AC16: =Revenue!AC$21 -> 0 | AD16: =Revenue!AD$21 -> 0 | AE16: =Revenue!AE$21 -> 0
C17: ='Opex by item'!$C$26 -> Inflation rate for application to costs (CPI) | J17: ='Opex by item'!J$26 -> 0.03 | K17: ='Opex by item'!K$26 -> 0.015 | L17: ='Opex by item'!L$26 -> 0.01 | M17: ='Opex by item'!M$26 -> 0.019 | N17: ='Opex by item'!N$26 -> 0.021 | O17: ='Opex by item'!O$26 -> 0.022 | P17: ='Opex by item'!P$26 -> -0.003 | Q17: ='Opex by item'!Q$26 -> 0.038 | R17: ='Opex by item'!R$26 -> 0.061 | S17: ='Opex by item'!S$26 -> 0 | T17: ='Opex by item'!T$26 -> 0 | U17: ='Opex by item'!U$26 -> 0 | V17: ='Opex by item'!V$26 -> 0 | W17: ='Opex by item'!W$26 -> 0 | X17: ='Opex by item'!X$26 -> 0 | Y17: ='Opex by item'!Y$26 -> 0 | Z17: ='Opex by item'!Z$26 -> 0 | AA17: ='Opex by item'!AA$26 -> 0 | AB17: ='Opex by item'!AB$26 -> 0 | AC17: ='Opex by item'!AC$26 -> 0 | AD17: ='Opex by item'!AD$26 -> 0 | AE17: ='Opex by item'!AE$26 -> 0
C19: Expenditure (excluding corporate overheads)
C21: Operating expenditure | F21: I | G21: =Cover!$K$6 -> $'000
C23: Capital expenditure | F23: I | G23: =G$21 -> $'000
C25: Revenue
C27: Total revenue from charges | F27: C | G27: =G$21 -> $'000
C29: Total cash capital contributions | F29: I | G29: =G$21 -> $'000
C33: Table 8.2 - Recycled Water Non-Financial Data (excluding 16A related) | AG33: =AG$13 -> COMMENTS TO IPART
C34: =C$14 -> Financial year | D34: =D$14 -> OPTIONAL FIELDS | J34: =J$14 -> 2013-14 | K34: 2014-15 | L34: 2015-16 | M34: 2016-17 | N34: 2017-18 | O34: 2018-19 | P34: 2019-20 | Q34: 2020-21 | R34: 2021-22 | S34: 2022-23 | T34: 2023-24 | U34: 2024-25 | V34: 2025-26 | W34: 2026-27 | X34: 2027-28 | Y34: 2028-29 | Z34: 2029-30 | AA34: 2030-31 | AB34: 2031-32 | AC34: 2032-33 | AD34: 2033-34 | AE34: 2034-35 | AG34: 2023
D35: =D$15 -> Code | F35: I/C | G35: Unit | J35: =J$15 -> Actual | K35: Actual | L35: Actual | M35: Actual | N35: Actual | O35: Actual | P35: Actual | Q35: Actual | R35: Actual | S35: Actual | T35: Forecast | U35: Forecast | V35: Forecast | W35: Forecast | X35: Forecast | Y35: Forecast | Z35: Forecast | AA35: Forecast | AB35: Forecast | AC35: Forecast | AD35: Forecast | AE35: Forecast
C37: Recycled Water Customer Base
C39: Residential customer base
C40: - Houses | F40: I | G40: no.
C41: - Units/Flats | F41: I | G41: no.
C42: - Other | F42: I | G42: no.
C43: Total residential properties | F43: C | G43: no. | J43: =SUM(J40:J42) -> 0 | K43: 0 | L43: =SUM(L40:L42) -> 0 | M43: =SUM(M40:M42) -> 0 | N43: 0 | O43: 0 | P43: 0 | Q43: 0 | R43: 0 | S43: 0 | T43: 0 | U43: 0 | V43: 0 | W43: 0 | X43: 0 | Y43: 0 | Z43: 0 | AA43: 0 | AB43: 0 | AC43: =SUM(AC40:AC42) -> 0 | AD43: =SUM(AD40:AD42) -> 0 | AE43: =SUM(AE40:AE42) -> 0
C45: Non-residential customer base
C46: Total non-residential properties | F46: I | G46: no.
C48: Total exempt properties | F48: I | G48: no.
C50: Total properties | F50: C | G50: no. | J50: =J43+J46+J48 -> 0 | K50: 0 | L50: =L43+L46+L48 -> 0 | M50: 0 | N50: 0 | O50: 0 | P50: 0 | Q50: 0 | R50: 0 | S50: 0 | T50: 0 | U50: 0 | V50: 0 | W50: 0 | X50: 0 | Y50: 0 | Z50: 0 | AA50: 0 | AB50: 0 | AC50: 0 | AD50: 0 | AE50: 0
C52: Recycled Water Consumption
C54: Residential water consumption
C55: - Houses | F55: I | G55: ='Non-financial'!$G$258 -> ML
C56: - Units/Flats | F56: I | G56: =$G$55 -> ML
C57: - Other | F57: I | G57: =$G$55 -> ML
C58: Total residential properties | F58: C | G58: =$G$55 -> ML | J58: =SUM(J55:J57) -> 0 | K58: =SUM(K55:K57) -> 0 | L58: =SUM(L55:L57) -> 0 | M58: =SUM(M55:M57) -> 0 | N58: =SUM(N55:N57) -> 0 | O58: =SUM(O55:O57) -> 0 | P58: 0 | Q58: 0 | R58: 0 | S58: 0 | T58: 0 | U58: 0 | V58: 0 | W58: 0 | X58: 0 | Y58: 0 | Z58: 0 | AA58: 0 | AB58: 0 | AC58: 0 | AD58: 0 | AE58: 0
C60: Non-residential water consumption
C61: Total non-residential consumption | F61: I | G61: =$G$55 -> ML
C63: Total consumption from exempt properties | F63: I | G63: =$G$55 -> ML
C64: Other recycled water use | F64: I | G64: ML
C66: Total consumption | F66: I | G66: =$G$55 -> ML | J66: =J58+J61+J63+J64 -> 0 | K66: 0 | L66: =L58+L61+L63+L64 -> 0 | M66: =M58+M61+M63+M64 -> 0 | N66: 0 | O66: 0 | P66: 0 | Q66: 0 | R66: 0 | S66: 0 | T66: 0 | U66: 0 | V66: 0 | W66: 0 | X66: 0 | Y66: 0 | Z66: 0 | AA66: 0 | AB66: 0 | AC66: 0 | AD66: 0 | AE66: 0
C68: Recycled Water Supply
C70: Total volume recycled water produced for sale | F70: I | G70: =$G$55 -> ML
C71: Total volume potable top-up sold as recycled water | F71: I | G71: ML
C72: Total volume available for sale as recycled water | F72: C | G72: ML | J72: =SUM(J70:J71) -> 0 | K72: 0 | L72: =SUM(L70:L71) -> 0 | M72: =SUM(M70:M71) -> 0 | N72: 0 | O72: 0 | P72: 0 | Q72: 0 | R72: 0 | S72: 0 | T72: 0 | U72: 0 | V72: 0 | W72: 0 | X72: 0 | Y72: 0 | Z72: 0 | AA72: 0 | AB72: 0 | AC72: 0 | AD72: 0 | AE72: 0
C74: Average consumption
C75: - Houses | F75: C | G75: kL/year | J75: =IF(J40=0,0,J55/J40*1000) -> 0 | K75: 0 | L75: 0 | M75: 0 | N75: 0 | O75: 0 | P75: 0 | Q75: 0 | R75: 0 | S75: 0 | T75: 0 | U75: 0 | V75: 0 | W75: 0 | X75: 0 | Y75: 0 | Z75: 0 | AA75: 0 | AB75: 0 | AC75: =IF(AC40=0,0,AC55/AC40*1000) -> 0 | AD75: 0 | AE75: 0
C76: - Units/flats | F76: =F75 -> C | G76: kL/year | J76: =IF(J41=0,0,J56/J41*1000) -> 0 | K76: 0 | L76: 0 | M76: 0 | N76: 0 | O76: 0 | P76: 0 | Q76: 0 | R76: 0 | S76: 0 | T76: 0 | U76: 0 | V76: 0 | W76: 0 | X76: 0 | Y76: 0 | Z76: 0 | AA76: 0 | AB76: 0 | AC76: =IF(AC41=0,0,AC56/AC41*1000) -> 0 | AD76: 0 | AE76: 0
C77: Residential average | F77: =F76 -> C | G77: kL/year | J77: =IF(J43=0,0,(J58/J43)*1000) -> 0 | K77: 0 | L77: =IF(L43=0,0,(L58/L43)*1000) -> 0 | M77: =IF(M43=0,0,(M58/M43)*1000) -> 0 | N77: 0 | O77: 0 | P77: 0 | Q77: 0 | R77: 0 | S77: 0 | T77: 0 | U77: 0 | V77: 0 | W77: 0 | X77: 0 | Y77: 0 | Z77: 0 | AA77: 0 | AB77: 0 | AC77: =IF(AC43=0,0,(AC58/AC43)*1000) -> 0 | AD77: 0 | AE77: 0
C78: Non-residential average | F78: =F77 -> C | G78: kL/year | J78: =IF(J46=0,0,J61/J46*1000) -> 0 | K78: 0 | L78: 0 | M78: 0 | N78: 0 | O78: 0 | P78: 0 | Q78: 0 | R78: 0 | S78: 0 | T78: 0 | U78: 0 | V78: 0 | W78: 0 | X78: 0 | Y78: 0 | Z78: 0 | AA78: 0 | AB78: 0 | AC78: =IF(AC46=0,0,AC61/AC46*1000) -> 0 | AD78: 0 | AE78: 0
C83: Table 8.3 - Rouse Hill (Sydney Water only) | AG83: =AG$13 -> COMMENTS TO IPART
C84: =C$14 -> Financial year | D84: =D$14 -> OPTIONAL FIELDS | J84: =J$14 -> 2013-14 | K84: 2014-15 | L84: 2015-16 | M84: 2016-17 | N84: 2017-18 | O84: 2018-19 | P84: 2019-20 | Q84: 2020-21 | R84: 2021-22 | S84: 2022-23 | T84: 2023-24 | U84: 2024-25 | V84: 2025-26 | W84: 2026-27 | X84: 2027-28 | Y84: 2028-29 | Z84: 2029-30 | AA84: 2030-31 | AB84: 2031-32 | AC84: 2032-33 | AD84: 2033-34 | AE84: 2034-35 | AG84: 2023
D85: =D$15 -> Code | F85: I/C | G85: Unit | J85: =J$15 -> Actual | K85: Actual | L85: Actual | M85: Actual | N85: Actual | O85: Actual | P85: Actual | Q85: Actual | R85: Actual | S85: Actual | T85: Forecast | U85: Forecast | V85: Forecast | W85: Forecast | X85: Forecast | Y85: Forecast | Z85: Forecast | AA85: Forecast | AB85: Forecast | AC85: Forecast | AD85: Forecast | AE85: Forecast
C87: Operating Statistics
C89: Land area under ownership for stormwater drainage
C90: - land acquired during year for stormwater drainage | F90: I | G90: m2
C91: Total land area under ownership for stormwater drainage at year end | F91: I/C | G91: =G90 -> m2 | K91: =J91+K90 -> 0 | L91: =K91+L90 -> 0 | M91: 0 | N91: 0 | O91: 0 | P91: 0 | Q91: 0 | R91: 0 | S91: 0 | T91: 0 | U91: 0 | V91: 0 | W91: 0 | X91: 0 | Y91: 0 | Z91: 0 | AA91: 0 | AB91: 0 | AC91: =AB91+AC90 -> 0 | AD91: =AC91+AD90 -> 0 | AE91: =AD91+AE90 -> 0
C93: Revenue
C95: Residential
C96: Service charges | F96: I | G96: =$G$21 -> $'000
C97: Land Charge | F97: I | G97: =$G$21 -> $'000
C98: Non-residential
C99: Service charges | F99: I | G99: $'000
C100: Land Charge | F100: I | G100: $'000
C102: Total Service and Land Charge Revenue | F102: C | G102: $'000 | J102: =SUM(J96:J97)+SUM(J99:J100) -> 0 | K102: =SUM(K96:K97)+SUM(K99:K100) -> 0 | L102: 0 | M102: 0 | N102: 0 | O102: 0 | P102: 0 | Q102: 0 | R102: 0 | S102: 0 | T102: 0 | U102: 0 | V102: 0 | W102: 0 | X102: 0 | Y102: 0 | Z102: 0 | AA102: 0 | AB102: 0 | AC102: 0 | AD102: 0 | AE102: 0
C104: Operating Expenditure
C106: Total opex excluding allocated Corporate costs | F106: I | G106: =$G$21 -> $'000
C107: Allocated corporate overhead costs | F107: I | G107: $'000
C108: Total opex including allocated Corporate costs | F108: C | G108: $'000 | J108: =SUM(J106:J107) -> 0 | K108: 0 | L108: 0 | M108: 0 | N108: 0 | O108: 0 | P108: =SUM(P106:P107) -> 0 | Q108: 0 | R108: 0 | S108: 0 | T108: 0 | U108: 0 | V108: 0 | W108: 0 | X108: 0 | Y108: 0 | Z108: 0 | AA108: 0 | AB108: 0 | AC108: 0 | AD108: 0 | AE108: 0
C110: Capital Expenditure
C112: Capital expenditure included in the stormwater RAB
C113: =Capex!C35 -> Depreciable assets | F113: I | G113: =$G$21 -> $'000
C114: =Capex!C36 -> Non-depreciable assets | F114: I | G114: $'000
C115: Total capex | F115: C | J115: =SUM(J113:J114) -> 0 | K115: =SUM(K113:K114) -> 0 | L115: 0 | M115: 0 | N115: 0 | O115: 0 | P115: 0 | Q115: 0 | R115: 0 | S115: 0 | T115: 0 | U115: 0 | V115: 0 | W115: 0 | X115: 0 | Y115: 0 | Z115: 0 | AA115: 0 | AB115: 0 | AC115: 0 | AD115: 0 | AE115: 0
C117: Capex recovered through Land Charge (not included in stormwater RAB)
C118: =Capex!C123 -> Depreciable assets | F118: C | G118: =$G$21 -> $'000 | J118: =Capex!J123 -> 0 | K118: =Capex!K123 -> 0 | L118: =Capex!L123 -> 0 | M118: =Capex!M123 -> 0 | N118: =Capex!N123 -> 0 | O118: =Capex!O123 -> 0 | P118: =Capex!P123 -> 0 | Q118: =Capex!Q123 -> 0 | R118: =Capex!R123 -> 0 | S118: =Capex!S123 -> 0 | T118: =Capex!T123 -> 0 | U118: =Capex!U123 -> 0 | V118: =Capex!V123 -> 0 | W118: =Capex!W123 -> 0 | X118: =Capex!X123 -> 0 | Y118: =Capex!Y123 -> 0 | Z118: =Capex!Z123 -> 0 | AA118: =Capex!AA123 -> 0 | AB118: =Capex!AB123 -> 0 | AC118: =Capex!AC123 -> 0 | AD118: =Capex!AD123 -> 0 | AE118: =Capex!AE123 -> 0
C119: =Capex!C124 -> Non-depreciable assets | F119: C | G119: $'000 | J119: =Capex!J124 -> 0 | K119: =Capex!K124 -> 0 | L119: =Capex!L124 -> 0 | M119: =Capex!M124 -> 0 | N119: =Capex!N124 -> 0 | O119: =Capex!O124 -> 0 | P119: =Capex!P124 -> 0 | Q119: =Capex!Q124 -> 0 | R119: =Capex!R124 -> 0 | S119: =Capex!S124 -> 0 | T119: =Capex!T124 -> 0 | U119: =Capex!U124 -> 0 | V119: =Capex!V124 -> 0 | W119: =Capex!W124 -> 0 | X119: =Capex!X124 -> 0 | Y119: =Capex!Y124 -> 0 | Z119: =Capex!Z124 -> 0 | AA119: =Capex!AA124 -> 0 | AB119: =Capex!AB124 -> 0 | AC119: =Capex!AC124 -> 0 | AD119: =Capex!AD124 -> 0 | AE119: =Capex!AE124 -> 0
C120: Total Land Charge capex | F120: C | G120: $'000 | J120: =SUM(J118:J119) -> 0 | K120: =SUM(K118:K119) -> 0 | L120: =SUM(L118:L119) -> 0 | M120: =SUM(M118:M119) -> 0 | N120: =SUM(N118:N119) -> 0 | O120: =SUM(O118:O119) -> 0 | P120: =SUM(P118:P119) -> 0 | Q120: =SUM(Q118:Q119) -> 0 | R120: =SUM(R118:R119) -> 0 | S120: =SUM(S118:S119) -> 0 | T120: =SUM(T118:T119) -> 0 | U120: =SUM(U118:U119) -> 0 | V120: =SUM(V118:V119) -> 0 | W120: =SUM(W118:W119) -> 0 | X120: =SUM(X118:X119) -> 0 | Y120: =SUM(Y118:Y119) -> 0 | Z120: =SUM(Z118:Z119) -> 0 | AA120: =SUM(AA118:AA119) -> 0 | AB120: =SUM(AB118:AB119) -> 0 | AC120: =SUM(AC118:AC119) -> 0 | AD120: =SUM(AD118:AD119) -> 0 | AE120: =SUM(AE118:AE119) -> 0
AD318: ``

Sheet Non-reg activies
B2: =Cover!B5 -> Metropolitan Water Agency | G2: =Cover!E5 -> Abusiness
B3: Section 9 | G3: Non-regulatory activities
B4: =MID(CELL("filename",A4),FIND("]",CELL("filename",A4))+1,255) -> Non-reg activies
B6: ='Non-financial'!$B$7 -> Colour coding located on Cover sheet
B7: ='Non-financial'!$B$8 -> Leave cells blank if no information exists - PLEASE DO NOT ENTER TEXT unless specifically requested to do so.
B8: ='Non-financial'!$B$9 -> We require forecasts only for purposes of a price review, when we also require the business to provide SIR information. (In other years we will hide the forecast columns.)
B11: NOTES:
B12: (i) | C12: From 2025-26, our policy is to share the profits from non-regulatory activities 50:50 between customers and shareholders.
C13: Profits are defined as revenue less the incremental costs of the activity (including provision for overheads).
C14: See IPART, Our water regulatory framework, Technical Paper, November 2022, Appendix A
B15: (ii) | C15: This worksheet captures the revenue, incremental opex, incremental capex and overhead allocation for each non-regulatory project or program
C16: ="(excluding ' efficiency projects' that are included in regulated costs - see '"&'Opex by item'!$B$4&"', row"&ROW('Opex by item'!C16)&"). Enter the names of the project in the blue cells in column C." -> (excluding ' efficiency projects' that are included in regulated costs - see 'Opex by item', row16). Enter the names of the project in the blue cells in column C.
B17: (iii) | C17: As part of your pricing proposal, you will need to show how you have has calculated profits and propose to share these with customers.
C18: You may do this by submitting a separate file, or doing the calculations in the 'SIR Non-regulatory' worksheet. | I18: ='SIR Non-regulatory'!B4 -> SIR Non-regulatory
C23: Table 9.1 - Non-regulatory revenue and incremental costs | AG23: ='Non-financial'!AG$17 -> COMMENTS TO IPART
C24: ='Non-financial'!C$18 -> Financial year | D24: OPTIONAL FIELDS | J24: ='Non-financial'!J$18 -> 2013-14 | K24: ='Non-financial'!K$18 -> 2014-15 | L24: ='Non-financial'!L$18 -> 2015-16 | M24: ='Non-financial'!M$18 -> 2016-17 | N24: ='Non-financial'!N$18 -> 2017-18 | O24: ='Non-financial'!O$18 -> 2018-19 | P24: ='Non-financial'!P$18 -> 2019-20 | Q24: ='Non-financial'!Q$18 -> 2020-21 | R24: ='Non-financial'!R$18 -> 2021-22 | S24: ='Non-financial'!S$18 -> 2022-23 | T24: ='Non-financial'!T$18 -> 2023-24 | U24: ='Non-financial'!U$18 -> 2024-25 | V24: ='Non-financial'!V$18 -> 2025-26 | W24: ='Non-financial'!W$18 -> 2026-27 | X24: ='Non-financial'!X$18 -> 2027-28 | Y24: ='Non-financial'!Y$18 -> 2028-29 | Z24: ='Non-financial'!Z$18 -> 2029-30 | AA24: ='Non-financial'!AA$18 -> 2030-31 | AB24: ='Non-financial'!AB$18 -> 2031-32 | AC24: ='Non-financial'!AC$18 -> 2032-33 | AD24: ='Non-financial'!AD$18 -> 2033-34 | AE24: ='Non-financial'!AE$18 -> 2034-35 | AG24: ='Non-financial'!$AG$18 -> 2023
D25: ='Non-financial'!D$19 -> Code | F25: I/C | G25: ='Non-financial'!G$19 -> Unit | J25: ='Non-financial'!J$19 -> Actual | K25: ='Non-financial'!K$19 -> Actual | L25: ='Non-financial'!L$19 -> Actual | M25: ='Non-financial'!M$19 -> Actual | N25: ='Non-financial'!N$19 -> Actual | O25: ='Non-financial'!O$19 -> Actual | P25: ='Non-financial'!P$19 -> Actual | Q25: ='Non-financial'!Q$19 -> Actual | R25: ='Non-financial'!R$19 -> Actual | S25: ='Non-financial'!S$19 -> Actual | T25: ='Non-financial'!T$19 -> Forecast | U25: ='Non-financial'!U$19 -> Forecast | V25: ='Non-financial'!V$19 -> Forecast | W25: ='Non-financial'!W$19 -> Forecast | X25: ='Non-financial'!X$19 -> Forecast | Y25: ='Non-financial'!Y$19 -> Forecast | Z25: ='Non-financial'!Z$19 -> Forecast | AA25: ='Non-financial'!AA$19 -> Forecast | AB25: ='Non-financial'!AB$19 -> Forecast | AC25: ='Non-financial'!AC$19 -> Forecast | AD25: ='Non-financial'!AD$19 -> Forecast | AE25: ='Non-financial'!AE$19 -> Forecast
C26: =Revenue!C$21 -> Inflation rate for application to prices (lagged CPI to March) | J26: =Revenue!J$21 -> 0.025 | K26: =Revenue!K$21 -> 0.029 | L26: =Revenue!L$21 -> 0.013 | M26: =Revenue!M$21 -> 0.013 | N26: =Revenue!N$21 -> 0.021 | O26: =Revenue!O$21 -> 0.019 | P26: =Revenue!P$21 -> 0.013 | Q26: =Revenue!Q$21 -> 0.022 | R26: =Revenue!R$21 -> 0.011 | S26: =Revenue!S$21 -> 0.051 | T26: =Revenue!T$21 -> 0 | U26: =Revenue!U$21 -> 0 | V26: =Revenue!V$21 -> 0 | W26: =Revenue!W$21 -> 0 | X26: =Revenue!X$21 -> 0 | Y26: =Revenue!Y$21 -> 0 | Z26: =Revenue!Z$21 -> 0 | AA26: =Revenue!AA$21 -> 0 | AB26: =Revenue!AB$21 -> 0 | AC26: =Revenue!AC$21 -> 0 | AD26: =Revenue!AD$21 -> 0 | AE26: =Revenue!AE$21 -> 0
C27: ='Opex by item'!$C$26 -> Inflation rate for application to costs (CPI) | J27: ='Opex by item'!J$26 -> 0.03 | K27: ='Opex by item'!K$26 -> 0.015 | L27: ='Opex by item'!L$26 -> 0.01 | M27: ='Opex by item'!M$26 -> 0.019 | N27: ='Opex by item'!N$26 -> 0.021 | O27: ='Opex by item'!O$26 -> 0.022 | P27: ='Opex by item'!P$26 -> -0.003 | Q27: ='Opex by item'!Q$26 -> 0.038 | R27: ='Opex by item'!R$26 -> 0.061 | S27: ='Opex by item'!S$26 -> 0 | T27: ='Opex by item'!T$26 -> 0 | U27: ='Opex by item'!U$26 -> 0 | V27: ='Opex by item'!V$26 -> 0 | W27: ='Opex by item'!W$26 -> 0 | X27: ='Opex by item'!X$26 -> 0 | Y27: ='Opex by item'!Y$26 -> 0 | Z27: ='Opex by item'!Z$26 -> 0 | AA27: ='Opex by item'!AA$26 -> 0 | AB27: ='Opex by item'!AB$26 -> 0 | AC27: ='Opex by item'!AC$26 -> 0 | AD27: ='Opex by item'!AD$26 -> 0 | AE27: ='Opex by item'!AE$26 -> 0
C29: <Name project/program here>
C30: Revenue | F30: I | G30: =Cover!$K$6 -> $'000
C31: Incremental opex | F31: I | G31: =G$30 -> $'000
C32: Overhead allocation | F32: I | G32: =G$30 -> $'000
C33: Incremental capex (net of capital contributions) | F33: I | G33: =G$30 -> $'000
C34: Expected economic life | F34: I | G34: years
C36: <Name project/program here>
C37: =C$30 -> Revenue | F37: I | G37: =G$30 -> $'000
C38: =C$31 -> Incremental opex | F38: I | G38: =G$31 -> $'000
C39: =C$32 -> Overhead allocation | F39: I | G39: =G$32 -> $'000
C40: =C$33 -> Incremental capex (net of capital contributions) | F40: I | G40: =G$33 -> $'000
C41: =C$34 -> Expected economic life | F41: I | G41: =G$34 -> years
C43: <Name project/program here>
C44: =C$30 -> Revenue | F44: I | G44: =G$30 -> $'000
C45: =C$31 -> Incremental opex | F45: I | G45: =G$31 -> $'000
C46: =C$32 -> Overhead allocation | F46: I | G46: =G$32 -> $'000
C47: =C$33 -> Incremental capex (net of capital contributions) | F47: I | G47: =G$33 -> $'000
C48: =C$34 -> Expected economic life | F48: I | G48: =G$34 -> years
C50: <Name project/program here>
C51: =C$30 -> Revenue | F51: I | G51: =G$30 -> $'000
C52: =C$31 -> Incremental opex | F52: I | G52: =G$31 -> $'000
C53: =C$32 -> Overhead allocation | F53: I | G53: =G$32 -> $'000
C54: =C$33 -> Incremental capex (net of capital contributions) | F54: I | G54: =G$33 -> $'000
C55: =C$34 -> Expected economic life | F55: I | G55: =G$34 -> years
C57: <Name project/program here>
C58: =C$30 -> Revenue | F58: I | G58: =G$30 -> $'000
C59: =C$31 -> Incremental opex | F59: I | G59: =G$31 -> $'000
C60: =C$32 -> Overhead allocation | F60: I | G60: =G$32 -> $'000
C61: =C$33 -> Incremental capex (net of capital contributions) | F61: I | G61: =G$33 -> $'000
C62: =C$34 -> Expected economic life | F62: I | G62: =G$34 -> years
C64: <Name project/program here>
C65: =C$30 -> Revenue | F65: I | G65: =G$30 -> $'000
C66: =C$31 -> Incremental opex | F66: I | G66: =G$31 -> $'000
C67: =C$32 -> Overhead allocation | F67: I | G67: =G$32 -> $'000
C68: =C$33 -> Incremental capex (net of capital contributions) | F68: I | G68: =G$33 -> $'000
C69: =C$34 -> Expected economic life | F69: I | G69: =G$34 -> years
C71: <Name project/program here>
C72: =C$30 -> Revenue | F72: I | G72: =G$30 -> $'000
C73: =C$31 -> Incremental opex | F73: I | G73: =G$31 -> $'000
C74: =C$32 -> Overhead allocation | F74: I | G74: =G$32 -> $'000
C75: =C$33 -> Incremental capex (net of capital contributions) | F75: I | G75: =G$33 -> $'000
C76: =C$34 -> Expected economic life | F76: I | G76: =G$34 -> years
C78: <Name project/program here>
C79: =C$30 -> Revenue | F79: I | G79: =G$30 -> $'000
C80: =C$31 -> Incremental opex | F80: I | G80: =G$31 -> $'000
C81: =C$32 -> Overhead allocation | F81: I | G81: =G$32 -> $'000
C82: =C$33 -> Incremental capex (net of capital contributions) | F82: I | G82: =G$33 -> $'000
C83: =C$34 -> Expected economic life | F83: I | G83: =G$34 -> years
C85: <Name project/program here>
C86: =C$30 -> Revenue | F86: I | G86: =G$30 -> $'000
C87: =C$31 -> Incremental opex | F87: I | G87: =G$31 -> $'000
C88: =C$32 -> Overhead allocation | F88: I | G88: =G$32 -> $'000
C89: =C$33 -> Incremental capex (net of capital contributions) | F89: I | G89: =G$33 -> $'000
C90: =C$34 -> Expected economic life | F90: I | G90: =G$34 -> years
C92: <Name project/program here>
C93: =C$30 -> Revenue | F93: I | G93: =G$30 -> $'000
C94: =C$31 -> Incremental opex | F94: I | G94: =G$31 -> $'000
C95: =C$32 -> Overhead allocation | F95: I | G95: =G$32 -> $'000
C96: =C$33 -> Incremental capex (net of capital contributions) | F96: I | G96: =G$33 -> $'000
C97: =C$34 -> Expected economic life | F97: I | G97: =G$34 -> years
C99: <Name project/program here>
C100: =C$30 -> Revenue | F100: I | G100: =G$30 -> $'000
C101: =C$31 -> Incremental opex | F101: I | G101: =G$31 -> $'000
C102: =C$32 -> Overhead allocation | F102: I | G102: =G$32 -> $'000
C103: =C$33 -> Incremental capex (net of capital contributions) | F103: I | G103: =G$33 -> $'000
C104: =C$34 -> Expected economic life | F104: I | G104: =G$34 -> years
C106: <Name project/program here>
C107: =C$30 -> Revenue | F107: I | G107: =G$30 -> $'000
C108: =C$31 -> Incremental opex | F108: I | G108: =G$31 -> $'000
C109: =C$33 -> Incremental capex (net of capital contributions) | F109: I | G109: =G$32 -> $'000
C110: =C$34 -> Expected economic life | F110: I | G110: =G$33 -> $'000
G111: =G$34 -> years
C112: <Name project/program here>
C113: =C$30 -> Revenue | F113: I
C114: =C$31 -> Incremental opex | F114: I | G114: =G$30 -> $'000
C115: =C$32 -> Overhead allocation | F115: I | G115: =G$31 -> $'000
C116: =C$33 -> Incremental capex (net of capital contributions) | F116: I | G116: =G$32 -> $'000
C117: =C$34 -> Expected economic life | F117: I | G117: =G$33 -> $'000
G118: =G$34 -> years
C119: <Name project/program here>
C120: =C$30 -> Revenue | F120: I
C121: =C$31 -> Incremental opex | F121: I | G121: =G$30 -> $'000
C122: =C$32 -> Overhead allocation | F122: I | G122: =G$31 -> $'000
C123: =C$33 -> Incremental capex (net of capital contributions) | F123: I | G123: =G$32 -> $'000
C124: =C$34 -> Expected economic life | F124: I | G124: =G$33 -> $'000
C126: Total
C127: =C$30 -> Revenue | F127: C | G127: =Cover!$K$6 -> $'000 | T127: =SUMIF($C$30:$C$124,$C127,T$30:T$124) -> 0 | U127: 0 | V127: 0 | W127: 0 | X127: 0 | Y127: 0 | Z127: 0 | AA127: 0 | AB127: 0 | AC127: 0 | AD127: 0 | AE127: 0
C128: =C$31 -> Incremental opex | F128: C | G128: =G$30 -> $'000 | T128: 0 | U128: 0 | V128: 0 | W128: 0 | X128: 0 | Y128: 0 | Z128: 0 | AA128: 0 | AB128: 0 | AC128: 0 | AD128: 0 | AE128: 0
C129: =C$32 -> Overhead allocation | F129: C | G129: =G$30 -> $'000 | T129: 0 | U129: 0 | V129: 0 | W129: 0 | X129: 0 | Y129: 0 | Z129: 0 | AA129: 0 | AB129: 0 | AC129: 0 | AD129: 0 | AE129: 0
C130: =C$33 -> Incremental capex (net of capital contributions) | F130: C | G130: =G$30 -> $'000 | T130: 0 | U130: 0 | V130: 0 | W130: 0 | X130: 0 | Y130: 0 | Z130: 0 | AA130: 0 | AB130: 0 | AC130: 0 | AD130: 0 | AE130: 0

Sheet Fin Data
B2: =Cover!B5 -> Metropolitan Water Agency | G2: =Cover!E5 -> Abusiness
B3: Section 10 | G3: Financial information and tax depreciation
B4: =MID(CELL("filename",A4),FIND("]",CELL("filename",A4))+1,255) -> Fin Data
B6: ='Non-financial'!B7 -> Colour coding located on Cover sheet
B7: ='Non-financial'!B8 -> Leave cells blank if no information exists - PLEASE DO NOT ENTER TEXT unless specifically requested to do so.
B8: ='Non-financial'!B9 -> We require forecasts only for purposes of a price review, when we also require the business to provide SIR information. (In other years we will hide the forecast columns.)
B10: NOTES:
B11: (i) | C11: In the first 3 tables, please enter the data annually.
B12: (ii) | C12: =LEFT(C17,10)&" records information from you statutory financial statements. The way we use each of these items is explained in the notes ." -> Table 10.1 records information from you statutory financial statements. The way we use each of these items is explained in the notes .
B13: (iii) | C13: =LEFT(C109,10)&" collects information for the 'actual' financeability test at price reviews. Please note that you do not need to complete the green input cells if you prefer to leave them blank." -> Table 10.4 collects information for the 'actual' financeability test at price reviews. Please note that you do not need to complete the green input cells if you prefer to leave them blank.
C17: Table 10.1 - Information from statutory financial statements | J17: $ nominal | AG17: ='Non-financial'!AG$17 -> COMMENTS TO IPART
C18: ='Non-financial'!C$18 -> Financial year | D18: OPTIONAL FIELDS | J18: ='Non-financial'!J$18 -> 2013-14 | K18: ='Non-financial'!K$18 -> 2014-15 | L18: ='Non-financial'!L$18 -> 2015-16 | M18: ='Non-financial'!M$18 -> 2016-17 | N18: ='Non-financial'!N$18 -> 2017-18 | O18: ='Non-financial'!O$18 -> 2018-19 | P18: ='Non-financial'!P$18 -> 2019-20 | Q18: ='Non-financial'!Q$18 -> 2020-21 | R18: ='Non-financial'!R$18 -> 2021-22 | S18: ='Non-financial'!S$18 -> 2022-23 | T18: ='Non-financial'!T$18 -> 2023-24 | U18: ='Non-financial'!U$18 -> 2024-25 | V18: ='Non-financial'!V$18 -> 2025-26 | W18: ='Non-financial'!W$18 -> 2026-27 | X18: ='Non-financial'!X$18 -> 2027-28 | Y18: ='Non-financial'!Y$18 -> 2028-29 | Z18: ='Non-financial'!Z$18 -> 2029-30 | AA18: ='Non-financial'!AA$18 -> 2030-31 | AB18: ='Non-financial'!AB$18 -> 2031-32 | AC18: ='Non-financial'!AC$18 -> 2032-33 | AD18: ='Non-financial'!AD$18 -> 2033-34 | AE18: ='Non-financial'!AE$18 -> 2034-35 | AG18: ='Non-financial'!AG$18 -> 2023
D19: =D$111 -> Code | F19: I/C | G19: Unit | J19: ='Non-financial'!J$19 -> Actual | K19: ='Non-financial'!K$19 -> Actual | L19: ='Non-financial'!L$19 -> Actual | M19: ='Non-financial'!M$19 -> Actual | N19: ='Non-financial'!N$19 -> Actual | O19: ='Non-financial'!O$19 -> Actual | P19: ='Non-financial'!P$19 -> Actual | Q19: ='Non-financial'!Q$19 -> Actual | R19: ='Non-financial'!R$19 -> Actual | S19: ='Non-financial'!S$19 -> Actual | T19: ='Non-financial'!T$19 -> Forecast | U19: ='Non-financial'!U$19 -> Forecast | V19: ='Non-financial'!V$19 -> Forecast | W19: ='Non-financial'!W$19 -> Forecast | X19: ='Non-financial'!X$19 -> Forecast | Y19: ='Non-financial'!Y$19 -> Forecast | Z19: ='Non-financial'!Z$19 -> Forecast | AA19: ='Non-financial'!AA$19 -> Forecast | AB19: ='Non-financial'!AB$19 -> Forecast | AC19: ='Non-financial'!AC$19 -> Forecast | AD19: ='Non-financial'!AD$19 -> Forecast | AE19: ='Non-financial'!AE$19 -> Forecast
C21: Statement of Profit or Loss (P&L)
C23: Total revenue (including capital contributions and AFOC) | F23: I | G23: =Cover!$K$6 -> $'000
C25: Total operating expenditure | F25: I | G25: =$G$23 -> $'000
C27: Dividend payments | F27: I | G27: =$G$23 -> $'000
C29: Cost of fixed assets written down/written off | F29: I | G29: =$G$23 -> $'000
C31: Statement of Financial Position
C33: Total book value of assets (PPE) | F33: I | G33: =$G$23 -> $'000
C34: Borrowings, current liabilities | F34: I | G34: $'000
C35: Borrowings, non-current liabilities | F35: I | G35: $'000
C36: Gearing ratio (used for 'actual' financial statements) | F36: C | G36: % | J36: =IF(J33=0,0,SUM(J34:J35)/J33) -> 0 | K36: =IF(K33=0,0,SUM(K34:K35)/K33) -> 0 | L36: =IF(L33=0,0,SUM(L34:L35)/L33) -> 0 | M36: =IF(M33=0,0,SUM(M34:M35)/M33) -> 0 | N36: =IF(N33=0,0,SUM(N34:N35)/N33) -> 0 | O36: =IF(O33=0,0,SUM(O34:O35)/O33) -> 0 | P36: =IF(P33=0,0,SUM(P34:P35)/P33) -> 0 | Q36: =IF(Q33=0,0,SUM(Q34:Q35)/Q33) -> 0 | R36: =IF(R33=0,0,SUM(R34:R35)/R33) -> 0 | S36: =IF(S33=0,0,SUM(S34:S35)/S33) -> 0 | T36: =IF(T33=0,0,SUM(T34:T35)/T33) -> 0 | U36: =IF(U33=0,0,SUM(U34:U35)/U33) -> 0 | V36: =IF(V33=0,0,SUM(V34:V35)/V33) -> 0 | W36: =IF(W33=0,0,SUM(W34:W35)/W33) -> 0 | X36: =IF(X33=0,0,SUM(X34:X35)/X33) -> 0 | Y36: =IF(Y33=0,0,SUM(Y34:Y35)/Y33) -> 0 | Z36: =IF(Z33=0,0,SUM(Z34:Z35)/Z33) -> 0 | AA36: =IF(AA33=0,0,SUM(AA34:AA35)/AA33) -> 0 | AB36: =IF(AB33=0,0,SUM(AB34:AB35)/AB33) -> 0 | AC36: =IF(AC33=0,0,SUM(AC34:AC35)/AC33) -> 0 | AD36: =IF(AD33=0,0,SUM(AD34:AD35)/AD33) -> 0 | AE36: =IF(AE33=0,0,SUM(AE34:AE35)/AE33) -> 0
C38: Inventory | F38: I | G38: =$G$23 -> $'000
C40: Prepayments | F40: I | G40: =$G$23 -> $'000
C44: Table 10.2 - Non-cash capital contributions | AG44: =AG$17 -> COMMENTS TO IPART
C45: =C$18 -> Financial year | D45: =D$18 -> OPTIONAL FIELDS | J45: =J$18 -> 2013-14 | K45: 2014-15 | L45: 2015-16 | M45: 2016-17 | N45: 2017-18 | O45: 2018-19 | P45: 2019-20 | Q45: 2020-21 | R45: 2021-22 | S45: 2022-23 | T45: 2023-24 | U45: 2024-25 | V45: 2025-26 | W45: 2026-27 | X45: 2027-28 | Y45: 2028-29 | Z45: 2029-30 | AA45: 2030-31 | AB45: 2031-32 | AC45: 2032-33 | AD45: 2033-34 | AE45: 2034-35 | AG45: =AG$18 -> 2023
D46: =D$19 -> Code | F46: =F$19 -> I/C | G46: =G$19 -> Unit | J46: =J$19 -> Actual | K46: Actual | L46: Actual | M46: Actual | N46: Actual | O46: Actual | P46: Actual | Q46: Actual | R46: Actual | S46: Actual | T46: Forecast | U46: Forecast | V46: Forecast | W46: Forecast | X46: Forecast | Y46: Forecast | Z46: Forecast | AA46: Forecast | AB46: Forecast | AC46: Forecast | AD46: Forecast | AE46: Forecast
C48: ="Provide forecasts in real $"&Cover!$E$11 -> Provide forecasts in real $2023-24 | U48: =C48 -> Provide forecasts in real $2023-24
C49: Forecasts are used to calculate the tax allowance and must be fully allocated to water, wastewater and stormwater services. | U49: =C49 -> Forecasts are used to calculate the tax allowance and must be fully allocated to water, wastewater and stormwater services.
C51: Water | F51: I | G51: =$G$23 -> $'000
C52: Wastewater | F52: I | G52: =$G$23 -> $'000
C53: Stormwater | F53: I | G53: =$G$23 -> $'000
C54: Unallocated | F54: I | G54: =$G$23 -> $'000
C55: Combined | F55: C | G55: =$G$23 -> $'000 | J55: =J51+J52+J53+J54 -> 0 | K55: 0 | L55: 0 | M55: 0 | N55: 0 | O55: 0 | P55: 0 | Q55: 0 | R55: 0 | S55: 0 | T55: 0 | U55: 0 | V55: 0 | W55: 0 | X55: 0 | Y55: 0 | Z55: 0 | AA55: 0 | AB55: 0 | AC55: 0 | AD55: 0 | AE55: 0
C59: Table 10.3 - Tax depreciation (nominal) | J59: $ nominal | O59: $ nominal | AG59: =AG$17 -> COMMENTS TO IPART
C60: =C$18 -> Financial year | D60: =D$18 -> OPTIONAL FIELDS | J60: =J$18 -> 2013-14 | K60: 2014-15 | L60: 2015-16 | M60: 2016-17 | N60: 2017-18 | O60: 2018-19 | P60: 2019-20 | Q60: 2020-21 | R60: 2021-22 | S60: 2022-23 | T60: 2023-24 | U60: 2024-25 | V60: 2025-26 | W60: 2026-27 | X60: 2027-28 | Y60: 2028-29 | Z60: 2029-30 | AA60: 2030-31 | AB60: 2031-32 | AC60: 2032-33 | AD60: 2033-34 | AE60: 2034-35 | AG60: =AG$18 -> 2023
D61: =D$19 -> Code | F61: =F$19 -> I/C | G61: =G$19 -> Unit | J61: =J$19 -> Actual | K61: Actual | L61: Actual | M61: Actual | N61: Actual | O61: Actual | P61: Actual | Q61: Actual | R61: Actual | S61: Actual | T61: Forecast | U61: Forecast | V61: Forecast | W61: Forecast | X61: Forecast | Y61: Forecast | Z61: Forecast | AA61: Forecast | AB61: Forecast | AC61: Forecast | AD61: Forecast | AE61: Forecast
C63: Provide forecasts in $ nominal
U64: =C63 -> Provide forecasts in $ nominal
C65: Depreciation for tax purposes (including allocated corporate assets, expensed capex and discretionary capex)
C66: Water
C67: =" - All existing assets at 30 June "&Cover!$E$6 -> - All existing assets at 30 June 2023 | F67: I | G67: =$G$23 -> $'000
C68: =" - Capex from 1 July "&Cover!$E$6 -> - Capex from 1 July 2023 | F68: I | G68: $'000
C69: =" - Non-cash contributed assets from 1 July "&Cover!$E$6 -> - Non-cash contributed assets from 1 July 2023 | F69: I | G69: $'000
C70: ="Total "&C66&" depreciation for tax purposes" -> Total Water depreciation for tax purposes | F70: I/C | U70: =SUM(U67:U69) -> 0 | V70: 0 | W70: 0 | X70: 0 | Y70: 0 | Z70: 0 | AA70: 0 | AB70: 0 | AC70: =SUM(AC67:AC69) -> 0 | AD70: 0 | AE70: 0
C72: Wastewater
C73: =C67 -> - All existing assets at 30 June 2023 | F73: I | G73: =$G$23 -> $'000
C74: =C68 -> - Capex from 1 July 2023 | F74: I | G74: $'000
C75: =C69 -> - Non-cash contributed assets from 1 July 2023 | F75: I | G75: $'000
C76: ="Total "&C72&" depreciation for tax purposes" -> Total Wastewater depreciation for tax purposes | F76: I/C | U76: =SUM(U73:U75) -> 0 | V76: 0 | W76: 0 | X76: 0 | Y76: 0 | Z76: 0 | AA76: 0 | AB76: 0 | AC76: =SUM(AC73:AC75) -> 0 | AD76: 0 | AE76: 0
C78: Stormwater
C79: =C67 -> - All existing assets at 30 June 2023 | F79: I | G79: =$G$23 -> $'000
C80: =C68 -> - Capex from 1 July 2023 | F80: I | G80: $'000
C81: =C69 -> - Non-cash contributed assets from 1 July 2023 | F81: I | G81: $'000
C82: ="Total "&C78&" depreciation for tax purposes" -> Total Stormwater depreciation for tax purposes | F82: I/C | U82: =SUM(U79:U81) -> 0 | V82: 0 | W82: 0 | X82: 0 | Y82: 0 | Z82: 0 | AA82: 0 | AB82: 0 | AC82: =SUM(AC79:AC81) -> 0 | AD82: 0 | AE82: 0
C84: Total depreciation for tax purposes | F84: C | G84: $'000 | J84: =J82+J76+J70 -> 0 | K84: 0 | L84: 0 | M84: 0 | N84: 0 | O84: 0 | P84: 0 | Q84: 0 | R84: 0 | S84: 0 | T84: 0 | U84: 0 | V84: 0 | W84: 0 | X84: 0 | Y84: 0 | Z84: 0 | AA84: 0 | AB84: 0 | AC84: =AC82+AC76+AC70 -> 0 | AD84: 0 | AE84: 0
C86: Comparison of previous forecasts with actual tax depreciation (not applicable to Central Coast Council)
N87: 2016 Determination period | R87: 2020 Determination period
C88: =C66 -> Water
C89: - Previous forecast provided for pricing review | F89: C | G89: =$G$23 -> $'000 | M89: =INDEX(Determination!$J$143:$U$143,MATCH(M$60,Determination!$J$139:$U$139,0)) -> 0 | N89: =INDEX(Determination!$J$143:$U$143,MATCH(N$60,Determination!$J$139:$U$139,0)) -> 0 | O89: =INDEX(Determination!$J$143:$U$143,MATCH(O$60,Determination!$J$139:$U$139,0)) -> 0 | P89: =INDEX(Determination!$J$143:$U$143,MATCH(P$60,Determination!$J$139:$U$139,0)) -> 0 | Q89: =INDEX(Determination!$J$143:$U$143,MATCH(Q$60,Determination!$J$139:$U$139,0)) -> 0 | R89: =INDEX(Determination!$J$143:$U$143,MATCH(R$60,Determination!$J$139:$U$139,0)) -> 0 | S89: =INDEX(Determination!$J$143:$U$143,MATCH(S$60,Determination!$J$139:$U$139,0)) -> 0 | T89: =INDEX(Determination!$J$143:$U$143,MATCH(T$60,Determination!$J$139:$U$139,0)) -> 0
C90: - Actual tax depreciation | F90: C | G90: $'000 | M90: =M70 -> 0 | N90: 0 | O90: 0 | P90: 0 | Q90: =Q70 -> 0 | R90: 0 | S90: 0 | T90: 0
C91: - Percentage difference | F91: C | G91: % | M91: =IF(OR(M89=0,M90=0),0,M89/M90-1) -> 0 | N91: 0 | O91: 0 | P91: 0 | Q91: =IF(OR(Q89=0,Q90=0),0,Q89/Q90-1) -> 0 | R91: 0 | S91: 0 | T91: 0
C92: =C72 -> Wastewater
C93: =C89 -> - Previous forecast provided for pricing review | F93: C | G93: =$G$23 -> $'000 | M93: =INDEX(Determination!$J$144:$U$144,MATCH(M$60,Determination!$J$139:$U$139,0)) -> 0 | N93: =INDEX(Determination!$J$144:$U$144,MATCH(N$60,Determination!$J$139:$U$139,0)) -> 0 | O93: =INDEX(Determination!$J$144:$U$144,MATCH(O$60,Determination!$J$139:$U$139,0)) -> 0 | P93: =INDEX(Determination!$J$144:$U$144,MATCH(P$60,Determination!$J$139:$U$139,0)) -> 0 | Q93: =INDEX(Determination!$J$144:$U$144,MATCH(Q$60,Determination!$J$139:$U$139,0)) -> 0 | R93: =INDEX(Determination!$J$144:$U$144,MATCH(R$60,Determination!$J$139:$U$139,0)) -> 0 | S93: =INDEX(Determination!$J$144:$U$144,MATCH(S$60,Determination!$J$139:$U$139,0)) -> 0 | T93: =INDEX(Determination!$J$144:$U$144,MATCH(T$60,Determination!$J$139:$U$139,0)) -> 0
C94: =C90 -> - Actual tax depreciation | F94: C | G94: $'000 | M94: =M76 -> 0 | N94: 0 | O94: 0 | P94: 0 | Q94: =Q76 -> 0 | R94: 0 | S94: 0 | T94: 0
C95: =C91 -> - Percentage difference | F95: C | G95: % | M95: =IF(OR(M93=0,M94=0),0,M93/M94-1) -> 0 | N95: 0 | O95: 0 | P95: 0 | Q95: =IF(OR(Q93=0,Q94=0),0,Q93/Q94-1) -> 0 | R95: 0 | S95: 0 | T95: 0
C96: =C78 -> Stormwater
C97: =C93 -> - Previous forecast provided for pricing review | F97: C | G97: =$G$23 -> $'000 | M97: =INDEX(Determination!$J$145:$U$145,MATCH(M$60,Determination!$J$139:$U$139,0)) -> 0 | N97: =INDEX(Determination!$J$145:$U$145,MATCH(N$60,Determination!$J$139:$U$139,0)) -> 0 | O97: =INDEX(Determination!$J$145:$U$145,MATCH(O$60,Determination!$J$139:$U$139,0)) -> 0 | P97: =INDEX(Determination!$J$145:$U$145,MATCH(P$60,Determination!$J$139:$U$139,0)) -> 0 | Q97: =INDEX(Determination!$J$145:$U$145,MATCH(Q$60,Determination!$J$139:$U$139,0)) -> 0 | R97: =INDEX(Determination!$J$145:$U$145,MATCH(R$60,Determination!$J$139:$U$139,0)) -> 0 | S97: =INDEX(Determination!$J$145:$U$145,MATCH(S$60,Determination!$J$139:$U$139,0)) -> 0 | T97: =INDEX(Determination!$J$145:$U$145,MATCH(T$60,Determination!$J$139:$U$139,0)) -> 0
C98: =C94 -> - Actual tax depreciation | F98: C | G98: $'000 | M98: =M82 -> 0 | N98: 0 | O98: 0 | P98: 0 | Q98: =Q82 -> 0 | R98: 0 | S98: 0 | T98: 0
C99: =C95 -> - Percentage difference | F99: C | G99: % | M99: =IF(OR(M97=0,M98=0),0,M97/M98-1) -> 0 | N99: 0 | O99: 0 | P99: 0 | Q99: =IF(OR(Q97=0,Q98=0),0,Q97/Q98-1) -> 0 | R99: 0 | S99: 0 | T99: 0
C100: Total
C101: =C89 -> - Previous forecast provided for pricing review | F101: C | G101: =$G$23 -> $'000 | M101: =M89+M93+M97 -> 0 | N101: 0 | O101: 0 | P101: 0 | Q101: =Q89+Q93+Q97 -> 0 | R101: 0 | S101: 0 | T101: 0
C102: =C90 -> - Actual tax depreciation | F102: C | G102: $'000 | M102: 0 | N102: 0 | O102: 0 | P102: 0 | Q102: =Q90+Q94+Q98 -> 0 | R102: 0 | S102: 0 | T102: 0
C103: =C91 -> - Percentage difference | F103: C | G103: % | M103: =IF(OR(M101=0,M102=0),0,M101/M102-1) -> 0 | N103: 0 | O103: 0 | P103: 0 | Q103: =IF(OR(Q101=0,Q102=0),0,Q101/Q102-1) -> 0 | R103: 0 | S103: 0 | T103: 0
C104: - Average difference over determination period | F104: C | G104: % | P104: =IF(SUM(O102:P102)=0,0,IF(P102=0,SUM(M102:O102)/SUM(M101:O101),SUM(M101:P101)/SUM(M102:P102))-1) -> 0 | T104: =IF(SUM(S102:T102)=0,0,IF(T102=0,SUM(Q102:S102)/SUM(Q101:S101),SUM(Q101:T101)/SUM(Q102:T102))-1) -> 0
P105: =IF(ABS(P104)>10%, "Please provide reasons for the difference","ok - difference <10%") -> ok - difference <10% | T105: =IF(ABS(T104)>10%, "Please provide reasons for the difference","ok - difference <10%") -> ok - difference <10%
C109: Table 10.4 - Financeability parameters for our 'actual' financeability test | P109: $ nominal | AG109: =AG$17 -> COMMENTS TO IPART
C110: ='Non-financial'!C$18 -> Financial year | D110: OPTIONAL FIELDS | J110: ='Non-financial'!J$18 -> 2013-14 | K110: ='Non-financial'!K$18 -> 2014-15 | L110: ='Non-financial'!L$18 -> 2015-16 | M110: ='Non-financial'!M$18 -> 2016-17 | N110: ='Non-financial'!N$18 -> 2017-18 | O110: ='Non-financial'!O$18 -> 2018-19 | P110: ='Non-financial'!P$18 -> 2019-20 | Q110: ='Non-financial'!Q$18 -> 2020-21 | R110: ='Non-financial'!R$18 -> 2021-22 | S110: ='Non-financial'!S$18 -> 2022-23 | T110: ='Non-financial'!T$18 -> 2023-24 | U110: ='Non-financial'!U$18 -> 2024-25 | V110: ='Non-financial'!V$18 -> 2025-26 | W110: ='Non-financial'!W$18 -> 2026-27 | X110: ='Non-financial'!X$18 -> 2027-28 | Y110: ='Non-financial'!Y$18 -> 2028-29 | Z110: ='Non-financial'!Z$18 -> 2029-30 | AA110: ='Non-financial'!AA$18 -> 2030-31 | AB110: ='Non-financial'!AB$18 -> 2031-32 | AC110: ='Non-financial'!AC$18 -> 2032-33 | AD110: ='Non-financial'!AD$18 -> 2033-34 | AE110: ='Non-financial'!AE$18 -> 2034-35 | AG110: =AG$18 -> 2023
D111: ='Non-financial'!D$19 -> Code | F111: ='Non-financial'!F$19 -> I/C | G111: ='Non-financial'!G$19 -> Unit | J111: ='Non-financial'!J$19 -> Actual | K111: ='Non-financial'!K$19 -> Actual | L111: ='Non-financial'!L$19 -> Actual | M111: ='Non-financial'!M$19 -> Actual | N111: ='Non-financial'!N$19 -> Actual | O111: ='Non-financial'!O$19 -> Actual | P111: ='Non-financial'!P$19 -> Actual | Q111: ='Non-financial'!Q$19 -> Actual | R111: ='Non-financial'!R$19 -> Actual | S111: ='Non-financial'!S$19 -> Actual | T111: ='Non-financial'!T$19 -> Forecast | U111: ='Non-financial'!U$19 -> Forecast | V111: ='Non-financial'!V$19 -> Forecast | W111: ='Non-financial'!W$19 -> Forecast | X111: ='Non-financial'!X$19 -> Forecast | Y111: ='Non-financial'!Y$19 -> Forecast | Z111: ='Non-financial'!Z$19 -> Forecast | AA111: ='Non-financial'!AA$19 -> Forecast | AB111: ='Non-financial'!AB$19 -> Forecast | AC111: ='Non-financial'!AC$19 -> Forecast | AD111: ='Non-financial'!AD$19 -> Forecast | AE111: ='Non-financial'!AE$19 -> Forecast
C113: ="Provide $ forecasts in real $"&Cover!$E$11 -> Provide $ forecasts in real $2023-24 | V113: =C113 -> Provide $ forecasts in real $2023-24
C115: Cost of debt for 'actual' credit ratios
C116: Please enter your actual cost of debt, not the benchmark cost of debt from the WACC | V116: Please enter your expected actual cost of debt, not the benchmark cost of debt from the WACC
C117: Nominal debt
C118: - Base rate | F118: I | G118: %
C119: - Government guarantee fee | F119: I | G119: %
C120: - Cost of debt | F120: C | G120: % | J120: =SUM(J118:J119) -> 0 | K120: 0 | L120: 0 | M120: 0 | N120: 0 | O120: 0 | P120: 0 | Q120: 0 | R120: 0 | S120: 0 | T120: =SUM(T118:T119) -> 0 | U120: 0 | V120: 0 | W120: 0 | X120: 0 | Y120: 0 | Z120: 0 | AA120: 0 | AB120: 0 | AC120: =SUM(AC118:AC119) -> 0 | AD120: 0 | AE120: 0
C122: Real debt (e.g., inflation linked bonds, inflation swaps)
C123: - Base rate | F123: I | G123: %
C124: - Government guarantee fee | F124: I | G124: %
C125: - Cost of debt | F125: C | G125: % | J125: =SUM(J123:J124) -> 0 | K125: 0 | L125: 0 | M125: 0 | N125: 0 | O125: 0 | P125: 0 | Q125: 0 | R125: 0 | S125: 0 | T125: =SUM(T123:T124) -> 0 | U125: 0 | V125: 0 | W125: 0 | X125: 0 | Y125: 0 | Z125: 0 | AA125: 0 | AB125: 0 | AC125: =SUM(AC123:AC124) -> 0 | AD125: 0 | AE125: 0
C127: Low coupon debt (where a portion of the interest cost is capitalised)
C128: - Base rate | F128: I | G128: % | S128: 0.01
C129: - Government guarantee fee | F129: I | G129: %
C130: - Cost of debt | F130: C | G130: % | J130: =SUM(J128:J129) -> 0 | K130: 0 | L130: 0 | M130: 0 | N130: 0 | O130: 0 | P130: 0 | Q130: 0 | R130: 0 | S130: 0.01 | T130: 0 | U130: 0 | V130: 0 | W130: 0 | X130: 0 | Y130: 0 | Z130: 0 | AA130: 0 | AB130: 0 | AC130: 0 | AD130: 0 | AE130: 0
C132: Proportion of debt that is
C133: =C117 -> Nominal debt | F133: I | G133: %
C134: =C122 -> Real debt (e.g., inflation linked bonds, inflation swaps)
C135: =C127 -> Low coupon debt (where a portion of the interest cost is capitalised) | N135: =1-SUM(N133:N134) -> 1 | O135: =1-SUM(O133:O134) -> 1 | P135: 1 | Q135: 1 | R135: 1 | S135: 1 | T135: 1 | U135: 1 | V135: 1 | W135: 1 | X135: 1 | Y135: 1 | Z135: 1 | AA135: 1 | AB135: 1 | AC135: 1 | AD135: 1 | AE135: 1
C137: Superannuation amounts for credit ratio adjustments
C138: Superannuation adjustment (net defined benefit liability) | F138: I | G138: =$G$23 -> $'000
C140: Operating lease amounts for credit ratio adjustments
C142: Operating leases that are NOT recognised on the balance sheet from 1 January 2019
C143: Total operating lease expense | F143: I | G143: =$G$23 -> $'000
C145: Operating leases that are recognised on the balance sheet from 1 January 2019
C146: Operating lease expense
C147: Regulated services (including 16A recycled water) | F147: I | G147: =$G$23 -> $'000 | O147: ='Opex by item'!O38+'Opex by item'!O75+'Opex by item'!O97+'Opex by item'!O113+'Opex by item'!O84 -> 0 | P147: ='Opex by item'!P38+'Opex by item'!P75+'Opex by item'!P97+'Opex by item'!P113+'Opex by item'!P84 -> 0 | Q147: ='Opex by item'!Q38+'Opex by item'!Q75+'Opex by item'!Q97+'Opex by item'!Q113+'Opex by item'!Q84 -> 0 | R147: ='Opex by item'!R38+'Opex by item'!R75+'Opex by item'!R97+'Opex by item'!R113+'Opex by item'!R84 -> 0 | S147: ='Opex by item'!S38+'Opex by item'!S75+'Opex by item'!S97+'Opex by item'!S113+'Opex by item'!S84 -> 0 | T147: ='Opex by item'!T38+'Opex by item'!T75+'Opex by item'!T97+'Opex by item'!T113+'Opex by item'!T84 -> 0 | U147: ='Opex by item'!U38+'Opex by item'!U75+'Opex by item'!U97+'Opex by item'!U113+'Opex by item'!U84 -> 0 | V147: ='Opex by item'!V38+'Opex by item'!V75+'Opex by item'!V97+'Opex by item'!V113+'Opex by item'!V84 -> 0 | W147: ='Opex by item'!W38+'Opex by item'!W75+'Opex by item'!W97+'Opex by item'!W113+'Opex by item'!W84 -> 0 | X147: ='Opex by item'!X38+'Opex by item'!X75+'Opex by item'!X97+'Opex by item'!X113+'Opex by item'!X84 -> 0 | Y147: ='Opex by item'!Y38+'Opex by item'!Y75+'Opex by item'!Y97+'Opex by item'!Y113+'Opex by item'!Y84 -> 0 | Z147: ='Opex by item'!Z38+'Opex by item'!Z75+'Opex by item'!Z97+'Opex by item'!Z113+'Opex by item'!Z84 -> 0 | AA147: ='Opex by item'!AA38+'Opex by item'!AA75+'Opex by item'!AA97+'Opex by item'!AA113+'Opex by item'!AA84 -> 0 | AB147: ='Opex by item'!AB38+'Opex by item'!AB75+'Opex by item'!AB97+'Opex by item'!AB113+'Opex by item'!AB84 -> 0 | AC147: ='Opex by item'!AC38+'Opex by item'!AC75+'Opex by item'!AC97+'Opex by item'!AC113+'Opex by item'!AC84 -> 0 | AD147: ='Opex by item'!AD38+'Opex by item'!AD75+'Opex by item'!AD97+'Opex by item'!AD113+'Opex by item'!AD84 -> 0 | AE147: ='Opex by item'!AE38+'Opex by item'!AE75+'Opex by item'!AE97+'Opex by item'!AE113+'Opex by item'!AE84 -> 0
C148: Non-regulated and unregulated activities | F148: I | G148: =$G$23 -> $'000
C149: Total expense | F149: C | G149: =$G$23 -> $'000 | O149: =SUM(O147:O148) -> 0 | P149: =SUM(P147:P148) -> 0 | Q149: 0 | R149: 0 | S149: 0 | T149: 0 | U149: 0 | V149: 0 | W149: 0 | X149: 0 | Y149: 0 | Z149: 0 | AA149: 0 | AB149: 0 | AC149: 0 | AD149: 0 | AE149: 0
C151: Operating lease debt obligation
C152: =C147 -> Regulated services (including 16A recycled water) | F152: I | G152: =$G$23 -> $'000
C153: =C148 -> Non-regulated and unregulated activities | F153: I | G153: =$G$23 -> $'000
C154: Total operating lease debt obligation | F154: C | G154: =$G$23 -> $'000 | O154: =SUM(O152:O153) -> 0 | P154: 0 | Q154: 0 | R154: 0 | S154: 0 | T154: =SUM(T152:T153) -> 0 | U154: 0 | V154: 0 | W154: 0 | X154: 0 | Y154: 0 | Z154: 0 | AA154: 0 | AB154: 0 | AC154: =SUM(AC152:AC153) -> 0 | AD154: 0 | AE154: 0
C156: Operating lease expense recognised as interest
C157: =C152 -> Regulated services (including 16A recycled water) | F157: I | G157: =$G$23 -> $'000
C158: =C153 -> Non-regulated and unregulated activities | F158: I | G158: =$G$23 -> $'000
C159: Total interest | F159: C | G159: =$G$23 -> $'000 | O159: =SUM(O157:O158) -> 0 | P159: 0 | Q159: 0 | R159: 0 | S159: 0 | T159: =SUM(T157:T158) -> 0 | U159: 0 | V159: 0 | W159: 0 | X159: 0 | Y159: 0 | Z159: 0 | AA159: 0 | AB159: 0 | AC159: =SUM(AC157:AC158) -> 0 | AD159: 0 | AE159: 0
C161: Operating lease expense recognised as depreciation
C162: =C157 -> Regulated services (including 16A recycled water) | F162: I | G162: =$G$23 -> $'000
C163: =C158 -> Non-regulated and unregulated activities | F163: I | G163: =$G$23 -> $'000
C164: Total depreciation | F164: C | G164: =$G$23 -> $'000 | O164: =SUM(O162:O163) -> 0 | P164: 0 | Q164: 0 | R164: 0 | S164: 0 | T164: 0 | U164: 0 | V164: 0 | W164: 0 | X164: 0 | Y164: 0 | Z164: 0 | AA164: 0 | AB164: 0 | AC164: =SUM(AC162:AC163) -> 0 | AD164: 0 | AE164: 0
BB198: ``

Sheet Assets DRC
B2: =Cover!B5 -> Metropolitan Water Agency | G2: =Cover!E5 -> Abusiness
B3: Section 11 | G3: Assets depreciated replacement cost
B4: =MID(CELL("filename",B1),FIND("]",CELL("filename",B1))+1,255) -> Assets DRC
B6: ='Non-financial'!B7 -> Colour coding located on Cover sheet
B7: ='Non-financial'!B8 -> Leave cells blank if no information exists - PLEASE DO NOT ENTER TEXT unless specifically requested to do so.
B9: NOTES
B10: (i) | C10: Forecasts not required
B11: (ii) | C11: Contributed assets includes gifted assets and assets funded by cash contributions
C15: Table 11.1 - Depreciated and Gross Replacement Cost of Property, Plant & Equipment (incl contributed, $'000) | AD15: ='Non-financial'!AG17 -> COMMENTS TO IPART
